Workbook

Sheet Greeks
B2: date | C2: 2013-11-12 | E2: 2013-11-12 | G2: 2013-11-13 | I2: 2013-11-18 | K2: 2013-11-14 | M2: 2013-11-14 | O2: 2013-11-14 | Q2: 2013-11-14 | S2: 2013-11-14 | U2: 2013-11-14 | W2: 2013-11-14 | Y2: 2013-11-14
B3: exp | C3: 2013-11-15 | E3: 2013-11-22 | G3: 2013-11-15 | I3: 2013-11-29 | K3: 2013-12-21 | M3: 2013-12-21 | O3: 2013-12-21 | Q3: 2013-12-21 | S3: 2013-12-21 | U3: 2013-12-21 | W3: 2013-12-21 | Y3: 2013-12-21
B4: days to exp | C4: =C3-C2 -> 3 | E4: =E3-E2 -> 10 | G4: =G3-G2 -> 2 | I4: =I3-I2 -> 11 | K4: =K3-K2 -> 37 | M4: =M3-M2 -> 37 | O4: =O3-O2 -> 37 | Q4: =Q3-Q2 -> 37 | S4: =S3-S2 -> 37 | U4: =U3-U2 -> 37 | W4: =W3-W2 -> 37 | Y4: =Y3-Y2 -> 37
B5: exp mult | C5: 3.5 | E5: 10.5 | G5: 2.5 | I5: 11.5 | K5: 37 | M5: 37 | O5: 37 | Q5: 37 | S5: 37 | U5: 37 | W5: 37 | Y5: 37
B6: rate | C6: 0.0025 | E6: =$C$6 -> 0.0025 | G6: =$C$6 -> 0.0025 | I6: =$C$6 -> 0.0025 | K6: 0.07 | M6: 0.07 | O6: 0.07 | Q6: 0.07 | S6: 0.07 | U6: 0.07 | W6: 0.07 | Y6: 0.07
B7: volatility | C7: 0.43 | E7: 0.43 | G7: 0.43 | I7: 0.43 | K7: 0.25 | M7: 0.25 | O7: 0.25 | Q7: 0.25 | S7: 0.25 | U7: 0.25 | W7: 0.25 | Y7: 0.25
B9: underlying | C9: 47.17 | E9: 46.5 | G9: 72 | I9: 72 | K9: 250 | M9: 250 | O9: 250 | Q9: 250 | S9: 330 | U9: 330 | W9: 330 | Y9: 330
B10: opt type | C10: p | E10: c | G10: p | I10: p | K10: c | M10: c | O10: p | Q10: p | S10: c | U10: c | W10: p | Y10: p
B11: strike | C11: 47 | E11: 50.5 | G11: 71 | I11: 70 | K11: 260 | M11: 265 | O11: 240 | Q11: 235 | S11: 345 | U11: 350 | W11: 315 | Y11: 310
B13: thv | C13: =IF(C$10="c",CallThv(C$9,C$11,C$5/365,C$6,C$7,0),IF(C$10="p",putThv(C$9,C$11,C$5/365,C$6,C$7,0),0)) -> 0.7082619905 | E13: =IF(E$10="c",CallThv(E$9,E$11,E$5/365,E$6,E$7,0),IF(E$10="p",putThv(E$9,E$11,E$5/365,E$6,E$7,0),0)) -> 0.2281371935 | G13: =IF(G$10="c",CallThv(G$9,G$11,G$5/365,G$6,G$7,0),IF(G$10="p",putThv(G$9,G$11,G$5/365,G$6,G$7,0),0)) -> 0.5920037187 | I13: =IF(I$10="c",CallThv(I$9,I$11,I$5/365,I$6,I$7,0),IF(I$10="p",putThv(I$9,I$11,I$5/365,I$6,I$7,0),0)) -> 1.304840416 | K13: =IF(K$10="c",CallThv(K$9,K$11,K$5/365,K$6,K$7,0),IF(K$10="p",putThv(K$9,K$11,K$5/365,K$6,K$7,0),0)) -> 4.633017681 | M13: =IF(M$10="c",CallThv(M$9,M$11,M$5/365,M$6,M$7,0),IF(M$10="p",putThv(M$9,M$11,M$5/365,M$6,M$7,0),0)) -> 3.208023627 | O13: =IF(O$10="c",CallThv(O$9,O$11,O$5/365,O$6,O$7,0),IF(O$10="p",putThv(O$9,O$11,O$5/365,O$6,O$7,0),0)) -> 3.264895268 | Q13: =IF(Q$10="c",CallThv(Q$9,Q$11,Q$5/365,Q$6,Q$7,0),IF(Q$10="p",putThv(Q$9,Q$11,Q$5/365,Q$6,Q$7,0),0)) -> 2.051164079 | S13: =IF(S$10="c",CallThv(S$9,S$11,S$5/365,S$6,S$7,0),IF(S$10="p",putThv(S$9,S$11,S$5/365,S$6,S$7,0),0)) -> 5.549076547 | U13: =IF(U$10="c",CallThv(U$9,U$11,U$5/365,U$6,U$7,0),IF(U$10="p",putThv(U$9,U$11,U$5/365,U$6,U$7,0),0)) -> 4.185686569 | W13: =IF(W$10="c",CallThv(W$9,W$11,W$5/365,W$6,W$7,0),IF(W$10="p",putThv(W$9,W$11,W$5/365,W$6,W$7,0),0)) -> 3.818210903 | Y13: =IF(Y$10="c",CallThv(Y$9,Y$11,Y$5/365,Y$6,Y$7,0),IF(Y$10="p",putThv(Y$9,Y$11,Y$5/365,Y$6,Y$7,0),0)) -> 2.667212875
B14: delta | C14: =IF(C$10="c",CallDelta(C$9,C$11,C$5/365,C$6,C$7,0),IF(C$10="p",putDelta(C$9,C$11,C$5/365,C$6,C$7,0),0)) -> -0.4572484023 | E14: =IF(E$10="c",CallDelta(E$9,E$11,E$5/365,E$6,E$7,0),IF(E$10="p",putDelta(E$9,E$11,E$5/365,E$6,E$7,0),0)) -> 0.1369707426 | G14: =IF(G$10="c",CallDelta(G$9,G$11,G$5/365,G$6,G$7,0),IF(G$10="p",putDelta(G$9,G$11,G$5/365,G$6,G$7,0),0)) -> -0.3404301018 | I14: =IF(I$10="c",CallDelta(I$9,I$11,I$5/365,I$6,I$7,0),IF(I$10="p",putDelta(I$9,I$11,I$5/365,I$6,I$7,0),0)) -> -0.3415331711 | K14: =IF(K$10="c",CallDelta(K$9,K$11,K$5/365,K$6,K$7,0),IF(K$10="p",putDelta(K$9,K$11,K$5/365,K$6,K$7,0),0)) -> 0.3580047289 | M14: =IF(M$10="c",CallDelta(M$9,M$11,M$5/365,M$6,M$7,0),IF(M$10="p",putDelta(M$9,M$11,M$5/365,M$6,M$7,0),0)) -> 0.2732189575 | O14: =IF(O$10="c",CallDelta(O$9,O$11,O$5/365,O$6,O$7,0),IF(O$10="p",putDelta(O$9,O$11,O$5/365,O$6,O$7,0),0)) -> -0.2604990589 | Q14: =IF(Q$10="c",CallDelta(Q$9,Q$11,Q$5/365,Q$6,Q$7,0),IF(Q$10="p",putDelta(Q$9,Q$11,Q$5/365,Q$6,Q$7,0),0)) -> -0.1823861601 | S14: =IF(S$10="c",CallDelta(S$9,S$11,S$5/365,S$6,S$7,0),IF(S$10="p",putDelta(S$9,S$11,S$5/365,S$6,S$7,0),0)) -> 0.3337736163 | U14: =IF(U$10="c",CallDelta(U$9,U$11,U$5/365,U$6,U$7,0),IF(U$10="p",putDelta(U$9,U$11,U$5/365,U$6,U$7,0),0)) -> 0.2708356872 | W14: =IF(W$10="c",CallDelta(W$9,W$11,W$5/365,W$6,W$7,0),IF(W$10="p",putDelta(W$9,W$11,W$5/365,W$6,W$7,0),0)) -> -0.2378010403 | Y14: =IF(Y$10="c",CallDelta(Y$9,Y$11,Y$5/365,Y$6,Y$7,0),IF(Y$10="p",putDelta(Y$9,Y$11,Y$5/365,Y$6,Y$7,0),0)) -> -0.1802502568
B15: gamma | C15: =_xludf.GAMMA(C$9,C$11,C$5/365,C$6,C$7,0) -> 0.1997031344 | E15: =_xludf.GAMMA(E$9,E$11,E$5/365,E$6,E$7,0) -> 0.0646600725 | G15: =_xludf.GAMMA(G$9,G$11,G$5/365,G$6,G$7,0) -> 0.1430714914 | I15: =_xludf.GAMMA(I$9,I$11,I$5/365,I$6,I$7,0) -> 0.06678968068 | K15: =_xludf.GAMMA(K$9,K$11,K$5/365,K$6,K$7,0) -> 0.0187644798 | M15: =_xludf.GAMMA(M$9,M$11,M$5/365,M$6,M$7,0) -> 0.01671441047 | O15: =_xludf.GAMMA(O$9,O$11,O$5/365,O$6,O$7,0) -> 0.01631657423 | Q15: =GAMMA2(Q$9,Q11,Q$5/365,Q$6,Q$7,0) -> 0.01329571633 | S15: =_xludf.GAMMA(S$9,S$11,S$5/365,S$6,S$7,0) -> 0.01384973181 | U15: =_xludf.GAMMA(U$9,U$11,U$5/365,U$6,U$7,0) -> 0.01260738502 | W15: =_xludf.GAMMA(W$9,W$11,W$5/365,W$6,W$7,0) -> 0.01177575532 | Y15: =GAMMA2(Y$9,Y11,Y$5/365,Y$6,Y$7,0) -> 0.009998486386
B16: vega | C16: =Vega(C$9,C$11,C$5/365,C$6,C$7,0) -> 0.01832146804 | E16: =Vega(E$9,E$11,E$5/365,E$6,E$7,0) -> 0.01729445908 | G16: =Vega(G$9,G$11,G$5/365,G$6,G$7,0) -> 0.02184407692 | I16: =Vega(I$9,I$11,I$5/365,I$6,I$7,0) -> 0.04690809451 | K16: =Vega(K$9,K$11,K$5/365,K$6,K$7,0) -> 0.2972113666 | M16: =Vega(M$9,M$11,M$5/365,M$6,M$7,0) -> 0.2647402344 | O16: =Vega(O$9,O$11,O$5/365,O$6,O$7,0) -> 0.2584388898 | Q16: =Vega(Q$9,Q$11,Q$5/365,Q$6,Q$7,0) -> 0.2105913973 | S16: =Vega(S$9,S$11,S$5/365,S$6,S$7,0) -> 0.3822241397 | U16: =Vega(U$9,U$11,U$5/365,U$6,U$7,0) -> 0.3479379211 | W16: =Vega(W$9,W$11,W$5/365,W$6,W$7,0) -> 0.32498665 | Y16: =Vega(Y$9,Y$11,Y$5/365,Y$6,Y$7,0) -> 0.2759376794
B17: theta | C17: =IF(C$10="c",CallTheta(C$9,C$11,C$5/365,C$6,C$7,0),IF(C$10="p",putTheta(C$9,C$11,C$5/365,C$6,C$7,0),0)) -> -0.1123935809 | E17: =IF(E$10="c",CallTheta(E$9,E$11,E$5/365,E$6,E$7,0),IF(E$10="p",putTheta(E$9,E$11,E$5/365,E$6,E$7,0),0)) -> -0.0354545255 | G17: =IF(G$10="c",CallTheta(G$9,G$11,G$5/365,G$6,G$7,0),IF(G$10="p",putTheta(G$9,G$11,G$5/365,G$6,G$7,0),0)) -> -0.1876871233 | I17: =IF(I$10="c",CallTheta(I$9,I$11,I$5/365,I$6,I$7,0),IF(I$10="p",putTheta(I$9,I$11,I$5/365,I$6,I$7,0),0)) -> -0.08752037732 | K17: =IF(K$10="c",CallTheta(K$9,K$11,K$5/365,K$6,K$7,0),IF(K$10="p",putTheta(K$9,K$11,K$5/365,K$6,K$7,0),0)) -> -0.1166853318 | M17: =IF(M$10="c",CallTheta(M$9,M$11,M$5/365,M$6,M$7,0),IF(M$10="p",putTheta(M$9,M$11,M$5/365,M$6,M$7,0),0)) -> -0.10192357 | O17: =IF(O$10="c",CallTheta(O$9,O$11,O$5/365,O$6,O$7,0),IF(O$10="p",putTheta(O$9,O$11,O$5/365,O$6,O$7,0),0)) -> -0.07419461053 | Q17: =IF(Q$10="c",CallTheta(Q$9,Q$11,Q$5/365,Q$6,Q$7,0),IF(Q$10="p",putTheta(Q$9,Q$11,Q$5/365,Q$6,Q$7,0),0)) -> -0.06200782647 | S17: =IF(S$10="c",CallTheta(S$9,S$11,S$5/365,S$6,S$7,0),IF(S$10="p",putTheta(S$9,S$11,S$5/365,S$6,S$7,0),0)) -> -0.1491893254 | U17: =IF(U$10="c",CallTheta(U$9,U$11,U$5/365,U$6,U$7,0),IF(U$10="p",putTheta(U$9,U$11,U$5/365,U$6,U$7,0),0)) -> -0.1338844205 | W17: =IF(W$10="c",CallTheta(W$9,W$11,W$5/365,W$6,W$7,0),IF(W$10="p",putTheta(W$9,W$11,W$5/365,W$6,W$7,0),0)) -> -0.09401065348 | Y17: =IF(Y$10="c",CallTheta(Y$9,Y$11,Y$5/365,Y$6,Y$7,0),IF(Y$10="p",putTheta(Y$9,Y$11,Y$5/365,Y$6,Y$7,0),0)) -> -0.08130304972
B19: option price | C19: 1.15 | K19: 0.2 | M19: 0.23 | O19: 1.67 | Q19: 1 | S19: 0.2 | U19: 0.23 | W19: 1.67 | Y19: 1
B20: implied vty | C20: =IF(C$10="c",CallImpVty(C$9,C$11,C$5/365,C$6,C$19,0),IF(C$10="p",PutImpVty(C$9,C$11,C$5/365,C$6,C$19,0),0)) -> 0.6708145142 | E20: =IF(E$10="c",CallImpVty(E$9,E$11,E$5/365,E$6,E$19,0),IF(E$10="p",PutImpVty(E$9,E$11,E$5/365,E$6,E$19,0),0)) -> 0.01293182373 | G20: =IF(G$10="c",CallImpVty(G$9,G$11,G$5/365,G$6,G$19,0),IF(G$10="p",PutImpVty(G$9,G$11,G$5/365,G$6,G$19,0),0)) -> 0.004539489746 | I20: =IF(I$10="c",CallImpVty(I$9,I$11,I$5/365,I$6,I$19,0),IF(I$10="p",PutImpVty(I$9,I$11,I$5/365,I$6,I$19,0),0)) -> 0.004234313965 | K20: =IF(K$10="c",CallImpVty(K$9,K$11,K$5/365,K$6,K$19,0),IF(K$10="p",PutImpVty(K$9,K$11,K$5/365,K$6,K$19,0),0)) -> 0.07091522217 | M20: =IF(M$10="c",CallImpVty(M$9,M$11,M$5/365,M$6,M$19,0),IF(M$10="p",PutImpVty(M$9,M$11,M$5/365,M$6,M$19,0),0)) -> 0.1045608521 | O20: =IF(O$10="c",CallImpVty(O$9,O$11,O$5/365,O$6,O$19,0),IF(O$10="p",PutImpVty(O$9,O$11,O$5/365,O$6,O$19,0),0)) -> 0.184211731 | Q20: =IF(Q$10="c",CallImpVty(Q$9,Q$11,Q$5/365,Q$6,Q$19,0),IF(Q$10="p",PutImpVty(Q$9,Q$11,Q$5/365,Q$6,Q$19,0),0)) -> 0.1945877075 | S20: =IF(S$10="c",CallImpVty(S$9,S$11,S$5/365,S$6,S$19,0),IF(S$10="p",PutImpVty(S$9,S$11,S$5/365,S$6,S$19,0),0)) -> 0.07480621338 | U20: =IF(U$10="c",CallImpVty(U$9,U$11,U$5/365,U$6,U$19,0),IF(U$10="p",PutImpVty(U$9,U$11,U$5/365,U$6,U$19,0),0)) -> 0.09944915771 | W20: =IF(W$10="c",CallImpVty(W$9,W$11,W$5/365,W$6,W$19,0),IF(W$10="p",PutImpVty(W$9,W$11,W$5/365,W$6,W$19,0),0)) -> 0.1776504517 | Y20: =IF(Y$10="c",CallImpVty(Y$9,Y$11,Y$5/365,Y$6,Y$19,0),IF(Y$10="p",PutImpVty(Y$9,Y$11,Y$5/365,Y$6,Y$19,0),0)) -> 0.1803207397

Sheet GreeksChain
E2: CALLS | L2: PUTS | S2: CALLS PUTS PROFIT | Z2: Volatility Lookup
E3: strike | F3: thv | G3: delta | H3: gamma | I3: theta | J3: vega | L3: strike | M3: thv | N3: delta | O3: gamma | P3: theta | Q3: vega | S3: qty | T3: strike | U3: c/p | V3: price | W3: thv | X3: profit | Z3: http://www.ivolatility.com/options.j?ticker=FB:NASDAQ&R=1&period=12&chart=2&vct=
B4: date | C4: 2013-11-07 | E4: =E5-$C$13 -> 43 | F4: =CallThv(C$11,E4,C$7/365,C$8,C$9,0) -> 4.862154404 | G4: =CallDelta($C$11,$E4,$C$7/365,$C$8,$C$9,0) -> 0.9539162148 | H4: =GAMMA2($C$11,$E4,$C$7/365,$C$8,$C$9,0) -> 0.03153684078 | I4: =CallTheta($C$11,$E4,$C$7/365,$C$8,$C$9,0) -> -0.01769104886 | J4: =Vega($C$11,$E4,$C$7/365,$C$8,$C$9,0) -> 0.007047731178 | L4: =L5-$C$13 -> 43 | M4: =putThv($C$11,$L4,$C$7/365,$C$8,$C$9,0) -> 0.05965105213 | N4: =putDelta($C$11,$L4,$C$7/365,$C$8,$C$9,0) -> -0.04608378522 | O4: =GAMMA2($C$11,$L4,$C$7/365,$C$8,$C$9,0) -> 0.03153684078 | P4: =putTheta($C$11,$L4,$C$7/365,$C$8,$C$9,0) -> -0.01739654546 | Q4: =Vega($C$11,$L4,$C$7/365,$C$8,$C$9,0) -> 0.007047731178 | S4: 1 | T4: 52 | U4: c | V4: 1.65 | W4: =IF(U4="p",VLOOKUP(T4,L$4:M$24,2),IF(U4="c",VLOOKUP(T4,E$4:F$24,2),0)) -> 0.1414257931 | X4: =(W4-V4)*S4 -> -1.508574207
B5: exp | C5: 2013-11-15 | E5: 43.5 | F5: =CallThv(C$11,E5,C$7/365,C$8,C$9,0) -> 4.393837821 | G5: =CallDelta($C$11,$E5,$C$7/365,$C$8,$C$9,0) -> 0.9336704185 | H5: 0.04204134506 | I5: =CallTheta($C$11,$E5,$C$7/365,$C$8,$C$9,0) -> -0.02348734874 | J5: 0.009395237157 | L5: 43.5 | M5: =putThv($C$11,$L5,$C$7/365,$C$8,$C$9,0) -> 0.09130536034 | N5: =putDelta($C$11,$L5,$C$7/365,$C$8,$C$9,0) -> -0.06632958154 | O5: 0.04204134506 | P5: =putTheta($C$11,$L5,$C$7/365,$C$8,$C$9,0) -> -0.02318942088 | Q5: 0.009395237157 | S5: -1 | T5: 56.5 | U5: c | V5: 1.5 | W5: =IF(U5="p",VLOOKUP(T5,L$4:M$24,2),IF(U5="c",VLOOKUP(T5,E$4:F$24,2),0)) -> 0.07315023323 | X5: 1.426849767
B6: days to exp | C6: =C5-C4 -> 8 | E6: 44 | F6: =CallThv(C$11,E6,C$7/365,C$8,C$9,0) -> 3.938239372 | G6: =CallDelta($C$11,$E6,$C$7/365,$C$8,$C$9,0) -> 0.9074781516 | H6: 0.05410277067 | I6: =CallTheta($C$11,$E6,$C$7/365,$C$8,$C$9,0) -> -0.03014121818 | J6: 0.01209067789 | L6: 44 | M6: =putThv($C$11,$L6,$C$7/365,$C$8,$C$9,0) -> 0.135677803 | N6: =putDelta($C$11,$L6,$C$7/365,$C$8,$C$9,0) -> -0.09252184838 | O6: 0.05410277067 | P6: =putTheta($C$11,$L6,$C$7/365,$C$8,$C$9,0) -> -0.02983986586 | Q6: 0.01209067789 | W6: 0 | X6: 0
B7: exp mult | C7: 8.5 | E7: 44.5 | F7: =CallThv(C$11,E7,C$7/365,C$8,C$9,0) -> 3.498618543 | G7: =CallDelta($C$11,$E7,$C$7/365,$C$8,$C$9,0) -> 0.8747396794 | H7: 0.06728977458 | I7: =CallTheta($C$11,$E7,$C$7/365,$C$8,$C$9,0) -> -0.03741428644 | J7: 0.01503765851 | L7: 44.5 | M7: =putThv($C$11,$L7,$C$7/365,$C$8,$C$9,0) -> 0.1960278649 | N7: =putDelta($C$11,$L7,$C$7/365,$C$8,$C$9,0) -> -0.1252603206 | O7: 0.06728977458 | P7: =putTheta($C$11,$L7,$C$7/365,$C$8,$C$9,0) -> -0.03710950967 | Q7: 0.01503765851 | W7: 0 | X7: 0
B8: rate | C8: 0.0025 | E8: 45 | F8: =CallThv(C$11,E8,C$7/365,C$8,C$9,0) -> 3.078406459 | G8: =CallDelta($C$11,$E8,$C$7/365,$C$8,$C$9,0) -> 0.8351595693 | H8: 0.08097429533 | I8: =CallTheta($C$11,$E8,$C$7/365,$C$8,$C$9,0) -> -0.04495966959 | J8: 0.01809582227 | L8: 45 | M8: =putThv($C$11,$L8,$C$7/365,$C$8,$C$9,0) -> 0.2757866724 | N8: =putDelta($C$11,$L8,$C$7/365,$C$8,$C$9,0) -> -0.1648404307 | O8: 0.08097429533 | P8: =putTheta($C$11,$L8,$C$7/365,$C$8,$C$9,0) -> -0.04465146836 | Q8: 0.01809582227 | W8: 0 | X8: 0
B9: avg miv | C9: 0.42 | E9: 45.5 | F9: =CallThv(C$11,E9,C$7/365,C$8,C$9,0) -> 2.681016211 | G9: =CallDelta($C$11,$E9,$C$7/365,$C$8,$C$9,0) -> 0.7888260131 | H9: 0.09437922409 | I9: =CallTheta($C$11,$E9,$C$7/365,$C$8,$C$9,0) -> -0.05234831774 | J9: 0.02109150389 | L9: 45.5 | M9: =putThv($C$11,$L9,$C$7/365,$C$8,$C$9,0) -> 0.378367315 | N9: =putDelta($C$11,$L9,$C$7/365,$C$8,$C$9,0) -> -0.2111739869 | O9: 0.09437922409 | P9: =putTheta($C$11,$L9,$C$7/365,$C$8,$C$9,0) -> -0.05203669204 | Q9: 0.02109150389 | W9: 0 | X9: 0
E10: 46 | F10: =CallThv(C$11,E10,C$7/365,C$8,C$9,0) -> 2.309628983 | G10: =CallDelta($C$11,$E10,$C$7/365,$C$8,$C$9,0) -> 0.7362530252 | H10: 0.1066549449 | I10: =CallTheta($C$11,$E10,$C$7/365,$C$8,$C$9,0) -> -0.05911128952 | J10: 0.02383483449 | L10: 46 | M10: =putThv($C$11,$L10,$C$7/365,$C$8,$C$9,0) -> 0.5069509783 | N10: =putDelta($C$11,$L10,$C$7/365,$C$8,$C$9,0) -> -0.2637469748 | O10: 0.1066549449 | P10: =putTheta($C$11,$L10,$C$7/365,$C$8,$C$9,0) -> -0.05879623937 | Q10: 0.02383483449 | W10: 0 | X10: 0
B11: underly | C11: 47.8 | E11: 46.5 | F11: =CallThv(C$11,E11,C$7/365,C$8,C$9,0) -> 1.966979452 | G11: =CallDelta($C$11,$E11,$C$7/365,$C$8,$C$9,0) -> 0.6783756447 | H11: 0.116973574 | I11: =CallTheta($C$11,$E11,$C$7/365,$C$8,$C$9,0) -> -0.06479178328 | J11: 0.02614080181 | L11: 46.5 | M11: =putThv($C$11,$L11,$C$7/365,$C$8,$C$9,0) -> 0.6642723385 | N11: =putDelta($C$11,$L11,$C$7/365,$C$8,$C$9,0) -> -0.3216243553 | O11: 0.116973574 | P11: =putTheta($C$11,$L11,$C$7/365,$C$8,$C$9,0) -> -0.06447330868 | Q11: 0.02614080181 | W11: 0 | X11: 0
B12: ATM | C12: 48 | E12: 47 | F12: =CallThv(C$11,E12,C$7/365,C$8,C$9,0) -> 1.655165565 | G12: =CallDelta($C$11,$E12,$C$7/365,$C$8,$C$9,0) -> 0.6164959233 | H12: 0.1246254956 | I12: =CallTheta($C$11,$E12,$C$7/365,$C$8,$C$9,0) -> -0.06899841957 | J12: 0.02785082365 | L12: 47 | M12: =putThv($C$11,$L12,$C$7/365,$C$8,$C$9,0) -> 0.8524293429 | N12: =putDelta($C$11,$L12,$C$7/365,$C$8,$C$9,0) -> -0.3835040767 | O12: 0.1246254956 | P12: =putTheta($C$11,$L12,$C$7/365,$C$8,$C$9,0) -> -0.0686765205 | Q12: 0.02785082365 | W12: 0 | X12: 0
B13: incr | C13: 0.5 | E13: 47.5 | F13: =CallThv(C$11,E13,C$7/365,C$8,C$9,0) -> 1.375505231 | G13: =CallDelta($C$11,$E13,$C$7/365,$C$8,$C$9,0) -> 0.5521858074 | H13: 0.1291019525 | I13: =CallTheta($C$11,$E13,$C$7/365,$C$8,$C$9,0) -> -0.07145081026 | J13: 0.0288512049 | L13: 47.5 | M13: =putThv($C$11,$L13,$C$7/365,$C$8,$C$9,0) -> 1.072739901 | N13: =putDelta($C$11,$L13,$C$7/365,$C$8,$C$9,0) -> -0.4478141926 | O13: 0.1291019525 | P13: =putTheta($C$11,$L13,$C$7/365,$C$8,$C$9,0) -> -0.07112548674 | Q13: 0.0288512049 | W13: 0 | X13: 0
E14: =C12 -> 48 | F14: =CallThv(C$11,E14,C$7/365,C$8,C$9,0) -> 1.128456079 | G14: =CallDelta($C$11,$E14,$C$7/365,$C$8,$C$9,0) -> 0.4871601548 | H14: 0.1301501992 | I14: =CallTheta($C$11,$E14,$C$7/365,$C$8,$C$9,0) -> -0.07200996854 | J14: 0.02908546303 | L14: =C12 -> 48 | M14: =putThv($C$11,$L14,$C$7/365,$C$8,$C$9,0) -> 1.32566164 | N14: =putDelta($C$11,$L14,$C$7/365,$C$8,$C$9,0) -> -0.5128398452 | O14: 0.1301501992 | P14: =putTheta($C$11,$L14,$C$7/365,$C$8,$C$9,0) -> -0.07168122056 | Q14: 0.02908546303 | W14: 0 | X14: 0
E15: =E14+$C$13 -> 48.5 | F15: =CallThv(C$11,E15,C$7/365,C$8,C$9,0) -> 0.9136055903 | G15: =CallDelta($C$11,$E15,$C$7/365,$C$8,$C$9,0) -> 0.4231375696 | H15: 0.1277932665 | I15: =CallTheta($C$11,$E15,$C$7/365,$C$8,$C$9,0) -> -0.07068917551 | J15: 0.02855874483 | L15: =L14+$C$13 -> 48.5 | M15: =putThv($C$11,$L15,$C$7/365,$C$8,$C$9,0) -> 1.610782042 | N15: =putDelta($C$11,$L15,$C$7/365,$C$8,$C$9,0) -> -0.5768624304 | O15: 0.1277932665 | P15: =putTheta($C$11,$L15,$C$7/365,$C$8,$C$9,0) -> -0.07035700307 | Q15: 0.02855874483 | S15: 1 | T15: 50 | U15: c | V15: 2 | W15: 4.62 | X15: 2.62
E16: 49 | F16: =CallThv(C$11,E16,C$7/365,C$8,C$9,0) -> 0.7297293829 | G16: =CallDelta($C$11,$E16,$C$7/365,$C$8,$C$9,0) -> 0.3617077072 | H16: 0.1223132545 | I16: =CallTheta($C$11,$E16,$C$7/365,$C$8,$C$9,0) -> -0.06764471241 | J16: 0.02733409294 | L16: 49 | M16: =putThv($C$11,$L16,$C$7/365,$C$8,$C$9,0) -> 1.926876726 | N16: =putDelta($C$11,$L16,$C$7/365,$C$8,$C$9,0) -> -0.6382922928 | O16: 0.1223132545 | P16: =putTheta($C$11,$L16,$C$7/365,$C$8,$C$9,0) -> -0.06730911551 | Q16: 0.02733409294 | S16: -1 | T16: 55 | U16: c | V16: 1.5 | W16: 0.64 | X16: 0.86
E17: 49.5 | F17: =CallThv(C$11,E17,C$7/365,C$8,C$9,0) -> 0.5749068928 | G17: =CallDelta($C$11,$E17,$C$7/365,$C$8,$C$9,0) -> 0.3042212735 | H17: 0.1142035873 | I17: =CallTheta($C$11,$E17,$C$7/365,$C$8,$C$9,0) -> -0.06314946274 | J17: 0.02552177589 | L17: 49.5 | M17: =putThv($C$11,$L17,$C$7/365,$C$8,$C$9,0) -> 2.272025127 | N17: =putDelta($C$11,$L17,$C$7/365,$C$8,$C$9,0) -> -0.6957787265 | O17: 0.1142035873 | P17: =putTheta($C$11,$L17,$C$7/365,$C$8,$C$9,0) -> -0.06281044138 | Q17: 0.02552177589 | X17: 0
E18: 50 | F18: =CallThv(C$11,E18,C$7/365,C$8,C$9,0) -> 0.4466776674 | G18: =CallDelta($C$11,$E18,$C$7/365,$C$8,$C$9,0) -> 0.2517139645 | H18: 0.1041004105 | I18: =CallTheta($C$11,$E18,$C$7/365,$C$8,$C$9,0) -> -0.05755500955 | J18: 0.02326395702 | L18: 50 | M18: =putThv($C$11,$L18,$C$7/365,$C$8,$C$9,0) -> 2.643766793 | N18: =putDelta($C$11,$L18,$C$7/365,$C$8,$C$9,0) -> -0.7482860355 | O18: 0.1041004105 | P18: =putTheta($C$11,$L18,$C$7/365,$C$8,$C$9,0) -> -0.05721256374 | Q18: 0.02326395702 | X18: 0
E19: 50.5 | F19: =CallThv(C$11,E19,C$7/365,C$8,C$9,0) -> 0.3422185622 | G19: =CallDelta($C$11,$E19,$C$7/365,$C$8,$C$9,0) -> 0.2048693341 | H19: 0.09270550312 | I19: =CallTheta($C$11,$E19,$C$7/365,$C$8,$C$9,0) -> -0.05124906044 | J19: 0.02071746721 | L19: 50.5 | M19: =putThv($C$11,$L19,$C$7/365,$C$8,$C$9,0) -> 3.039278579 | N19: =putDelta($C$11,$L19,$C$7/365,$C$8,$C$9,0) -> -0.7951306659 | O19: 0.09270550312 | P19: =putTheta($C$11,$L19,$C$7/365,$C$8,$C$9,0) -> -0.05090319017 | Q19: 0.02071746721 | X19: 0
E20: 51 | F20: =CallThv(C$11,E20,C$7/365,C$8,C$9,0) -> 0.2585224337 | G20: =CallDelta($C$11,$E20,$C$7/365,$C$8,$C$9,0) -> 0.164019418 | H20: 0.08071263168 | I20: =CallTheta($C$11,$E20,$C$7/365,$C$8,$C$9,0) -> -0.04461478534 | J20: 0.01803734669 | L20: 51 | M20: =putThv($C$11,$L20,$C$7/365,$C$8,$C$9,0) -> 3.455553342 | N20: =putDelta($C$11,$L20,$C$7/365,$C$8,$C$9,0) -> -0.835980582 | O20: 0.08071263168 | P20: =putTheta($C$11,$L20,$C$7/365,$C$8,$C$9,0) -> -0.0442654906 | Q20: 0.01803734669 | X20: 0
E21: 51.5 | F21: =CallThv(C$11,E21,C$7/365,C$8,C$9,0) -> 0.1925618317 | G21: =CallDelta($C$11,$E21,$C$7/365,$C$8,$C$9,0) -> 0.1291769828 | H21: 0.06874673944 | I21: =CallTheta($C$11,$E21,$C$7/365,$C$8,$C$9,0) -> -0.03799725128 | J21: 0.01536325538 | L21: 51.5 | M21: =putThv($C$11,$L21,$C$7/365,$C$8,$C$9,0) -> 3.889563631 | N21: =putDelta($C$11,$L21,$C$7/365,$C$8,$C$9,0) -> -0.8708230172 | O21: 0.06874673944 | P21: =putTheta($C$11,$L21,$C$7/365,$C$8,$C$9,0) -> -0.03764453209 | Q21: 0.01536325538 | X21: 0
E22: 52 | F22: =CallThv(C$11,E22,C$7/365,C$8,C$9,0) -> 0.1414257931 | G22: =CallDelta($C$11,$E22,$C$7/365,$C$8,$C$9,0) -> 0.1000901776 | H22: 0.05732164046 | I22: =CallTheta($C$11,$E22,$C$7/365,$C$8,$C$9,0) -> -0.03168008149 | J22: 0.01281001846 | L22: 52 | M22: =putThv($C$11,$L22,$C$7/365,$C$8,$C$9,0) -> 4.338398484 | N22: =putDelta($C$11,$L22,$C$7/365,$C$8,$C$9,0) -> -0.8999098224 | O22: 0.05732164046 | P22: =putTheta($C$11,$L22,$C$7/365,$C$8,$C$9,0) -> -0.03132393784 | Q22: 0.01281001846 | X22: 0
E23: 52.5 | F23: =CallThv(C$11,E23,C$7/365,C$8,C$9,0) -> 0.1024230882 | G23: =CallDelta($C$11,$E23,$C$7/365,$C$8,$C$9,0) -> 0.07630929698 | H23: 0.04681795085 | I23: =CallTheta($C$11,$E23,$C$7/365,$C$8,$C$9,0) -> -0.02587329197 | J23: 0.01046269454 | L23: 52.5 | M23: =putThv($C$11,$L23,$C$7/365,$C$8,$C$9,0) -> 4.79936667 | N23: =putDelta($C$11,$L23,$C$7/365,$C$8,$C$9,0) -> -0.923690703 | O23: 0.04681795085 | P23: =putTheta($C$11,$L23,$C$7/365,$C$8,$C$9,0) -> -0.02551372387 | Q23: 0.01046269454 | X23: 0
E24: 53 | F24: =CallThv(C$11,E24,C$7/365,C$8,C$9,0) -> 0.07315023323 | G24: =CallDelta($C$11,$E24,$C$7/365,$C$8,$C$9,0) -> 0.05725605698 | H24: 0.03747963509 | I24: =CallTheta($C$11,$E24,$C$7/365,$C$8,$C$9,0) -> -0.02071140693 | J24: 0.008375803861 | L24: 53 | M24: =putThv($C$11,$L24,$C$7/365,$C$8,$C$9,0) -> 5.270064707 | N24: =putDelta($C$11,$L24,$C$7/365,$C$8,$C$9,0) -> -0.942743943 | O24: 0.03747963509 | P24: =putTheta($C$11,$L24,$C$7/365,$C$8,$C$9,0) -> -0.02034841436 | Q24: 0.008375803861 | X24: 0
W25: total | X25: =SUM(X4:X24) -> 3.39827556
E27: CALLS | L27: PUTS | S27: CALLS PUTS PROFIT
E28: strike | F28: thv | G28: delta | H28: gamma | I28: theta | J28: vega | L28: strike | M28: thv | N28: delta | O28: gamma | P28: theta | Q28: vega | S28: qty | T28: strike | U28: c/p | V28: price | W28: thv | X28: profit
B29: date | C29: 2013-11-08 | E29: =E30-$C$38 -> 43.5 | F29: =CallThv($C$36,$E29,$C$32/365,$C$33,$C$34,0) -> 5.186225454 | G29: =CallDelta($C$36,$E29,$C$32/365,$C$33,$C$34,0) -> 0.970584209 | H29: =GAMMA2($C$36,$E29,$C$32/365,$C$33,$C$34,0) -> 0.0228545993 | I29: =CallTheta($C$36,$E29,$C$32/365,$C$33,$C$34,0) -> -0.01335908198 | J29: =Vega($C$36,$E29,$C$32/365,$C$33,$C$34,0) -> 0.004668281001 | L29: =L30-$C$38 -> 43.5 | M29: =putThv($C$36,$L29,$C$32/365,$C$33,$C$34,0) -> 0.03399092239 | N29: =putDelta($C$36,$L29,$C$32/365,$C$33,$C$34,0) -> -0.02941579099 | O29: =GAMMA2($C$36,$L29,$C$32/365,$C$33,$C$34,0) -> 0.0228545993 | P29: =putTheta($C$36,$L29,$C$32/365,$C$33,$C$34,0) -> -0.01306115208 | Q29: =Vega($C$36,$L29,$C$32/365,$C$33,$C$34,0) -> 0.004668281001 | S29: 1 | T29: 52 | U29: c | V29: 1.65 | W29: =IF(U29="p",VLOOKUP(T29,L$29:M$49,2),IF(U29="c",VLOOKUP(T29,E$29:F$49,2),0)) -> 0.2055836592 | X29: =(W29-V29)*S29 -> -1.444416341
B30: exp | C30: 2013-11-15 | E30: 44 | F30: =CallThv($C$36,$E30,$C$32/365,$C$33,$C$34,0) -> 4.707088427 | G30: =CallDelta($C$36,$E30,$C$32/365,$C$33,$C$34,0) -> 0.9553988376 | H30: 0.03213056271 | I30: =CallTheta($C$36,$E30,$C$32/365,$C$33,$C$34,0) -> -0.01866248751 | J30: 0.00656298951 | L30: 44 | M30: =putThv($C$36,$L30,$C$32/365,$C$33,$C$34,0) -> 0.05482821065 | N30: =putDelta($C$36,$L30,$C$32/365,$C$33,$C$34,0) -> -0.04460116242 | O30: 0.03213056271 | P30: =putTheta($C$36,$L30,$C$32/365,$C$33,$C$34,0) -> -0.01836113313 | Q30: 0.00656298951 | S30: -1 | T30: 56.5 | U30: c | V30: 1.5 | W30: =IF(U30="p",VLOOKUP(T30,L$29:M$49,2),IF(U30="c",VLOOKUP(T30,E$29:F$49,2),0)) -> 0.07522106371 | X30: =(W30-V30)*S30 -> 1.424778936
B31: days to exp | C31: =C30-C29 -> 7 | E31: 44.5 | F31: =CallThv($C$36,$E31,$C$32/365,$C$33,$C$34,0) -> 4.237812157 | G31: =CallDelta($C$36,$E31,$C$32/365,$C$33,$C$34,0) -> 0.9347249625 | H31: 0.04343158858 | I31: =CallTheta($C$36,$E31,$C$32/365,$C$33,$C$34,0) -> -0.02512218668 | J31: 0.008871337324 | L31: 44.5 | M31: =putThv($C$36,$L31,$C$32/365,$C$33,$C$34,0) -> 0.08552625718 | N31: =putDelta($C$36,$L31,$C$32/365,$C$33,$C$34,0) -> -0.06527503754 | O31: 0.04343158858 | P31: =putTheta($C$36,$L31,$C$32/365,$C$33,$C$34,0) -> -0.02481740782 | Q31: 0.008871337324 | W31: 0 | X31: 0
B32: exp mult | C32: 7.5 | E32: 45 | F32: =CallThv($C$36,$E32,$C$32/365,$C$33,$C$34,0) -> 3.781545325 | G32: =CallDelta($C$36,$E32,$C$32/365,$C$33,$C$34,0) -> 0.9076379524 | H32: 0.05651814426 | I32: =CallTheta($C$36,$E32,$C$32/365,$C$33,$C$34,0) -> -0.03260085438 | J32: 0.0115443975 | L32: 45 | M32: =putThv($C$36,$L32,$C$32/365,$C$33,$C$34,0) -> 0.1292337407 | N32: =putDelta($C$36,$L32,$C$32/365,$C$33,$C$34,0) -> -0.09236204764 | O32: 0.05651814426 | P32: =putTheta($C$36,$L32,$C$32/365,$C$33,$C$34,0) -> -0.03229265104 | Q32: 0.0115443975 | W32: 0 | X32: 0
B33: rate | C33: 0.0025 | E33: 45.5 | F33: =CallThv($C$36,$E33,$C$32/365,$C$33,$C$34,0) -> 3.341810849 | G33: =CallDelta($C$36,$E33,$C$32/365,$C$33,$C$34,0) -> 0.8734418021 | H33: 0.07089162646 | I33: =CallTheta($C$36,$E33,$C$32/365,$C$33,$C$34,0) -> -0.04081306934 | J33: 0.01448032532 | L33: 45.5 | M33: =putThv($C$36,$L33,$C$32/365,$C$33,$C$34,0) -> 0.1894735798 | N33: =putDelta($C$36,$L33,$C$32/365,$C$33,$C$34,0) -> -0.1265581979 | O33: 0.07089162646 | P33: =putTheta($C$36,$L33,$C$32/365,$C$33,$C$34,0) -> -0.04050144152 | Q33: 0.01448032532 | W33: 0 | X33: 0
B34: avg miv | C34: 0.42 | E34: 46 | F34: =CallThv($C$36,$E34,$C$32/365,$C$33,$C$34,0) -> 2.922337159 | G34: =CallDelta($C$36,$E34,$C$32/365,$C$33,$C$34,0) -> 0.8317948194 | H34: 0.08580961502 | I34: =CallTheta($C$36,$E34,$C$32/365,$C$33,$C$34,0) -> -0.04933408124 | J34: 0.01752747402 | L34: 46 | M34: =putThv($C$36,$L34,$C$32/365,$C$33,$C$34,0) -> 0.269974206 | N34: =putDelta($C$36,$L34,$C$32/365,$C$33,$C$34,0) -> -0.1682051806 | O34: 0.08580961502 | P34: =putTheta($C$36,$L34,$C$32/365,$C$33,$C$34,0) -> -0.04901902893 | Q34: 0.01752747402 | W34: 0 | X34: 0
E35: 46.5 | F35: =CallThv($C$36,$E35,$C$32/365,$C$33,$C$34,0) -> 2.526836362 | G35: =CallDelta($C$36,$E35,$C$32/365,$C$33,$C$34,0) -> 0.7828086767 | H35: 0.1003460035 | I35: =CallTheta($C$36,$E35,$C$32/365,$C$33,$C$34,0) -> -0.05763423558 | J35: 0.02049667707 | L35: 46.5 | M35: =putThv($C$36,$L35,$C$32/365,$C$33,$C$34,0) -> 0.3744477247 | N35: =putDelta($C$36,$L35,$C$32/365,$C$33,$C$34,0) -> -0.2171913233 | O35: 0.1003460035 | P35: =putTheta($C$36,$L35,$C$32/365,$C$33,$C$34,0) -> -0.05731575878 | Q35: 0.02049667707 | W35: 0 | X35: 0
B36: underly | C36: 48.65 | E36: 47 | F36: =CallThv($C$36,$E36,$C$32/365,$C$33,$C$34,0) -> 2.158751635 | G36: =CallDelta($C$36,$E36,$C$32/365,$C$33,$C$34,0) -> 0.7271003073 | H36: 0.1134899699 | I36: =CallTheta($C$36,$E36,$C$32/365,$C$33,$C$34,0) -> -0.06513559691 | J36: 0.02318146397 | L36: 47 | M36: =putThv($C$36,$L36,$C$32/365,$C$33,$C$34,0) -> 0.5063373132 | N36: =putDelta($C$36,$L36,$C$32/365,$C$33,$C$34,0) -> -0.2728996927 | O36: 0.1134899699 | P36: =putTheta($C$36,$L36,$C$32/365,$C$33,$C$34,0) -> -0.06481369563 | Q36: 0.02318146397 | W36: 0 | X36: 0
B37: ATM | C37: 48.5 | E37: 47.5 | F37: =CallThv($C$36,$E37,$C$32/365,$C$33,$C$34,0) -> 1.821003754 | G37: =CallDelta($C$36,$E37,$C$32/365,$C$33,$C$34,0) -> 0.6657832751 | H37: 0.124268265 | I37: =CallTheta($C$36,$E37,$C$32/365,$C$33,$C$34,0) -> -0.07128188775 | J37: 0.02538303879 | L37: 47.5 | M37: =putThv($C$36,$L37,$C$32/365,$C$33,$C$34,0) -> 0.6685637477 | N37: =putDelta($C$36,$L37,$C$32/365,$C$33,$C$34,0) -> -0.3342167249 | O37: 0.124268265 | P37: =putTheta($C$36,$L37,$C$32/365,$C$33,$C$34,0) -> -0.07095656199 | Q37: 0.02538303879 | W37: 0 | X37: 0
B38: incr | C38: 0.5 | E38: 48 | F38: =CallThv($C$36,$E38,$C$32/365,$C$33,$C$34,0) -> 1.51576899 | G38: =CallDelta($C$36,$E38,$C$32/365,$C$33,$C$34,0) -> 0.6003958927 | H38: 0.1318691477 | I38: =CallTheta($C$36,$E38,$C$32/365,$C$33,$C$34,0) -> -0.07560934819 | J38: 0.02693559527 | L38: 48 | M38: =putThv($C$36,$L38,$C$32/365,$C$33,$C$34,0) -> 0.8633032996 | N38: =putDelta($C$36,$L38,$C$32/365,$C$33,$C$34,0) -> -0.3996041073 | O38: 0.1318691477 | P38: =putTheta($C$36,$L38,$C$32/365,$C$33,$C$34,0) -> -0.07528059796 | Q38: 0.02693559527 | W38: 0 | X38: 0
E39: =C37 -> 48.5 | F39: =CallThv($C$36,$E39,$C$32/365,$C$33,$C$34,0) -> 1.244317025 | G39: =CallDelta($C$36,$E39,$C$32/365,$C$33,$C$34,0) -> 0.5327749698 | H39: 0.1357453036 | I39: =CallTheta($C$36,$E39,$C$32/365,$C$33,$C$34,0) -> -0.07780555722 | J39: 0.02772733896 | L39: =C37 -> 48.5 | M39: =putThv($C$36,$L39,$C$32/365,$C$33,$C$34,0) -> 1.09182565 | N39: =putDelta($C$36,$L39,$C$32/365,$C$33,$C$34,0) -> -0.4672250302 | O39: 0.1357453036 | P39: =putTheta($C$36,$L39,$C$32/365,$C$33,$C$34,0) -> -0.0774733825 | Q39: 0.02772733896 | W39: 0 | X39: 0
E40: =E39+$C$38 -> 49 | F40: =CallThv($C$36,$E40,$C$32/365,$C$33,$C$34,0) -> 1.006928739 | G40: =CallDelta($C$36,$E40,$C$32/365,$C$33,$C$34,0) -> 0.4648938523 | H40: 0.1356775092 | I40: =CallTheta($C$36,$E40,$C$32/365,$C$33,$C$34,0) -> -0.07774579038 | J40: 0.02771349129 | L40: =L39+$C$38 -> 49 | M40: =putThv($C$36,$L40,$C$32/365,$C$33,$C$34,0) -> 1.354411681 | N40: =putDelta($C$36,$L40,$C$32/365,$C$33,$C$34,0) -> -0.5351061477 | O40: 0.1356775092 | P40: =putTheta($C$36,$L40,$C$32/365,$C$33,$C$34,0) -> -0.07741019118 | Q40: 0.02771349129 | S40: 1 | T40: 50 | U40: c | V40: 2 | W40: 4.62 | X40: =(W40-V40)*S40 -> 2.62
E41: 49.5 | F41: =CallThv($C$36,$E41,$C$32/365,$C$33,$C$34,0) -> 0.8029016315 | G41: =CallDelta($C$36,$E41,$C$32/365,$C$33,$C$34,0) -> 0.39868912 | H41: 0.131789314 | I41: =CallTheta($C$36,$E41,$C$32/365,$C$33,$C$34,0) -> -0.07550135917 | J41: 0.02691928844 | L41: 49.5 | M41: =putThv($C$36,$L41,$C$32/365,$C$33,$C$34,0) -> 1.650358889 | N41: =putDelta($C$36,$L41,$C$32/365,$C$33,$C$34,0) -> -0.60131088 | O41: 0.131789314 | P41: =putTheta($C$36,$L41,$C$32/365,$C$33,$C$34,0) -> -0.07516233549 | Q41: 0.02691928844 | S41: -1 | T41: 55 | U41: c | V41: 1.5 | W41: 0.64 | X41: 0.86
E42: 50 | F42: =CallThv($C$36,$E42,$C$32/365,$C$33,$C$34,0) -> 0.6306378246 | G42: =CallDelta($C$36,$E42,$C$32/365,$C$33,$C$34,0) -> 0.3359008784 | H42: 0.1245132061 | I42: =CallTheta($C$36,$E42,$C$32/365,$C$33,$C$34,0) -> -0.07132020649 | J42: 0.02543307047 | L42: 50 | M42: =putThv($C$36,$L42,$C$32/365,$C$33,$C$34,0) -> 1.978069397 | N42: =putDelta($C$36,$L42,$C$32/365,$C$33,$C$34,0) -> -0.6640991216 | O42: 0.1245132061 | P42: =putTheta($C$36,$L42,$C$32/365,$C$33,$C$34,0) -> -0.07097775833 | Q42: 0.02543307047 | X42: 0
E43: 50.5 | F43: =CallThv($C$36,$E43,$C$32/365,$C$33,$C$34,0) -> 0.4877986534 | G43: =CallDelta($C$36,$E43,$C$32/365,$C$33,$C$34,0) -> 0.277947305 | H43: 0.1145179341 | I43: =CallTheta($C$36,$E43,$C$32/365,$C$33,$C$34,0) -> -0.06558529696 | J43: 0.02339143596 | L43: 50.5 | M43: =putThv($C$36,$L43,$C$32/365,$C$33,$C$34,0) -> 2.335204542 | N43: =putDelta($C$36,$L43,$C$32/365,$C$33,$C$34,0) -> -0.722052695 | O43: 0.1145179341 | P43: =putTheta($C$36,$L43,$C$32/365,$C$33,$C$34,0) -> -0.06523942432 | Q43: 0.02339143596 | X43: 0
E44: 51 | F44: =CallThv($C$36,$E44,$C$32/365,$C$33,$C$34,0) -> 0.3715025658 | G44: =CallDelta($C$36,$E44,$C$32/365,$C$33,$C$34,0) -> 0.2258464292 | H44: 0.1026127786 | I44: =CallTheta($C$36,$E44,$C$32/365,$C$33,$C$34,0) -> -0.05875983993 | J44: 0.02095968861 | L44: 51 | M44: =putThv($C$36,$L44,$C$32/365,$C$33,$C$34,0) -> 2.71888277 | N44: =putDelta($C$36,$L44,$C$32/365,$C$33,$C$34,0) -> -0.7741535708 | O44: 0.1026127786 | P44: =putTheta($C$36,$L44,$C$32/365,$C$33,$C$34,0) -> -0.05841054281 | Q44: 0.02095968861 | X44: 0
E45: 51.5 | F45: =CallThv($C$36,$E45,$C$32/365,$C$33,$C$34,0) -> 0.2785403862 | G45: =CallDelta($C$36,$E45,$C$32/365,$C$33,$C$34,0) -> 0.1801890989 | H45: 0.08964659619 | I45: =CallTheta($C$36,$E45,$C$32/365,$C$33,$C$34,0) -> -0.05132953913 | J45: 0.01831121589 | L45: 51.5 | M45: =putThv($C$36,$L45,$C$32/365,$C$33,$C$34,0) -> 3.125894906 | N45: =putDelta($C$36,$L45,$C$32/365,$C$33,$C$34,0) -> -0.8198109011 | O45: 0.08964659619 | P45: =putTheta($C$36,$L45,$C$32/365,$C$33,$C$34,0) -> -0.05097681753 | Q45: 0.01831121589 | X45: 0
E46: 52 | F46: =CallThv($C$36,$E46,$C$32/365,$C$33,$C$34,0) -> 0.2055836592 | G46: =CallDelta($C$36,$E46,$C$32/365,$C$33,$C$34,0) -> 0.1411587438 | H46: 0.07641757532 | I46: =CallTheta($C$36,$E46,$C$32/365,$C$33,$C$34,0) -> -0.04375098484 | J46: 0.01560905577 | L46: 52 | M46: =putThv($C$36,$L46,$C$32/365,$C$33,$C$34,0) -> 3.552912495 | N46: =putDelta($C$36,$L46,$C$32/365,$C$33,$C$34,0) -> -0.8588412562 | O46: 0.07641757532 | P46: =putTheta($C$36,$L46,$C$32/365,$C$33,$C$34,0) -> -0.04339483875 | Q46: 0.01560905577 | X46: 0
E47: 52.5 | F47: =CallThv($C$36,$E47,$C$32/365,$C$33,$C$34,0) -> 0.1493667798 | G47: =CallDelta($C$36,$E47,$C$32/365,$C$33,$C$34,0) -> 0.1085874234 | H47: 0.06360497875 | I47: =CallTheta($C$36,$E47,$C$32/365,$C$33,$C$34,0) -> -0.03641263291 | J47: 0.01299195448 | L47: 52.5 | M47: =putThv($C$36,$L47,$C$32/365,$C$33,$C$34,0) -> 3.996669931 | N47: =putDelta($C$36,$L47,$C$32/365,$C$33,$C$34,0) -> -0.8914125766 | O47: 0.06360497875 | P47: =putTheta($C$36,$L47,$C$32/365,$C$33,$C$34,0) -> -0.03605306234 | Q47: 0.01299195448 | X47: 0
E48: 53 | F48: =CallThv($C$36,$E48,$C$32/365,$C$33,$C$34,0) -> 0.1068304406 | G48: =CallDelta($C$36,$E48,$C$32/365,$C$33,$C$34,0) -> 0.08203448982 | H48: 0.0517282543 | I48: =CallTheta($C$36,$E48,$C$32/365,$C$33,$C$34,0) -> -0.02961144425 | J48: 0.01056601446 | L48: 53 | M48: =putThv($C$36,$L48,$C$32/365,$C$33,$C$34,0) -> 4.454107908 | N48: =putDelta($C$36,$L48,$C$32/365,$C$33,$C$34,0) -> -0.9179655102 | O48: 0.0517282543 | P48: =putTheta($C$36,$L48,$C$32/365,$C$33,$C$34,0) -> -0.0292484492 | Q48: 0.01056601446 | X48: 0
E49: 53.5 | F49: =CallThv($C$36,$E49,$C$32/365,$C$33,$C$34,0) -> 0.07522106371 | G49: =CallDelta($C$36,$E49,$C$32/365,$C$33,$C$34,0) -> 0.06087394402 | H49: 0.04113328751 | I49: =CallTheta($C$36,$E49,$C$32/365,$C$33,$C$34,0) -> -0.02354505077 | J49: 0.008401886293 | L49: 53.5 | M49: =putThv($C$36,$L49,$C$32/365,$C$33,$C$34,0) -> 4.922472847 | N49: =putDelta($C$36,$L49,$C$32/365,$C$33,$C$34,0) -> -0.939126056 | O49: 0.04113328751 | P49: =putTheta($C$36,$L49,$C$32/365,$C$33,$C$34,0) -> -0.02317863124 | Q49: 0.008401886293 | X49: 0
W50: total | X50: =SUM(X29:X49) -> 3.460362595
E52: CALLS | L52: PUTS | S52: CALLS PUTS PROFIT
E53: strike | F53: thv | G53: delta | H53: gamma | I53: theta | J53: vega | L53: strike | M53: thv | N53: delta | O53: gamma | P53: theta | Q53: vega | S53: qty | T53: strike | U53: c/p | V53: price | W53: thv | X53: profit
E54: =E55-$C$67 -> 50 | F54: =CallThv($C$65,$E54,$C$61/365,$C$62,$C$63,0) -> 7.165354215 | G54: =CallDelta($C$65,$E54,$C$61/365,$C$62,$C$63,0) -> 0.7177914197 | H54: =GAMMA2($C$65,$E54,$C$61/365,$C$62,$C$63,0) -> 0.03061382442 | I54: =CallTheta($C$65,$E54,$C$61/365,$C$62,$C$63,0) -> -0.06238206455 | J54: =Vega($C$65,$E54,$C$61/365,$C$62,$C$63,0) -> 0.05328063552 | L54: =L55-$C$67 -> 50 | M54: =putThv($C$65,$L54,$C$61/365,$C$62,$C$63,0) -> 2.155081298 | N54: =putDelta($C$65,$L54,$C$61/365,$C$62,$C$63,0) -> -0.2822085803 | O54: =GAMMA2($C$65,$L54,$C$61/365,$C$62,$C$63,0) -> 0.03061382442 | P54: =putTheta($C$65,$L54,$C$61/365,$C$62,$C$63,0) -> -0.06203966916 | Q54: =Vega($C$65,$L54,$C$61/365,$C$62,$C$63,0) -> 0.05328063552 | S54: 1 | T54: 52 | U54: c | V54: 1.65 | W54: =IF(U54="p",VLOOKUP(T54,L$54:M$74,2),IF(U54="c",VLOOKUP(T54,E$54:F$74,2),0)) -> 5.947529064 | X54: =(W54-V54)*S54 -> 4.297529064
E55: 50.5 | F55: =CallThv($C$65,$E55,$C$61/365,$C$62,$C$63,0) -> 6.846865309 | G55: =CallDelta($C$65,$E55,$C$61/365,$C$62,$C$63,0) -> 0.7008027992 | H55: 0.03146249911 | I55: =CallTheta($C$65,$E55,$C$61/365,$C$62,$C$63,0) -> -0.06410106266 | J55: 0.05475767824 | L55: 50.5 | M55: =putThv($C$65,$L55,$C$61/365,$C$62,$C$63,0) -> 2.336489663 | N55: =putDelta($C$65,$L55,$C$61/365,$C$62,$C$63,0) -> -0.2991972008 | O55: 0.03146249911 | P55: =putTheta($C$65,$L55,$C$61/365,$C$62,$C$63,0) -> -0.06375524332 | Q55: 0.05475767824 | S55: -1 | T55: 56.5 | U55: c | V55: 1.5 | W55: =IF(U55="p",VLOOKUP(T55,L$54:M$74,2),IF(U55="c",VLOOKUP(T55,E$54:F$74,2),0)) -> 3.750521637 | X55: -2.250521637
E56: 51 | F56: =CallThv($C$65,$E56,$C$61/365,$C$62,$C$63,0) -> 6.537704369 | G56: =CallDelta($C$65,$E56,$C$61/365,$C$62,$C$63,0) -> 0.6835386593 | H56: 0.03224778608 | I56: =CallTheta($C$65,$E56,$C$61/365,$C$62,$C$63,0) -> -0.06569118565 | J56: 0.05612440029 | L56: 51 | M56: =putThv($C$65,$L56,$C$61/365,$C$62,$C$63,0) -> 2.527225993 | N56: =putDelta($C$65,$L56,$C$61/365,$C$62,$C$63,0) -> -0.3164613407 | O56: 0.03224778608 | P56: =putTheta($C$65,$L56,$C$61/365,$C$62,$C$63,0) -> -0.06534194235 | Q56: 0.05612440029 | W56: 0 | X56: 0
E57: 51.5 | F57: =CallThv($C$65,$E57,$C$61/365,$C$62,$C$63,0) -> 6.237917705 | G57: =CallDelta($C$65,$E57,$C$61/365,$C$62,$C$63,0) -> 0.6660393108 | H57: 0.03296633542 | I57: =CallTheta($C$65,$E57,$C$61/365,$C$62,$C$63,0) -> -0.06714564644 | J57: 0.05737497145 | L57: 51.5 | M57: =putThv($C$65,$L57,$C$61/365,$C$62,$C$63,0) -> 2.727336601 | N57: =putDelta($C$65,$L57,$C$61/365,$C$62,$C$63,0) -> -0.3339606892 | O57: 0.03296633542 | P57: =putTheta($C$65,$L57,$C$61/365,$C$62,$C$63,0) -> -0.06679297919 | Q57: 0.05737497145 | W57: 0 | X57: 0
B58: date | C58: 2013-11-10 | E58: 52 | F58: =CallThv($C$65,$E58,$C$61/365,$C$62,$C$63,0) -> 5.947529064 | G58: =CallDelta($C$65,$E58,$C$61/365,$C$62,$C$63,0) -> 0.6483455351 | H58: 0.03361533098 | I58: =CallTheta($C$65,$E58,$C$61/365,$C$62,$C$63,0) -> -0.06845874208 | J58: 0.05850449042 | L58: 52 | M58: =putThv($C$65,$L58,$C$61/365,$C$62,$C$63,0) -> 2.936845231 | N58: =putDelta($C$65,$L58,$C$61/365,$C$62,$C$63,0) -> -0.3516544649 | O58: 0.03361533098 | P58: =putTheta($C$65,$L58,$C$61/365,$C$62,$C$63,0) -> -0.06810265087 | Q58: 0.05850449042 | W58: 0 | X58: 0
B59: exp | C59: 2013-12-10 | E59: 52.5 | F59: =CallThv($C$65,$E59,$C$61/365,$C$62,$C$63,0) -> 5.666540111 | G59: =CallDelta($C$65,$E59,$C$61/365,$C$62,$C$63,0) -> 0.630498283 | H59: 0.03419249755 | I59: =CallTheta($C$65,$E59,$C$61/365,$C$62,$C$63,0) -> -0.06962586824 | J59: 0.05950899744 | L59: 52.5 | M59: =putThv($C$65,$L59,$C$61/365,$C$62,$C$63,0) -> 3.155753548 | N59: =putDelta($C$65,$L59,$C$61/365,$C$62,$C$63,0) -> -0.369501717 | O59: 0.03419249755 | P59: =putTheta($C$65,$L59,$C$61/365,$C$62,$C$63,0) -> -0.06926635308 | Q59: 0.05950899744 | W59: 0 | X59: 0
B60: days to exp | C60: =C59-C58 -> 30 | E60: 53 | F60: =CallThv($C$65,$E60,$C$61/365,$C$62,$C$63,0) -> 5.394931044 | G60: =CallDelta($C$65,$E60,$C$61/365,$C$62,$C$63,0) -> 0.612538386 | H60: 0.0346961015 | I60: =CallTheta($C$65,$E60,$C$61/365,$C$62,$C$63,0) -> -0.07064352034 | J60: 0.06038547528 | L60: 53 | M60: =putThv($C$65,$L60,$C$61/365,$C$62,$C$63,0) -> 3.384041752 | N60: =putDelta($C$65,$L60,$C$61/365,$C$62,$C$63,0) -> -0.387461614 | O60: 0.0346961015 | P60: =putTheta($C$65,$L60,$C$61/365,$C$62,$C$63,0) -> -0.07028058122 | Q60: 0.06038547528 | W60: 0 | X60: 0
B61: exp mult | C61: 30 | E61: 53.5 | F61: =CallThv($C$65,$E61,$C$61/365,$C$62,$C$63,0) -> 5.13266134 | G61: =CallDelta($C$65,$E61,$C$61/365,$C$62,$C$63,0) -> 0.5945062821 | H61: 0.03512494504 | I61: =CallTheta($C$65,$E61,$C$61/365,$C$62,$C$63,0) -> -0.07150928178 | J61: 0.06113183927 | L61: 53.5 | M61: =putThv($C$65,$L61,$C$61/365,$C$62,$C$63,0) -> 3.621669319 | N61: =putDelta($C$65,$L61,$C$61/365,$C$62,$C$63,0) -> -0.4054937179 | O61: 0.03512494504 | P61: =putTheta($C$65,$L61,$C$61/365,$C$62,$C$63,0) -> -0.07114291871 | Q61: 0.06113183927 | W61: 0 | X61: 0
B62: rate | C62: 0.0025 | E62: 54 | F62: =CallThv($C$65,$E62,$C$61/365,$C$62,$C$63,0) -> 4.879670604 | G62: =CallDelta($C$65,$E62,$C$61/365,$C$62,$C$63,0) -> 0.5764417592 | H62: 0.0354783548 | I62: =CallTheta($C$65,$E62,$C$61/365,$C$62,$C$63,0) -> -0.07222180073 | J62: 0.0617469175 | L62: 54 | M62: =putThv($C$65,$L62,$C$61/365,$C$62,$C$63,0) -> 3.868575853 | N62: =putDelta($C$65,$L62,$C$61/365,$C$62,$C$63,0) -> -0.4235582408 | O62: 0.0354783548 | P62: =putTheta($C$65,$L62,$C$61/365,$C$62,$C$63,0) -> -0.07185201371 | Q62: 0.0617469175 | W62: 0 | X62: 0
B63: avg miv | C63: 0.7 | E63: 54.5 | F63: =CallThv($C$65,$E63,$C$61/365,$C$62,$C$63,0) -> 4.635879508 | G63: =CallDelta($C$65,$E63,$C$61/365,$C$62,$C$63,0) -> 0.5583837168 | H63: 0.03575616521 | I63: =CallTheta($C$65,$E63,$C$61/365,$C$62,$C$63,0) -> -0.07278075617 | J63: 0.06223042178 | L63: 54.5 | M63: =putThv($C$65,$L63,$C$61/365,$C$62,$C$63,0) -> 4.124682028 | N63: =putDelta($C$65,$L63,$C$61/365,$C$62,$C$63,0) -> -0.4416162832 | O63: 0.03575616521 | P63: =putTheta($C$65,$L63,$C$61/365,$C$62,$C$63,0) -> -0.0724075452 | Q63: 0.06223042178 | W63: 0 | X63: 0
E64: =C66 -> 55 | F64: =CallThv($C$65,$E64,$C$61/365,$C$62,$C$63,0) -> 4.401190823 | G64: =CallDelta($C$65,$E64,$C$61/365,$C$62,$C$63,0) -> 0.5403699492 | H64: 0.03595869721 | I64: =CallTheta($C$65,$E64,$C$61/365,$C$62,$C$63,0) -> -0.07318681468 | J64: 0.06258291068 | L64: =C66 -> 55 | M64: =putThv($C$65,$L64,$C$61/365,$C$62,$C$63,0) -> 4.389890614 | N64: =putDelta($C$65,$L64,$C$61/365,$C$62,$C$63,0) -> -0.4596300508 | O64: 0.03595869721 | P64: =putTheta($C$65,$L64,$C$61/365,$C$62,$C$63,0) -> -0.07281017975 | Q64: 0.06258291068 | W64: 0 | X64: 0
B65: underly | C65: 55 | E65: =E64+$C$67 -> 55.5 | F65: =CallThv($C$65,$E65,$C$61/365,$C$62,$C$63,0) -> 4.175490506 | G65: =CallDelta($C$65,$E65,$C$61/365,$C$62,$C$63,0) -> 0.5224369487 | H65: 0.03608673299 | I65: =CallTheta($C$65,$E65,$C$61/365,$C$62,$C$63,0) -> -0.07344157902 | J65: 0.06280574556 | L65: =L64+$C$67 -> 55.5 | M65: =putThv($C$65,$L65,$C$61/365,$C$62,$C$63,0) -> 4.664087568 | N65: =putDelta($C$65,$L65,$C$61/365,$C$62,$C$63,0) -> -0.4775630513 | O65: 0.03608673299 | P65: =putTheta($C$65,$L65,$C$61/365,$C$62,$C$63,0) -> -0.07306152013 | Q65: 0.06280574556 | X65: 0
B66: ATM | C66: 55 | E66: 56 | F66: =CallThv($C$65,$E66,$C$61/365,$C$62,$C$63,0) -> 3.958648844 | G66: =CallDelta($C$65,$E66,$C$61/365,$C$62,$C$63,0) -> 0.5046197324 | H66: 0.03614148736 | I66: =CallTheta($C$65,$E66,$C$61/365,$C$62,$C$63,0) -> -0.07354752989 | J66: 0.06290104067 | L66: 56 | M66: =putThv($C$65,$L66,$C$61/365,$C$62,$C$63,0) -> 4.947143177 | N66: =putDelta($C$65,$L66,$C$61/365,$C$62,$C$63,0) -> -0.4953802676 | O66: 0.03614148736 | P66: =putTheta($C$65,$L66,$C$61/365,$C$62,$C$63,0) -> -0.07316404705 | Q66: 0.06290104067 | X66: 0
B67: incr | C67: 0.5 | E67: 56.5 | F67: =CallThv($C$65,$E67,$C$61/365,$C$62,$C$63,0) -> 3.750521637 | G67: =CallDelta($C$65,$E67,$C$61/365,$C$62,$C$63,0) -> 0.4869516902 | H67: 0.03612457628 | I67: =CallTheta($C$65,$E67,$C$61/365,$C$62,$C$63,0) -> -0.07350796205 | J67: 0.06287160845 | L67: 56.5 | M67: =putThv($C$65,$L67,$C$61/365,$C$62,$C$63,0) -> 5.238913241 | N67: =putDelta($C$65,$L67,$C$61/365,$C$62,$C$63,0) -> -0.5130483098 | O67: 0.03612457628 | P67: =putTheta($C$65,$L67,$C$61/365,$C$62,$C$63,0) -> -0.07312105526 | Q67: 0.06287160845 | X67: 0
E68: 57 | F68: =CallThv($C$65,$E68,$C$61/365,$C$62,$C$63,0) -> 3.550951405 | G68: =CallDelta($C$65,$E68,$C$61/365,$C$62,$C$63,0) -> 0.4694644563 | H68: 0.03603798328 | I68: =CallTheta($C$65,$E68,$C$61/365,$C$62,$C$63,0) -> -0.07332691601 | J68: 0.06272090104 | L68: 57 | M68: =putThv($C$65,$L68,$C$61/365,$C$62,$C$63,0) -> 5.539240279 | N68: =putDelta($C$65,$L68,$C$61/365,$C$62,$C$63,0) -> -0.5305355437 | O68: 0.03603798328 | P68: =putTheta($C$65,$L68,$C$61/365,$C$62,$C$63,0) -> -0.07293658526 | Q68: 0.06272090104 | X68: 0
E69: 57.5 | F69: =CallThv($C$65,$E69,$C$61/365,$C$62,$C$63,0) -> 3.359768613 | G69: =CallDelta($C$65,$E69,$C$61/365,$C$62,$C$63,0) -> 0.4521878016 | H69: 0.03588402426 | I69: =CallTheta($C$65,$E69,$C$61/365,$C$62,$C$63,0) -> -0.07300910652 | J69: 0.06245294907 | L69: 57.5 | M69: =putThv($C$65,$L69,$C$61/365,$C$62,$C$63,0) -> 5.847954758 | N69: =putDelta($C$65,$L69,$C$61/365,$C$62,$C$63,0) -> -0.5478121984 | O69: 0.03588402426 | P69: =putTheta($C$65,$L69,$C$61/365,$C$62,$C$63,0) -> -0.07261535182 | Q69: 0.06245294907 | X69: 0
E70: 58 | F70: =CallThv($C$65,$E70,$C$61/365,$C$62,$C$63,0) -> 3.176792897 | G70: =CallDelta($C$65,$E70,$C$61/365,$C$62,$C$63,0) -> 0.4351495496 | H70: 0.03566531127 | I70: =CallTheta($C$65,$E70,$C$61/365,$C$62,$C$63,0) -> -0.07255984903 | J70: 0.06207229859 | L70: 58 | M70: =putThv($C$65,$L70,$C$61/365,$C$62,$C$63,0) -> 6.164876313 | N70: =putDelta($C$65,$L70,$C$61/365,$C$62,$C$63,0) -> -0.5648504504 | O70: 0.03566531127 | P70: =putTheta($C$65,$L70,$C$61/365,$C$62,$C$63,0) -> -0.07216267038 | Q70: 0.06207229859 | X70: 0
E71: 58.5 | F71: =CallThv($C$65,$E71,$C$61/365,$C$62,$C$63,0) -> 3.001834285 | G71: =CallDelta($C$65,$E71,$C$61/365,$C$62,$C$63,0) -> 0.418375511 | H71: 0.03538471579 | I71: =CallTheta($C$65,$E71,$C$61/365,$C$62,$C$63,0) -> -0.07198498503 | J71: 0.06158394714 | L71: 58.5 | M71: =putThv($C$65,$L71,$C$61/365,$C$62,$C$63,0) -> 6.489814972 | N71: =putDelta($C$65,$L71,$C$61/365,$C$62,$C$63,0) -> -0.581624489 | O71: 0.03538471579 | P71: =putTheta($C$65,$L71,$C$61/365,$C$62,$C$63,0) -> -0.07158438242 | Q71: 0.06158394714 | X71: 0
E72: 59 | F72: =CallThv($C$65,$E72,$C$61/365,$C$62,$C$63,0) -> 2.834694398 | G72: =CallDelta($C$65,$E72,$C$61/365,$C$62,$C$63,0) -> 0.4018894403 | H72: 0.03504533195 | I72: =CallTheta($C$65,$E72,$C$61/365,$C$62,$C$63,0) -> -0.0712908074 | J72: 0.06099327978 | L72: 59 | M72: =putThv($C$65,$L72,$C$61/365,$C$62,$C$63,0) -> 6.822572356 | N72: =putDelta($C$65,$L72,$C$61/365,$C$62,$C$63,0) -> -0.5981105597 | O72: 0.03504533195 | P72: =putTheta($C$65,$L72,$C$61/365,$C$62,$C$63,0) -> -0.07088678084 | Q72: 0.06099327978 | X72: 0
E73: 59.5 | F73: =CallThv($C$65,$E73,$C$61/365,$C$62,$C$63,0) -> 2.675167631 | G73: =CallDelta($C$65,$E73,$C$61/365,$C$62,$C$63,0) -> 0.3857130095 | H73: 0.03465044018 | I73: =CallTheta($C$65,$E73,$C$61/365,$C$62,$C$63,0) -> -0.07048398656 | J73: 0.06030600581 | L73: 59.5 | M73: =putThv($C$65,$L73,$C$61/365,$C$62,$C$63,0) -> 7.162942859 | N73: =putDelta($C$65,$L73,$C$61/365,$C$62,$C$63,0) -> -0.6142869905 | O73: 0.03465044018 | P73: =putTheta($C$65,$L73,$C$61/365,$C$62,$C$63,0) -> -0.07007653605 | Q73: 0.06030600581 | X73: 0
E74: 60 | F74: =CallThv($C$65,$E74,$C$61/365,$C$62,$C$63,0) -> 2.523042299 | G74: =CallDelta($C$65,$E74,$C$61/365,$C$62,$C$63,0) -> 0.3698658011 | H74: 0.03420347162 | I74: =CallTheta($C$65,$E74,$C$61/365,$C$62,$C$63,0) -> -0.06957149821 | J74: 0.05952809684 | L74: 60 | M74: =putThv($C$65,$L74,$C$61/365,$C$62,$C$63,0) -> 7.510714798 | N74: =putDelta($C$65,$L74,$C$61/365,$C$62,$C$63,0) -> -0.6301341989 | O74: 0.03420347162 | P74: =putTheta($C$65,$L74,$C$61/365,$C$62,$C$63,0) -> -0.06916062374 | Q74: 0.05952809684 | X74: 0
W75: total | X75: =SUM(X54:X74) -> 2.047007427

Sheet GreeksChg
A2: date1 | B2: 2013-09-28
A3: date2 | B3: 2013-10-28
A4: period | B4: =B3-B2 -> 30 | M4: days | N4: =B25 -> delta | O4: =IF($B$24="g+t","g+t","") -> 
A5: rate | B5: 0.0025 | M5: =B30 -> 30 | N5: =B27 -> 0.5266842066 | O5: =B28 -> 
A6: volatility | B6: 0.456 | M6: =D30 -> 28 | N6: =D27 -> 0.5257806754 | O6: =D28 -> 
M7: =F30 -> 26 | N7: =F27 -> 0.5248441166 | O7: =F28 -> 
A8: underlying | B8: 45 | M8: =H30 -> 24 | N8: =H27 -> 0.5238706429 | O8: =H28 -> 
A9: opt type | B9: c | M9: =J30 -> 22 | N9: =J27 -> 0.5228555379 | O9: =J28 -> 
A10: strike | B10: 45 | M10: =L30 -> 20 | N10: =L27 -> 0.5217929848 | O10: =L28 -> 
M11: =N30 -> 18 | N11: =N27 -> 0.5206756696 | O11: =N28 -> 
A12: thv | B12: =IF(B$9="c",CallThv(B$8,B$10,B$4/365,B$5,B$6,0),IF(B$9="p",putThv(B$8,B$10,B$4/365,B$5,B$6,0),0)) -> 2.349652574 | M12: =P30 -> 16 | N12: =P27 -> 0.5194941784 | O12: =P28 -> 
A13: delta | B13: =IF(B$9="c",CallDelta(B$8,B$10,B$4/365,B$5,B$6,0),IF(B$9="p",putDelta(B$8,B$10,B$4/365,B$5,B$6,0),0)) -> 0.5266842066 | M13: =R30 -> 14 | N13: =R27 -> 0.5182360417 | O13: =R28 -> 
A14: gamma | B14: =_xludf.GAMMA(B$8,B$10,B$4/365,B$5,B$6,0) -> 0.06766211403 | M14: =T30 -> 12 | N14: =T27 -> 0.5168841343 | O14: =T28 -> 
A15: vega | B15: =Vega(B$8,B$10,B$4/365,B$5,B$6,0) -> 0.05135276391 | M15: =V30 -> 10 | N15: =V27 -> 0.5154138026 | O15: =V28 -> 
A16: theta | B16: =IF(B$9="c",CallTheta(B$8,B$10,B$4/365,B$5,B$6,0),IF(B$9="p",putTheta(B$8,B$10,B$4/365,B$5,B$6,0),0)) -> -0.03917434123 | M16: =X30 -> 8 | N16: =W27 -> 0.514623181 | O16: =W28 -> 
M17: =Z30 -> 6 | N17: =Z27 -> 0.5119406688 | O17: =Z28 -> 
A18: option price | B18: 2.35 | M18: =AB30 -> 4 | N18: =AB27 -> 0.5097500006 | O18: =AB28 -> 
A19: implied vty | B19: =IF(B$9="c",CallImpVty(B$8,B$10,B$4/365,B$5,B$18,0),IF(B$9="p",PutImpVty(B$8,B$10,B$4/365,B$5,B$18,0),0)) -> 0.4560470581 | M19: =AD30 -> 2 | N19: =AD27 -> 0.5068946348 | O19: =AD28 -> 
M20: =AE30 -> 1 | N20: =AE27 -> 0.5048753643 | O20: =AE28 -> 
A22: underly chg
A23: vty chg
A24: g+t
A25: chart | B25: delta
A27: =B25 -> delta | B27: =IF($B$25="theta",B36,IF($B$25="thv",B32,IF($B$25="delta",B33,IF($B$25="vega",B35,IF($B$25="gamma",B34,0))))) -> 0.5266842066 | C27: =IF($B$25="theta",C36,IF($B$25="thv",C32,IF($B$25="delta",C33,IF($B$25="vega",C35,IF($B$25="gamma",C34,0))))) -> 0.5262363533 | D27: 0.5257806754 | E27: 0.5253167505 | F27: 0.5248441166 | G27: 0.5243622668 | H27: 0.5238706429 | I27: 0.5233686282 | J27: 0.5228555379 | K27: 0.5223306086 | L27: 0.5217929848 | M27: 0.5212417027 | N27: 0.5206756696 | O27: 0.5200936392 | P27: 0.5194941784 | Q27: 0.5188756268 | R27: 0.5182360417 | S27: 0.5175731268 | T27: 0.5168841343 | U27: 0.5161657302 | V27: 0.5154138026 | W27: 0.514623181 | X27: 0.5137872104 | Y27: 0.5128970754 | Z27: 0.5119406688 | AA27: 0.5109005607 | AB27: 0.5097500006 | AC27: 0.5084439584 | AD27: 0.5068946348 | AE27: 0.5048753643
B28: =IF($B$24="g+t",(B34+B36),"") -> 
A29: date | B29: 2013-09-18 | C29: =B29+1 -> 2013-09-19 | D29: =C29+1 -> 2013-09-20 | E29: 2013-09-21 | F29: 2013-09-22 | G29: 2013-09-23 | H29: 2013-09-24 | I29: 2013-09-25 | J29: 2013-09-26 | K29: 2013-09-27 | L29: 2013-09-28 | M29: 2013-09-29 | N29: 2013-09-30 | O29: 2013-10-01 | P29: 2013-10-02 | Q29: 2013-10-03 | R29: 2013-10-04 | S29: 2013-10-05 | T29: 2013-10-06 | U29: 2013-10-07 | V29: 2013-10-08 | W29: 2013-10-09 | X29: 2013-10-10 | Y29: 2013-10-11 | Z29: 2013-10-12 | AA29: 2013-10-13 | AB29: 2013-10-14 | AC29: 2013-10-15 | AD29: 2013-10-16 | AE29: 2013-10-17
A30: period | B30: =B4 -> 30 | C30: =B30-1 -> 29 | D30: 28 | E30: 27 | F30: 26 | G30: 25 | H30: 24 | I30: 23 | J30: 22 | K30: 21 | L30: 20 | M30: 19 | N30: 18 | O30: 17 | P30: 16 | Q30: 15 | R30: 14 | S30: 13 | T30: 12 | U30: 11 | V30: 10 | W30: 9 | X30: 8 | Y30: 7 | Z30: 6 | AA30: 5 | AB30: 4 | AC30: 3 | AD30: 2 | AE30: 1
A31: underlying | B31: =B8 -> 45 | C31: =B31+$B$22 -> 45 | D31: 45 | E31: 45 | F31: 45 | G31: 45 | H31: 45 | I31: 45 | J31: 45 | K31: 45 | L31: 45 | M31: 45 | N31: 45 | O31: 45 | P31: 45 | Q31: 45 | R31: 45 | S31: 45 | T31: 45 | U31: 45 | V31: 45 | W31: 45 | X31: 45 | Y31: 45 | Z31: 45 | AA31: 45 | AB31: 45 | AC31: 45 | AD31: 45 | AE31: 45
A32: thv | B32: =IF(B$9="c",CallThv(B$8,B$10,B$4/365,B$5,B$6,0),IF(B$9="p",putThv(B$8,B$10,B$4/365,B$5,B$6,0),0)) -> 2.349652574 | C32: =IF(C$41="c",CallThv(C$31,C$42,C$30/365,C$38,C$39,0),IF(C$41="p",putThv(C$31,C$42,C$30/365,C$38,C$39,0),0)) -> 2.310145923 | D32: =IF(D$41="c",CallThv(D$31,D$42,D$30/365,D$38,D$39,0),IF(D$41="p",putThv(D$31,D$42,D$30/365,D$38,D$39,0),0)) -> 2.269951465 | E32: =IF(E$41="c",CallThv(E$31,E$42,E$30/365,E$38,E$39,0),IF(E$41="p",putThv(E$31,E$42,E$30/365,E$38,E$39,0),0)) -> 2.229032067 | F32: =IF(F$41="c",CallThv(F$31,F$42,F$30/365,F$38,F$39,0),IF(F$41="p",putThv(F$31,F$42,F$30/365,F$38,F$39,0),0)) -> 2.187347121 | G32: =IF(G$41="c",CallThv(G$31,G$42,G$30/365,G$38,G$39,0),IF(G$41="p",putThv(G$31,G$42,G$30/365,G$38,G$39,0),0)) -> 2.144852077 | H32: =IF(H$41="c",CallThv(H$31,H$42,H$30/365,H$38,H$39,0),IF(H$41="p",putThv(H$31,H$42,H$30/365,H$38,H$39,0),0)) -> 2.101497885 | I32: =IF(I$41="c",CallThv(I$31,I$42,I$30/365,I$38,I$39,0),IF(I$41="p",putThv(I$31,I$42,I$30/365,I$38,I$39,0),0)) -> 2.057230326 | J32: =IF(J$41="c",CallThv(J$31,J$42,J$30/365,J$38,J$39,0),IF(J$41="p",putThv(J$31,J$42,J$30/365,J$38,J$39,0),0)) -> 2.011989223 | K32: =IF(K$41="c",CallThv(K$31,K$42,K$30/365,K$38,K$39,0),IF(K$41="p",putThv(K$31,K$42,K$30/365,K$38,K$39,0),0)) -> 1.965707475 | L32: =IF(L$41="c",CallThv(L$31,L$42,L$30/365,L$38,L$39,0),IF(L$41="p",putThv(L$31,L$42,L$30/365,L$38,L$39,0),0)) -> 1.918309892 | M32: =IF(M$41="c",CallThv(M$31,M$42,M$30/365,M$38,M$39,0),IF(M$41="p",putThv(M$31,M$42,M$30/365,M$38,M$39,0),0)) -> 1.86971176 | N32: =IF(N$41="c",CallThv(N$31,N$42,N$30/365,N$38,N$39,0),IF(N$41="p",putThv(N$31,N$42,N$30/365,N$38,N$39,0),0)) -> 1.819817057 | O32: =IF(O$41="c",CallThv(O$31,O$42,O$30/365,O$38,O$39,0),IF(O$41="p",putThv(O$31,O$42,O$30/365,O$38,O$39,0),0)) -> 1.768516223 | P32: =IF(P$41="c",CallThv(P$31,P$42,P$30/365,P$38,P$39,0),IF(P$41="p",putThv(P$31,P$42,P$30/365,P$38,P$39,0),0)) -> 1.715683326 | Q32: =IF(Q$41="c",CallThv(Q$31,Q$42,Q$30/365,Q$38,Q$39,0),IF(Q$41="p",putThv(Q$31,Q$42,Q$30/365,Q$38,Q$39,0),0)) -> 1.661172414 | R32: =IF(R$41="c",CallThv(R$31,R$42,R$30/365,R$38,R$39,0),IF(R$41="p",putThv(R$31,R$42,R$30/365,R$38,R$39,0),0)) -> 1.604812759 | S32: =IF(S$41="c",CallThv(S$31,S$42,S$30/365,S$38,S$39,0),IF(S$41="p",putThv(S$31,S$42,S$30/365,S$38,S$39,0),0)) -> 1.546402527 | T32: =IF(T$41="c",CallThv(T$31,T$42,T$30/365,T$38,T$39,0),IF(T$41="p",putThv(T$31,T$42,T$30/365,T$38,T$39,0),0)) -> 1.48570022 | U32: =IF(U$41="c",CallThv(U$31,U$42,U$30/365,U$38,U$39,0),IF(U$41="p",putThv(U$31,U$42,U$30/365,U$38,U$39,0),0)) -> 1.422412817 | V32: =IF(V$41="c",CallThv(V$31,V$42,V$30/365,V$38,V$39,0),IF(V$41="p",putThv(V$31,V$42,V$30/365,V$38,V$39,0),0)) -> 1.356178928 | W32: =IF(W$41="c",CallThv(W$31,W$42,W$30/365,W$38,W$39,0),IF(W$41="p",putThv(W$31,W$42,W$30/365,W$38,W$39,0),0)) -> 1.286544128 | X32: =IF(X$41="c",CallThv(X$31,X$42,X$30/365,X$38,X$39,0),IF(X$41="p",putThv(X$31,X$42,X$30/365,X$38,X$39,0),0)) -> 1.212923513 | Y32: =IF(Y$41="c",CallThv(Y$31,Y$42,Y$30/365,Y$38,Y$39,0),IF(Y$41="p",putThv(Y$31,Y$42,Y$30/365,Y$38,Y$39,0),0)) -> 1.134542313 | Z32: =IF(Z$41="c",CallThv(Z$31,Z$42,Z$30/365,Z$38,Z$39,0),IF(Z$41="p",putThv(Z$31,Z$42,Z$30/365,Z$38,Z$39,0),0)) -> 1.050336453 | AA32: =IF(AA$41="c",CallThv(AA$31,AA$42,AA$30/365,AA$38,AA$39,0),IF(AA$41="p",putThv(AA$31,AA$42,AA$30/365,AA$38,AA$39,0),0)) -> 0.9587740515 | AB32: =IF(AB$41="c",CallThv(AB$31,AB$42,AB$30/365,AB$38,AB$39,0),IF(AB$41="p",putThv(AB$31,AB$42,AB$30/365,AB$38,AB$39,0),0)) -> 0.8575040615 | AC32: =IF(AC$41="c",CallThv(AC$31,AC$42,AC$30/365,AC$38,AC$39,0),IF(AC$41="p",putThv(AC$31,AC$42,AC$30/365,AC$38,AC$39,0),0)) -> 0.742568906 | AD32: =IF(AD$41="c",CallThv(AD$31,AD$42,AD$30/365,AD$38,AD$39,0),IF(AD$41="p",putThv(AD$31,AD$42,AD$30/365,AD$38,AD$39,0),0)) -> 0.6062521365 | AE32: =IF(AE$41="c",CallThv(AE$31,AE$42,AE$30/365,AE$38,AE$39,0),IF(AE$41="p",putThv(AE$31,AE$42,AE$30/365,AE$38,AE$39,0),0)) -> 0.4286327836
A33: delta | B33: =IF(B$9="c",CallDelta(B$8,B$10,B$4/365,B$5,B$6,0),IF(B$9="p",putDelta(B$8,B$10,B$4/365,B$5,B$6,0),0)) -> 0.5266842066 | C33: =IF(C$41="c",CallDelta(C$31,C$42,C$30/365,C$38,C$39,0),IF(C$41="p",putDelta(C$31,C$42,C$30/365,C$38,C$39,0),0)) -> 0.5262363533 | D33: =IF(D$41="c",CallDelta(D$31,D$42,D$30/365,D$38,D$39,0),IF(D$41="p",putDelta(D$31,D$42,D$30/365,D$38,D$39,0),0)) -> 0.5257806754 | E33: =IF(E$41="c",CallDelta(E$31,E$42,E$30/365,E$38,E$39,0),IF(E$41="p",putDelta(E$31,E$42,E$30/365,E$38,E$39,0),0)) -> 0.5253167505 | F33: =IF(F$41="c",CallDelta(F$31,F$42,F$30/365,F$38,F$39,0),IF(F$41="p",putDelta(F$31,F$42,F$30/365,F$38,F$39,0),0)) -> 0.5248441166 | G33: =IF(G$41="c",CallDelta(G$31,G$42,G$30/365,G$38,G$39,0),IF(G$41="p",putDelta(G$31,G$42,G$30/365,G$38,G$39,0),0)) -> 0.5243622668 | H33: =IF(H$41="c",CallDelta(H$31,H$42,H$30/365,H$38,H$39,0),IF(H$41="p",putDelta(H$31,H$42,H$30/365,H$38,H$39,0),0)) -> 0.5238706429 | I33: =IF(I$41="c",CallDelta(I$31,I$42,I$30/365,I$38,I$39,0),IF(I$41="p",putDelta(I$31,I$42,I$30/365,I$38,I$39,0),0)) -> 0.5233686282 | J33: =IF(J$41="c",CallDelta(J$31,J$42,J$30/365,J$38,J$39,0),IF(J$41="p",putDelta(J$31,J$42,J$30/365,J$38,J$39,0),0)) -> 0.5228555379 | K33: =IF(K$41="c",CallDelta(K$31,K$42,K$30/365,K$38,K$39,0),IF(K$41="p",putDelta(K$31,K$42,K$30/365,K$38,K$39,0),0)) -> 0.5223306086 | L33: =IF(L$41="c",CallDelta(L$31,L$42,L$30/365,L$38,L$39,0),IF(L$41="p",putDelta(L$31,L$42,L$30/365,L$38,L$39,0),0)) -> 0.5217929848 | M33: =IF(M$41="c",CallDelta(M$31,M$42,M$30/365,M$38,M$39,0),IF(M$41="p",putDelta(M$31,M$42,M$30/365,M$38,M$39,0),0)) -> 0.5212417027 | N33: =IF(N$41="c",CallDelta(N$31,N$42,N$30/365,N$38,N$39,0),IF(N$41="p",putDelta(N$31,N$42,N$30/365,N$38,N$39,0),0)) -> 0.5206756696 | O33: =IF(O$41="c",CallDelta(O$31,O$42,O$30/365,O$38,O$39,0),IF(O$41="p",putDelta(O$31,O$42,O$30/365,O$38,O$39,0),0)) -> 0.5200936392 | P33: =IF(P$41="c",CallDelta(P$31,P$42,P$30/365,P$38,P$39,0),IF(P$41="p",putDelta(P$31,P$42,P$30/365,P$38,P$39,0),0)) -> 0.5194941784 | Q33: =IF(Q$41="c",CallDelta(Q$31,Q$42,Q$30/365,Q$38,Q$39,0),IF(Q$41="p",putDelta(Q$31,Q$42,Q$30/365,Q$38,Q$39,0),0)) -> 0.5188756268 | R33: =IF(R$41="c",CallDelta(R$31,R$42,R$30/365,R$38,R$39,0),IF(R$41="p",putDelta(R$31,R$42,R$30/365,R$38,R$39,0),0)) -> 0.5182360417 | S33: =IF(S$41="c",CallDelta(S$31,S$42,S$30/365,S$38,S$39,0),IF(S$41="p",putDelta(S$31,S$42,S$30/365,S$38,S$39,0),0)) -> 0.5175731268 | T33: =IF(T$41="c",CallDelta(T$31,T$42,T$30/365,T$38,T$39,0),IF(T$41="p",putDelta(T$31,T$42,T$30/365,T$38,T$39,0),0)) -> 0.5168841343 | U33: =IF(U$41="c",CallDelta(U$31,U$42,U$30/365,U$38,U$39,0),IF(U$41="p",putDelta(U$31,U$42,U$30/365,U$38,U$39,0),0)) -> 0.5161657302 | V33: =IF(V$41="c",CallDelta(V$31,V$42,V$30/365,V$38,V$39,0),IF(V$41="p",putDelta(V$31,V$42,V$30/365,V$38,V$39,0),0)) -> 0.5154138026 | W33: =IF(W$41="c",CallDelta(W$31,W$42,W$30/365,W$38,W$39,0),IF(W$41="p",putDelta(W$31,W$42,W$30/365,W$38,W$39,0),0)) -> 0.514623181 | X33: =IF(X$41="c",CallDelta(X$31,X$42,X$30/365,X$38,X$39,0),IF(X$41="p",putDelta(X$31,X$42,X$30/365,X$38,X$39,0),0)) -> 0.5137872104 | Y33: =IF(Y$41="c",CallDelta(Y$31,Y$42,Y$30/365,Y$38,Y$39,0),IF(Y$41="p",putDelta(Y$31,Y$42,Y$30/365,Y$38,Y$39,0),0)) -> 0.5128970754 | Z33: =IF(Z$41="c",CallDelta(Z$31,Z$42,Z$30/365,Z$38,Z$39,0),IF(Z$41="p",putDelta(Z$31,Z$42,Z$30/365,Z$38,Z$39,0),0)) -> 0.5119406688 | AA33: =IF(AA$41="c",CallDelta(AA$31,AA$42,AA$30/365,AA$38,AA$39,0),IF(AA$41="p",putDelta(AA$31,AA$42,AA$30/365,AA$38,AA$39,0),0)) -> 0.5109005607 | AB33: =IF(AB$41="c",CallDelta(AB$31,AB$42,AB$30/365,AB$38,AB$39,0),IF(AB$41="p",putDelta(AB$31,AB$42,AB$30/365,AB$38,AB$39,0),0)) -> 0.5097500006 | AC33: =IF(AC$41="c",CallDelta(AC$31,AC$42,AC$30/365,AC$38,AC$39,0),IF(AC$41="p",putDelta(AC$31,AC$42,AC$30/365,AC$38,AC$39,0),0)) -> 0.5084439584 | AD33: =IF(AD$41="c",CallDelta(AD$31,AD$42,AD$30/365,AD$38,AD$39,0),IF(AD$41="p",putDelta(AD$31,AD$42,AD$30/365,AD$38,AD$39,0),0)) -> 0.5068946348 | AE33: =IF(AE$41="c",CallDelta(AE$31,AE$42,AE$30/365,AE$38,AE$39,0),IF(AE$41="p",putDelta(AE$31,AE$42,AE$30/365,AE$38,AE$39,0),0)) -> 0.5048753643
A34: gamma | B34: =_xludf.GAMMA(B$8,B$10,B$4/365,B$5,B$6,0) -> 0.06766211403 | C34: =_xludf.GAMMA(C$31,C$42,C$30/365,C$38,C$39,0) -> 0.06882395451 | D34: 0.07004740289 | E34: 0.07133811066 | F34: 0.0727024829 | G34: 0.07414781272 | H34: 0.07568244597 | I34: 0.07731598517 | J34: 0.07905954369 | K34: 0.08092606587 | L34: 0.08293073403 | M34: 0.08509149196 | N34: 0.08742972616 | O34: 0.08997116452 | P34: 0.09274707944 | Q34: 0.09579592522 | R34: 0.09916560817 | S34: 0.1029167002 | T34: 0.1071270974 | U34: 0.11189896 | V34: 0.1173693838 | W34: 0.1237274327 | X34: 0.1312425604 | Y34: 0.1403146766 | Z34: 0.1515684907 | AA34: 0.1660473622 | AB34: 0.1856604587 | AC34: 0.2143982416 | AD34: 0.2626027564 | AE34: 0.3714041139
A35: vega | B35: =Vega(B$8,B$10,B$4/365,B$5,B$6,0) -> 0.05135276391 | C35: =Vega(C$31,C$42,C$30/365,C$38,C$39,0) -> 0.05049340132 | D35: 0.04961889346 | E35: 0.04872842486 | F35: 0.04782110385 | G35: 0.04689595223 | H35: 0.045951893 | I35: 0.04498773579 | J35: 0.0440021594 | K35: 0.04299369079 | L35: 0.04196067935 | M35: 0.04090126548 | N35: 0.03981334149 | O35: 0.03869450264 | P35: 0.03754198495 | Q35: 0.03635258521 | R35: 0.03512255661 | S35: 0.03384746994 | T35: 0.03252202578 | U35: 0.03113979442 | V35: 0.0296928463 | W35: 0.02817121101 | X35: 0.02656205595 | Y35: 0.02484838374 | Z35: 0.02300685113 | AA35: 0.02100385401 | AB35: 0.0187878211 | AC35: 0.01627194545 | AD35: 0.01328698001 | AE35: 0.009396015308
A36: theta | B36: =IF(B$9="c",CallTheta(B$8,B$10,B$4/365,B$5,B$6,0),IF(B$9="p",putTheta(B$8,B$10,B$4/365,B$5,B$6,0),0)) -> -0.03917434123 | C36: =IF(C$41="c",CallTheta(C$31,C$42,C$30/365,C$38,C$39,0),IF(C$41="p",putTheta(C$31,C$42,C$30/365,C$38,C$39,0),0)) -> -0.03984463357 | D36: =IF(D$41="c",CallTheta(D$31,D$42,D$30/365,D$38,D$39,0),IF(D$41="p",putTheta(D$31,D$42,D$30/365,D$38,D$39,0),0)) -> -0.04055046418 | E36: =IF(E$41="c",CallTheta(E$31,E$42,E$30/365,E$38,E$39,0),IF(E$41="p",putTheta(E$31,E$42,E$30/365,E$38,E$39,0),0)) -> -0.04129509301 | F36: =IF(F$41="c",CallTheta(F$31,F$42,F$30/365,F$38,F$39,0),IF(F$41="p",putTheta(F$31,F$42,F$30/365,F$38,F$39,0),0)) -> -0.04208221472 | G36: =IF(G$41="c",CallTheta(G$31,G$42,G$30/365,G$38,G$39,0),IF(G$41="p",putTheta(G$31,G$42,G$30/365,G$38,G$39,0),0)) -> -0.04291603618 | H36: =IF(H$41="c",CallTheta(H$31,H$42,H$30/365,H$38,H$39,0),IF(H$41="p",putTheta(H$31,H$42,H$30/365,H$38,H$39,0),0)) -> -0.04380137151 | I36: =IF(I$41="c",CallTheta(I$31,I$42,I$30/365,I$38,I$39,0),IF(I$41="p",putTheta(I$31,I$42,I$30/365,I$38,I$39,0),0)) -> -0.04474375971 | J36: =IF(J$41="c",CallTheta(J$31,J$42,J$30/365,J$38,J$39,0),IF(J$41="p",putTheta(J$31,J$42,J$30/365,J$38,J$39,0),0)) -> -0.04574961128 | K36: =IF(K$41="c",CallTheta(K$31,K$42,K$30/365,K$38,K$39,0),IF(K$41="p",putTheta(K$31,K$42,K$30/365,K$38,K$39,0),0)) -> -0.04682639284 | L36: =IF(L$41="c",CallTheta(L$31,L$42,L$30/365,L$38,L$39,0),IF(L$41="p",putTheta(L$31,L$42,L$30/365,L$38,L$39,0),0)) -> -0.04798286195 | M36: =IF(M$41="c",CallTheta(M$31,M$42,M$30/365,M$38,M$39,0),IF(M$41="p",putTheta(M$31,M$42,M$30/365,M$38,M$39,0),0)) -> -0.04922936902 | N36: =IF(N$41="c",CallTheta(N$31,N$42,N$30/365,N$38,N$39,0),IF(N$41="p",putTheta(N$31,N$42,N$30/365,N$38,N$39,0),0)) -> -0.05057825028 | O36: =IF(O$41="c",CallTheta(O$31,O$42,O$30/365,O$38,O$39,0),IF(O$41="p",putTheta(O$31,O$42,O$30/365,O$38,O$39,0),0)) -> -0.05204434619 | P36: =IF(P$41="c",CallTheta(P$31,P$42,P$30/365,P$38,P$39,0),IF(P$41="p",putTheta(P$31,P$42,P$30/365,P$38,P$39,0),0)) -> -0.05364569536 | Q36: =IF(Q$41="c",CallTheta(Q$31,Q$42,Q$30/365,Q$38,Q$39,0),IF(Q$41="p",putTheta(Q$31,Q$42,Q$30/365,Q$38,Q$39,0),0)) -> -0.05540447905 | R36: =IF(R$41="c",CallTheta(R$31,R$42,R$30/365,R$38,R$39,0),IF(R$41="p",putTheta(R$31,R$42,R$30/365,R$38,R$39,0),0)) -> -0.05734833061 | S36: =IF(S$41="c",CallTheta(S$31,S$42,S$30/365,S$38,S$39,0),IF(S$41="p",putTheta(S$31,S$42,S$30/365,S$38,S$39,0),0)) -> -0.05951218913 | T36: =IF(T$41="c",CallTheta(T$31,T$42,T$30/365,T$38,T$39,0),IF(T$41="p",putTheta(T$31,T$42,T$30/365,T$38,T$39,0),0)) -> -0.06194098656 | U36: =IF(U$41="c",CallTheta(U$31,U$42,U$30/365,U$38,U$39,0),IF(U$41="p",putTheta(U$31,U$42,U$30/365,U$38,U$39,0),0)) -> -0.06469365078 | V36: =IF(V$41="c",CallTheta(V$31,V$42,V$30/365,V$38,V$39,0),IF(V$41="p",putTheta(V$31,V$42,V$30/365,V$38,V$39,0),0)) -> -0.06784926108 | W36: =IF(W$41="c",CallTheta(W$31,W$42,W$30/365,W$38,W$39,0),IF(W$41="p",putTheta(W$31,W$42,W$30/365,W$38,W$39,0),0)) -> -0.07151687268 | X36: =IF(X$41="c",CallTheta(X$31,X$42,X$30/365,X$38,X$39,0),IF(X$41="p",putTheta(X$31,X$42,X$30/365,X$38,X$39,0),0)) -> -0.07585191083 | Y36: =IF(Y$41="c",CallTheta(Y$31,Y$42,Y$30/365,Y$38,Y$39,0),IF(Y$41="p",putTheta(Y$31,Y$42,Y$30/365,Y$38,Y$39,0),0)) -> -0.08108504949 | Z36: =IF(Z$41="c",CallTheta(Z$31,Z$42,Z$30/365,Z$38,Z$39,0),IF(Z$41="p",putTheta(Z$31,Z$42,Z$30/365,Z$38,Z$39,0),0)) -> -0.08757663013 | AA36: =IF(AA$41="c",CallTheta(AA$31,AA$42,AA$30/365,AA$38,AA$39,0),IF(AA$41="p",putTheta(AA$31,AA$42,AA$30/365,AA$38,AA$39,0),0)) -> -0.09592847668 | AB36: =IF(AB$41="c",CallTheta(AB$31,AB$42,AB$30/365,AB$38,AB$39,0),IF(AB$41="p",putTheta(AB$31,AB$42,AB$30/365,AB$38,AB$39,0),0)) -> -0.1072418217 | AC36: =IF(AC$41="c",CallTheta(AC$31,AC$42,AC$30/365,AC$38,AC$39,0),IF(AC$41="p",putTheta(AC$31,AC$42,AC$30/365,AC$38,AC$39,0),0)) -> -0.1238184115 | AD36: =IF(AD$41="c",CallTheta(AD$31,AD$42,AD$30/365,AD$38,AD$39,0),IF(AD$41="p",putTheta(AD$31,AD$42,AD$30/365,AD$38,AD$39,0),0)) -> -0.1516236544 | AE36: =IF(AE$41="c",CallTheta(AE$31,AE$42,AE$30/365,AE$38,AE$39,0),IF(AE$41="p",putTheta(AE$31,AE$42,AE$30/365,AE$38,AE$39,0),0)) -> -0.2143818254
A38: rate | B38: 0.0025 | C38: =B5 -> 0.0025 | D38: =C38 -> 0.0025 | E38: 0.0025 | F38: 0.0025 | G38: 0.0025 | H38: 0.0025 | I38: 0.0025 | J38: 0.0025 | K38: 0.0025 | L38: 0.0025 | M38: 0.0025 | N38: 0.0025 | O38: 0.0025 | P38: 0.0025 | Q38: 0.0025 | R38: 0.0025 | S38: 0.0025 | T38: 0.0025 | U38: 0.0025 | V38: 0.0025 | W38: 0.0025 | X38: 0.0025 | Y38: 0.0025 | Z38: 0.0025 | AA38: 0.0025 | AB38: 0.0025 | AC38: 0.0025 | AD38: 0.0025 | AE38: 0.0025
A39: volatility | B39: =B6 -> 0.456 | C39: =B39+$B$23 -> 0.456 | D39: 0.456 | E39: 0.456 | F39: 0.456 | G39: 0.456 | H39: 0.456 | I39: 0.456 | J39: 0.456 | K39: 0.456 | L39: 0.456 | M39: 0.456 | N39: 0.456 | O39: 0.456 | P39: 0.456 | Q39: 0.456 | R39: 0.456 | S39: 0.456 | T39: 0.456 | U39: 0.456 | V39: 0.456 | W39: 0.456 | X39: 0.456 | Y39: 0.456 | Z39: 0.456 | AA39: 0.456 | AB39: 0.456 | AC39: 0.456 | AD39: 0.456 | AE39: 0.456
A41: opt type | B41: c | C41: =B9 -> c | D41: =C41 -> c | E41: c | F41: c | G41: c | H41: c | I41: c | J41: c | K41: c | L41: c | M41: c | N41: c | O41: c | P41: c | Q41: c | R41: c | S41: c | T41: c | U41: c | V41: c | W41: c | X41: c | Y41: c | Z41: c | AA41: c | AB41: c | AC41: c | AD41: c | AE41: c
A42: strike | B42: 45 | C42: =B10 -> 45 | D42: =C42 -> 45 | E42: 45 | F42: 45 | G42: 45 | H42: 45 | I42: 45 | J42: 45 | K42: 45 | L42: 45 | M42: 45 | N42: 45 | O42: 45 | P42: 45 | Q42: 45 | R42: 45 | S42: 45 | T42: 45 | U42: 45 | V42: 45 | W42: 45 | X42: 45 | Y42: 45 | Z42: 45 | AA42: 45 | AB42: 45 | AC42: 45 | AD42: 45 | AE42: 45

Sheet Price1
D1: opt1 | G1: MIV | I1: opt1
D2: date1 | G2: date1 | I2: date2
C3: date | D3: 2013-11-12 | F3: date | G3: =D3 -> 2013-11-12 | I3: 2013-11-18
C4: exp | D4: 2013-11-22 | F4: exp | G4: =D4 -> 2013-11-22 | I4: =D4 -> 2013-11-22
C5: days to exp | D5: =D4-D3 -> 10 | F5: days to exp | G5: =G4-G3 -> 10 | I5: =I4-I3 -> 4
C6: exp mult | D6: 10.5 | F6: exp mult | G6: =D6 -> 10.5 | I6: 4.5
C7: rate | D7: 0.0025 | F7: rate | G7: =D7 -> 0.0025 | I7: =D7 -> 0.0025
C8: volatility | D8: 0.42 | I8: 0.42
C10: underly | D10: 75.8 | F10: underlying | G10: =D10 -> 75.8 | I10: 73.5
C11: opt type | D11: p | F11: opt type | G11: =D11 -> p | I11: =D11 -> p
C12: strike | D12: 75.5 | F12: strike | G12: =D12 -> 75.5 | I12: =D12 -> 75.5
C13: qty | D13: 1 | I13: =D13 -> 1
C15: opt price | D15: =G15 -> 2 | F15: option price | G15: 2 | I15: =IF(I$11="c",CallThv(I$10,I$12,I$6/365,I$7,I$8,0),IF(I$11="p",putThv(I$10,I$12,I$6/365,I$7,I$8,0),0)) -> 2.607690773 | J15: opt thv
C16: opt thv | D16: =IF(D$11="c",CallThv(D$10,D$12,D$6/365,D$7,D$8,0),IF(D$11="p",putThv(D$10,D$12,D$6/365,D$7,D$8,0),0)) -> 2.000094909 | F16: implied vty | G16: =IF(G$11="c",CallImpVty(G$10,G$12,G$6/365,G$7,G$15,0),IF(G$11="p",PutImpVty(G$10,G$12,G$6/365,G$7,G$15,0),0)) -> 0.419960022 | I16: =(I15-D15)*I13 -> 0.6076907733 | J16: profit
C17: profit | D17: =(D16-D15)*D13 -> 9.490867373e-05
Q19: incr | R19: 0.5
K20: strike | L20: exp | M20: date1 | N20: date2 | Q20: begin | R20: 70
K21: =R22 -> 70 | L21: =R26 -> 3.5 | M21: =R30 -> 3.878192129 | N21: =R34 -> 3.572588489
K22: =T22 -> 71 | L22: =T26 -> 2.5 | M22: =T30 -> 3.055976651 | N22: =T34 -> 2.647529348 | Q22: underly | R22: =R20 -> 70 | S22: =R22+$R$19 -> 70.5 | T22: 71 | U22: 71.5 | V22: 72 | W22: 72.5 | X22: 73 | Y22: 73.5 | Z22: 74 | AA22: 74.5 | AB22: 75 | AC22: 75.5 | AD22: 76 | AE22: 76.5 | AF22: 77 | AG22: 77.5 | AH22: 78 | AI22: 78.5 | AJ22: 79
K23: =V22 -> 72 | L23: =V26 -> 1.5 | M23: =V30 -> 2.289749944 | N23: =V34 -> 1.774839574
K24: =X22 -> 73 | L24: =X26 -> 0.5 | M24: =X30 -> 1.587169954 | N24: =X34 -> 0.9745764496 | Q24: exp profit
K25: =Y22 -> 73.5 | L25: =Y26 -> 0 | M25: =Y30 -> 1.261681343 | N25: =Y34 -> 0.6076907733 | Q25: opt1 exp | R25: =IF(ISBLANK($D$11),0,IF(LEFT($D$11)="c",((MAX(R$22-$D$12,0)*$D$13)-($D$15*$D$13)),IF(LEFT($D$11)="p",((MAX($D$12-R$22,0)*$D$13)-($D$15*$D$13)),(R$22-$D$12)*$D$13))) -> 3.5 | S25: 3 | T25: 2.5 | U25: 2 | V25: 1.5 | W25: 1 | X25: 0.5 | Y25: 0 | Z25: -0.5 | AA25: -1 | AB25: -1.5 | AC25: -2 | AD25: -2 | AE25: -2 | AF25: -2 | AG25: -2 | AH25: -2 | AI25: -2 | AJ25: -2
K26: =Z22 -> 74 | L26: =Z26 -> -0.5 | M26: =Z30 -> 0.9541571641 | N26: =Z34 -> 0.2657605403 | R26: =SUM(R25:R25) -> 3.5 | S26: 3 | T26: 2.5 | U26: 2 | V26: 1.5 | W26: 1 | X26: 0.5 | Y26: 0 | Z26: -0.5 | AA26: -1 | AB26: -1.5 | AC26: -2 | AD26: -2 | AE26: -2 | AF26: -2 | AG26: -2 | AH26: -2 | AI26: -2 | AJ26: -2
K27: =AA22 -> 74.5 | L27: =AA26 -> -1 | M27: =AA30 -> 0.6649797093 | N27: =AA34 -> -0.04960021871
K28: =AB22 -> 75 | L28: =AB26 -> -1.5 | M28: =AB30 -> 0.3943697734 | N28: =AB34 -> -0.3372683203 | Q28: date1 gain
K29: =AC22 -> 75.5 | L29: =AC26 -> -2 | M29: =AC30 -> 0.1423840559 | N29: =AC34 -> -0.5966685604 | Q29: opt1 date1 | R29: =IF(ISBLANK($D$11),0,IF(LEFT($D$11,1)="c",(CallThv(R$22,$D$12,$D$6/365,$D$7,$D$8,0)*$D$13)-($D$13*$D$15),IF(LEFT($D$11)="p",(putThv(R$22,$D$12,$D$6/365,$D$7,$D$8,0)*$D$13)-($D$13*$D$15),(R$22-$D$12)*$D$13))) -> 3.878192129 | S29: =IF(ISBLANK($D$11),0,IF(LEFT($D$11,1)="c",(CallThv(S$22,$D$12,$D$6/365,$D$7,$D$8,0)*$D$13)-($D$13*$D$15),IF(LEFT($D$11)="p",(putThv(S$22,$D$12,$D$6/365,$D$7,$D$8,0)*$D$13)-($D$13*$D$15),(S$22-$D$12)*$D$13))) -> 3.460614191 | T29: =IF(ISBLANK($D$11),0,IF(LEFT($D$11,1)="c",(CallThv(T$22,$D$12,$D$6/365,$D$7,$D$8,0)*$D$13)-($D$13*$D$15),IF(LEFT($D$11)="p",(putThv(T$22,$D$12,$D$6/365,$D$7,$D$8,0)*$D$13)-($D$13*$D$15),(T$22-$D$12)*$D$13))) -> 3.055976651 | U29: =IF(ISBLANK($D$11),0,IF(LEFT($D$11,1)="c",(CallThv(U$22,$D$12,$D$6/365,$D$7,$D$8,0)*$D$13)-($D$13*$D$15),IF(LEFT($D$11)="p",(putThv(U$22,$D$12,$D$6/365,$D$7,$D$8,0)*$D$13)-($D$13*$D$15),(U$22-$D$12)*$D$13))) -> 2.665352846 | V29: =IF(ISBLANK($D$11),0,IF(LEFT($D$11,1)="c",(CallThv(V$22,$D$12,$D$6/365,$D$7,$D$8,0)*$D$13)-($D$13*$D$15),IF(LEFT($D$11)="p",(putThv(V$22,$D$12,$D$6/365,$D$7,$D$8,0)*$D$13)-($D$13*$D$15),(V$22-$D$12)*$D$13))) -> 2.289749944 | W29: =IF(ISBLANK($D$11),0,IF(LEFT($D$11,1)="c",(CallThv(W$22,$D$12,$D$6/365,$D$7,$D$8,0)*$D$13)-($D$13*$D$15),IF(LEFT($D$11)="p",(putThv(W$22,$D$12,$D$6/365,$D$7,$D$8,0)*$D$13)-($D$13*$D$15),(W$22-$D$12)*$D$13))) -> 1.930086192 | X29: =IF(ISBLANK($D$11),0,IF(LEFT($D$11,1)="c",(CallThv(X$22,$D$12,$D$6/365,$D$7,$D$8,0)*$D$13)-($D$13*$D$15),IF(LEFT($D$11)="p",(putThv(X$22,$D$12,$D$6/365,$D$7,$D$8,0)*$D$13)-($D$13*$D$15),(X$22-$D$12)*$D$13))) -> 1.587169954 | Y29: =IF(ISBLANK($D$11),0,IF(LEFT($D$11,1)="c",(CallThv(Y$22,$D$12,$D$6/365,$D$7,$D$8,0)*$D$13)-($D$13*$D$15),IF(LEFT($D$11)="p",(putThv(Y$22,$D$12,$D$6/365,$D$7,$D$8,0)*$D$13)-($D$13*$D$15),(Y$22-$D$12)*$D$13))) -> 1.261681343 | Z29: =IF(ISBLANK($D$11),0,IF(LEFT($D$11,1)="c",(CallThv(Z$22,$D$12,$D$6/365,$D$7,$D$8,0)*$D$13)-($D$13*$D$15),IF(LEFT($D$11)="p",(putThv(Z$22,$D$12,$D$6/365,$D$7,$D$8,0)*$D$13)-($D$13*$D$15),(Z$22-$D$12)*$D$13))) -> 0.9541571641 | AA29: =IF(ISBLANK($D$11),0,IF(LEFT($D$11,1)="c",(CallThv(AA$22,$D$12,$D$6/365,$D$7,$D$8,0)*$D$13)-($D$13*$D$15),IF(LEFT($D$11)="p",(putThv(AA$22,$D$12,$D$6/365,$D$7,$D$8,0)*$D$13)-($D$13*$D$15),(AA$22-$D$12)*$D$13))) -> 0.6649797093 | AB29: =IF(ISBLANK($D$11),0,IF(LEFT($D$11,1)="c",(CallThv(AB$22,$D$12,$D$6/365,$D$7,$D$8,0)*$D$13)-($D$13*$D$15),IF(LEFT($D$11)="p",(putThv(AB$22,$D$12,$D$6/365,$D$7,$D$8,0)*$D$13)-($D$13*$D$15),(AB$22-$D$12)*$D$13))) -> 0.3943697734 | AC29: =IF(ISBLANK($D$11),0,IF(LEFT($D$11,1)="c",(CallThv(AC$22,$D$12,$D$6/365,$D$7,$D$8,0)*$D$13)-($D$13*$D$15),IF(LEFT($D$11)="p",(putThv(AC$22,$D$12,$D$6/365,$D$7,$D$8,0)*$D$13)-($D$13*$D$15),(AC$22-$D$12)*$D$13))) -> 0.1423840559 | AD29: =IF(ISBLANK($D$11),0,IF(LEFT($D$11,1)="c",(CallThv(AD$22,$D$12,$D$6/365,$D$7,$D$8,0)*$D$13)-($D$13*$D$15),IF(LEFT($D$11)="p",(putThv(AD$22,$D$12,$D$6/365,$D$7,$D$8,0)*$D$13)-($D$13*$D$15),(AD$22-$D$12)*$D$13))) -> -0.09108308143 | AE29: =IF(ISBLANK($D$11),0,IF(LEFT($D$11,1)="c",(CallThv(AE$22,$D$12,$D$6/365,$D$7,$D$8,0)*$D$13)-($D$13*$D$15),IF(LEFT($D$11)="p",(putThv(AE$22,$D$12,$D$6/365,$D$7,$D$8,0)*$D$13)-($D$13*$D$15),(AE$22-$D$12)*$D$13))) -> -0.3062937168 | AF29: =IF(ISBLANK($D$11),0,IF(LEFT($D$11,1)="c",(CallThv(AF$22,$D$12,$D$6/365,$D$7,$D$8,0)*$D$13)-($D$13*$D$15),IF(LEFT($D$11)="p",(putThv(AF$22,$D$12,$D$6/365,$D$7,$D$8,0)*$D$13)-($D$13*$D$15),(AF$22-$D$12)*$D$13))) -> -0.5036567164 | AG29: =IF(ISBLANK($D$11),0,IF(LEFT($D$11,1)="c",(CallThv(AG$22,$D$12,$D$6/365,$D$7,$D$8,0)*$D$13)-($D$13*$D$15),IF(LEFT($D$11)="p",(putThv(AG$22,$D$12,$D$6/365,$D$7,$D$8,0)*$D$13)-($D$13*$D$15),(AG$22-$D$12)*$D$13))) -> -0.6837148463 | AH29: =IF(ISBLANK($D$11),0,IF(LEFT($D$11,1)="c",(CallThv(AH$22,$D$12,$D$6/365,$D$7,$D$8,0)*$D$13)-($D$13*$D$15),IF(LEFT($D$11)="p",(putThv(AH$22,$D$12,$D$6/365,$D$7,$D$8,0)*$D$13)-($D$13*$D$15),(AH$22-$D$12)*$D$13))) -> -0.8471292691 | AI29: =IF(ISBLANK($D$11),0,IF(LEFT($D$11,1)="c",(CallThv(AI$22,$D$12,$D$6/365,$D$7,$D$8,0)*$D$13)-($D$13*$D$15),IF(LEFT($D$11)="p",(putThv(AI$22,$D$12,$D$6/365,$D$7,$D$8,0)*$D$13)-($D$13*$D$15),(AI$22-$D$12)*$D$13))) -> -0.994662107 | AJ29: =IF(ISBLANK($D$11),0,IF(LEFT($D$11,1)="c",(CallThv(AJ$22,$D$12,$D$6/365,$D$7,$D$8,0)*$D$13)-($D$13*$D$15),IF(LEFT($D$11)="p",(putThv(AJ$22,$D$12,$D$6/365,$D$7,$D$8,0)*$D$13)-($D$13*$D$15),(AJ$22-$D$12)*$D$13))) -> -1.127157779
K30: =AD22 -> 76 | L30: =AD26 -> -2 | M30: =AD30 -> -0.09108308143 | N30: =AD34 -> -0.8277974752 | R30: =SUM(R29:R29) -> 3.878192129 | S30: =SUM(S29:S29) -> 3.460614191 | T30: 3.055976651 | U30: 2.665352846 | V30: 2.289749944 | W30: 1.930086192 | X30: 1.587169954 | Y30: 1.261681343 | Z30: 0.9541571641 | AA30: 0.6649797093 | AB30: 0.3943697734 | AC30: 0.1423840559 | AD30: -0.09108308143 | AE30: -0.3062937168 | AF30: -0.5036567164 | AG30: -0.6837148463 | AH30: -0.8471292691 | AI30: -0.994662107 | AJ30: -1.127157779
K31: =AF22 -> 77 | L31: =AF26 -> -2 | M31: =AF30 -> -0.5036567164 | N31: =AF34 -> -1.207988351
K32: =AH22 -> 78 | L32: =AH26 -> -2 | M32: =AH30 -> -0.8471292691 | N32: =AH34 -> -1.488065869 | Q32: date2 gain
K33: =AJ22 -> 79 | L33: =AJ26 -> -2 | M33: =AJ30 -> -1.127157779 | N33: =AJ34 -> -1.683863587 | Q33: opt1 date2 | R33: =IF(ISBLANK($I$11),0,IF(LEFT($I$11,1)="c",(CallThv(R$22,$I$12,$I$6/365,$I$7,$I$8,0)*$I$13)-($I$13*$D$15),IF(LEFT($I$11)="p",(putThv(R$22,$I$12,$I$6/365,$I$7,$I$8,0)*$I$13)-($I$13*$D$15),(R$22-$I$12)*$I$13))) -> 3.572588489 | S33: =IF(ISBLANK($I$11),0,IF(LEFT($I$11,1)="c",(CallThv(S$22,$I$12,$I$6/365,$I$7,$I$8,0)*$I$13)-($I$13*$D$15),IF(LEFT($I$11)="p",(putThv(S$22,$I$12,$I$6/365,$I$7,$I$8,0)*$I$13)-($I$13*$D$15),(S$22-$I$12)*$I$13))) -> 3.10471255 | T33: =IF(ISBLANK($I$11),0,IF(LEFT($I$11,1)="c",(CallThv(T$22,$I$12,$I$6/365,$I$7,$I$8,0)*$I$13)-($I$13*$D$15),IF(LEFT($I$11)="p",(putThv(T$22,$I$12,$I$6/365,$I$7,$I$8,0)*$I$13)-($I$13*$D$15),(T$22-$I$12)*$I$13))) -> 2.647529348 | U33: =IF(ISBLANK($I$11),0,IF(LEFT($I$11,1)="c",(CallThv(U$22,$I$12,$I$6/365,$I$7,$I$8,0)*$I$13)-($I$13*$D$15),IF(LEFT($I$11)="p",(putThv(U$22,$I$12,$I$6/365,$I$7,$I$8,0)*$I$13)-($I$13*$D$15),(U$22-$I$12)*$I$13))) -> 2.203402465 | V33: =IF(ISBLANK($I$11),0,IF(LEFT($I$11,1)="c",(CallThv(V$22,$I$12,$I$6/365,$I$7,$I$8,0)*$I$13)-($I$13*$D$15),IF(LEFT($I$11)="p",(putThv(V$22,$I$12,$I$6/365,$I$7,$I$8,0)*$I$13)-($I$13*$D$15),(V$22-$I$12)*$I$13))) -> 1.774839574 | W33: =IF(ISBLANK($I$11),0,IF(LEFT($I$11,1)="c",(CallThv(W$22,$I$12,$I$6/365,$I$7,$I$8,0)*$I$13)-($I$13*$D$15),IF(LEFT($I$11)="p",(putThv(W$22,$I$12,$I$6/365,$I$7,$I$8,0)*$I$13)-($I$13*$D$15),(W$22-$I$12)*$I$13))) -> 1.364398485 | X33: =IF(ISBLANK($I$11),0,IF(LEFT($I$11,1)="c",(CallThv(X$22,$I$12,$I$6/365,$I$7,$I$8,0)*$I$13)-($I$13*$D$15),IF(LEFT($I$11)="p",(putThv(X$22,$I$12,$I$6/365,$I$7,$I$8,0)*$I$13)-($I$13*$D$15),(X$22-$I$12)*$I$13))) -> 0.9745764496 | Y33: =IF(ISBLANK($I$11),0,IF(LEFT($I$11,1)="c",(CallThv(Y$22,$I$12,$I$6/365,$I$7,$I$8,0)*$I$13)-($I$13*$D$15),IF(LEFT($I$11)="p",(putThv(Y$22,$I$12,$I$6/365,$I$7,$I$8,0)*$I$13)-($I$13*$D$15),(Y$22-$I$12)*$I$13))) -> 0.6076907733 | Z33: =IF(ISBLANK($I$11),0,IF(LEFT($I$11,1)="c",(CallThv(Z$22,$I$12,$I$6/365,$I$7,$I$8,0)*$I$13)-($I$13*$D$15),IF(LEFT($I$11)="p",(putThv(Z$22,$I$12,$I$6/365,$I$7,$I$8,0)*$I$13)-($I$13*$D$15),(Z$22-$I$12)*$I$13))) -> 0.2657605403 | AA33: =IF(ISBLANK($I$11),0,IF(LEFT($I$11,1)="c",(CallThv(AA$22,$I$12,$I$6/365,$I$7,$I$8,0)*$I$13)-($I$13*$D$15),IF(LEFT($I$11)="p",(putThv(AA$22,$I$12,$I$6/365,$I$7,$I$8,0)*$I$13)-($I$13*$D$15),(AA$22-$I$12)*$I$13))) -> -0.04960021871 | AB33: =IF(ISBLANK($I$11),0,IF(LEFT($I$11,1)="c",(CallThv(AB$22,$I$12,$I$6/365,$I$7,$I$8,0)*$I$13)-($I$13*$D$15),IF(LEFT($I$11)="p",(putThv(AB$22,$I$12,$I$6/365,$I$7,$I$8,0)*$I$13)-($I$13*$D$15),(AB$22-$I$12)*$I$13))) -> -0.3372683203 | AC33: =IF(ISBLANK($I$11),0,IF(LEFT($I$11,1)="c",(CallThv(AC$22,$I$12,$I$6/365,$I$7,$I$8,0)*$I$13)-($I$13*$D$15),IF(LEFT($I$11)="p",(putThv(AC$22,$I$12,$I$6/365,$I$7,$I$8,0)*$I$13)-($I$13*$D$15),(AC$22-$I$12)*$I$13))) -> -0.5966685604 | AD33: =IF(ISBLANK($I$11),0,IF(LEFT($I$11,1)="c",(CallThv(AD$22,$I$12,$I$6/365,$I$7,$I$8,0)*$I$13)-($I$13*$D$15),IF(LEFT($I$11)="p",(putThv(AD$22,$I$12,$I$6/365,$I$7,$I$8,0)*$I$13)-($I$13*$D$15),(AD$22-$I$12)*$I$13))) -> -0.8277974752 | AE33: =IF(ISBLANK($I$11),0,IF(LEFT($I$11,1)="c",(CallThv(AE$22,$I$12,$I$6/365,$I$7,$I$8,0)*$I$13)-($I$13*$D$15),IF(LEFT($I$11)="p",(putThv(AE$22,$I$12,$I$6/365,$I$7,$I$8,0)*$I$13)-($I$13*$D$15),(AE$22-$I$12)*$I$13))) -> -1.03121245 | AF33: =IF(ISBLANK($I$11),0,IF(LEFT($I$11,1)="c",(CallThv(AF$22,$I$12,$I$6/365,$I$7,$I$8,0)*$I$13)-($I$13*$D$15),IF(LEFT($I$11)="p",(putThv(AF$22,$I$12,$I$6/365,$I$7,$I$8,0)*$I$13)-($I$13*$D$15),(AF$22-$I$12)*$I$13))) -> -1.207988351 | AG33: =IF(ISBLANK($I$11),0,IF(LEFT($I$11,1)="c",(CallThv(AG$22,$I$12,$I$6/365,$I$7,$I$8,0)*$I$13)-($I$13*$D$15),IF(LEFT($I$11)="p",(putThv(AG$22,$I$12,$I$6/365,$I$7,$I$8,0)*$I$13)-($I$13*$D$15),(AG$22-$I$12)*$I$13))) -> -1.359646856 | AH33: =IF(ISBLANK($I$11),0,IF(LEFT($I$11,1)="c",(CallThv(AH$22,$I$12,$I$6/365,$I$7,$I$8,0)*$I$13)-($I$13*$D$15),IF(LEFT($I$11)="p",(putThv(AH$22,$I$12,$I$6/365,$I$7,$I$8,0)*$I$13)-($I$13*$D$15),(AH$22-$I$12)*$I$13))) -> -1.488065869 | AI33: =IF(ISBLANK($I$11),0,IF(LEFT($I$11,1)="c",(CallThv(AI$22,$I$12,$I$6/365,$I$7,$I$8,0)*$I$13)-($I$13*$D$15),IF(LEFT($I$11)="p",(putThv(AI$22,$I$12,$I$6/365,$I$7,$I$8,0)*$I$13)-($I$13*$D$15),(AI$22-$I$12)*$I$13))) -> -1.595377543 | AJ33: =IF(ISBLANK($I$11),0,IF(LEFT($I$11,1)="c",(CallThv(AJ$22,$I$12,$I$6/365,$I$7,$I$8,0)*$I$13)-($I$13*$D$15),IF(LEFT($I$11)="p",(putThv(AJ$22,$I$12,$I$6/365,$I$7,$I$8,0)*$I$13)-($I$13*$D$15),(AJ$22-$I$12)*$I$13))) -> -1.683863587
R34: =SUM(R33:R33) -> 3.572588489 | S34: =SUM(S33:S33) -> 3.10471255 | T34: 2.647529348 | U34: 2.203402465 | V34: 1.774839574 | W34: 1.364398485 | X34: 0.9745764496 | Y34: 0.6076907733 | Z34: 0.2657605403 | AA34: -0.04960021871 | AB34: -0.3372683203 | AC34: -0.5966685604 | AD34: -0.8277974752 | AE34: -1.03121245 | AF34: -1.207988351 | AG34: -1.359646856 | AH34: -1.488065869 | AI34: -1.595377543 | AJ34: -1.683863587
R36: 0 | S36: 0 | T36: 0 | U36: 0 | V36: 0 | W36: 0 | X36: 0 | Y36: 0 | Z36: 0 | AA36: 0 | AB36: 0 | AC36: 0 | AD36: 0 | AE36: 0 | AF36: 0 | AG36: 0 | AH36: 0 | AI36: 0 | AJ36: 0

Sheet Price2
D1: opt1 | E1: opt2 | J1: opt1 | K1: opt2
D2: date1 | E2: date1 | G2: MIV | H2: MIV | J2: date2 | K2: date2
C3: date | D3: 2013-11-21 | E3: 2013-11-21 | G3: =D3 -> 2013-11-21 | H3: =E3 -> 2013-11-21 | J3: 2013-11-30 | K3: =J3 -> 2013-11-30
C4: exp | D4: 2013-12-21 | E4: 2013-12-21 | G4: =D4 -> 2013-12-21 | H4: =E4 -> 2013-12-21 | J4: 2013-12-21 | K4: =J4 -> 2013-12-21
C5: days to exp | D5: =D4-D3 -> 30 | E5: =E4-E3 -> 30 | G5: =G4-G3 -> 30 | H5: =E4-E3 -> 30 | J5: =J4-J3 -> 21 | K5: =K4-K3 -> 21
C6: exp mult | D6: 30 | E6: 30 | G6: =D6 -> 30 | H6: =E6 -> 30 | J6: 21 | K6: =J6 -> 21
C7: rate | D7: 0.0025 | E7: =D7 -> 0.0025 | G7: =D7 -> 0.0025 | H7: =D7 -> 0.0025 | J7: =D7 -> 0.0025 | K7: =D7 -> 0.0025
C8: volatility | D8: =G16 -> 0.4006576538 | E8: =H16 -> 0.4111862183 | J8: 0.7 | K8: =J8 -> 0.7
C10: underly | D10: 47 | E10: 47 | G10: =D10 -> 47 | H10: 47 | J10: 57 | K10: =J10 -> 57
C11: opt type | D11: c | E11: p | G11: c | H11: p | J11: =D11 -> c | K11: p
C12: strike | D12: 55 | E12: 40 | G12: 55 | H12: 40 | J12: 55 | K12: 40
C13: qty | D13: -1 | E13: -1 | J13: -1 | K13: -1
C15: opt price | D15: =G15 -> 0.23 | E15: =H15 -> 0.2 | G15: 0.23 | H15: 0.2 | J15: =IF(J$11="c",CallThv(J$10,J$12,J$6/365,J$7,J$8,0),IF(J$11="p",putThv(J$10,J$12,J$6/365,J$7,J$8,0),0)) -> 4.835314667 | K15: =IF(K$11="c",CallThv(K$10,K$12,K$6/365,K$7,K$8,0),IF(K$11="p",putThv(K$10,K$12,K$6/365,K$7,K$8,0),0)) -> 0.05026697545 | L15: opt thv
F16: MIV | G16: =IF(G$11="c",CallImpVty(G$10,G$12,G$6/365,G$7,G$15,0),IF(G$11="p",PutImpVty(G$10,G$12,G$6/365,G$7,G$15,0),0)) -> 0.4006576538 | H16: =IF(H$11="c",CallImpVty(H$10,H$12,H$6/365,H$7,H$15,0),IF(H$11="p",PutImpVty(H$10,H$12,H$6/365,H$7,H$15,0),0)) -> 0.4111862183 | J16: =(J15-D15)*J13 -> -4.605314667 | K16: =(K15-E15)*K13 -> 0.1497330246 | L16: =J16+K16 -> -4.455581642
Q18: incr | R18: 2
K19: strike | L19: exp | M19: date1 | N19: date2 | Q19: begin | R19: 29
K20: =R21 -> 29 | L20: =R26 -> -10.57 | M20: =R31 -> -10.56568066 | N20: =R36 -> -10.62507003
K21: =T21 -> 33 | L21: =T26 -> -6.57 | M21: =T31 -> -6.654339287 | N21: =T36 -> -6.948456854 | Q21: underly | R21: =R19 -> 29 | S21: =R21+$R$18 -> 31 | T21: 33 | U21: 35 | V21: 37 | W21: 39 | X21: 41 | Y21: 43 | Z21: 45 | AA21: 47 | AB21: 49 | AC21: 51 | AD21: 53 | AE21: 55 | AF21: 57 | AG21: 59 | AH21: 61 | AI21: 63 | AJ21: 65
K22: =V21 -> 37 | L22: =V26 -> -2.57 | M22: =V31 -> -3.254876556 | N22: =V36 -> -3.936914516
K23: =X21 -> 41 | L23: =X26 -> 0.43 | M23: =X31 -> -1.020676624 | N23: =X36 -> -1.935131067 | Q23: exp profit
K24: =Y21 -> 43 | L24: =Y26 -> 0.43 | M24: =Y31 -> -0.4057487013 | N24: =Y36 -> -1.355746449 | Q24: opt1 exp | R24: =IF(ISBLANK($D$11),0,IF(LEFT($D$11)="c",((MAX(R$21-$D$12,0)*$D$13)-($D$15*$D$13)),IF(LEFT($D$11)="p",((MAX($D$12-R$21,0)*$D$13)-($D$15*$D$13)),(R$21-$D$12)*$D$13))) -> 0.23 | S24: 0.23 | T24: 0.23 | U24: 0.23 | V24: 0.23 | W24: 0.23 | X24: 0.23 | Y24: 0.23 | Z24: 0.23 | AA24: 0.23 | AB24: 0.23 | AC24: 0.23 | AD24: 0.23 | AE24: 0.23 | AF24: -1.77 | AG24: -3.77 | AH24: -5.77 | AI24: -7.77 | AJ24: -9.77
K25: =Z21 -> 45 | L25: =Z26 -> 0.43 | M25: =Z31 -> -0.07888042295 | N25: =Z36 -> -1.05466559 | Q25: opt2 exp | R25: =IF(ISBLANK($E$11),0,IF(LEFT($E$11)="c",((MAX(R$21-$E$12,0)*$E$13)-($E$15*$E$13)),IF(LEFT($E$11)="p",((MAX($E$12-R$21,0)*$E$13)-($E$15*$E$13)),(R$21-$E$12)*$E$13))) -> -10.8 | S25: -8.8 | T25: -6.8 | U25: -4.8 | V25: -2.8 | W25: -0.8 | X25: 0.2 | Y25: 0.2 | Z25: 0.2 | AA25: 0.2 | AB25: 0.2 | AC25: 0.2 | AD25: 0.2 | AE25: 0.2 | AF25: 0.2 | AG25: 0.2 | AH25: 0.2 | AI25: 0.2 | AJ25: 0.2
K26: =AA21 -> 47 | L26: =AA26 -> 0.43 | M26: =AA31 -> -6.537432765e-05 | N26: =AA36 -> -1.022522015 | R26: =SUM(R24:R25) -> -10.57 | S26: =SUM(S24:S25) -> -8.57 | T26: -6.57 | U26: -4.57 | V26: -2.57 | W26: -0.57 | X26: 0.43 | Y26: 0.43 | Z26: 0.43 | AA26: 0.43 | AB26: 0.43 | AC26: =SUM(AC24:AC25) -> 0.43 | AD26: 0.43 | AE26: 0.43 | AF26: -1.57 | AG26: -3.57 | AH26: -5.57 | AI26: -7.57 | AJ26: -9.57
K27: =AB21 -> 49 | L27: =AB26 -> 0.43 | M27: =AB31 -> -0.1526438242 | N27: =AB36 -> -1.248149644
K28: =AC21 -> 51 | L28: =AC26 -> 0.43 | M28: =AC31 -> -0.5436553276 | N28: =AC36 -> -1.71937046 | Q28: date1 gain
K29: =AD21 -> 53 | L29: =AD26 -> 0.43 | M29: =AD31 -> -1.189718576 | N29: =AD36 -> -2.422384242 | Q29: opt1 date1 | R29: =IF(ISBLANK($D$11),0,IF(LEFT($D$11,1)="c",(CallThv(R$21,$D$12,$D$6/365,$D$7,$D$8,0)*$D$13)-($D$13*$D$15),IF(LEFT($D$11)="p",(putThv(R$21,$D$12,$D$6/365,$D$7,$D$8,0)*$D$13)-($D$13*$D$15),(R$21-$D$12)*$D$13))) -> 0.2299999901 | S29: =IF(ISBLANK($D$11),0,IF(LEFT($D$11,1)="c",(CallThv(S$21,$D$12,$D$6/365,$D$7,$D$8,0)*$D$13)-($D$13*$D$15),IF(LEFT($D$11)="p",(putThv(S$21,$D$12,$D$6/365,$D$7,$D$8,0)*$D$13)-($D$13*$D$15),(S$21-$D$12)*$D$13))) -> 0.2299997325 | T29: =IF(ISBLANK($D$11),0,IF(LEFT($D$11,1)="c",(CallThv(T$21,$D$12,$D$6/365,$D$7,$D$8,0)*$D$13)-($D$13*$D$15),IF(LEFT($D$11)="p",(putThv(T$21,$D$12,$D$6/365,$D$7,$D$8,0)*$D$13)-($D$13*$D$15),(T$21-$D$12)*$D$13))) -> 0.2299955754 | U29: =IF(ISBLANK($D$11),0,IF(LEFT($D$11,1)="c",(CallThv(U$21,$D$12,$D$6/365,$D$7,$D$8,0)*$D$13)-($D$13*$D$15),IF(LEFT($D$11)="p",(putThv(U$21,$D$12,$D$6/365,$D$7,$D$8,0)*$D$13)-($D$13*$D$15),(U$21-$D$12)*$D$13))) -> 0.2299517443 | V29: =IF(ISBLANK($D$11),0,IF(LEFT($D$11,1)="c",(CallThv(V$21,$D$12,$D$6/365,$D$7,$D$8,0)*$D$13)-($D$13*$D$15),IF(LEFT($D$11)="p",(putThv(V$21,$D$12,$D$6/365,$D$7,$D$8,0)*$D$13)-($D$13*$D$15),(V$21-$D$12)*$D$13))) -> 0.2296303434 | W29: =IF(ISBLANK($D$11),0,IF(LEFT($D$11,1)="c",(CallThv(W$21,$D$12,$D$6/365,$D$7,$D$8,0)*$D$13)-($D$13*$D$15),IF(LEFT($D$11)="p",(putThv(W$21,$D$12,$D$6/365,$D$7,$D$8,0)*$D$13)-($D$13*$D$15),(W$21-$D$12)*$D$13))) -> 0.2279049153 | X29: =IF(ISBLANK($D$11),0,IF(LEFT($D$11,1)="c",(CallThv(X$21,$D$12,$D$6/365,$D$7,$D$8,0)*$D$13)-($D$13*$D$15),IF(LEFT($D$11)="p",(putThv(X$21,$D$12,$D$6/365,$D$7,$D$8,0)*$D$13)-($D$13*$D$15),(X$21-$D$12)*$D$13))) -> 0.2208256768 | Y29: =IF(ISBLANK($D$11),0,IF(LEFT($D$11,1)="c",(CallThv(Y$21,$D$12,$D$6/365,$D$7,$D$8,0)*$D$13)-($D$13*$D$15),IF(LEFT($D$11)="p",(putThv(Y$21,$D$12,$D$6/365,$D$7,$D$8,0)*$D$13)-($D$13*$D$15),(Y$21-$D$12)*$D$13))) -> 0.1978057386 | Z29: =IF(ISBLANK($D$11),0,IF(LEFT($D$11,1)="c",(CallThv(Z$21,$D$12,$D$6/365,$D$7,$D$8,0)*$D$13)-($D$13*$D$15),IF(LEFT($D$11)="p",(putThv(Z$21,$D$12,$D$6/365,$D$7,$D$8,0)*$D$13)-($D$13*$D$15),(Z$21-$D$12)*$D$13))) -> 0.1366029768 | AA29: =IF(ISBLANK($D$11),0,IF(LEFT($D$11,1)="c",(CallThv(AA$21,$D$12,$D$6/365,$D$7,$D$8,0)*$D$13)-($D$13*$D$15),IF(LEFT($D$11)="p",(putThv(AA$21,$D$12,$D$6/365,$D$7,$D$8,0)*$D$13)-($D$13*$D$15),(AA$21-$D$12)*$D$13))) -> -7.718979802e-05 | AB29: =IF(ISBLANK($D$11),0,IF(LEFT($D$11,1)="c",(CallThv(AB$21,$D$12,$D$6/365,$D$7,$D$8,0)*$D$13)-($D$13*$D$15),IF(LEFT($D$11)="p",(putThv(AB$21,$D$12,$D$6/365,$D$7,$D$8,0)*$D$13)-($D$13*$D$15),(AB$21-$D$12)*$D$13))) -> -0.2626121299 | AC29: =IF(ISBLANK($D$11),0,IF(LEFT($D$11,1)="c",(CallThv(AC$21,$D$12,$D$6/365,$D$7,$D$8,0)*$D$13)-($D$13*$D$15),IF(LEFT($D$11)="p",(putThv(AC$21,$D$12,$D$6/365,$D$7,$D$8,0)*$D$13)-($D$13*$D$15),(AC$21-$D$12)*$D$13))) -> -0.7055512896 | AD29: =IF(ISBLANK($D$11),0,IF(LEFT($D$11,1)="c",(CallThv(AD$21,$D$12,$D$6/365,$D$7,$D$8,0)*$D$13)-($D$13*$D$15),IF(LEFT($D$11)="p",(putThv(AD$21,$D$12,$D$6/365,$D$7,$D$8,0)*$D$13)-($D$13*$D$15),(AD$21-$D$12)*$D$13))) -> -1.374477011 | AE29: =IF(ISBLANK($D$11),0,IF(LEFT($D$11,1)="c",(CallThv(AE$21,$D$12,$D$6/365,$D$7,$D$8,0)*$D$13)-($D$13*$D$15),IF(LEFT($D$11)="p",(putThv(AE$21,$D$12,$D$6/365,$D$7,$D$8,0)*$D$13)-($D$13*$D$15),(AE$21-$D$12)*$D$13))) -> -2.29435781 | AF29: =IF(ISBLANK($D$11),0,IF(LEFT($D$11,1)="c",(CallThv(AF$21,$D$12,$D$6/365,$D$7,$D$8,0)*$D$13)-($D$13*$D$15),IF(LEFT($D$11)="p",(putThv(AF$21,$D$12,$D$6/365,$D$7,$D$8,0)*$D$13)-($D$13*$D$15),(AF$21-$D$12)*$D$13))) -> -3.464404442 | AG29: =IF(ISBLANK($D$11),0,IF(LEFT($D$11,1)="c",(CallThv(AG$21,$D$12,$D$6/365,$D$7,$D$8,0)*$D$13)-($D$13*$D$15),IF(LEFT($D$11)="p",(putThv(AG$21,$D$12,$D$6/365,$D$7,$D$8,0)*$D$13)-($D$13*$D$15),(AG$21-$D$12)*$D$13))) -> -4.860788822 | AH29: =IF(ISBLANK($D$11),0,IF(LEFT($D$11,1)="c",(CallThv(AH$21,$D$12,$D$6/365,$D$7,$D$8,0)*$D$13)-($D$13*$D$15),IF(LEFT($D$11)="p",(putThv(AH$21,$D$12,$D$6/365,$D$7,$D$8,0)*$D$13)-($D$13*$D$15),(AH$21-$D$12)*$D$13))) -> -6.444842637 | AI29: =IF(ISBLANK($D$11),0,IF(LEFT($D$11,1)="c",(CallThv(AI$21,$D$12,$D$6/365,$D$7,$D$8,0)*$D$13)-($D$13*$D$15),IF(LEFT($D$11)="p",(putThv(AI$21,$D$12,$D$6/365,$D$7,$D$8,0)*$D$13)-($D$13*$D$15),(AI$21-$D$12)*$D$13))) -> -8.172729887 | AJ29: =IF(ISBLANK($D$11),0,IF(LEFT($D$11,1)="c",(CallThv(AJ$21,$D$12,$D$6/365,$D$7,$D$8,0)*$D$13)-($D$13*$D$15),IF(LEFT($D$11)="p",(putThv(AJ$21,$D$12,$D$6/365,$D$7,$D$8,0)*$D$13)-($D$13*$D$15),(AJ$21-$D$12)*$D$13))) -> -10.00329017
K30: =AF21 -> 57 | L30: =AF26 -> -1.57 | M30: =AF31 -> -3.266505764 | N30: =AF36 -> -4.455581642 | Q30: opt2 date1 | R30: =IF(ISBLANK($E$11),0,IF(LEFT($E$11,1)="c",(CallThv(R$21,$E$12,$E$6/365,$E$7,$E$8,0)*$E$13)-($E$13*$E$15),IF(LEFT($E$11)="p",(putThv(R$21,$E$12,$E$6/365,$E$7,$E$8,0)*$E$13)-($E$13*$E$15),(R$21-$E$12)*$E$13))) -> -10.79568065 | S30: =IF(ISBLANK($E$11),0,IF(LEFT($E$11,1)="c",(CallThv(S$21,$E$12,$E$6/365,$E$7,$E$8,0)*$E$13)-($E$13*$E$15),IF(LEFT($E$11)="p",(putThv(S$21,$E$12,$E$6/365,$E$7,$E$8,0)*$E$13)-($E$13*$E$15),(S$21-$E$12)*$E$13))) -> -8.81443241 | T30: =IF(ISBLANK($E$11),0,IF(LEFT($E$11,1)="c",(CallThv(T$21,$E$12,$E$6/365,$E$7,$E$8,0)*$E$13)-($E$13*$E$15),IF(LEFT($E$11)="p",(putThv(T$21,$E$12,$E$6/365,$E$7,$E$8,0)*$E$13)-($E$13*$E$15),(T$21-$E$12)*$E$13))) -> -6.884334863 | U30: =IF(ISBLANK($E$11),0,IF(LEFT($E$11,1)="c",(CallThv(U$21,$E$12,$E$6/365,$E$7,$E$8,0)*$E$13)-($E$13*$E$15),IF(LEFT($E$11)="p",(putThv(U$21,$E$12,$E$6/365,$E$7,$E$8,0)*$E$13)-($E$13*$E$15),(U$21-$E$12)*$E$13))) -> -5.075999874 | V30: =IF(ISBLANK($E$11),0,IF(LEFT($E$11,1)="c",(CallThv(V$21,$E$12,$E$6/365,$E$7,$E$8,0)*$E$13)-($E$13*$E$15),IF(LEFT($E$11)="p",(putThv(V$21,$E$12,$E$6/365,$E$7,$E$8,0)*$E$13)-($E$13*$E$15),(V$21-$E$12)*$E$13))) -> -3.484506899 | W30: =IF(ISBLANK($E$11),0,IF(LEFT($E$11,1)="c",(CallThv(W$21,$E$12,$E$6/365,$E$7,$E$8,0)*$E$13)-($E$13*$E$15),IF(LEFT($E$11)="p",(putThv(W$21,$E$12,$E$6/365,$E$7,$E$8,0)*$E$13)-($E$13*$E$15),(W$21-$E$12)*$E$13))) -> -2.19416701 | X30: =IF(ISBLANK($E$11),0,IF(LEFT($E$11,1)="c",(CallThv(X$21,$E$12,$E$6/365,$E$7,$E$8,0)*$E$13)-($E$13*$E$15),IF(LEFT($E$11)="p",(putThv(X$21,$E$12,$E$6/365,$E$7,$E$8,0)*$E$13)-($E$13*$E$15),(X$21-$E$12)*$E$13))) -> -1.241502301 | Y30: =IF(ISBLANK($E$11),0,IF(LEFT($E$11,1)="c",(CallThv(Y$21,$E$12,$E$6/365,$E$7,$E$8,0)*$E$13)-($E$13*$E$15),IF(LEFT($E$11)="p",(putThv(Y$21,$E$12,$E$6/365,$E$7,$E$8,0)*$E$13)-($E$13*$E$15),(Y$21-$E$12)*$E$13))) -> -0.6035544399 | Z30: =IF(ISBLANK($E$11),0,IF(LEFT($E$11,1)="c",(CallThv(Z$21,$E$12,$E$6/365,$E$7,$E$8,0)*$E$13)-($E$13*$E$15),IF(LEFT($E$11)="p",(putThv(Z$21,$E$12,$E$6/365,$E$7,$E$8,0)*$E$13)-($E$13*$E$15),(Z$21-$E$12)*$E$13))) -> -0.2154833997 | AA30: =IF(ISBLANK($E$11),0,IF(LEFT($E$11,1)="c",(CallThv(AA$21,$E$12,$E$6/365,$E$7,$E$8,0)*$E$13)-($E$13*$E$15),IF(LEFT($E$11)="p",(putThv(AA$21,$E$12,$E$6/365,$E$7,$E$8,0)*$E$13)-($E$13*$E$15),(AA$21-$E$12)*$E$13))) -> 1.181547038e-05 | AB30: =IF(ISBLANK($E$11),0,IF(LEFT($E$11,1)="c",(CallThv(AB$21,$E$12,$E$6/365,$E$7,$E$8,0)*$E$13)-($E$13*$E$15),IF(LEFT($E$11)="p",(putThv(AB$21,$E$12,$E$6/365,$E$7,$E$8,0)*$E$13)-($E$13*$E$15),(AB$21-$E$12)*$E$13))) -> 0.1099683058 | AC30: =IF(ISBLANK($E$11),0,IF(LEFT($E$11,1)="c",(CallThv(AC$21,$E$12,$E$6/365,$E$7,$E$8,0)*$E$13)-($E$13*$E$15),IF(LEFT($E$11)="p",(putThv(AC$21,$E$12,$E$6/365,$E$7,$E$8,0)*$E$13)-($E$13*$E$15),(AC$21-$E$12)*$E$13))) -> 0.161895962 | AD30: =IF(ISBLANK($E$11),0,IF(LEFT($E$11,1)="c",(CallThv(AD$21,$E$12,$E$6/365,$E$7,$E$8,0)*$E$13)-($E$13*$E$15),IF(LEFT($E$11)="p",(putThv(AD$21,$E$12,$E$6/365,$E$7,$E$8,0)*$E$13)-($E$13*$E$15),(AD$21-$E$12)*$E$13))) -> 0.1847584358 | AE30: =IF(ISBLANK($E$11),0,IF(LEFT($E$11,1)="c",(CallThv(AE$21,$E$12,$E$6/365,$E$7,$E$8,0)*$E$13)-($E$13*$E$15),IF(LEFT($E$11)="p",(putThv(AE$21,$E$12,$E$6/365,$E$7,$E$8,0)*$E$13)-($E$13*$E$15),(AE$21-$E$12)*$E$13))) -> 0.1942080863 | AF30: =IF(ISBLANK($E$11),0,IF(LEFT($E$11,1)="c",(CallThv(AF$21,$E$12,$E$6/365,$E$7,$E$8,0)*$E$13)-($E$13*$E$15),IF(LEFT($E$11)="p",(putThv(AF$21,$E$12,$E$6/365,$E$7,$E$8,0)*$E$13)-($E$13*$E$15),(AF$21-$E$12)*$E$13))) -> 0.1978986776 | AG30: =IF(ISBLANK($E$11),0,IF(LEFT($E$11,1)="c",(CallThv(AG$21,$E$12,$E$6/365,$E$7,$E$8,0)*$E$13)-($E$13*$E$15),IF(LEFT($E$11)="p",(putThv(AG$21,$E$12,$E$6/365,$E$7,$E$8,0)*$E$13)-($E$13*$E$15),(AG$21-$E$12)*$E$13))) -> 0.1992687817 | AH30: =IF(ISBLANK($E$11),0,IF(LEFT($E$11,1)="c",(CallThv(AH$21,$E$12,$E$6/365,$E$7,$E$8,0)*$E$13)-($E$13*$E$15),IF(LEFT($E$11)="p",(putThv(AH$21,$E$12,$E$6/365,$E$7,$E$8,0)*$E$13)-($E$13*$E$15),(AH$21-$E$12)*$E$13))) -> 0.1997549023 | AI30: =IF(ISBLANK($E$11),0,IF(LEFT($E$11,1)="c",(CallThv(AI$21,$E$12,$E$6/365,$E$7,$E$8,0)*$E$13)-($E$13*$E$15),IF(LEFT($E$11)="p",(putThv(AI$21,$E$12,$E$6/365,$E$7,$E$8,0)*$E$13)-($E$13*$E$15),(AI$21-$E$12)*$E$13))) -> 0.1999205544 | AJ30: =IF(ISBLANK($E$11),0,IF(LEFT($E$11,1)="c",(CallThv(AJ$21,$E$12,$E$6/365,$E$7,$E$8,0)*$E$13)-($E$13*$E$15),IF(LEFT($E$11)="p",(putThv(AJ$21,$E$12,$E$6/365,$E$7,$E$8,0)*$E$13)-($E$13*$E$15),(AJ$21-$E$12)*$E$13))) -> 0.1999750086
K31: =AH21 -> 61 | L31: =AH26 -> -5.57 | M31: =AH31 -> -6.245087734 | N31: =AH36 -> -7.184776334 | R31: =SUM(R29:R30) -> -10.56568066 | S31: =SUM(S29:S30) -> -8.584432678 | T31: -6.654339287 | U31: -4.84604813 | V31: -3.254876556 | W31: -1.966262095 | X31: -1.020676624 | Y31: -0.4057487013 | Z31: -0.07888042295 | AA31: -6.537432765e-05 | AB31: -0.1526438242 | AC31: =SUM(AC29:AC30) -> -0.5436553276 | AD31: -1.189718576 | AE31: -2.100149724 | AF31: -3.266505764 | AG31: -4.66152004 | AH31: -6.245087734 | AI31: -7.972809333 | AJ31: -9.803315157
K32: =AJ21 -> 65 | L32: =AJ26 -> -9.57 | M32: =AJ31 -> -9.803315157 | N32: =AJ36 -> -10.42385529
Q33: date2 gain
Q34: opt1 date2 | R34: =IF(ISBLANK($J$11),0,IF(LEFT($J$11,1)="c",(CallThv(R$21,$J$12,$J$6/365,$J$7,$J$8,0)*$J$13)-($J$13*$D$15),IF(LEFT($J$11)="p",(putThv(R$21,$J$12,$J$6/365,$J$7,$J$8,0)*$J$13)-($J$13*$D$15),(R$21-$J$12)*$J$13))) -> 0.2298914447 | S34: =IF(ISBLANK($J$11),0,IF(LEFT($J$11,1)="c",(CallThv(S$21,$J$12,$J$6/365,$J$7,$J$8,0)*$J$13)-($J$13*$D$15),IF(LEFT($J$11)="p",(putThv(S$21,$J$12,$J$6/365,$J$7,$J$8,0)*$J$13)-($J$13*$D$15),(S$21-$J$12)*$J$13))) -> 0.2294325858 | T34: =IF(ISBLANK($J$11),0,IF(LEFT($J$11,1)="c",(CallThv(T$21,$J$12,$J$6/365,$J$7,$J$8,0)*$J$13)-($J$13*$D$15),IF(LEFT($J$11)="p",(putThv(T$21,$J$12,$J$6/365,$J$7,$J$8,0)*$J$13)-($J$13*$D$15),(T$21-$J$12)*$J$13))) -> 0.2276483591 | U34: =IF(ISBLANK($J$11),0,IF(LEFT($J$11,1)="c",(CallThv(U$21,$J$12,$J$6/365,$J$7,$J$8,0)*$J$13)-($J$13*$D$15),IF(LEFT($J$11)="p",(putThv(U$21,$J$12,$J$6/365,$J$7,$J$8,0)*$J$13)-($J$13*$D$15),(U$21-$J$12)*$J$13))) -> 0.2219837532 | V34: =IF(ISBLANK($J$11),0,IF(LEFT($J$11,1)="c",(CallThv(V$21,$J$12,$J$6/365,$J$7,$J$8,0)*$J$13)-($J$13*$D$15),IF(LEFT($J$11)="p",(putThv(V$21,$J$12,$J$6/365,$J$7,$J$8,0)*$J$13)-($J$13*$D$15),(V$21-$J$12)*$J$13))) -> 0.2068467954 | W34: =IF(ISBLANK($J$11),0,IF(LEFT($J$11,1)="c",(CallThv(W$21,$J$12,$J$6/365,$J$7,$J$8,0)*$J$13)-($J$13*$D$15),IF(LEFT($J$11)="p",(putThv(W$21,$J$12,$J$6/365,$J$7,$J$8,0)*$J$13)-($J$13*$D$15),(W$21-$J$12)*$J$13))) -> 0.1719374116 | X34: =IF(ISBLANK($J$11),0,IF(LEFT($J$11,1)="c",(CallThv(X$21,$J$12,$J$6/365,$J$7,$J$8,0)*$J$13)-($J$13*$D$15),IF(LEFT($J$11)="p",(putThv(X$21,$J$12,$J$6/365,$J$7,$J$8,0)*$J$13)-($J$13*$D$15),(X$21-$J$12)*$J$13))) -> 0.1009872195 | Y34: =IF(ISBLANK($J$11),0,IF(LEFT($J$11,1)="c",(CallThv(Y$21,$J$12,$J$6/365,$J$7,$J$8,0)*$J$13)-($J$13*$D$15),IF(LEFT($J$11)="p",(putThv(Y$21,$J$12,$J$6/365,$J$7,$J$8,0)*$J$13)-($J$13*$D$15),(Y$21-$J$12)*$J$13))) -> -0.02834640412 | Z34: =IF(ISBLANK($J$11),0,IF(LEFT($J$11,1)="c",(CallThv(Z$21,$J$12,$J$6/365,$J$7,$J$8,0)*$J$13)-($J$13*$D$15),IF(LEFT($J$11)="p",(putThv(Z$21,$J$12,$J$6/365,$J$7,$J$8,0)*$J$13)-($J$13*$D$15),(Z$21-$J$12)*$J$13))) -> -0.2429849709 | AA34: =IF(ISBLANK($J$11),0,IF(LEFT($J$11,1)="c",(CallThv(AA$21,$J$12,$J$6/365,$J$7,$J$8,0)*$J$13)-($J$13*$D$15),IF(LEFT($J$11)="p",(putThv(AA$21,$J$12,$J$6/365,$J$7,$J$8,0)*$J$13)-($J$13*$D$15),(AA$21-$J$12)*$J$13))) -> -0.5714652097 | AB34: =IF(ISBLANK($J$11),0,IF(LEFT($J$11,1)="c",(CallThv(AB$21,$J$12,$J$6/365,$J$7,$J$8,0)*$J$13)-($J$13*$D$15),IF(LEFT($J$11)="p",(putThv(AB$21,$J$12,$J$6/365,$J$7,$J$8,0)*$J$13)-($J$13*$D$15),(AB$21-$J$12)*$J$13))) -> -1.040202077 | AC34: =IF(ISBLANK($J$11),0,IF(LEFT($J$11,1)="c",(CallThv(AC$21,$J$12,$J$6/365,$J$7,$J$8,0)*$J$13)-($J$13*$D$15),IF(LEFT($J$11)="p",(putThv(AC$21,$J$12,$J$6/365,$J$7,$J$8,0)*$J$13)-($J$13*$D$15),(AC$21-$J$12)*$J$13))) -> -1.669941228 | AD34: =IF(ISBLANK($J$11),0,IF(LEFT($J$11,1)="c",(CallThv(AD$21,$J$12,$J$6/365,$J$7,$J$8,0)*$J$13)-($J$13*$D$15),IF(LEFT($J$11)="p",(putThv(AD$21,$J$12,$J$6/365,$J$7,$J$8,0)*$J$13)-($J$13*$D$15),(AD$21-$J$12)*$J$13))) -> -2.473248103 | AE34: =IF(ISBLANK($J$11),0,IF(LEFT($J$11,1)="c",(CallThv(AE$21,$J$12,$J$6/365,$J$7,$J$8,0)*$J$13)-($J$13*$D$15),IF(LEFT($J$11)="p",(putThv(AE$21,$J$12,$J$6/365,$J$7,$J$8,0)*$J$13)-($J$13*$D$15),(AE$21-$J$12)*$J$13))) -> -3.453490967 | AF34: =IF(ISBLANK($J$11),0,IF(LEFT($J$11,1)="c",(CallThv(AF$21,$J$12,$J$6/365,$J$7,$J$8,0)*$J$13)-($J$13*$D$15),IF(LEFT($J$11)="p",(putThv(AF$21,$J$12,$J$6/365,$J$7,$J$8,0)*$J$13)-($J$13*$D$15),(AF$21-$J$12)*$J$13))) -> -4.605314667 | AG34: =IF(ISBLANK($J$11),0,IF(LEFT($J$11,1)="c",(CallThv(AG$21,$J$12,$J$6/365,$J$7,$J$8,0)*$J$13)-($J$13*$D$15),IF(LEFT($J$11)="p",(putThv(AG$21,$J$12,$J$6/365,$J$7,$J$8,0)*$J$13)-($J$13*$D$15),(AG$21-$J$12)*$J$13))) -> -5.916247339 | AH34: =IF(ISBLANK($J$11),0,IF(LEFT($J$11,1)="c",(CallThv(AH$21,$J$12,$J$6/365,$J$7,$J$8,0)*$J$13)-($J$13*$D$15),IF(LEFT($J$11)="p",(putThv(AH$21,$J$12,$J$6/365,$J$7,$J$8,0)*$J$13)-($J$13*$D$15),(AH$21-$J$12)*$J$13))) -> -7.36891711 | AI34: =IF(ISBLANK($J$11),0,IF(LEFT($J$11,1)="c",(CallThv(AI$21,$J$12,$J$6/365,$J$7,$J$8,0)*$J$13)-($J$13*$D$15),IF(LEFT($J$11)="p",(putThv(AI$21,$J$12,$J$6/365,$J$7,$J$8,0)*$J$13)-($J$13*$D$15),(AI$21-$J$12)*$J$13))) -> -8.943370083 | AJ34: =IF(ISBLANK($J$11),0,IF(LEFT($J$11,1)="c",(CallThv(AJ$21,$J$12,$J$6/365,$J$7,$J$8,0)*$J$13)-($J$13*$D$15),IF(LEFT($J$11)="p",(putThv(AJ$21,$J$12,$J$6/365,$J$7,$J$8,0)*$J$13)-($J$13*$D$15),(AJ$21-$J$12)*$J$13))) -> -10.61911019
Q35: opt2 date2 | R35: =IF(ISBLANK($K$11),0,IF(LEFT($K$11,1)="c",(CallThv(R$21,$K$11,$K$6/365,$K$7,$K$8,0)*$K$13)-($K$13*$E$15),IF(LEFT($K$11)="p",(putThv(R$21,$K$12,$K$6/365,$K$7,$K$8,0)*$K$13)-($K$13*$E$15),(R$21-$K$12)*$K$13))) -> -10.85496148 | S35: =IF(ISBLANK($K$11),0,IF(LEFT($K$11,1)="c",(CallThv(S$21,$K$11,$K$6/365,$K$7,$K$8,0)*$K$13)-($K$13*$E$15),IF(LEFT($K$11)="p",(putThv(S$21,$K$12,$K$6/365,$K$7,$K$8,0)*$K$13)-($K$13*$E$15),(S$21-$K$12)*$K$13))) -> -8.960394874 | T35: =IF(ISBLANK($K$11),0,IF(LEFT($K$11,1)="c",(CallThv(T$21,$K$11,$K$6/365,$K$7,$K$8,0)*$K$13)-($K$13*$E$15),IF(LEFT($K$11)="p",(putThv(T$21,$K$12,$K$6/365,$K$7,$K$8,0)*$K$13)-($K$13*$E$15),(T$21-$K$12)*$K$13))) -> -7.176105213 | U35: =IF(ISBLANK($K$11),0,IF(LEFT($K$11,1)="c",(CallThv(U$21,$K$11,$K$6/365,$K$7,$K$8,0)*$K$13)-($K$13*$E$15),IF(LEFT($K$11)="p",(putThv(U$21,$K$12,$K$6/365,$K$7,$K$8,0)*$K$13)-($K$13*$E$15),(U$21-$K$12)*$K$13))) -> -5.555247164 | V35: =IF(ISBLANK($K$11),0,IF(LEFT($K$11,1)="c",(CallThv(V$21,$K$11,$K$6/365,$K$7,$K$8,0)*$K$13)-($K$13*$E$15),IF(LEFT($K$11)="p",(putThv(V$21,$K$12,$K$6/365,$K$7,$K$8,0)*$K$13)-($K$13*$E$15),(V$21-$K$12)*$K$13))) -> -4.143761311 | W35: =IF(ISBLANK($K$11),0,IF(LEFT($K$11,1)="c",(CallThv(W$21,$K$11,$K$6/365,$K$7,$K$8,0)*$K$13)-($K$13*$E$15),IF(LEFT($K$11)="p",(putThv(W$21,$K$12,$K$6/365,$K$7,$K$8,0)*$K$13)-($K$13*$E$15),(W$21-$K$12)*$K$13))) -> -2.96927023 | X35: =IF(ISBLANK($K$11),0,IF(LEFT($K$11,1)="c",(CallThv(X$21,$K$11,$K$6/365,$K$7,$K$8,0)*$K$13)-($K$13*$E$15),IF(LEFT($K$11)="p",(putThv(X$21,$K$12,$K$6/365,$K$7,$K$8,0)*$K$13)-($K$13*$E$15),(X$21-$K$12)*$K$13))) -> -2.036118286 | Y35: =IF(ISBLANK($K$11),0,IF(LEFT($K$11,1)="c",(CallThv(Y$21,$K$11,$K$6/365,$K$7,$K$8,0)*$K$13)-($K$13*$E$15),IF(LEFT($K$11)="p",(putThv(Y$21,$K$12,$K$6/365,$K$7,$K$8,0)*$K$13)-($K$13*$E$15),(Y$21-$K$12)*$K$13))) -> -1.327400045 | Z35: =IF(ISBLANK($K$11),0,IF(LEFT($K$11,1)="c",(CallThv(Z$21,$K$11,$K$6/365,$K$7,$K$8,0)*$K$13)-($K$13*$E$15),IF(LEFT($K$11)="p",(putThv(Z$21,$K$12,$K$6/365,$K$7,$K$8,0)*$K$13)-($K$13*$E$15),(Z$21-$K$12)*$K$13))) -> -0.8116806194 | AA35: =IF(ISBLANK($K$11),0,IF(LEFT($K$11,1)="c",(CallThv(AA$21,$K$11,$K$6/365,$K$7,$K$8,0)*$K$13)-($K$13*$E$15),IF(LEFT($K$11)="p",(putThv(AA$21,$K$12,$K$6/365,$K$7,$K$8,0)*$K$13)-($K$13*$E$15),(AA$21-$K$12)*$K$13))) -> -0.4510568049 | AB35: =IF(ISBLANK($K$11),0,IF(LEFT($K$11,1)="c",(CallThv(AB$21,$K$11,$K$6/365,$K$7,$K$8,0)*$K$13)-($K$13*$E$15),IF(LEFT($K$11)="p",(putThv(AB$21,$K$12,$K$6/365,$K$7,$K$8,0)*$K$13)-($K$13*$E$15),(AB$21-$K$12)*$K$13))) -> -0.2079475668 | AC35: =IF(ISBLANK($K$11),0,IF(LEFT($K$11,1)="c",(CallThv(AC$21,$K$11,$K$6/365,$K$7,$K$8,0)*$K$13)-($K$13*$E$15),IF(LEFT($K$11)="p",(putThv(AC$21,$K$12,$K$6/365,$K$7,$K$8,0)*$K$13)-($K$13*$E$15),(AC$21-$K$12)*$K$13))) -> -0.04942923219 | AD35: =IF(ISBLANK($K$11),0,IF(LEFT($K$11,1)="c",(CallThv(AD$21,$K$11,$K$6/365,$K$7,$K$8,0)*$K$13)-($K$13*$E$15),IF(LEFT($K$11)="p",(putThv(AD$21,$K$12,$K$6/365,$K$7,$K$8,0)*$K$13)-($K$13*$E$15),(AD$21-$K$12)*$K$13))) -> 0.05086386093 | AE35: =IF(ISBLANK($K$11),0,IF(LEFT($K$11,1)="c",(CallThv(AE$21,$K$11,$K$6/365,$K$7,$K$8,0)*$K$13)-($K$13*$E$15),IF(LEFT($K$11)="p",(putThv(AE$21,$K$12,$K$6/365,$K$7,$K$8,0)*$K$13)-($K$13*$E$15),(AE$21-$K$12)*$K$13))) -> 0.1126202265 | AF35: =IF(ISBLANK($K$11),0,IF(LEFT($K$11,1)="c",(CallThv(AF$21,$K$11,$K$6/365,$K$7,$K$8,0)*$K$13)-($K$13*$E$15),IF(LEFT($K$11)="p",(putThv(AF$21,$K$12,$K$6/365,$K$7,$K$8,0)*$K$13)-($K$13*$E$15),(AF$21-$K$12)*$K$13))) -> 0.1497330246 | AG35: =IF(ISBLANK($K$11),0,IF(LEFT($K$11,1)="c",(CallThv(AG$21,$K$11,$K$6/365,$K$7,$K$8,0)*$K$13)-($K$13*$E$15),IF(LEFT($K$11)="p",(putThv(AG$21,$K$12,$K$6/365,$K$7,$K$8,0)*$K$13)-($K$13*$E$15),(AG$21-$K$12)*$K$13))) -> 0.1715557787 | AH35: =IF(ISBLANK($K$11),0,IF(LEFT($K$11,1)="c",(CallThv(AH$21,$K$11,$K$6/365,$K$7,$K$8,0)*$K$13)-($K$13*$E$15),IF(LEFT($K$11)="p",(putThv(AH$21,$K$12,$K$6/365,$K$7,$K$8,0)*$K$13)-($K$13*$E$15),(AH$21-$K$12)*$K$13))) -> 0.1841407765 | AI35: =IF(ISBLANK($K$11),0,IF(LEFT($K$11,1)="c",(CallThv(AI$21,$K$11,$K$6/365,$K$7,$K$8,0)*$K$13)-($K$13*$E$15),IF(LEFT($K$11)="p",(putThv(AI$21,$K$12,$K$6/365,$K$7,$K$8,0)*$K$13)-($K$13*$E$15),(AI$21-$K$12)*$K$13))) -> 0.1912738027 | AJ35: =IF(ISBLANK($K$11),0,IF(LEFT($K$11,1)="c",(CallThv(AJ$21,$K$11,$K$6/365,$K$7,$K$8,0)*$K$13)-($K$13*$E$15),IF(LEFT($K$11)="p",(putThv(AJ$21,$K$12,$K$6/365,$K$7,$K$8,0)*$K$13)-($K$13*$E$15),(AJ$21-$K$12)*$K$13))) -> 0.1952548995
R36: =SUM(R34:R35) -> -10.62507003 | S36: =SUM(S34:S35) -> -8.730962288 | T36: -6.948456854 | U36: -5.333263411 | V36: -3.936914516 | W36: -2.797332818 | X36: -1.935131067 | Y36: -1.355746449 | Z36: -1.05466559 | AA36: -1.022522015 | AB36: -1.248149644 | AC36: =SUM(AC34:AC35) -> -1.71937046 | AD36: -2.422384242 | AE36: -3.34087074 | AF36: -4.455581642 | AG36: -5.744691561 | AH36: -7.184776334 | AI36: -8.75209628 | AJ36: -10.42385529
R39: 0 | S39: 0 | T39: 0 | U39: 0 | V39: 0 | W39: 0 | X39: 0 | Y39: 0 | Z39: 0 | AA39: 0 | AB39: 0 | AC39: 0 | AD39: 0 | AE39: 0 | AF39: 0 | AG39: 0 | AH39: 0 | AI39: 0 | AJ39: 0

Sheet StkOpt1
B2: opt/u | C2: qty | D2: strike | E2: c/p | F2: price | O2: =P23 -> 40 | P2: =O2+$P$22 -> 41 | Q2: 42 | R2: 43 | S2: 44 | T2: 45 | U2: 46 | V2: 47 | W2: 48 | X2: 49 | Y2: 50 | Z2: 51 | AA2: 52 | AB2: 53 | AC2: 54 | AD2: 55 | AE2: 56 | AF2: 57 | AG2: 58
B4: o | C4: -1 | D4: 55 | E4: c | F4: 0.23 | O4: =IF(ISBLANK($B4),0,IF(LEFT($E4)="c",((MAX(O$2-$D4,0)*$C4*$P$21)-($F4*$C4*$P$21)),IF(LEFT($E4)="p",((MAX($D4-O$2,0)*$C4*$P$21)-($F4*$C4*$P$21)),(O$2-$F4)*$C4))) -> 23 | P4: 23 | Q4: 23 | R4: 23 | S4: 23 | T4: 23 | U4: 23 | V4: 23 | W4: 23 | X4: 23 | Y4: =IF(ISBLANK($B4),0,IF(LEFT($E4)="c",((MAX(Y$2-$D4,0)*$C4*$P$21)-($F4*$C4*$P$21)),IF(LEFT($E4)="p",((MAX($D4-Y$2,0)*$C4*$P$21)-($F4*$C4*$P$21)),(Y$2-$F4)*$C4))) -> 23 | Z4: 23 | AA4: 23 | AB4: 23 | AC4: 23 | AD4: 23 | AE4: -77 | AF4: -177 | AG4: -277
B5: o | O5: 0 | P5: 0 | Q5: 0 | R5: 0 | S5: 0 | T5: 0 | U5: 0 | V5: 0 | W5: 0 | X5: 0 | Y5: 0 | Z5: 0 | AA5: 0 | AB5: 0 | AC5: 0 | AD5: 0 | AE5: 0 | AF5: 0 | AG5: 0
B6: o | O6: 0 | P6: 0 | Q6: 0 | R6: 0 | S6: 0 | T6: 0 | U6: 0 | V6: 0 | W6: 0 | X6: 0 | Y6: 0 | Z6: 0 | AA6: 0 | AB6: 0 | AC6: 0 | AD6: 0 | AE6: 0 | AF6: 0 | AG6: 0
B7: o | O7: 0 | P7: 0 | Q7: 0 | R7: 0 | S7: 0 | T7: 0 | U7: 0 | V7: 0 | W7: 0 | X7: 0 | Y7: 0 | Z7: 0 | AA7: 0 | AB7: 0 | AC7: 0 | AD7: 0 | AE7: 0 | AF7: 0 | AG7: 0
B8: o | O8: 0 | P8: 0 | Q8: 0 | R8: 0 | S8: 0 | T8: 0 | U8: 0 | V8: 0 | W8: 0 | X8: 0 | Y8: 0 | Z8: 0 | AA8: 0 | AB8: 0 | AC8: 0 | AD8: 0 | AE8: 0 | AF8: 0 | AG8: 0
B9: o | O9: 0 | P9: 0 | Q9: 0 | R9: 0 | S9: 0 | T9: 0 | U9: 0 | V9: 0 | W9: 0 | X9: 0 | Y9: 0 | Z9: 0 | AA9: 0 | AB9: 0 | AC9: 0 | AD9: 0 | AE9: 0 | AF9: 0 | AG9: 0
B10: o | O10: 0 | P10: 0 | Q10: 0 | R10: 0 | S10: 0 | T10: 0 | U10: 0 | V10: 0 | W10: 0 | X10: 0 | Y10: 0 | Z10: 0 | AA10: 0 | AB10: 0 | AC10: 0 | AD10: 0 | AE10: 0 | AF10: 0 | AG10: 0
B11: o | O11: 0 | P11: 0 | Q11: 0 | R11: 0 | S11: 0 | T11: 0 | U11: 0 | V11: 0 | W11: 0 | X11: 0 | Y11: 0 | Z11: 0 | AA11: 0 | AB11: 0 | AC11: 0 | AD11: 0 | AE11: 0 | AF11: 0 | AG11: 0
B12: u | C12: 100 | F12: 48 | O12: -800 | P12: -700 | Q12: -600 | R12: -500 | S12: -400 | T12: -300 | U12: -200 | V12: -100 | W12: 0 | X12: 100 | Y12: 200 | Z12: 300 | AA12: 400 | AB12: 500 | AC12: 600 | AD12: 700 | AE12: 800 | AF12: 900 | AG12: 1000
B13: u | O13: 0 | P13: 0 | Q13: 0 | R13: 0 | S13: 0 | T13: 0 | U13: 0 | V13: 0 | W13: 0 | X13: 0 | Y13: 0 | Z13: 0 | AA13: 0 | AB13: 0 | AC13: 0 | AD13: 0 | AE13: 0 | AF13: 0 | AG13: 0
B14: u | O14: 0 | P14: 0 | Q14: 0 | R14: 0 | S14: 0 | T14: 0 | U14: 0 | V14: 0 | W14: 0 | X14: 0 | Y14: 0 | Z14: 0 | AA14: 0 | AB14: 0 | AC14: 0 | AD14: 0 | AE14: 0 | AF14: 0 | AG14: 0
O15: 0 | P15: 0 | Q15: 0 | R15: 0 | S15: 0 | T15: 0 | U15: 0 | V15: 0 | W15: 0 | X15: 0 | Y15: 0 | Z15: 0 | AA15: 0 | AB15: 0 | AC15: 0 | AD15: 0 | AE15: 0 | AF15: 0 | AG15: 0
O16: 0 | P16: 0 | Q16: 0 | R16: 0 | S16: 0 | T16: 0 | U16: 0 | V16: 0 | W16: 0 | X16: 0 | Y16: 0 | Z16: 0 | AA16: 0 | AB16: 0 | AC16: 0 | AD16: 0 | AE16: 0 | AF16: 0 | AG16: 0
O18: =SUM(O4:O17) -> -777 | P18: -677 | Q18: -577 | R18: -477 | S18: -377 | T18: -277 | U18: -177 | V18: -77 | W18: 23 | X18: 123 | Y18: 223 | Z18: 323 | AA18: 423 | AB18: 523 | AC18: 623 | AD18: 723 | AE18: 723 | AF18: 723 | AG18: 723
O19: 0 | P19: 0 | Q19: 0 | R19: 0 | S19: 0 | T19: 0 | U19: 0 | V19: 0 | W19: 0 | X19: 0 | Y19: 0 | Z19: 0 | AA19: 0 | AB19: 0 | AC19: 0 | AD19: 0 | AE19: 0 | AF19: 0 | AG19: 0
K21: strike | L21: stkopt | M21: stock | O21: mult | P21: 100
K22: =O2 -> 40 | L22: =O18 -> -777 | M22: =O33 -> 0 | O22: incr | P22: 1
K23: =Q2 -> 42 | L23: =Q18 -> -577 | M23: =Q33 -> 0 | O23: begin | P23: 40
K24: =S2 -> 44 | L24: =S18 -> -377 | M24: =S33 -> 0
K25: =U2 -> 46 | L25: =U18 -> -177 | M25: =U33 -> 0 | O25: u
K26: =V2 -> 47 | L26: =V18 -> -77 | M26: =V33 -> 0 | O26: price | P26: 48
K27: =W2 -> 48 | L27: =W18 -> 23 | M27: =W33 -> 0
K28: =X2 -> 49 | L28: =X18 -> 123 | M28: =X33 -> 0
K29: =Y2 -> 50 | L29: =Y18 -> 223 | M29: =Y33 -> 0
K30: =Z2 -> 51 | L30: =Z18 -> 323 | M30: =Z33 -> 0
K31: =AA2 -> 52 | L31: =AA18 -> 423 | M31: =AA33 -> 0
K32: =AC2 -> 54 | L32: =AC18 -> 623 | M32: =AC33 -> 0 | O32: =P23 -> 40 | P32: =O32+$P$22 -> 41 | Q32: 42 | R32: 43 | S32: 44 | T32: 45 | U32: 46 | V32: 47 | W32: 48 | X32: 49 | Y32: 50 | Z32: 51 | AA32: 52 | AB32: 53 | AC32: 54 | AD32: 55 | AE32: 56 | AF32: 57 | AG32: 58
K33: =AE2 -> 56 | L33: =AE18 -> 723 | M33: =AE33 -> 0 | O33: =IF(ISBLANK($O$25),"u",IF($P$26>O32,(O32-$P$26)*$P$25,(O32-$P$26)*$P$25)) -> 0 | P33: 0 | Q33: 0 | R33: 0 | S33: 0 | T33: 0 | U33: 0 | V33: 0 | W33: 0 | X33: 0 | Y33: 0 | Z33: 0 | AA33: 0 | AB33: 0 | AC33: 0 | AD33: 0 | AE33: 0 | AF33: 0 | AG33: 0
K34: =AG2 -> 58 | L34: =AG18 -> 723 | M34: =AG33 -> 0

Sheet StkOpt2
B2: opt/u | C2: qty | D2: strike | E2: c/p | F2: price | O2: =P23 -> 40 | P2: =O2+$P$22 -> 41 | Q2: 42 | R2: 43 | S2: 44 | T2: 45 | U2: 46 | V2: 47 | W2: 48 | X2: 49 | Y2: 50 | Z2: 51 | AA2: 52 | AB2: 53 | AC2: 54 | AD2: 55 | AE2: 56 | AF2: 57 | AG2: 58
B4: o | D4: 50 | E4: c | F4: 2 | O4: =IF(ISBLANK($B4),0,IF(LEFT($E4)="c",((MAX(O$2-$D4,0)*$C4*$P$21)-($F4*$C4*$P$21)),IF(LEFT($E4)="p",((MAX($D4-O$2,0)*$C4*$P$21)-($F4*$C4*$P$21)),(O$2-$F4)*$C4))) -> 0 | P4: 0 | Q4: 0 | R4: 0 | S4: 0 | T4: 0 | U4: 0 | V4: 0 | W4: 0 | X4: 0 | Y4: =IF(ISBLANK($B4),0,IF(LEFT($E4)="c",((MAX(Y$2-$D4,0)*$C4*$P$21)-($F4*$C4*$P$21)),IF(LEFT($E4)="p",((MAX($D4-Y$2,0)*$C4*$P$21)-($F4*$C4*$P$21)),(Y$2-$F4)*$C4))) -> 0 | Z4: 0 | AA4: 0 | AB4: 0 | AC4: 0 | AD4: 0 | AE4: 0 | AF4: 0 | AG4: 0
B5: o | D5: 55 | E5: c | F5: 1 | O5: 0 | P5: 0 | Q5: 0 | R5: 0 | S5: 0 | T5: 0 | U5: 0 | V5: 0 | W5: 0 | X5: 0 | Y5: 0 | Z5: 0 | AA5: 0 | AB5: 0 | AC5: 0 | AD5: 0 | AE5: 0 | AF5: 0 | AG5: 0
B6: o | D6: 50 | E6: p | F6: 2 | O6: 0 | P6: 0 | Q6: 0 | R6: 0 | S6: 0 | T6: 0 | U6: 0 | V6: 0 | W6: 0 | X6: 0 | Y6: 0 | Z6: 0 | AA6: 0 | AB6: 0 | AC6: 0 | AD6: 0 | AE6: 0 | AF6: 0 | AG6: 0
B7: o | C7: 1 | D7: 45 | E7: p | F7: 1 | O7: 400 | P7: 300 | Q7: 200 | R7: 100 | S7: 0 | T7: -100 | U7: -100 | V7: -100 | W7: -100 | X7: -100 | Y7: -100 | Z7: -100 | AA7: -100 | AB7: -100 | AC7: -100 | AD7: -100 | AE7: -100 | AF7: -100 | AG7: -100
B8: o | O8: 0 | P8: 0 | Q8: 0 | R8: 0 | S8: 0 | T8: 0 | U8: 0 | V8: 0 | W8: 0 | X8: 0 | Y8: 0 | Z8: 0 | AA8: 0 | AB8: 0 | AC8: 0 | AD8: 0 | AE8: 0 | AF8: 0 | AG8: 0
B9: o | O9: 0 | P9: 0 | Q9: 0 | R9: 0 | S9: 0 | T9: 0 | U9: 0 | V9: 0 | W9: 0 | X9: 0 | Y9: 0 | Z9: 0 | AA9: 0 | AB9: 0 | AC9: 0 | AD9: 0 | AE9: 0 | AF9: 0 | AG9: 0
B10: o | O10: 0 | P10: 0 | Q10: 0 | R10: 0 | S10: 0 | T10: 0 | U10: 0 | V10: 0 | W10: 0 | X10: 0 | Y10: 0 | Z10: 0 | AA10: 0 | AB10: 0 | AC10: 0 | AD10: 0 | AE10: 0 | AF10: 0 | AG10: 0
B11: o | O11: 0 | P11: 0 | Q11: 0 | R11: 0 | S11: 0 | T11: 0 | U11: 0 | V11: 0 | W11: 0 | X11: 0 | Y11: 0 | Z11: 0 | AA11: 0 | AB11: 0 | AC11: 0 | AD11: 0 | AE11: 0 | AF11: 0 | AG11: 0
B12: o | O12: 0 | P12: 0 | Q12: 0 | R12: 0 | S12: 0 | T12: 0 | U12: 0 | V12: 0 | W12: 0 | X12: 0 | Y12: 0 | Z12: 0 | AA12: 0 | AB12: 0 | AC12: 0 | AD12: 0 | AE12: 0 | AF12: 0 | AG12: 0
B13: u | C13: 100 | F13: 48 | O13: -800 | P13: -700 | Q13: -600 | R13: -500 | S13: -400 | T13: -300 | U13: -200 | V13: -100 | W13: 0 | X13: 100 | Y13: 200 | Z13: 300 | AA13: 400 | AB13: 500 | AC13: 600 | AD13: 700 | AE13: 800 | AF13: 900 | AG13: 1000
O14: 0 | P14: 0 | Q14: 0 | R14: 0 | S14: 0 | T14: 0 | U14: 0 | V14: 0 | W14: 0 | X14: 0 | Y14: 0 | Z14: 0 | AA14: 0 | AB14: 0 | AC14: 0 | AD14: 0 | AE14: 0 | AF14: 0 | AG14: 0
O15: 0 | P15: 0 | Q15: 0 | R15: 0 | S15: 0 | T15: 0 | U15: 0 | V15: 0 | W15: 0 | X15: 0 | Y15: 0 | Z15: 0 | AA15: 0 | AB15: 0 | AC15: 0 | AD15: 0 | AE15: 0 | AF15: 0 | AG15: 0
O16: 0 | P16: 0 | Q16: 0 | R16: 0 | S16: 0 | T16: 0 | U16: 0 | V16: 0 | W16: 0 | X16: 0 | Y16: 0 | Z16: 0 | AA16: 0 | AB16: 0 | AC16: 0 | AD16: 0 | AE16: 0 | AF16: 0 | AG16: 0
O18: =SUM(O4:O17) -> -400 | P18: -400 | Q18: -400 | R18: -400 | S18: -400 | T18: -400 | U18: -300 | V18: -200 | W18: -100 | X18: 0 | Y18: 100 | Z18: 200 | AA18: 300 | AB18: 400 | AC18: 500 | AD18: 600 | AE18: 700 | AF18: 800 | AG18: 900
O19: 0 | P19: 0 | Q19: 0 | R19: 0 | S19: 0 | T19: 0 | U19: 0 | V19: 0 | W19: 0 | X19: 0 | Y19: 0 | Z19: 0 | AA19: 0 | AB19: 0 | AC19: 0 | AD19: 0 | AE19: 0 | AF19: 0 | AG19: 0
K21: strike | L21: stkopt | M21: stock | O21: mult | P21: 100
K22: =O2 -> 40 | L22: =O18 -> -400 | M22: =O29 -> -800 | O22: incr | P22: 1
K23: =Q2 -> 42 | L23: =Q18 -> -400 | M23: =Q29 -> -600 | O23: begin | P23: 40
K24: =S2 -> 44 | L24: =S18 -> -400 | M24: =S29 -> -400
K25: =U2 -> 46 | L25: =U18 -> -300 | M25: =U29 -> -200 | O25: u | P25: 100
K26: =V2 -> 47 | L26: =V18 -> -200 | M26: =V29 -> -100 | O26: price | P26: 48
K27: =W2 -> 48 | L27: =W18 -> -100 | M27: =W29 -> 0
K28: =X2 -> 49 | L28: =X18 -> 0 | M28: =X29 -> 100 | O28: =P23 -> 40 | P28: =O28+$P$22 -> 41 | Q28: 42 | R28: 43 | S28: 44 | T28: 45 | U28: 46 | V28: 47 | W28: 48 | X28: 49 | Y28: 50 | Z28: 51 | AA28: 52 | AB28: 53 | AC28: 54 | AD28: 55 | AE28: 56 | AF28: 57 | AG28: 58
K29: =Y2 -> 50 | L29: =Y18 -> 100 | M29: =Y29 -> 200 | O29: =IF(ISBLANK($O$25),"u",IF($P$26>O28,(O28-$P$26)*$P$25,(O28-$P$26)*$P$25)) -> -800 | P29: -700 | Q29: -600 | R29: -500 | S29: -400 | T29: -300 | U29: -200 | V29: -100 | W29: 0 | X29: 100 | Y29: 200 | Z29: 300 | AA29: 400 | AB29: 500 | AC29: 600 | AD29: 700 | AE29: 800 | AF29: 900 | AG29: 1000
K30: =Z2 -> 51 | L30: =Z18 -> 200 | M30: =Z29 -> 300
K31: =AA2 -> 52 | L31: =AA18 -> 300 | M31: =AA29 -> 400
K32: =AC2 -> 54 | L32: =AC18 -> 500 | M32: =AC29 -> 600
K33: =AE2 -> 56 | L33: =AE18 -> 700 | M33: =AE29 -> 800
K34: =AG2 -> 58 | L34: =AG18 -> 900 | M34: =AG29 -> 1000

Sheet Position1
B2: opt/u | C2: qty | D2: strike | E2: c/p | F2: price | O2: =P23 -> 40 | P2: =O2+$P$22 -> 40.5 | Q2: 41 | R2: 41.5 | S2: 42 | T2: 42.5 | U2: 43 | V2: 43.5 | W2: 44 | X2: 44.5 | Y2: 45 | Z2: 45.5 | AA2: 46 | AB2: 46.5 | AC2: 47 | AD2: 47.5 | AE2: 48 | AF2: 48.5 | AG2: 49
B4: o | C4: -2 | D4: 45.5 | E4: p | F4: 0.8 | O4: =IF(ISBLANK($B4),0,IF(LEFT($E4)="c",((MAX(O$2-$D4,0)*$C4*$P$21)-($F4*$C4*$P$21)),IF(LEFT($E4)="p",((MAX($D4-O$2,0)*$C4*$P$21)-($F4*$C4*$P$21)),(O$2-$F4)*$C4))) -> -940 | P4: -840 | Q4: -740 | R4: -640 | S4: -540 | T4: -440 | U4: -340 | V4: -240 | W4: -140 | X4: -40 | Y4: =IF(ISBLANK($B4),0,IF(LEFT($E4)="c",((MAX(Y$2-$D4,0)*$C4*$P$21)-($F4*$C4*$P$21)),IF(LEFT($E4)="p",((MAX($D4-Y$2,0)*$C4*$P$21)-($F4*$C4*$P$21)),(Y$2-$F4)*$C4))) -> 60 | Z4: 160 | AA4: 160 | AB4: 160 | AC4: 160 | AD4: 160 | AE4: 160 | AF4: 160 | AG4: 160
B5: o | C5: 1 | D5: 48 | E5: p | F5: 0.9 | O5: 710 | P5: 660 | Q5: 610 | R5: 560 | S5: 510 | T5: 460 | U5: 410 | V5: 360 | W5: 310 | X5: 260 | Y5: 210 | Z5: 160 | AA5: 110 | AB5: 60 | AC5: 10 | AD5: -40 | AE5: -90 | AF5: -90 | AG5: -90
B6: o | O6: 0 | P6: 0 | Q6: 0 | R6: 0 | S6: 0 | T6: 0 | U6: 0 | V6: 0 | W6: 0 | X6: 0 | Y6: 0 | Z6: 0 | AA6: 0 | AB6: 0 | AC6: 0 | AD6: 0 | AE6: 0 | AF6: 0 | AG6: 0
B7: o | O7: 0 | P7: 0 | Q7: 0 | R7: 0 | S7: 0 | T7: 0 | U7: 0 | V7: 0 | W7: 0 | X7: 0 | Y7: 0 | Z7: 0 | AA7: 0 | AB7: 0 | AC7: 0 | AD7: 0 | AE7: 0 | AF7: 0 | AG7: 0
B8: o | O8: 0 | P8: 0 | Q8: 0 | R8: 0 | S8: 0 | T8: 0 | U8: 0 | V8: 0 | W8: 0 | X8: 0 | Y8: 0 | Z8: 0 | AA8: 0 | AB8: 0 | AC8: 0 | AD8: 0 | AE8: 0 | AF8: 0 | AG8: 0
B9: o | O9: 0 | P9: 0 | Q9: 0 | R9: 0 | S9: 0 | T9: 0 | U9: 0 | V9: 0 | W9: 0 | X9: 0 | Y9: 0 | Z9: 0 | AA9: 0 | AB9: 0 | AC9: 0 | AD9: 0 | AE9: 0 | AF9: 0 | AG9: 0
B10: o | O10: 0 | P10: 0 | Q10: 0 | R10: 0 | S10: 0 | T10: 0 | U10: 0 | V10: 0 | W10: 0 | X10: 0 | Y10: 0 | Z10: 0 | AA10: 0 | AB10: 0 | AC10: 0 | AD10: 0 | AE10: 0 | AF10: 0 | AG10: 0
B11: u | O11: 0 | P11: 0 | Q11: 0 | R11: 0 | S11: 0 | T11: 0 | U11: 0 | V11: 0 | W11: 0 | X11: 0 | Y11: 0 | Z11: 0 | AA11: 0 | AB11: 0 | AC11: 0 | AD11: 0 | AE11: 0 | AF11: 0 | AG11: 0
B12: u | O12: 0 | P12: 0 | Q12: 0 | R12: 0 | S12: 0 | T12: 0 | U12: 0 | V12: 0 | W12: 0 | X12: 0 | Y12: 0 | Z12: 0 | AA12: 0 | AB12: 0 | AC12: 0 | AD12: 0 | AE12: 0 | AF12: 0 | AG12: 0
O13: 0 | P13: 0 | Q13: 0 | R13: 0 | S13: 0 | T13: 0 | U13: 0 | V13: 0 | W13: 0 | X13: 0 | Y13: 0 | Z13: 0 | AA13: 0 | AB13: 0 | AC13: 0 | AD13: 0 | AE13: 0 | AF13: 0 | AG13: 0
O14: 0 | P14: 0 | Q14: 0 | R14: 0 | S14: 0 | T14: 0 | U14: 0 | V14: 0 | W14: 0 | X14: 0 | Y14: 0 | Z14: 0 | AA14: 0 | AB14: 0 | AC14: 0 | AD14: 0 | AE14: 0 | AF14: 0 | AG14: 0
O15: 0 | P15: 0 | Q15: 0 | R15: 0 | S15: 0 | T15: 0 | U15: 0 | V15: 0 | W15: 0 | X15: 0 | Y15: 0 | Z15: 0 | AA15: 0 | AB15: 0 | AC15: 0 | AD15: 0 | AE15: 0 | AF15: 0 | AG15: 0
O16: 0 | P16: 0 | Q16: 0 | R16: 0 | S16: 0 | T16: 0 | U16: 0 | V16: 0 | W16: 0 | X16: 0 | Y16: 0 | Z16: 0 | AA16: 0 | AB16: 0 | AC16: 0 | AD16: 0 | AE16: 0 | AF16: 0 | AG16: 0
O18: =SUM(O4:O17) -> -230 | P18: -180 | Q18: -130 | R18: -80 | S18: -30 | T18: 20 | U18: 70 | V18: 120 | W18: 170 | X18: 220 | Y18: 270 | Z18: 320 | AA18: 270 | AB18: 220 | AC18: 170 | AD18: 120 | AE18: 70 | AF18: 70 | AG18: 70
O19: 0 | P19: 0 | Q19: 0 | R19: 0 | S19: 0 | T19: 0 | U19: 0 | V19: 0 | W19: 0 | X19: 0 | Y19: 0 | Z19: 0 | AA19: 0 | AB19: 0 | AC19: 0 | AD19: 0 | AE19: 0 | AF19: 0 | AG19: 0
L21: strike | M21: stkopt | O21: mult | P21: 100
L22: =O2 -> 40 | M22: =O18 -> -230 | O22: incr | P22: 0.5
L23: =Q2 -> 41 | M23: =Q18 -> -130 | O23: begin | P23: 40
L24: =S2 -> 42 | M24: =S18 -> -30
L25: =U2 -> 43 | M25: =U18 -> 70
L26: =V2 -> 43.5 | M26: =V18 -> 120 | U26: `
L27: =W2 -> 44 | M27: =W18 -> 170
L28: =X2 -> 44.5 | M28: =X18 -> 220
L29: =Y2 -> 45 | M29: =Y18 -> 270
L30: =Z2 -> 45.5 | M30: =Z18 -> 320
L31: =AA2 -> 46 | M31: =AA18 -> 270
L32: =AC2 -> 47 | M32: =AC18 -> 170
L33: =AE2 -> 48 | M33: =AE18 -> 70
L34: =AG2 -> 49 | M34: =AG18 -> 70

Sheet Position2
B2: opt/u | C2: qty | D2: strike | E2: c/p | F2: price | O2: =P23 -> 225 | P2: =O2+$P$22 -> 227.5 | Q2: 230 | R2: 232.5 | S2: 235 | T2: 237.5 | U2: 240 | V2: 242.5 | W2: 245 | X2: 247.5 | Y2: 250 | Z2: 252.5 | AA2: 255 | AB2: 257.5 | AC2: 260 | AD2: 262.5 | AE2: 265 | AF2: 267.5 | AG2: 270 | AH2: =AG2+$P$22 -> 272.5 | AI2: =AH2+$P$22 -> 275
B4: o | C4: -1 | D4: 260 | E4: c | F4: 4.85 | O4: =IF(ISBLANK($B4),0,IF(LEFT($E4)="c",((MAX(O$2-$D4,0)*$C4*$P$21)-($F4*$C4*$P$21)),IF(LEFT($E4)="p",((MAX($D4-O$2,0)*$C4*$P$21)-($F4*$C4*$P$21)),(O$2-$F4)*$C4))) -> 485 | P4: 485 | Q4: 485 | R4: 485 | S4: 485 | T4: 485 | U4: 485 | V4: 485 | W4: 485 | X4: 485 | Y4: 485 | Z4: 485 | AA4: 485 | AB4: 485 | AC4: 485 | AD4: 235 | AE4: =IF(ISBLANK($B4),0,IF(LEFT($E4)="c",((MAX(AE$2-$D4,0)*$C4*$P$21)-($F4*$C4*$P$21)),IF(LEFT($E4)="p",((MAX($D4-AE$2,0)*$C4*$P$21)-($F4*$C4*$P$21)),(AE$2-$F4)*$C4))) -> -15 | AF4: -265 | AG4: -515 | AH4: -765 | AI4: -1015
B5: o | C5: 1 | D5: 265 | E5: c | F5: 3.1 | O5: -310 | P5: -310 | Q5: -310 | R5: -310 | S5: -310 | T5: -310 | U5: -310 | V5: -310 | W5: -310 | X5: -310 | Y5: -310 | Z5: -310 | AA5: -310 | AB5: -310 | AC5: -310 | AD5: -310 | AE5: -310 | AF5: -60 | AG5: 190 | AH5: 440 | AI5: 690
B6: o | C6: -1 | D6: 240 | E6: p | F6: 3.3 | O6: -1170 | P6: -920 | Q6: -670 | R6: -420 | S6: -170 | T6: 80 | U6: 330 | V6: 330 | W6: 330 | X6: 330 | Y6: 330 | Z6: 330 | AA6: 330 | AB6: 330 | AC6: 330 | AD6: 330 | AE6: 330 | AF6: 330 | AG6: 330 | AH6: 330 | AI6: 330
B7: o | C7: 1 | D7: 235 | E7: p | F7: 2 | O7: 800 | P7: 550 | Q7: 300 | R7: 50 | S7: -200 | T7: -200 | U7: -200 | V7: -200 | W7: -200 | X7: -200 | Y7: -200 | Z7: -200 | AA7: -200 | AB7: -200 | AC7: -200 | AD7: -200 | AE7: -200 | AF7: -200 | AG7: -200 | AH7: -200 | AI7: -200
B8: o | O8: 0 | P8: 0 | Q8: 0 | R8: 0 | S8: 0 | T8: 0 | U8: 0 | V8: 0 | W8: 0 | X8: 0 | Y8: 0 | Z8: 0 | AA8: 0 | AB8: 0 | AC8: 0 | AD8: 0 | AE8: 0 | AF8: 0 | AG8: 0 | AH8: 0 | AI8: 0
B9: o | O9: 0 | P9: 0 | Q9: 0 | R9: 0 | S9: 0 | T9: 0 | U9: 0 | V9: 0 | W9: 0 | X9: 0 | Y9: 0 | Z9: 0 | AA9: 0 | AB9: 0 | AC9: 0 | AD9: 0 | AE9: 0 | AF9: 0 | AG9: 0 | AH9: 0 | AI9: 0
B10: o | O10: 0 | P10: 0 | Q10: 0 | R10: 0 | S10: 0 | T10: 0 | U10: 0 | V10: 0 | W10: 0 | X10: 0 | Y10: 0 | Z10: 0 | AA10: 0 | AB10: 0 | AC10: 0 | AD10: 0 | AE10: 0 | AF10: 0 | AG10: 0 | AH10: 0 | AI10: 0
B11: u | O11: 0 | P11: 0 | Q11: 0 | R11: 0 | S11: 0 | T11: 0 | U11: 0 | V11: 0 | W11: 0 | X11: 0 | Y11: 0 | Z11: 0 | AA11: 0 | AB11: 0 | AC11: 0 | AD11: 0 | AE11: 0 | AF11: 0 | AG11: 0 | AH11: 0 | AI11: 0
B12: u | O12: 0 | P12: 0 | Q12: 0 | R12: 0 | S12: 0 | T12: 0 | U12: 0 | V12: 0 | W12: 0 | X12: 0 | Y12: 0 | Z12: 0 | AA12: 0 | AB12: 0 | AC12: 0 | AD12: 0 | AE12: 0 | AF12: 0 | AG12: 0 | AH12: 0 | AI12: 0
O13: 0 | P13: 0 | Q13: 0 | R13: 0 | S13: 0 | T13: 0 | U13: 0 | V13: 0 | W13: 0 | X13: 0 | Y13: 0 | Z13: 0 | AA13: 0 | AB13: 0 | AC13: 0 | AD13: 0 | AE13: 0 | AF13: 0 | AG13: 0 | AH13: 0 | AI13: 0
O14: 0 | P14: 0 | Q14: 0 | R14: 0 | S14: 0 | T14: 0 | U14: 0 | V14: 0 | W14: 0 | X14: 0 | Y14: 0 | Z14: 0 | AA14: 0 | AB14: 0 | AC14: 0 | AD14: 0 | AE14: 0 | AF14: 0 | AG14: 0 | AH14: 0 | AI14: 0
O15: 0 | P15: 0 | Q15: 0 | R15: 0 | S15: 0 | T15: 0 | U15: 0 | V15: 0 | W15: 0 | X15: 0 | Y15: 0 | Z15: 0 | AA15: 0 | AB15: 0 | AC15: 0 | AD15: 0 | AE15: 0 | AF15: 0 | AG15: 0 | AH15: 0 | AI15: 0
O16: 0 | P16: 0 | Q16: 0 | R16: 0 | S16: 0 | T16: 0 | U16: 0 | V16: 0 | W16: 0 | X16: 0 | Y16: 0 | Z16: 0 | AA16: 0 | AB16: 0 | AC16: 0 | AD16: 0 | AE16: 0 | AF16: 0 | AG16: 0 | AH16: 0 | AI16: 0
O18: =SUM(O4:O17) -> -195 | P18: -195 | Q18: -195 | R18: -195 | S18: -195 | T18: 55 | U18: 305 | V18: 305 | W18: 305 | X18: 305 | Y18: 305 | Z18: 305 | AA18: 305 | AB18: 305 | AC18: 305 | AD18: 55 | AE18: -195 | AF18: -195 | AG18: -195 | AH18: =SUM(AH4:AH17) -> -195 | AI18: -195
O19: 0 | P19: 0 | Q19: 0 | R19: 0 | S19: 0 | T19: 0 | U19: 0 | V19: 0 | W19: 0 | X19: 0 | Y19: 0 | Z19: 0 | AA19: 0 | AB19: 0 | AC19: 0 | AD19: 0 | AE19: 0 | AF19: 0 | AG19: 0 | AH19: 0 | AI19: 0
L20: strike | M20: stkopt
L21: =O2 -> 225 | M21: =O18 -> -195 | O21: mult | P21: 100
L22: =Q2 -> 230 | M22: =Q18 -> -195 | O22: incr | P22: 2.5
L23: =S2 -> 235 | M23: =S18 -> -195 | O23: begin | P23: 225
L24: =U2 -> 240 | M24: =U18 -> 305
L25: =V2 -> 242.5 | M25: =V18 -> 305
L26: =W2 -> 245 | M26: =W18 -> 305 | O26: 0 | P26: 236.95
L27: =X2 -> 247.5 | M27: =X18 -> 305 | P27: 250
L28: =Y2 -> 250 | M28: =Y18 -> 305 | O28: 0 | P28: 263.05
L29: =Z2 -> 252.5 | M29: =Z18 -> 305
L30: =AA2 -> 255 | M30: =AA18 -> 305
L31: =AC2 -> 260 | M31: =AC18 -> 305
L32: =AE2 -> 265 | M32: =AE18 -> -195
L33: =AG2 -> 270 | M33: =AG18 -> -195
L34: =AI2 -> 275 | M34: =AI18 -> -195

Sheet PosComp1
B2: opt/u | C2: qty | D2: strike | E2: c/p | F2: price | O2: =P26 -> 38 | P2: =O2+$P$25 -> 39 | Q2: 40 | R2: 41 | S2: 42 | T2: 43 | U2: 44 | V2: 45 | W2: 46 | X2: 47 | Y2: 48 | Z2: 49 | AA2: 50 | AB2: 51 | AC2: 52 | AD2: 53 | AE2: 54 | AF2: 55 | AG2: 56
B4: o | C4: -1 | D4: 50 | E4: c | F4: 2 | O4: =IF(ISBLANK($B4),0,IF(LEFT($E4)="c",((MAX(O$2-$D4,0)*$C4*$P$24)-($F4*$C4*$P$24)),IF(LEFT($E4)="p",((MAX($D4-O$2,0)*$C4*$P$24)-($F4*$C4*$P$24)),(O$2-$F4)*$C4))) -> 200 | P4: 200 | Q4: 200 | R4: 200 | S4: 200 | T4: 200 | U4: 200 | V4: 200 | W4: 200 | X4: 200 | Y4: =IF(ISBLANK($B4),0,IF(LEFT($E4)="c",((MAX(Y$2-$D4,0)*$C4*$P$24)-($F4*$C4*$P$24)),IF(LEFT($E4)="p",((MAX($D4-Y$2,0)*$C4*$P$24)-($F4*$C4*$P$24)),(Y$2-$F4)*$C4))) -> 200 | Z4: 200 | AA4: 200 | AB4: 100 | AC4: 0 | AD4: -100 | AE4: -200 | AF4: -300 | AG4: -400
B5: o | C5: 1 | D5: 45 | E5: c | F5: 1.45 | O5: -145 | P5: -145 | Q5: -145 | R5: -145 | S5: -145 | T5: -145 | U5: -145 | V5: -145 | W5: -45 | X5: 55 | Y5: 155 | Z5: 255 | AA5: 355 | AB5: 455 | AC5: 555 | AD5: 655 | AE5: 755 | AF5: 855 | AG5: 955
B6: o | C6: 1 | D6: 49 | E6: p | F6: 1.65 | O6: 935 | P6: 835 | Q6: 735 | R6: 635 | S6: 535 | T6: 435 | U6: 335 | V6: 235 | W6: 135 | X6: 35 | Y6: -65 | Z6: -165 | AA6: -165 | AB6: -165 | AC6: -165 | AD6: -165 | AE6: -165 | AF6: -165 | AG6: -165
B7: o | C7: -1 | D7: 44 | E7: p | F7: 1.45 | O7: -455 | P7: -355 | Q7: -255 | R7: -155 | S7: -55 | T7: 45 | U7: 145 | V7: 145 | W7: 145 | X7: 145 | Y7: 145 | Z7: 145 | AA7: 145 | AB7: 145 | AC7: 145 | AD7: 145 | AE7: 145 | AF7: 145 | AG7: 145
B8: o | O8: 0 | P8: 0 | Q8: 0 | R8: 0 | S8: 0 | T8: 0 | U8: 0 | V8: 0 | W8: 0 | X8: 0 | Y8: 0 | Z8: 0 | AA8: 0 | AB8: 0 | AC8: 0 | AD8: 0 | AE8: 0 | AF8: 0 | AG8: 0
B9: o | O9: 0 | P9: 0 | Q9: 0 | R9: 0 | S9: 0 | T9: 0 | U9: 0 | V9: 0 | W9: 0 | X9: 0 | Y9: 0 | Z9: 0 | AA9: 0 | AB9: 0 | AC9: 0 | AD9: 0 | AE9: 0 | AF9: 0 | AG9: 0
B10: u | O10: 0 | P10: 0 | Q10: 0 | R10: 0 | S10: 0 | T10: 0 | U10: 0 | V10: 0 | W10: 0 | X10: 0 | Y10: 0 | Z10: 0 | AA10: 0 | AB10: 0 | AC10: 0 | AD10: 0 | AE10: 0 | AF10: 0 | AG10: 0
O12: =SUM(O4:O10) -> 535 | P12: =SUM(P4:P10) -> 535 | Q12: 535 | R12: 535 | S12: 535 | T12: 535 | U12: 535 | V12: 435 | W12: 435 | X12: 435 | Y12: 435 | Z12: 435 | AA12: 535 | AB12: 535 | AC12: 535 | AD12: 535 | AE12: 535 | AF12: 535 | AG12: 535
B14: o | C14: -1 | D14: 50 | E14: c | F14: 2 | O14: =IF(ISBLANK($B14),0,IF(LEFT($E14)="c",((MAX(O$2-$D14,0)*$C14*$P$24)-($F14*$C14*$P$24)),IF(LEFT($E14)="p",((MAX($D14-O$2,0)*$C14*$P$24)-($F14*$C14*$P$24)),(O$2-$F14)*$C14))) -> 200 | P14: 200 | Q14: 200 | R14: 200 | S14: 200 | T14: 200 | U14: 200 | V14: 200 | W14: 200 | X14: 200 | Y14: =IF(ISBLANK($B14),0,IF(LEFT($E14)="c",((MAX(Y$2-$D14,0)*$C14*$P$24)-($F14*$C14*$P$24)),IF(LEFT($E14)="p",((MAX($D14-Y$2,0)*$C14*$P$24)-($F14*$C14*$P$24)),(Y$2-$F14)*$C14))) -> 200 | Z14: 200 | AA14: 200 | AB14: 100 | AC14: 0 | AD14: -100 | AE14: -200 | AF14: -300 | AG14: -400
B15: o | C15: 1 | D15: 45 | E15: c | F15: 4 | O15: -400 | P15: -400 | Q15: -400 | R15: -400 | S15: -400 | T15: -400 | U15: -400 | V15: -400 | W15: -300 | X15: -200 | Y15: -100 | Z15: 0 | AA15: 100 | AB15: 200 | AC15: 300 | AD15: 400 | AE15: 500 | AF15: 600 | AG15: 700
B16: o | C16: 1 | D16: 49 | E16: p | F16: 1.65 | O16: 935 | P16: 835 | Q16: 735 | R16: 635 | S16: 535 | T16: 435 | U16: 335 | V16: 235 | W16: 135 | X16: 35 | Y16: -65 | Z16: -165 | AA16: -165 | AB16: -165 | AC16: -165 | AD16: -165 | AE16: -165 | AF16: -165 | AG16: -165
B17: o | C17: -1 | D17: 44 | E17: p | F17: 0.45 | O17: -555 | P17: -455 | Q17: -355 | R17: -255 | S17: -155 | T17: -55 | U17: 45 | V17: 45 | W17: 45 | X17: 45 | Y17: 45 | Z17: 45 | AA17: 45 | AB17: 45 | AC17: 45 | AD17: 45 | AE17: 45 | AF17: 45 | AG17: 45
B18: o | O18: 0 | P18: 0 | Q18: 0 | R18: 0 | S18: 0 | T18: 0 | U18: 0 | V18: 0 | W18: 0 | X18: 0 | Y18: 0 | Z18: 0 | AA18: 0 | AB18: 0 | AC18: 0 | AD18: 0 | AE18: 0 | AF18: 0 | AG18: 0
B19: o | O19: 0 | P19: 0 | Q19: 0 | R19: 0 | S19: 0 | T19: 0 | U19: 0 | V19: 0 | W19: 0 | X19: 0 | Y19: 0 | Z19: 0 | AA19: 0 | AB19: 0 | AC19: 0 | AD19: 0 | AE19: 0 | AF19: 0 | AG19: 0
B20: u | F20: 49.75 | O20: 0 | P20: 0 | Q20: 0 | R20: 0 | S20: 0 | T20: 0 | U20: 0 | V20: 0 | W20: 0 | X20: 0 | Y20: 0 | Z20: 0 | AA20: 0 | AB20: 0 | AC20: 0 | AD20: 0 | AE20: 0 | AF20: 0 | AG20: 0
O22: =SUM(O14:O21) -> 180 | P22: =SUM(P14:P21) -> 180 | Q22: 180 | R22: 180 | S22: 180 | T22: 180 | U22: 180 | V22: 80 | W22: 80 | X22: 80 | Y22: 80 | Z22: 80 | AA22: 180 | AB22: 180 | AC22: 180 | AD22: 180 | AE22: 180 | AF22: 180 | AG22: 180
K24: strike | L24: stkopt1 | M24: stkopt2 | O24: mult | P24: 100
K25: =O2 -> 38 | L25: =O12 -> 535 | M25: =O22 -> 180 | O25: incr | P25: 1
K26: =Q2 -> 40 | L26: =Q12 -> 535 | M26: =Q22 -> 180 | O26: begin | P26: 38
K27: =S2 -> 42 | L27: =S12 -> 535 | M27: =S22 -> 180
K28: =U2 -> 44 | L28: =U12 -> 535 | M28: =U22 -> 180
K29: =V2 -> 45 | L29: =V12 -> 435 | M29: =V22 -> 80 | U29: `
K30: =W2 -> 46 | L30: =W12 -> 435 | M30: =W22 -> 80
K31: =X2 -> 47 | L31: =X12 -> 435 | M31: =X22 -> 80
K32: =Y2 -> 48 | L32: =Y12 -> 435 | M32: =Y22 -> 80
K33: =Z2 -> 49 | L33: =Z12 -> 435 | M33: =Z22 -> 80
K34: =AA2 -> 50 | L34: =AA12 -> 535 | M34: =AA22 -> 180
K35: =AC2 -> 52 | L35: =AC12 -> 535 | M35: =AC22 -> 180
K36: =AE2 -> 54 | L36: =AE12 -> 535 | M36: =AE22 -> 180
K37: =AG2 -> 56 | L37: =AG12 -> 535 | M37: =AG22 -> 180
O42: X AXIS
O43: 0 | P43: 0 | Q43: 0 | R43: 0 | S43: 0 | T43: 0 | U43: 0 | V43: 0 | W43: 0 | X43: 0 | Y43: 0 | Z43: 0 | AA43: 0 | AB43: 0 | AC43: 0 | AD43: 0 | AE43: 0 | AF43: 0 | AG43: 0

Sheet PosComp2
B2: opt/u | C2: qty | D2: strike | E2: c/p | F2: price | O2: =P26 -> 47 | P2: =O2+$P$25 -> 48 | Q2: 49 | R2: 50 | S2: 51 | T2: 52 | U2: 53 | V2: 54 | W2: 55 | X2: 56 | Y2: 57 | Z2: 58 | AA2: 59 | AB2: 60 | AC2: 61 | AD2: 62 | AE2: 63 | AF2: 64 | AG2: 65
B4: o | C4: -1 | D4: 50 | E4: c | F4: 2 | O4: =IF(ISBLANK($B4),0,IF(LEFT($E4)="c",((MAX(O$2-$D4,0)*$C4*$P$24)-($F4*$C4*$P$24)),IF(LEFT($E4)="p",((MAX($D4-O$2,0)*$C4*$P$24)-($F4*$C4*$P$24)),(O$2-$F4)*$C4))) -> 200 | P4: 200 | Q4: 200 | R4: 200 | S4: 100 | T4: 0 | U4: -100 | V4: -200 | W4: -300 | X4: -400 | Y4: =IF(ISBLANK($B4),0,IF(LEFT($E4)="c",((MAX(Y$2-$D4,0)*$C4*$P$24)-($F4*$C4*$P$24)),IF(LEFT($E4)="p",((MAX($D4-Y$2,0)*$C4*$P$24)-($F4*$C4*$P$24)),(Y$2-$F4)*$C4))) -> -500 | Z4: -600 | AA4: -700 | AB4: -800 | AC4: -900 | AD4: -1000 | AE4: -1100 | AF4: -1200 | AG4: -1300
B5: o | C5: 1 | D5: 45 | E5: c | F5: 1.45 | O5: 55 | P5: 155 | Q5: 255 | R5: 355 | S5: 455 | T5: 555 | U5: 655 | V5: 755 | W5: 855 | X5: 955 | Y5: 1055 | Z5: 1155 | AA5: 1255 | AB5: 1355 | AC5: 1455 | AD5: 1555 | AE5: 1655 | AF5: 1755 | AG5: 1855
B6: o | C6: 1 | D6: 49 | E6: p | F6: 1.65 | O6: 35 | P6: -65 | Q6: -165 | R6: -165 | S6: -165 | T6: -165 | U6: -165 | V6: -165 | W6: -165 | X6: -165 | Y6: -165 | Z6: -165 | AA6: -165 | AB6: -165 | AC6: -165 | AD6: -165 | AE6: -165 | AF6: -165 | AG6: -165
B7: o | C7: -1 | D7: 44 | E7: p | F7: 1.45 | O7: 145 | P7: 145 | Q7: 145 | R7: 145 | S7: 145 | T7: 145 | U7: 145 | V7: 145 | W7: 145 | X7: 145 | Y7: 145 | Z7: 145 | AA7: 145 | AB7: 145 | AC7: 145 | AD7: 145 | AE7: 145 | AF7: 145 | AG7: 145
B8: o | O8: 0 | P8: 0 | Q8: 0 | R8: 0 | S8: 0 | T8: 0 | U8: 0 | V8: 0 | W8: 0 | X8: 0 | Y8: 0 | Z8: 0 | AA8: 0 | AB8: 0 | AC8: 0 | AD8: 0 | AE8: 0 | AF8: 0 | AG8: 0
B9: o | O9: 0 | P9: 0 | Q9: 0 | R9: 0 | S9: 0 | T9: 0 | U9: 0 | V9: 0 | W9: 0 | X9: 0 | Y9: 0 | Z9: 0 | AA9: 0 | AB9: 0 | AC9: 0 | AD9: 0 | AE9: 0 | AF9: 0 | AG9: 0
B10: u | O10: 0 | P10: 0 | Q10: 0 | R10: 0 | S10: 0 | T10: 0 | U10: 0 | V10: 0 | W10: 0 | X10: 0 | Y10: 0 | Z10: 0 | AA10: 0 | AB10: 0 | AC10: 0 | AD10: 0 | AE10: 0 | AF10: 0 | AG10: 0
O12: =SUM(O4:O10) -> 435 | P12: =SUM(P4:P10) -> 435 | Q12: 435 | R12: 535 | S12: 535 | T12: 535 | U12: 535 | V12: 535 | W12: 535 | X12: 535 | Y12: 535 | Z12: 535 | AA12: 535 | AB12: 535 | AC12: 535 | AD12: 535 | AE12: 535 | AF12: 535 | AG12: 535
B14: o | C14: -2 | D14: 50 | E14: c | F14: 2 | O14: =IF(ISBLANK($B14),0,IF(LEFT($E14)="c",((MAX(O$2-$D14,0)*$C14*$P$24)-($F14*$C14*$P$24)),IF(LEFT($E14)="p",((MAX($D14-O$2,0)*$C14*$P$24)-($F14*$C14*$P$24)),(O$2-$F14)*$C14))) -> 400 | P14: 400 | Q14: 400 | R14: 400 | S14: 200 | T14: 0 | U14: -200 | V14: -400 | W14: -600 | X14: -800 | Y14: =IF(ISBLANK($B14),0,IF(LEFT($E14)="c",((MAX(Y$2-$D14,0)*$C14*$P$24)-($F14*$C14*$P$24)),IF(LEFT($E14)="p",((MAX($D14-Y$2,0)*$C14*$P$24)-($F14*$C14*$P$24)),(Y$2-$F14)*$C14))) -> -1000 | Z14: -1200 | AA14: -1400 | AB14: -1600 | AC14: -1800 | AD14: -2000 | AE14: -2200 | AF14: -2400 | AG14: -2600
B15: o | C15: 1 | D15: 45 | E15: c | F15: 1.45 | O15: 55 | P15: 155 | Q15: 255 | R15: 355 | S15: 455 | T15: 555 | U15: 655 | V15: 755 | W15: 855 | X15: 955 | Y15: 1055 | Z15: 1155 | AA15: 1255 | AB15: 1355 | AC15: 1455 | AD15: 1555 | AE15: 1655 | AF15: 1755 | AG15: 1855
B16: o | C16: 1 | D16: 49 | E16: p | F16: 1.65 | O16: 35 | P16: -65 | Q16: -165 | R16: -165 | S16: -165 | T16: -165 | U16: -165 | V16: -165 | W16: -165 | X16: -165 | Y16: -165 | Z16: -165 | AA16: -165 | AB16: -165 | AC16: -165 | AD16: -165 | AE16: -165 | AF16: -165 | AG16: -165
B17: o | C17: -2 | D17: 44 | E17: p | F17: 1.45 | O17: 290 | P17: 290 | Q17: 290 | R17: 290 | S17: 290 | T17: 290 | U17: 290 | V17: 290 | W17: 290 | X17: 290 | Y17: 290 | Z17: 290 | AA17: 290 | AB17: 290 | AC17: 290 | AD17: 290 | AE17: 290 | AF17: 290 | AG17: 290
B18: o | O18: 0 | P18: 0 | Q18: 0 | R18: 0 | S18: 0 | T18: 0 | U18: 0 | V18: 0 | W18: 0 | X18: 0 | Y18: 0 | Z18: 0 | AA18: 0 | AB18: 0 | AC18: 0 | AD18: 0 | AE18: 0 | AF18: 0 | AG18: 0
B19: o | O19: 0 | P19: 0 | Q19: 0 | R19: 0 | S19: 0 | T19: 0 | U19: 0 | V19: 0 | W19: 0 | X19: 0 | Y19: 0 | Z19: 0 | AA19: 0 | AB19: 0 | AC19: 0 | AD19: 0 | AE19: 0 | AF19: 0 | AG19: 0
B20: u | O20: 0 | P20: 0 | Q20: 0 | R20: 0 | S20: 0 | T20: 0 | U20: 0 | V20: 0 | W20: 0 | X20: 0 | Y20: 0 | Z20: 0 | AA20: 0 | AB20: 0 | AC20: 0 | AD20: 0 | AE20: 0 | AF20: 0 | AG20: 0
O22: =SUM(O14:O21) -> 780 | P22: =SUM(P14:P21) -> 780 | Q22: 780 | R22: 880 | S22: 780 | T22: 680 | U22: 580 | V22: 480 | W22: 380 | X22: 280 | Y22: 180 | Z22: 80 | AA22: -20 | AB22: -120 | AC22: -220 | AD22: -320 | AE22: -420 | AF22: -520 | AG22: -620
K24: strike | L24: stkopt1 | M24: stkopt2 | O24: mult | P24: 100
K25: =O2 -> 47 | L25: =O12 -> 435 | M25: =O22 -> 780 | O25: incr | P25: 1
K26: =Q2 -> 49 | L26: =Q12 -> 435 | M26: =Q22 -> 780 | O26: begin | P26: 47
K27: =S2 -> 51 | L27: =S12 -> 535 | M27: =S22 -> 780
K28: =U2 -> 53 | L28: =U12 -> 535 | M28: =U22 -> 580
K29: =V2 -> 54 | L29: =V12 -> 535 | M29: =V22 -> 480 | U29: `
K30: =W2 -> 55 | L30: =W12 -> 535 | M30: =W22 -> 380
K31: =X2 -> 56 | L31: =X12 -> 535 | M31: =X22 -> 280
K32: =Y2 -> 57 | L32: =Y12 -> 535 | M32: =Y22 -> 180
K33: =Z2 -> 58 | L33: =Z12 -> 535 | M33: =Z22 -> 80
K34: =AA2 -> 59 | L34: =AA12 -> 535 | M34: =AA22 -> -20
K35: =AC2 -> 61 | L35: =AC12 -> 535 | M35: =AC22 -> -220
K36: =AE2 -> 63 | L36: =AE12 -> 535 | M36: =AE22 -> -420
K37: =AG2 -> 65 | L37: =AG12 -> 535 | M37: =AG22 -> -620
O43: X AXIS
O44: 0 | P44: 0 | Q44: 0 | R44: 0 | S44: 0 | T44: 0 | U44: 0 | V44: 0 | W44: 0 | X44: 0 | Y44: 0 | Z44: 0 | AA44: 0 | AB44: 0 | AC44: 0 | AD44: 0 | AE44: 0 | AF44: 0 | AG44: 0

Sheet OptPos1
P1: EXP
B2: opt | C2: qty | D2: strike | E2: c/p | F2: price | G2: date | H2: exp | I2: days | J2: exp mult | K2: vty | L2: underly | M2: thv | N2: profit | P2: =Q24 -> 44 | Q2: =P2+$Q$23 -> 45 | R2: 46 | S2: 47 | T2: 48 | U2: 49 | V2: 50 | W2: 51 | X2: 52 | Y2: 53 | Z2: 54 | AA2: 55 | AB2: 56 | AC2: 57 | AD2: 58 | AE2: 59 | AF2: 60 | AG2: 61 | AH2: 62
B4: o | C4: 1 | D4: 52 | E4: c | F4: 1.65 | G4: 2013-11-10 | H4: 2013-11-22 | I4: =H4-G4 -> 12 | J4: 12.5 | K4: 0.43 | L4: 55.85 | M4: =IF($E4="c",CallThv($L4,$D4,$J4/365,$Q$21,$K4,0),IF($E4="p",putThv($L4,$D4,$J4/365,$Q$21,$K4,0),0)) -> 4.285961782 | N4: =IF(B4="o",(M4-F4)*C4,0) -> 2.635961782 | P4: =IF(ISBLANK($B4),0,IF(LEFT($E4)="c",((MAX(P$2-$D4,0)*$C4*$Q$22)-($F4*$C4*$Q$22)),IF(LEFT($E4)="p",((MAX($D4-P$2,0)*$C4*$Q$22)-($F4*$C4*$Q$22)),(P$2-$F4)*$C4))) -> -165 | Q4: -165 | R4: -165 | S4: -165 | T4: -165 | U4: -165 | V4: -165 | W4: -165 | X4: -165 | Y4: -65 | Z4: =IF(ISBLANK($B4),0,IF(LEFT($E4)="c",((MAX(Z$2-$D4,0)*$C4*$Q$22)-($F4*$C4*$Q$22)),IF(LEFT($E4)="p",((MAX($D4-Z$2,0)*$C4*$Q$22)-($F4*$C4*$Q$22)),(Z$2-$F4)*$C4))) -> 35 | AA4: 135 | AB4: 235 | AC4: 335 | AD4: 435 | AE4: 535 | AF4: 635 | AG4: 735 | AH4: 835
B5: =B4 -> o | C5: -1 | D5: 56.5 | E5: c | F5: 1.5 | G5: =IF($C5<>0,$G$4,"") -> 2013-11-10 | H5: 2013-11-22 | I5: =IF($C5<>0,$I$4,"") -> 12 | J5: =IF($C5<>0,$J$4,"") -> 12.5 | K5: =IF($C5<>0,$K$4,"") -> 0.43 | L5: =IF($C5<>0,$L$4,"") -> 55.85 | M5: =IF($E5="c",CallThv($L5,$D5,$J5/365,$Q$21,$K5,0),IF($E5="p",putThv($L5,$D5,$J5/365,$Q$21,$K5,0),0)) -> 1.478722894 | N5: =IF(B5="o",(M5-F5)*C5,0) -> 0.02127710558 | P5: 150 | Q5: 150 | R5: 150 | S5: 150 | T5: 150 | U5: 150 | V5: 150 | W5: 150 | X5: 150 | Y5: 150 | Z5: 150 | AA5: 150 | AB5: 150 | AC5: 100 | AD5: 0 | AE5: -100 | AF5: -200 | AG5: -300 | AH5: -400
B6: =B5 -> o | G6: =IF($C6<>0,$G$4,"") ->  | H6: =IF($C6<>0,$H$4,"") ->  | I6: =IF($C6<>0,$I$4,"") ->  | K6: =IF($C6<>0,$K$4,"") ->  | L6: =IF($C6<>0,$L$4,"") ->  | M6: =IF($E6="c",CallThv($L6,$D6,$J6/365,$Q$21,$K6,0),IF($E6="p",putThv($L6,$D6,$J6/365,$Q$21,$K6,0),0)) -> 0 | N6: 0 | P6: 0 | Q6: 0 | R6: 0 | S6: 0 | T6: 0 | U6: 0 | V6: 0 | W6: 0 | X6: 0 | Y6: 0 | Z6: 0 | AA6: 0 | AB6: 0 | AC6: 0 | AD6: 0 | AE6: 0 | AF6: 0 | AG6: 0 | AH6: 0
B7: o | M7: =IF($E7="c",CallThv($L7,$D7,$J7/365,$Q$21,$K7,0),IF($E7="p",putThv($L7,$D7,$J7/365,$Q$21,$K7,0),0)) -> 0 | N7: 0 | P7: 0 | Q7: 0 | R7: 0 | S7: 0 | T7: 0 | U7: 0 | V7: 0 | W7: 0 | X7: 0 | Y7: 0 | Z7: 0 | AA7: 0 | AB7: 0 | AC7: 0 | AD7: 0 | AE7: 0 | AF7: 0 | AG7: 0 | AH7: 0
B8: o | M8: =IF($E8="c",CallThv($L8,$D8,$J8/365,$Q$21,$K8,0),IF($E8="p",putThv($L8,$D8,$J8/365,$Q$21,$K8,0),0)) -> 0 | N8: 0 | P8: 0 | Q8: 0 | R8: 0 | S8: 0 | T8: 0 | U8: 0 | V8: 0 | W8: 0 | X8: 0 | Y8: 0 | Z8: 0 | AA8: 0 | AB8: 0 | AC8: 0 | AD8: 0 | AE8: 0 | AF8: 0 | AG8: 0 | AH8: 0
B9: o | M9: =IF($E9="c",CallThv($L9,$D9,$J9/365,$Q$21,$K9,0),IF($E9="p",putThv($L9,$D9,$J9/365,$Q$21,$K9,0),0)) -> 0 | N9: 0 | P9: 0 | Q9: 0 | R9: 0 | S9: 0 | T9: 0 | U9: 0 | V9: 0 | W9: 0 | X9: 0 | Y9: 0 | Z9: 0 | AA9: 0 | AB9: 0 | AC9: 0 | AD9: 0 | AE9: 0 | AF9: 0 | AG9: 0 | AH9: 0
B10: o | M10: =IF($E10="c",CallThv($L10,$D10,$J10/365,$Q$21,$K10,0),IF($E10="p",putThv($L10,$D10,$J10/365,$Q$21,$K10,0),0)) -> 0 | N10: 0 | P10: 0 | Q10: 0 | R10: 0 | S10: 0 | T10: 0 | U10: 0 | V10: 0 | W10: 0 | X10: 0 | Y10: 0 | Z10: 0 | AA10: 0 | AB10: 0 | AC10: 0 | AD10: 0 | AE10: 0 | AF10: 0 | AG10: 0 | AH10: 0
B11: o | M11: =IF($E11="c",CallThv($L11,$D11,$J11/365,$Q$21,$K11,0),IF($E11="p",putThv($L11,$D11,$J11/365,$Q$21,$K11,0),0)) -> 0 | N11: 0 | P11: 0 | Q11: 0 | R11: 0 | S11: 0 | T11: 0 | U11: 0 | V11: 0 | W11: 0 | X11: 0 | Y11: 0 | Z11: 0 | AA11: 0 | AB11: 0 | AC11: 0 | AD11: 0 | AE11: 0 | AF11: 0 | AG11: 0 | AH11: 0
B12: o | M12: =IF($E12="c",CallThv($L12,$D12,$J12/365,$Q$21,$K12,0),IF($E12="p",putThv($L12,$D12,$J12/365,$Q$21,$K12,0),0)) -> 0 | N12: 0 | P12: 0 | Q12: 0 | R12: 0 | S12: 0 | T12: 0 | U12: 0 | V12: 0 | W12: 0 | X12: 0 | Y12: 0 | Z12: 0 | AA12: 0 | AB12: 0 | AC12: 0 | AD12: 0 | AE12: 0 | AF12: 0 | AG12: 0 | AH12: 0
B13: o | M13: =IF($E13="c",CallThv($L13,$D13,$J13/365,$Q$21,$K13,0),IF($E13="p",putThv($L13,$D13,$J13/365,$Q$21,$K13,0),0)) -> 0 | N13: =IF(B13="o",(M13-F13)*C13,0) -> 0 | P13: =IF(ISBLANK($B13),0,IF(LEFT($E13)="c",((MAX(P$2-$D13,0)*$C13*$Q$22)-($F13*$C13*$Q$22)),IF(LEFT($E13)="p",((MAX($D13-P$2,0)*$C13*$Q$22)-($F13*$C13*$Q$22)),(P$2-$F13)*$C13))) -> 0 | Q13: 0 | R13: 0 | S13: 0 | T13: 0 | U13: 0 | V13: 0 | W13: 0 | X13: 0 | Y13: 0 | Z13: 0 | AA13: 0 | AB13: 0 | AC13: 0 | AD13: 0 | AE13: 0 | AF13: =IF(ISBLANK($B13),0,IF(LEFT($E13)="c",((MAX(AF$2-$D13,0)*$C13*$Q$22)-($F13*$C13*$Q$22)),IF(LEFT($E13)="p",((MAX($D13-AF$2,0)*$C13*$Q$22)-($F13*$C13*$Q$22)),(AF$2-$F13)*$C13))) -> 0 | AG13: 0 | AH13: 0
B14: o | M14: =IF($E14="c",CallThv($L14,$D14,$J14/365,$Q$21,$K14,0),IF($E14="p",putThv($L14,$D14,$J14/365,$Q$21,$K14,0),0)) -> 0 | N14: =IF(B14="o",(M14-F14)*C14,0) -> 0 | P14: 0 | Q14: 0 | R14: 0 | S14: 0 | T14: 0 | U14: 0 | V14: 0 | W14: 0 | X14: 0 | Y14: 0 | Z14: 0 | AA14: 0 | AB14: 0 | AC14: 0 | AD14: 0 | AE14: 0 | AF14: 0 | AG14: 0 | AH14: 0
B15: o | M15: =IF($E15="c",CallThv($L15,$D15,$J15/365,$Q$21,$K15,0),IF($E15="p",putThv($L15,$D15,$J15/365,$Q$21,$K15,0),0)) -> 0 | N15: =IF(B15="o",(M15-F15)*C15,0) -> 0 | P15: 0 | Q15: 0 | R15: 0 | S15: 0 | T15: 0 | U15: 0 | V15: 0 | W15: 0 | X15: 0 | Y15: 0 | Z15: 0 | AA15: 0 | AB15: 0 | AC15: 0 | AD15: 0 | AE15: 0 | AF15: 0 | AG15: 0 | AH15: 0
B16: o | M16: =IF($E16="c",CallThv($L16,$D16,$J16/365,$Q$21,$K16,0),IF($E16="p",putThv($L16,$D16,$J16/365,$Q$21,$K16,0),0)) -> 0 | N16: =IF(B16="o",(M16-F16)*C16,0) -> 0 | P16: 0 | Q16: 0 | R16: 0 | S16: 0 | T16: 0 | U16: 0 | V16: 0 | W16: 0 | X16: 0 | Y16: 0 | Z16: 0 | AA16: 0 | AB16: 0 | AC16: 0 | AD16: 0 | AE16: 0 | AF16: 0 | AG16: 0 | AH16: 0
N18: =SUM(N4:N17) -> 2.657238888 | P18: =SUM(P4:P17) -> -15 | Q18: -15 | R18: -15 | S18: -15 | T18: -15 | U18: -15 | V18: -15 | W18: -15 | X18: -15 | Y18: 85 | Z18: 185 | AA18: 285 | AB18: 385 | AC18: 435 | AD18: 435 | AE18: 435 | AF18: 435 | AG18: 435 | AH18: 435
P19: 0 | Q19: 0 | R19: 0 | S19: 0 | T19: 0 | U19: 0 | V19: 0 | W19: 0 | X19: 0 | Y19: 0 | Z19: 0 | AA19: 0 | AB19: 0 | AC19: 0 | AD19: 0 | AE19: 0 | AF19: 0 | AG19: 0 | AH19: 0
L21: strike | M21: exp | N21: date | P21: rate | Q21: 0.0025
L22: =P2 -> 44 | M22: =P18 -> -15 | N22: =ROUND(P39,0) -> -13 | P22: mult | Q22: 100
L23: =R2 -> 46 | M23: =R18 -> -15 | N23: =ROUND(R39,0) -> -5 | P23: incr | Q23: 1
L24: =T2 -> 48 | M24: =T18 -> -15 | N24: =ROUND(T39,0) -> 15 | P24: begin | Q24: 44
L25: =V2 -> 50 | M25: =V18 -> -15 | N25: =ROUND(V39,0) -> 55
L26: =W2 -> 51 | M26: =W18 -> -15 | N26: =ROUND(W39,0) -> 83 | X26: `
L27: =X2 -> 52 | M27: =X18 -> -15 | N27: =ROUND(X39,0) -> 117
L28: =Y2 -> 53 | M28: =Y18 -> 85 | N28: =ROUND(Y39,0) -> 155
L29: =Z2 -> 54 | M29: =Z18 -> 185 | N29: =ROUND(Z39,0) -> 194
L30: =AA2 -> 55 | M30: =AA18 -> 285 | N30: =ROUND(AA39,0) -> 233
L31: =AB2 -> 56 | M31: =AB18 -> 385 | N31: =ROUND(AB39,0) -> 271
L32: =AD2 -> 58 | M32: =AD18 -> 435 | N32: =ROUND(AD39,0) -> 336
L33: =AF2 -> 60 | M33: =AF18 -> 435 | N33: =ROUND(AF39,0) -> 381
L34: =AH2 -> 62 | M34: =AH18 -> 435 | N34: =ROUND(AH39,0) -> 409
P37: DATE
P38: =P2 -> 44 | Q38: 45 | R38: 46 | S38: 47 | T38: 48 | U38: 49 | V38: 50 | W38: 51 | X38: 52 | Y38: 53 | Z38: 54 | AA38: 55 | AB38: 56 | AC38: 57 | AD38: 58 | AE38: 59 | AF38: 60 | AG38: 61 | AH38: 62
P39: =SUM(P41:P54)*$Q$22 -> -12.61888773 | Q39: -9.973669088 | R39: -5.219496324 | S39: 2.650599504 | T39: 14.7124347 | U39: 31.90877073 | V39: 54.81466284 | W39: 83.43659164 | X39: 117.1115428 | Y39: 154.5452806 | Z39: 193.9860791 | AA39: 233.4889718 | AB39: 271.2021122 | AC39: 305.6078599 | AD39: 335.6727488 | AE39: 360.8914906 | AF39: 381.238616 | AG39: 397.0591403 | AH39: 408.9344863
P41: =IF(ISBLANK($E4),0,IF(LEFT($E4,1)="c",(CallThv(P$2,$D4,$J4/365,$Q$21,$K4,0)*$C4)-($C4*$F4),IF(LEFT($E4)="p",(putThv(P$2,$D4,$J4/365,$Q$21,$K4,0)*$C4)-($C4*$F4),(P$2-$D4)*$C4))) -> -1.625277009 | Q41: =IF(ISBLANK($E4),0,IF(LEFT($E4,1)="c",(CallThv(Q$2,$D4,$J4/365,$Q$21,$K4,0)*$C4)-($C4*$F4),IF(LEFT($E4)="p",(putThv(Q$2,$D4,$J4/365,$Q$21,$K4,0)*$C4)-($C4*$F4),(Q$2-$D4)*$C4))) -> -1.597235881 | R41: =IF(ISBLANK($E4),0,IF(LEFT($E4,1)="c",(CallThv(R$2,$D4,$J4/365,$Q$21,$K4,0)*$C4)-($C4*$F4),IF(LEFT($E4)="p",(putThv(R$2,$D4,$J4/365,$Q$21,$K4,0)*$C4)-($C4*$F4),(R$2-$D4)*$C4))) -> -1.545924042 | S41: =IF(ISBLANK($E4),0,IF(LEFT($E4,1)="c",(CallThv(S$2,$D4,$J4/365,$Q$21,$K4,0)*$C4)-($C4*$F4),IF(LEFT($E4)="p",(putThv(S$2,$D4,$J4/365,$Q$21,$K4,0)*$C4)-($C4*$F4),(S$2-$D4)*$C4))) -> -1.459024586 | T41: =IF(ISBLANK($E4),0,IF(LEFT($E4,1)="c",(CallThv(T$2,$D4,$J4/365,$Q$21,$K4,0)*$C4)-($C4*$F4),IF(LEFT($E4)="p",(putThv(T$2,$D4,$J4/365,$Q$21,$K4,0)*$C4)-($C4*$F4),(T$2-$D4)*$C4))) -> -1.321969726 | U41: =IF(ISBLANK($E4),0,IF(LEFT($E4,1)="c",(CallThv(U$2,$D4,$J4/365,$Q$21,$K4,0)*$C4)-($C4*$F4),IF(LEFT($E4)="p",(putThv(U$2,$D4,$J4/365,$Q$21,$K4,0)*$C4)-($C4*$F4),(U$2-$D4)*$C4))) -> -1.119457099 | V41: =IF(ISBLANK($E4),0,IF(LEFT($E4,1)="c",(CallThv(V$2,$D4,$J4/365,$Q$21,$K4,0)*$C4)-($C4*$F4),IF(LEFT($E4)="p",(putThv(V$2,$D4,$J4/365,$Q$21,$K4,0)*$C4)-($C4*$F4),(V$2-$D4)*$C4))) -> -0.8374796742 | W41: =IF(ISBLANK($E4),0,IF(LEFT($E4,1)="c",(CallThv(W$2,$D4,$J4/365,$Q$21,$K4,0)*$C4)-($C4*$F4),IF(LEFT($E4)="p",(putThv(W$2,$D4,$J4/365,$Q$21,$K4,0)*$C4)-($C4*$F4),(W$2-$D4)*$C4))) -> -0.4653934073 | X41: =IF(ISBLANK($E4),0,IF(LEFT($E4,1)="c",(CallThv(X$2,$D4,$J4/365,$Q$21,$K4,0)*$C4)-($C4*$F4),IF(LEFT($E4)="p",(putThv(X$2,$D4,$J4/365,$Q$21,$K4,0)*$C4)-($C4*$F4),(X$2-$D4)*$C4))) -> 0.002505515697 | Y41: =IF(ISBLANK($E4),0,IF(LEFT($E4,1)="c",(CallThv(Y$2,$D4,$J4/365,$Q$21,$K4,0)*$C4)-($C4*$F4),IF(LEFT($E4)="p",(putThv(Y$2,$D4,$J4/365,$Q$21,$K4,0)*$C4)-($C4*$F4),(Y$2-$D4)*$C4))) -> 0.5662805497 | Z41: =IF(ISBLANK($E4),0,IF(LEFT($E4,1)="c",(CallThv(Z$2,$D4,$J4/365,$Q$21,$K4,0)*$C4)-($C4*$F4),IF(LEFT($E4)="p",(putThv(Z$2,$D4,$J4/365,$Q$21,$K4,0)*$C4)-($C4*$F4),(Z$2-$D4)*$C4))) -> 1.22064845 | AA41: =IF(ISBLANK($E4),0,IF(LEFT($E4,1)="c",(CallThv(AA$2,$D4,$J4/365,$Q$21,$K4,0)*$C4)-($C4*$F4),IF(LEFT($E4)="p",(putThv(AA$2,$D4,$J4/365,$Q$21,$K4,0)*$C4)-($C4*$F4),(AA$2-$D4)*$C4))) -> 1.956101431 | AB41: =IF(ISBLANK($E4),0,IF(LEFT($E4,1)="c",(CallThv(AB$2,$D4,$J4/365,$Q$21,$K4,0)*$C4)-($C4*$F4),IF(LEFT($E4)="p",(putThv(AB$2,$D4,$J4/365,$Q$21,$K4,0)*$C4)-($C4*$F4),(AB$2-$D4)*$C4))) -> 2.760503659 | AC41: =IF(ISBLANK($E4),0,IF(LEFT($E4,1)="c",(CallThv(AC$2,$D4,$J4/365,$Q$21,$K4,0)*$C4)-($C4*$F4),IF(LEFT($E4)="p",(putThv(AC$2,$D4,$J4/365,$Q$21,$K4,0)*$C4)-($C4*$F4),(AC$2-$D4)*$C4))) -> 3.620760103 | AD41: =IF(ISBLANK($E4),0,IF(LEFT($E4,1)="c",(CallThv(AD$2,$D4,$J4/365,$Q$21,$K4,0)*$C4)-($C4*$F4),IF(LEFT($E4)="p",(putThv(AD$2,$D4,$J4/365,$Q$21,$K4,0)*$C4)-($C4*$F4),(AD$2-$D4)*$C4))) -> 4.524232169 | AE41: =IF(ISBLANK($E4),0,IF(LEFT($E4,1)="c",(CallThv(AE$2,$D4,$J4/365,$Q$21,$K4,0)*$C4)-($C4*$F4),IF(LEFT($E4)="p",(putThv(AE$2,$D4,$J4/365,$Q$21,$K4,0)*$C4)-($C4*$F4),(AE$2-$D4)*$C4))) -> 5.459717834 | AF41: =IF(ISBLANK($E4),0,IF(LEFT($E4,1)="c",(CallThv(AF$2,$D4,$J4/365,$Q$21,$K4,0)*$C4)-($C4*$F4),IF(LEFT($E4)="p",(putThv(AF$2,$D4,$J4/365,$Q$21,$K4,0)*$C4)-($C4*$F4),(AF$2-$D4)*$C4))) -> 6.417960916 | AG41: =IF(ISBLANK($E4),0,IF(LEFT($E4,1)="c",(CallThv(AG$2,$D4,$J4/365,$Q$21,$K4,0)*$C4)-($C4*$F4),IF(LEFT($E4)="p",(putThv(AG$2,$D4,$J4/365,$Q$21,$K4,0)*$C4)-($C4*$F4),(AG$2-$D4)*$C4))) -> 7.391761225 | AH41: =IF(ISBLANK($E4),0,IF(LEFT($E4,1)="c",(CallThv(AH$2,$D4,$J4/365,$Q$21,$K4,0)*$C4)-($C4*$F4),IF(LEFT($E4)="p",(putThv(AH$2,$D4,$J4/365,$Q$21,$K4,0)*$C4)-($C4*$F4),(AH$2-$D4)*$C4))) -> 8.375809376
P42: =IF(ISBLANK($E5),0,IF(LEFT($E5,1)="c",(CallThv(P$2,$D5,$J5/365,$Q$21,$K5,0)*$C5)-($C5*$F5),IF(LEFT($E5)="p",(putThv(P$2,$D5,$J5/365,$Q$21,$K5,0)*$C5)-($C5*$F5),(P$2-$D5)*$C5))) -> 1.499088132 | Q42: =IF(ISBLANK($E5),0,IF(LEFT($E5,1)="c",(CallThv(Q$2,$D5,$J5/365,$Q$21,$K5,0)*$C5)-($C5*$F5),IF(LEFT($E5)="p",(putThv(Q$2,$D5,$J5/365,$Q$21,$K5,0)*$C5)-($C5*$F5),(Q$2-$D5)*$C5))) -> 1.49749919 | R42: =IF(ISBLANK($E5),0,IF(LEFT($E5,1)="c",(CallThv(R$2,$D5,$J5/365,$Q$21,$K5,0)*$C5)-($C5*$F5),IF(LEFT($E5)="p",(putThv(R$2,$D5,$J5/365,$Q$21,$K5,0)*$C5)-($C5*$F5),(R$2-$D5)*$C5))) -> 1.493729079 | S42: =IF(ISBLANK($E5),0,IF(LEFT($E5,1)="c",(CallThv(S$2,$D5,$J5/365,$Q$21,$K5,0)*$C5)-($C5*$F5),IF(LEFT($E5)="p",(putThv(S$2,$D5,$J5/365,$Q$21,$K5,0)*$C5)-($C5*$F5),(S$2-$D5)*$C5))) -> 1.485530581 | T42: =IF(ISBLANK($E5),0,IF(LEFT($E5,1)="c",(CallThv(T$2,$D5,$J5/365,$Q$21,$K5,0)*$C5)-($C5*$F5),IF(LEFT($E5)="p",(putThv(T$2,$D5,$J5/365,$Q$21,$K5,0)*$C5)-($C5*$F5),(T$2-$D5)*$C5))) -> 1.469094072 | U42: =IF(ISBLANK($E5),0,IF(LEFT($E5,1)="c",(CallThv(U$2,$D5,$J5/365,$Q$21,$K5,0)*$C5)-($C5*$F5),IF(LEFT($E5)="p",(putThv(U$2,$D5,$J5/365,$Q$21,$K5,0)*$C5)-($C5*$F5),(U$2-$D5)*$C5))) -> 1.438544806 | V42: =IF(ISBLANK($E5),0,IF(LEFT($E5,1)="c",(CallThv(V$2,$D5,$J5/365,$Q$21,$K5,0)*$C5)-($C5*$F5),IF(LEFT($E5)="p",(putThv(V$2,$D5,$J5/365,$Q$21,$K5,0)*$C5)-($C5*$F5),(V$2-$D5)*$C5))) -> 1.385626303 | W42: =IF(ISBLANK($E5),0,IF(LEFT($E5,1)="c",(CallThv(W$2,$D5,$J5/365,$Q$21,$K5,0)*$C5)-($C5*$F5),IF(LEFT($E5)="p",(putThv(W$2,$D5,$J5/365,$Q$21,$K5,0)*$C5)-($C5*$F5),(W$2-$D5)*$C5))) -> 1.299759324 | X42: =IF(ISBLANK($E5),0,IF(LEFT($E5,1)="c",(CallThv(X$2,$D5,$J5/365,$Q$21,$K5,0)*$C5)-($C5*$F5),IF(LEFT($E5)="p",(putThv(X$2,$D5,$J5/365,$Q$21,$K5,0)*$C5)-($C5*$F5),(X$2-$D5)*$C5))) -> 1.168609912 | Y42: =IF(ISBLANK($E5),0,IF(LEFT($E5,1)="c",(CallThv(Y$2,$D5,$J5/365,$Q$21,$K5,0)*$C5)-($C5*$F5),IF(LEFT($E5)="p",(putThv(Y$2,$D5,$J5/365,$Q$21,$K5,0)*$C5)-($C5*$F5),(Y$2-$D5)*$C5))) -> 0.9791722566 | Z42: =IF(ISBLANK($E5),0,IF(LEFT($E5,1)="c",(CallThv(Z$2,$D5,$J5/365,$Q$21,$K5,0)*$C5)-($C5*$F5),IF(LEFT($E5)="p",(putThv(Z$2,$D5,$J5/365,$Q$21,$K5,0)*$C5)-($C5*$F5),(Z$2-$D5)*$C5))) -> 0.7192123402 | AA42: =IF(ISBLANK($E5),0,IF(LEFT($E5,1)="c",(CallThv(AA$2,$D5,$J5/365,$Q$21,$K5,0)*$C5)-($C5*$F5),IF(LEFT($E5)="p",(putThv(AA$2,$D5,$J5/365,$Q$21,$K5,0)*$C5)-($C5*$F5),(AA$2-$D5)*$C5))) -> 0.3787882873 | AB42: =IF(ISBLANK($E5),0,IF(LEFT($E5,1)="c",(CallThv(AB$2,$D5,$J5/365,$Q$21,$K5,0)*$C5)-($C5*$F5),IF(LEFT($E5)="p",(putThv(AB$2,$D5,$J5/365,$Q$21,$K5,0)*$C5)-($C5*$F5),(AB$2-$D5)*$C5))) -> -0.04848253653 | AC42: =IF(ISBLANK($E5),0,IF(LEFT($E5,1)="c",(CallThv(AC$2,$D5,$J5/365,$Q$21,$K5,0)*$C5)-($C5*$F5),IF(LEFT($E5)="p",(putThv(AC$2,$D5,$J5/365,$Q$21,$K5,0)*$C5)-($C5*$F5),(AC$2-$D5)*$C5))) -> -0.5646815037 | AD42: =IF(ISBLANK($E5),0,IF(LEFT($E5,1)="c",(CallThv(AD$2,$D5,$J5/365,$Q$21,$K5,0)*$C5)-($C5*$F5),IF(LEFT($E5)="p",(putThv(AD$2,$D5,$J5/365,$Q$21,$K5,0)*$C5)-($C5*$F5),(AD$2-$D5)*$C5))) -> -1.167504681 | AE42: =IF(ISBLANK($E5),0,IF(LEFT($E5,1)="c",(CallThv(AE$2,$D5,$J5/365,$Q$21,$K5,0)*$C5)-($C5*$F5),IF(LEFT($E5)="p",(putThv(AE$2,$D5,$J5/365,$Q$21,$K5,0)*$C5)-($C5*$F5),(AE$2-$D5)*$C5))) -> -1.850802928 | AF42: =IF(ISBLANK($E5),0,IF(LEFT($E5,1)="c",(CallThv(AF$2,$D5,$J5/365,$Q$21,$K5,0)*$C5)-($C5*$F5),IF(LEFT($E5)="p",(putThv(AF$2,$D5,$J5/365,$Q$21,$K5,0)*$C5)-($C5*$F5),(AF$2-$D5)*$C5))) -> -2.605574756 | AG42: =IF(ISBLANK($E5),0,IF(LEFT($E5,1)="c",(CallThv(AG$2,$D5,$J5/365,$Q$21,$K5,0)*$C5)-($C5*$F5),IF(LEFT($E5)="p",(putThv(AG$2,$D5,$J5/365,$Q$21,$K5,0)*$C5)-($C5*$F5),(AG$2-$D5)*$C5))) -> -3.421169822 | AH42: =IF(ISBLANK($E5),0,IF(LEFT($E5,1)="c",(CallThv(AH$2,$D5,$J5/365,$Q$21,$K5,0)*$C5)-($C5*$F5),IF(LEFT($E5)="p",(putThv(AH$2,$D5,$J5/365,$Q$21,$K5,0)*$C5)-($C5*$F5),(AH$2-$D5)*$C5))) -> -4.286464512
P43: =IF(ISBLANK($E6),0,IF(LEFT($E6,1)="c",(CallThv(P$2,$D6,$J6/365,$Q$21,$K6,0)*$C6)-($C6*$F6),IF(LEFT($E6)="p",(putThv(P$2,$D6,$J6/365,$Q$21,$K6,0)*$C6)-($C6*$F6),(P$2-$D6)*$C6))) -> 0 | Q43: =IF(ISBLANK($E6),0,IF(LEFT($E6,1)="c",(CallThv(Q$2,$D6,$J6/365,$Q$21,$K6,0)*$C6)-($C6*$F6),IF(LEFT($E6)="p",(putThv(Q$2,$D6,$J6/365,$Q$21,$K6,0)*$C6)-($C6*$F6),(Q$2-$D6)*$C6))) -> 0 | R43: =IF(ISBLANK($E6),0,IF(LEFT($E6,1)="c",(CallThv(R$2,$D6,$J6/365,$Q$21,$K6,0)*$C6)-($C6*$F6),IF(LEFT($E6)="p",(putThv(R$2,$D6,$J6/365,$Q$21,$K6,0)*$C6)-($C6*$F6),(R$2-$D6)*$C6))) -> 0 | S43: =IF(ISBLANK($E6),0,IF(LEFT($E6,1)="c",(CallThv(S$2,$D6,$J6/365,$Q$21,$K6,0)*$C6)-($C6*$F6),IF(LEFT($E6)="p",(putThv(S$2,$D6,$J6/365,$Q$21,$K6,0)*$C6)-($C6*$F6),(S$2-$D6)*$C6))) -> 0 | T43: =IF(ISBLANK($E6),0,IF(LEFT($E6,1)="c",(CallThv(T$2,$D6,$J6/365,$Q$21,$K6,0)*$C6)-($C6*$F6),IF(LEFT($E6)="p",(putThv(T$2,$D6,$J6/365,$Q$21,$K6,0)*$C6)-($C6*$F6),(T$2-$D6)*$C6))) -> 0 | U43: =IF(ISBLANK($E6),0,IF(LEFT($E6,1)="c",(CallThv(U$2,$D6,$J6/365,$Q$21,$K6,0)*$C6)-($C6*$F6),IF(LEFT($E6)="p",(putThv(U$2,$D6,$J6/365,$Q$21,$K6,0)*$C6)-($C6*$F6),(U$2-$D6)*$C6))) -> 0 | V43: =IF(ISBLANK($E6),0,IF(LEFT($E6,1)="c",(CallThv(V$2,$D6,$J6/365,$Q$21,$K6,0)*$C6)-($C6*$F6),IF(LEFT($E6)="p",(putThv(V$2,$D6,$J6/365,$Q$21,$K6,0)*$C6)-($C6*$F6),(V$2-$D6)*$C6))) -> 0 | W43: =IF(ISBLANK($E6),0,IF(LEFT($E6,1)="c",(CallThv(W$2,$D6,$J6/365,$Q$21,$K6,0)*$C6)-($C6*$F6),IF(LEFT($E6)="p",(putThv(W$2,$D6,$J6/365,$Q$21,$K6,0)*$C6)-($C6*$F6),(W$2-$D6)*$C6))) -> 0 | X43: =IF(ISBLANK($E6),0,IF(LEFT($E6,1)="c",(CallThv(X$2,$D6,$J6/365,$Q$21,$K6,0)*$C6)-($C6*$F6),IF(LEFT($E6)="p",(putThv(X$2,$D6,$J6/365,$Q$21,$K6,0)*$C6)-($C6*$F6),(X$2-$D6)*$C6))) -> 0 | Y43: =IF(ISBLANK($E6),0,IF(LEFT($E6,1)="c",(CallThv(Y$2,$D6,$J6/365,$Q$21,$K6,0)*$C6)-($C6*$F6),IF(LEFT($E6)="p",(putThv(Y$2,$D6,$J6/365,$Q$21,$K6,0)*$C6)-($C6*$F6),(Y$2-$D6)*$C6))) -> 0 | Z43: =IF(ISBLANK($E6),0,IF(LEFT($E6,1)="c",(CallThv(Z$2,$D6,$J6/365,$Q$21,$K6,0)*$C6)-($C6*$F6),IF(LEFT($E6)="p",(putThv(Z$2,$D6,$J6/365,$Q$21,$K6,0)*$C6)-($C6*$F6),(Z$2-$D6)*$C6))) -> 0 | AA43: =IF(ISBLANK($E6),0,IF(LEFT($E6,1)="c",(CallThv(AA$2,$D6,$J6/365,$Q$21,$K6,0)*$C6)-($C6*$F6),IF(LEFT($E6)="p",(putThv(AA$2,$D6,$J6/365,$Q$21,$K6,0)*$C6)-($C6*$F6),(AA$2-$D6)*$C6))) -> 0 | AB43: =IF(ISBLANK($E6),0,IF(LEFT($E6,1)="c",(CallThv(AB$2,$D6,$J6/365,$Q$21,$K6,0)*$C6)-($C6*$F6),IF(LEFT($E6)="p",(putThv(AB$2,$D6,$J6/365,$Q$21,$K6,0)*$C6)-($C6*$F6),(AB$2-$D6)*$C6))) -> 0 | AC43: =IF(ISBLANK($E6),0,IF(LEFT($E6,1)="c",(CallThv(AC$2,$D6,$J6/365,$Q$21,$K6,0)*$C6)-($C6*$F6),IF(LEFT($E6)="p",(putThv(AC$2,$D6,$J6/365,$Q$21,$K6,0)*$C6)-($C6*$F6),(AC$2-$D6)*$C6))) -> 0 | AD43: =IF(ISBLANK($E6),0,IF(LEFT($E6,1)="c",(CallThv(AD$2,$D6,$J6/365,$Q$21,$K6,0)*$C6)-($C6*$F6),IF(LEFT($E6)="p",(putThv(AD$2,$D6,$J6/365,$Q$21,$K6,0)*$C6)-($C6*$F6),(AD$2-$D6)*$C6))) -> 0 | AE43: =IF(ISBLANK($E6),0,IF(LEFT($E6,1)="c",(CallThv(AE$2,$D6,$J6/365,$Q$21,$K6,0)*$C6)-($C6*$F6),IF(LEFT($E6)="p",(putThv(AE$2,$D6,$J6/365,$Q$21,$K6,0)*$C6)-($C6*$F6),(AE$2-$D6)*$C6))) -> 0 | AF43: =IF(ISBLANK($E6),0,IF(LEFT($E6,1)="c",(CallThv(AF$2,$D6,$J6/365,$Q$21,$K6,0)*$C6)-($C6*$F6),IF(LEFT($E6)="p",(putThv(AF$2,$D6,$J6/365,$Q$21,$K6,0)*$C6)-($C6*$F6),(AF$2-$D6)*$C6))) -> 0 | AG43: =IF(ISBLANK($E6),0,IF(LEFT($E6,1)="c",(CallThv(AG$2,$D6,$J6/365,$Q$21,$K6,0)*$C6)-($C6*$F6),IF(LEFT($E6)="p",(putThv(AG$2,$D6,$J6/365,$Q$21,$K6,0)*$C6)-($C6*$F6),(AG$2-$D6)*$C6))) -> 0 | AH43: =IF(ISBLANK($E6),0,IF(LEFT($E6,1)="c",(CallThv(AH$2,$D6,$J6/365,$Q$21,$K6,0)*$C6)-($C6*$F6),IF(LEFT($E6)="p",(putThv(AH$2,$D6,$J6/365,$Q$21,$K6,0)*$C6)-($C6*$F6),(AH$2-$D6)*$C6))) -> 0
P44: =IF(ISBLANK($E7),0,IF(LEFT($E7,1)="c",(CallThv(P$2,$D7,$J7/365,$Q$21,$K7,0)*$C7)-($C7*$F7),IF(LEFT($E7)="p",(putThv(P$2,$D7,$J7/365,$Q$21,$K7,0)*$C7)-($C7*$F7),(P$2-$D7)*$C7))) -> 0 | Q44: =IF(ISBLANK($E7),0,IF(LEFT($E7,1)="c",(CallThv(Q$2,$D7,$J7/365,$Q$21,$K7,0)*$C7)-($C7*$F7),IF(LEFT($E7)="p",(putThv(Q$2,$D7,$J7/365,$Q$21,$K7,0)*$C7)-($C7*$F7),(Q$2-$D7)*$C7))) -> 0 | R44: =IF(ISBLANK($E7),0,IF(LEFT($E7,1)="c",(CallThv(R$2,$D7,$J7/365,$Q$21,$K7,0)*$C7)-($C7*$F7),IF(LEFT($E7)="p",(putThv(R$2,$D7,$J7/365,$Q$21,$K7,0)*$C7)-($C7*$F7),(R$2-$D7)*$C7))) -> 0 | S44: =IF(ISBLANK($E7),0,IF(LEFT($E7,1)="c",(CallThv(S$2,$D7,$J7/365,$Q$21,$K7,0)*$C7)-($C7*$F7),IF(LEFT($E7)="p",(putThv(S$2,$D7,$J7/365,$Q$21,$K7,0)*$C7)-($C7*$F7),(S$2-$D7)*$C7))) -> 0 | T44: =IF(ISBLANK($E7),0,IF(LEFT($E7,1)="c",(CallThv(T$2,$D7,$J7/365,$Q$21,$K7,0)*$C7)-($C7*$F7),IF(LEFT($E7)="p",(putThv(T$2,$D7,$J7/365,$Q$21,$K7,0)*$C7)-($C7*$F7),(T$2-$D7)*$C7))) -> 0 | U44: =IF(ISBLANK($E7),0,IF(LEFT($E7,1)="c",(CallThv(U$2,$D7,$J7/365,$Q$21,$K7,0)*$C7)-($C7*$F7),IF(LEFT($E7)="p",(putThv(U$2,$D7,$J7/365,$Q$21,$K7,0)*$C7)-($C7*$F7),(U$2-$D7)*$C7))) -> 0 | V44: =IF(ISBLANK($E7),0,IF(LEFT($E7,1)="c",(CallThv(V$2,$D7,$J7/365,$Q$21,$K7,0)*$C7)-($C7*$F7),IF(LEFT($E7)="p",(putThv(V$2,$D7,$J7/365,$Q$21,$K7,0)*$C7)-($C7*$F7),(V$2-$D7)*$C7))) -> 0 | W44: =IF(ISBLANK($E7),0,IF(LEFT($E7,1)="c",(CallThv(W$2,$D7,$J7/365,$Q$21,$K7,0)*$C7)-($C7*$F7),IF(LEFT($E7)="p",(putThv(W$2,$D7,$J7/365,$Q$21,$K7,0)*$C7)-($C7*$F7),(W$2-$D7)*$C7))) -> 0 | X44: =IF(ISBLANK($E7),0,IF(LEFT($E7,1)="c",(CallThv(X$2,$D7,$J7/365,$Q$21,$K7,0)*$C7)-($C7*$F7),IF(LEFT($E7)="p",(putThv(X$2,$D7,$J7/365,$Q$21,$K7,0)*$C7)-($C7*$F7),(X$2-$D7)*$C7))) -> 0 | Y44: =IF(ISBLANK($E7),0,IF(LEFT($E7,1)="c",(CallThv(Y$2,$D7,$J7/365,$Q$21,$K7,0)*$C7)-($C7*$F7),IF(LEFT($E7)="p",(putThv(Y$2,$D7,$J7/365,$Q$21,$K7,0)*$C7)-($C7*$F7),(Y$2-$D7)*$C7))) -> 0 | Z44: =IF(ISBLANK($E7),0,IF(LEFT($E7,1)="c",(CallThv(Z$2,$D7,$J7/365,$Q$21,$K7,0)*$C7)-($C7*$F7),IF(LEFT($E7)="p",(putThv(Z$2,$D7,$J7/365,$Q$21,$K7,0)*$C7)-($C7*$F7),(Z$2-$D7)*$C7))) -> 0 | AA44: =IF(ISBLANK($E7),0,IF(LEFT($E7,1)="c",(CallThv(AA$2,$D7,$J7/365,$Q$21,$K7,0)*$C7)-($C7*$F7),IF(LEFT($E7)="p",(putThv(AA$2,$D7,$J7/365,$Q$21,$K7,0)*$C7)-($C7*$F7),(AA$2-$D7)*$C7))) -> 0 | AB44: =IF(ISBLANK($E7),0,IF(LEFT($E7,1)="c",(CallThv(AB$2,$D7,$J7/365,$Q$21,$K7,0)*$C7)-($C7*$F7),IF(LEFT($E7)="p",(putThv(AB$2,$D7,$J7/365,$Q$21,$K7,0)*$C7)-($C7*$F7),(AB$2-$D7)*$C7))) -> 0 | AC44: =IF(ISBLANK($E7),0,IF(LEFT($E7,1)="c",(CallThv(AC$2,$D7,$J7/365,$Q$21,$K7,0)*$C7)-($C7*$F7),IF(LEFT($E7)="p",(putThv(AC$2,$D7,$J7/365,$Q$21,$K7,0)*$C7)-($C7*$F7),(AC$2-$D7)*$C7))) -> 0 | AD44: =IF(ISBLANK($E7),0,IF(LEFT($E7,1)="c",(CallThv(AD$2,$D7,$J7/365,$Q$21,$K7,0)*$C7)-($C7*$F7),IF(LEFT($E7)="p",(putThv(AD$2,$D7,$J7/365,$Q$21,$K7,0)*$C7)-($C7*$F7),(AD$2-$D7)*$C7))) -> 0 | AE44: =IF(ISBLANK($E7),0,IF(LEFT($E7,1)="c",(CallThv(AE$2,$D7,$J7/365,$Q$21,$K7,0)*$C7)-($C7*$F7),IF(LEFT($E7)="p",(putThv(AE$2,$D7,$J7/365,$Q$21,$K7,0)*$C7)-($C7*$F7),(AE$2-$D7)*$C7))) -> 0 | AF44: =IF(ISBLANK($E7),0,IF(LEFT($E7,1)="c",(CallThv(AF$2,$D7,$J7/365,$Q$21,$K7,0)*$C7)-($C7*$F7),IF(LEFT($E7)="p",(putThv(AF$2,$D7,$J7/365,$Q$21,$K7,0)*$C7)-($C7*$F7),(AF$2-$D7)*$C7))) -> 0 | AG44: =IF(ISBLANK($E7),0,IF(LEFT($E7,1)="c",(CallThv(AG$2,$D7,$J7/365,$Q$21,$K7,0)*$C7)-($C7*$F7),IF(LEFT($E7)="p",(putThv(AG$2,$D7,$J7/365,$Q$21,$K7,0)*$C7)-($C7*$F7),(AG$2-$D7)*$C7))) -> 0 | AH44: =IF(ISBLANK($E7),0,IF(LEFT($E7,1)="c",(CallThv(AH$2,$D7,$J7/365,$Q$21,$K7,0)*$C7)-($C7*$F7),IF(LEFT($E7)="p",(putThv(AH$2,$D7,$J7/365,$Q$21,$K7,0)*$C7)-($C7*$F7),(AH$2-$D7)*$C7))) -> 0
P45: =IF(ISBLANK($E8),0,IF(LEFT($E8,1)="c",(CallThv(P$2,$D8,$J8/365,$Q$21,$K8,0)*$C8)-($C8*$F8),IF(LEFT($E8)="p",(putThv(P$2,$D8,$J8/365,$Q$21,$K8,0)*$C8)-($C8*$F8),(P$2-$D8)*$C8))) -> 0 | Q45: =IF(ISBLANK($E8),0,IF(LEFT($E8,1)="c",(CallThv(Q$2,$D8,$J8/365,$Q$21,$K8,0)*$C8)-($C8*$F8),IF(LEFT($E8)="p",(putThv(Q$2,$D8,$J8/365,$Q$21,$K8,0)*$C8)-($C8*$F8),(Q$2-$D8)*$C8))) -> 0 | R45: =IF(ISBLANK($E8),0,IF(LEFT($E8,1)="c",(CallThv(R$2,$D8,$J8/365,$Q$21,$K8,0)*$C8)-($C8*$F8),IF(LEFT($E8)="p",(putThv(R$2,$D8,$J8/365,$Q$21,$K8,0)*$C8)-($C8*$F8),(R$2-$D8)*$C8))) -> 0 | S45: =IF(ISBLANK($E8),0,IF(LEFT($E8,1)="c",(CallThv(S$2,$D8,$J8/365,$Q$21,$K8,0)*$C8)-($C8*$F8),IF(LEFT($E8)="p",(putThv(S$2,$D8,$J8/365,$Q$21,$K8,0)*$C8)-($C8*$F8),(S$2-$D8)*$C8))) -> 0 | T45: =IF(ISBLANK($E8),0,IF(LEFT($E8,1)="c",(CallThv(T$2,$D8,$J8/365,$Q$21,$K8,0)*$C8)-($C8*$F8),IF(LEFT($E8)="p",(putThv(T$2,$D8,$J8/365,$Q$21,$K8,0)*$C8)-($C8*$F8),(T$2-$D8)*$C8))) -> 0 | U45: =IF(ISBLANK($E8),0,IF(LEFT($E8,1)="c",(CallThv(U$2,$D8,$J8/365,$Q$21,$K8,0)*$C8)-($C8*$F8),IF(LEFT($E8)="p",(putThv(U$2,$D8,$J8/365,$Q$21,$K8,0)*$C8)-($C8*$F8),(U$2-$D8)*$C8))) -> 0 | V45: =IF(ISBLANK($E8),0,IF(LEFT($E8,1)="c",(CallThv(V$2,$D8,$J8/365,$Q$21,$K8,0)*$C8)-($C8*$F8),IF(LEFT($E8)="p",(putThv(V$2,$D8,$J8/365,$Q$21,$K8,0)*$C8)-($C8*$F8),(V$2-$D8)*$C8))) -> 0 | W45: =IF(ISBLANK($E8),0,IF(LEFT($E8,1)="c",(CallThv(W$2,$D8,$J8/365,$Q$21,$K8,0)*$C8)-($C8*$F8),IF(LEFT($E8)="p",(putThv(W$2,$D8,$J8/365,$Q$21,$K8,0)*$C8)-($C8*$F8),(W$2-$D8)*$C8))) -> 0 | X45: =IF(ISBLANK($E8),0,IF(LEFT($E8,1)="c",(CallThv(X$2,$D8,$J8/365,$Q$21,$K8,0)*$C8)-($C8*$F8),IF(LEFT($E8)="p",(putThv(X$2,$D8,$J8/365,$Q$21,$K8,0)*$C8)-($C8*$F8),(X$2-$D8)*$C8))) -> 0 | Y45: =IF(ISBLANK($E8),0,IF(LEFT($E8,1)="c",(CallThv(Y$2,$D8,$J8/365,$Q$21,$K8,0)*$C8)-($C8*$F8),IF(LEFT($E8)="p",(putThv(Y$2,$D8,$J8/365,$Q$21,$K8,0)*$C8)-($C8*$F8),(Y$2-$D8)*$C8))) -> 0 | Z45: =IF(ISBLANK($E8),0,IF(LEFT($E8,1)="c",(CallThv(Z$2,$D8,$J8/365,$Q$21,$K8,0)*$C8)-($C8*$F8),IF(LEFT($E8)="p",(putThv(Z$2,$D8,$J8/365,$Q$21,$K8,0)*$C8)-($C8*$F8),(Z$2-$D8)*$C8))) -> 0 | AA45: =IF(ISBLANK($E8),0,IF(LEFT($E8,1)="c",(CallThv(AA$2,$D8,$J8/365,$Q$21,$K8,0)*$C8)-($C8*$F8),IF(LEFT($E8)="p",(putThv(AA$2,$D8,$J8/365,$Q$21,$K8,0)*$C8)-($C8*$F8),(AA$2-$D8)*$C8))) -> 0 | AB45: =IF(ISBLANK($E8),0,IF(LEFT($E8,1)="c",(CallThv(AB$2,$D8,$J8/365,$Q$21,$K8,0)*$C8)-($C8*$F8),IF(LEFT($E8)="p",(putThv(AB$2,$D8,$J8/365,$Q$21,$K8,0)*$C8)-($C8*$F8),(AB$2-$D8)*$C8))) -> 0 | AC45: =IF(ISBLANK($E8),0,IF(LEFT($E8,1)="c",(CallThv(AC$2,$D8,$J8/365,$Q$21,$K8,0)*$C8)-($C8*$F8),IF(LEFT($E8)="p",(putThv(AC$2,$D8,$J8/365,$Q$21,$K8,0)*$C8)-($C8*$F8),(AC$2-$D8)*$C8))) -> 0 | AD45: =IF(ISBLANK($E8),0,IF(LEFT($E8,1)="c",(CallThv(AD$2,$D8,$J8/365,$Q$21,$K8,0)*$C8)-($C8*$F8),IF(LEFT($E8)="p",(putThv(AD$2,$D8,$J8/365,$Q$21,$K8,0)*$C8)-($C8*$F8),(AD$2-$D8)*$C8))) -> 0 | AE45: =IF(ISBLANK($E8),0,IF(LEFT($E8,1)="c",(CallThv(AE$2,$D8,$J8/365,$Q$21,$K8,0)*$C8)-($C8*$F8),IF(LEFT($E8)="p",(putThv(AE$2,$D8,$J8/365,$Q$21,$K8,0)*$C8)-($C8*$F8),(AE$2-$D8)*$C8))) -> 0 | AF45: =IF(ISBLANK($E8),0,IF(LEFT($E8,1)="c",(CallThv(AF$2,$D8,$J8/365,$Q$21,$K8,0)*$C8)-($C8*$F8),IF(LEFT($E8)="p",(putThv(AF$2,$D8,$J8/365,$Q$21,$K8,0)*$C8)-($C8*$F8),(AF$2-$D8)*$C8))) -> 0 | AG45: =IF(ISBLANK($E8),0,IF(LEFT($E8,1)="c",(CallThv(AG$2,$D8,$J8/365,$Q$21,$K8,0)*$C8)-($C8*$F8),IF(LEFT($E8)="p",(putThv(AG$2,$D8,$J8/365,$Q$21,$K8,0)*$C8)-($C8*$F8),(AG$2-$D8)*$C8))) -> 0 | AH45: =IF(ISBLANK($E8),0,IF(LEFT($E8,1)="c",(CallThv(AH$2,$D8,$J8/365,$Q$21,$K8,0)*$C8)-($C8*$F8),IF(LEFT($E8)="p",(putThv(AH$2,$D8,$J8/365,$Q$21,$K8,0)*$C8)-($C8*$F8),(AH$2-$D8)*$C8))) -> 0
P46: =IF(ISBLANK($E9),0,IF(LEFT($E9,1)="c",(CallThv(P$2,$D9,$J9/365,$Q$21,$K9,0)*$C9)-($C9*$F9),IF(LEFT($E9)="p",(putThv(P$2,$D9,$J9/365,$Q$21,$K9,0)*$C9)-($C9*$F9),(P$2-$D9)*$C9))) -> 0 | Q46: =IF(ISBLANK($E9),0,IF(LEFT($E9,1)="c",(CallThv(Q$2,$D9,$J9/365,$Q$21,$K9,0)*$C9)-($C9*$F9),IF(LEFT($E9)="p",(putThv(Q$2,$D9,$J9/365,$Q$21,$K9,0)*$C9)-($C9*$F9),(Q$2-$D9)*$C9))) -> 0 | R46: =IF(ISBLANK($E9),0,IF(LEFT($E9,1)="c",(CallThv(R$2,$D9,$J9/365,$Q$21,$K9,0)*$C9)-($C9*$F9),IF(LEFT($E9)="p",(putThv(R$2,$D9,$J9/365,$Q$21,$K9,0)*$C9)-($C9*$F9),(R$2-$D9)*$C9))) -> 0 | S46: =IF(ISBLANK($E9),0,IF(LEFT($E9,1)="c",(CallThv(S$2,$D9,$J9/365,$Q$21,$K9,0)*$C9)-($C9*$F9),IF(LEFT($E9)="p",(putThv(S$2,$D9,$J9/365,$Q$21,$K9,0)*$C9)-($C9*$F9),(S$2-$D9)*$C9))) -> 0 | T46: =IF(ISBLANK($E9),0,IF(LEFT($E9,1)="c",(CallThv(T$2,$D9,$J9/365,$Q$21,$K9,0)*$C9)-($C9*$F9),IF(LEFT($E9)="p",(putThv(T$2,$D9,$J9/365,$Q$21,$K9,0)*$C9)-($C9*$F9),(T$2-$D9)*$C9))) -> 0 | U46: =IF(ISBLANK($E9),0,IF(LEFT($E9,1)="c",(CallThv(U$2,$D9,$J9/365,$Q$21,$K9,0)*$C9)-($C9*$F9),IF(LEFT($E9)="p",(putThv(U$2,$D9,$J9/365,$Q$21,$K9,0)*$C9)-($C9*$F9),(U$2-$D9)*$C9))) -> 0 | V46: =IF(ISBLANK($E9),0,IF(LEFT($E9,1)="c",(CallThv(V$2,$D9,$J9/365,$Q$21,$K9,0)*$C9)-($C9*$F9),IF(LEFT($E9)="p",(putThv(V$2,$D9,$J9/365,$Q$21,$K9,0)*$C9)-($C9*$F9),(V$2-$D9)*$C9))) -> 0 | W46: =IF(ISBLANK($E9),0,IF(LEFT($E9,1)="c",(CallThv(W$2,$D9,$J9/365,$Q$21,$K9,0)*$C9)-($C9*$F9),IF(LEFT($E9)="p",(putThv(W$2,$D9,$J9/365,$Q$21,$K9,0)*$C9)-($C9*$F9),(W$2-$D9)*$C9))) -> 0 | X46: =IF(ISBLANK($E9),0,IF(LEFT($E9,1)="c",(CallThv(X$2,$D9,$J9/365,$Q$21,$K9,0)*$C9)-($C9*$F9),IF(LEFT($E9)="p",(putThv(X$2,$D9,$J9/365,$Q$21,$K9,0)*$C9)-($C9*$F9),(X$2-$D9)*$C9))) -> 0 | Y46: =IF(ISBLANK($E9),0,IF(LEFT($E9,1)="c",(CallThv(Y$2,$D9,$J9/365,$Q$21,$K9,0)*$C9)-($C9*$F9),IF(LEFT($E9)="p",(putThv(Y$2,$D9,$J9/365,$Q$21,$K9,0)*$C9)-($C9*$F9),(Y$2-$D9)*$C9))) -> 0 | Z46: =IF(ISBLANK($E9),0,IF(LEFT($E9,1)="c",(CallThv(Z$2,$D9,$J9/365,$Q$21,$K9,0)*$C9)-($C9*$F9),IF(LEFT($E9)="p",(putThv(Z$2,$D9,$J9/365,$Q$21,$K9,0)*$C9)-($C9*$F9),(Z$2-$D9)*$C9))) -> 0 | AA46: =IF(ISBLANK($E9),0,IF(LEFT($E9,1)="c",(CallThv(AA$2,$D9,$J9/365,$Q$21,$K9,0)*$C9)-($C9*$F9),IF(LEFT($E9)="p",(putThv(AA$2,$D9,$J9/365,$Q$21,$K9,0)*$C9)-($C9*$F9),(AA$2-$D9)*$C9))) -> 0 | AB46: =IF(ISBLANK($E9),0,IF(LEFT($E9,1)="c",(CallThv(AB$2,$D9,$J9/365,$Q$21,$K9,0)*$C9)-($C9*$F9),IF(LEFT($E9)="p",(putThv(AB$2,$D9,$J9/365,$Q$21,$K9,0)*$C9)-($C9*$F9),(AB$2-$D9)*$C9))) -> 0 | AC46: =IF(ISBLANK($E9),0,IF(LEFT($E9,1)="c",(CallThv(AC$2,$D9,$J9/365,$Q$21,$K9,0)*$C9)-($C9*$F9),IF(LEFT($E9)="p",(putThv(AC$2,$D9,$J9/365,$Q$21,$K9,0)*$C9)-($C9*$F9),(AC$2-$D9)*$C9))) -> 0 | AD46: =IF(ISBLANK($E9),0,IF(LEFT($E9,1)="c",(CallThv(AD$2,$D9,$J9/365,$Q$21,$K9,0)*$C9)-($C9*$F9),IF(LEFT($E9)="p",(putThv(AD$2,$D9,$J9/365,$Q$21,$K9,0)*$C9)-($C9*$F9),(AD$2-$D9)*$C9))) -> 0 | AE46: =IF(ISBLANK($E9),0,IF(LEFT($E9,1)="c",(CallThv(AE$2,$D9,$J9/365,$Q$21,$K9,0)*$C9)-($C9*$F9),IF(LEFT($E9)="p",(putThv(AE$2,$D9,$J9/365,$Q$21,$K9,0)*$C9)-($C9*$F9),(AE$2-$D9)*$C9))) -> 0 | AF46: =IF(ISBLANK($E9),0,IF(LEFT($E9,1)="c",(CallThv(AF$2,$D9,$J9/365,$Q$21,$K9,0)*$C9)-($C9*$F9),IF(LEFT($E9)="p",(putThv(AF$2,$D9,$J9/365,$Q$21,$K9,0)*$C9)-($C9*$F9),(AF$2-$D9)*$C9))) -> 0 | AG46: =IF(ISBLANK($E9),0,IF(LEFT($E9,1)="c",(CallThv(AG$2,$D9,$J9/365,$Q$21,$K9,0)*$C9)-($C9*$F9),IF(LEFT($E9)="p",(putThv(AG$2,$D9,$J9/365,$Q$21,$K9,0)*$C9)-($C9*$F9),(AG$2-$D9)*$C9))) -> 0 | AH46: =IF(ISBLANK($E9),0,IF(LEFT($E9,1)="c",(CallThv(AH$2,$D9,$J9/365,$Q$21,$K9,0)*$C9)-($C9*$F9),IF(LEFT($E9)="p",(putThv(AH$2,$D9,$J9/365,$Q$21,$K9,0)*$C9)-($C9*$F9),(AH$2-$D9)*$C9))) -> 0
P47: =IF(ISBLANK($E10),0,IF(LEFT($E10,1)="c",(CallThv(P$2,$D10,$J10/365,$Q$21,$K10,0)*$C10)-($C10*$F10),IF(LEFT($E10)="p",(putThv(P$2,$D10,$J10/365,$Q$21,$K10,0)*$C10)-($C10*$F10),(P$2-$D10)*$C10))) -> 0 | Q47: =IF(ISBLANK($E10),0,IF(LEFT($E10,1)="c",(CallThv(Q$2,$D10,$J10/365,$Q$21,$K10,0)*$C10)-($C10*$F10),IF(LEFT($E10)="p",(putThv(Q$2,$D10,$J10/365,$Q$21,$K10,0)*$C10)-($C10*$F10),(Q$2-$D10)*$C10))) -> 0 | R47: =IF(ISBLANK($E10),0,IF(LEFT($E10,1)="c",(CallThv(R$2,$D10,$J10/365,$Q$21,$K10,0)*$C10)-($C10*$F10),IF(LEFT($E10)="p",(putThv(R$2,$D10,$J10/365,$Q$21,$K10,0)*$C10)-($C10*$F10),(R$2-$D10)*$C10))) -> 0 | S47: =IF(ISBLANK($E10),0,IF(LEFT($E10,1)="c",(CallThv(S$2,$D10,$J10/365,$Q$21,$K10,0)*$C10)-($C10*$F10),IF(LEFT($E10)="p",(putThv(S$2,$D10,$J10/365,$Q$21,$K10,0)*$C10)-($C10*$F10),(S$2-$D10)*$C10))) -> 0 | T47: =IF(ISBLANK($E10),0,IF(LEFT($E10,1)="c",(CallThv(T$2,$D10,$J10/365,$Q$21,$K10,0)*$C10)-($C10*$F10),IF(LEFT($E10)="p",(putThv(T$2,$D10,$J10/365,$Q$21,$K10,0)*$C10)-($C10*$F10),(T$2-$D10)*$C10))) -> 0 | U47: =IF(ISBLANK($E10),0,IF(LEFT($E10,1)="c",(CallThv(U$2,$D10,$J10/365,$Q$21,$K10,0)*$C10)-($C10*$F10),IF(LEFT($E10)="p",(putThv(U$2,$D10,$J10/365,$Q$21,$K10,0)*$C10)-($C10*$F10),(U$2-$D10)*$C10))) -> 0 | V47: =IF(ISBLANK($E10),0,IF(LEFT($E10,1)="c",(CallThv(V$2,$D10,$J10/365,$Q$21,$K10,0)*$C10)-($C10*$F10),IF(LEFT($E10)="p",(putThv(V$2,$D10,$J10/365,$Q$21,$K10,0)*$C10)-($C10*$F10),(V$2-$D10)*$C10))) -> 0 | W47: =IF(ISBLANK($E10),0,IF(LEFT($E10,1)="c",(CallThv(W$2,$D10,$J10/365,$Q$21,$K10,0)*$C10)-($C10*$F10),IF(LEFT($E10)="p",(putThv(W$2,$D10,$J10/365,$Q$21,$K10,0)*$C10)-($C10*$F10),(W$2-$D10)*$C10))) -> 0 | X47: =IF(ISBLANK($E10),0,IF(LEFT($E10,1)="c",(CallThv(X$2,$D10,$J10/365,$Q$21,$K10,0)*$C10)-($C10*$F10),IF(LEFT($E10)="p",(putThv(X$2,$D10,$J10/365,$Q$21,$K10,0)*$C10)-($C10*$F10),(X$2-$D10)*$C10))) -> 0 | Y47: =IF(ISBLANK($E10),0,IF(LEFT($E10,1)="c",(CallThv(Y$2,$D10,$J10/365,$Q$21,$K10,0)*$C10)-($C10*$F10),IF(LEFT($E10)="p",(putThv(Y$2,$D10,$J10/365,$Q$21,$K10,0)*$C10)-($C10*$F10),(Y$2-$D10)*$C10))) -> 0 | Z47: =IF(ISBLANK($E10),0,IF(LEFT($E10,1)="c",(CallThv(Z$2,$D10,$J10/365,$Q$21,$K10,0)*$C10)-($C10*$F10),IF(LEFT($E10)="p",(putThv(Z$2,$D10,$J10/365,$Q$21,$K10,0)*$C10)-($C10*$F10),(Z$2-$D10)*$C10))) -> 0 | AA47: =IF(ISBLANK($E10),0,IF(LEFT($E10,1)="c",(CallThv(AA$2,$D10,$J10/365,$Q$21,$K10,0)*$C10)-($C10*$F10),IF(LEFT($E10)="p",(putThv(AA$2,$D10,$J10/365,$Q$21,$K10,0)*$C10)-($C10*$F10),(AA$2-$D10)*$C10))) -> 0 | AB47: =IF(ISBLANK($E10),0,IF(LEFT($E10,1)="c",(CallThv(AB$2,$D10,$J10/365,$Q$21,$K10,0)*$C10)-($C10*$F10),IF(LEFT($E10)="p",(putThv(AB$2,$D10,$J10/365,$Q$21,$K10,0)*$C10)-($C10*$F10),(AB$2-$D10)*$C10))) -> 0 | AC47: =IF(ISBLANK($E10),0,IF(LEFT($E10,1)="c",(CallThv(AC$2,$D10,$J10/365,$Q$21,$K10,0)*$C10)-($C10*$F10),IF(LEFT($E10)="p",(putThv(AC$2,$D10,$J10/365,$Q$21,$K10,0)*$C10)-($C10*$F10),(AC$2-$D10)*$C10))) -> 0 | AD47: =IF(ISBLANK($E10),0,IF(LEFT($E10,1)="c",(CallThv(AD$2,$D10,$J10/365,$Q$21,$K10,0)*$C10)-($C10*$F10),IF(LEFT($E10)="p",(putThv(AD$2,$D10,$J10/365,$Q$21,$K10,0)*$C10)-($C10*$F10),(AD$2-$D10)*$C10))) -> 0 | AE47: =IF(ISBLANK($E10),0,IF(LEFT($E10,1)="c",(CallThv(AE$2,$D10,$J10/365,$Q$21,$K10,0)*$C10)-($C10*$F10),IF(LEFT($E10)="p",(putThv(AE$2,$D10,$J10/365,$Q$21,$K10,0)*$C10)-($C10*$F10),(AE$2-$D10)*$C10))) -> 0 | AF47: =IF(ISBLANK($E10),0,IF(LEFT($E10,1)="c",(CallThv(AF$2,$D10,$J10/365,$Q$21,$K10,0)*$C10)-($C10*$F10),IF(LEFT($E10)="p",(putThv(AF$2,$D10,$J10/365,$Q$21,$K10,0)*$C10)-($C10*$F10),(AF$2-$D10)*$C10))) -> 0 | AG47: =IF(ISBLANK($E10),0,IF(LEFT($E10,1)="c",(CallThv(AG$2,$D10,$J10/365,$Q$21,$K10,0)*$C10)-($C10*$F10),IF(LEFT($E10)="p",(putThv(AG$2,$D10,$J10/365,$Q$21,$K10,0)*$C10)-($C10*$F10),(AG$2-$D10)*$C10))) -> 0 | AH47: =IF(ISBLANK($E10),0,IF(LEFT($E10,1)="c",(CallThv(AH$2,$D10,$J10/365,$Q$21,$K10,0)*$C10)-($C10*$F10),IF(LEFT($E10)="p",(putThv(AH$2,$D10,$J10/365,$Q$21,$K10,0)*$C10)-($C10*$F10),(AH$2-$D10)*$C10))) -> 0
P48: =IF(ISBLANK($E11),0,IF(LEFT($E11,1)="c",(CallThv(P$2,$D11,$J11/365,$Q$21,$K11,0)*$C11)-($C11*$F11),IF(LEFT($E11)="p",(putThv(P$2,$D11,$J11/365,$Q$21,$K11,0)*$C11)-($C11*$F11),(P$2-$D11)*$C11))) -> 0 | Q48: =IF(ISBLANK($E11),0,IF(LEFT($E11,1)="c",(CallThv(Q$2,$D11,$J11/365,$Q$21,$K11,0)*$C11)-($C11*$F11),IF(LEFT($E11)="p",(putThv(Q$2,$D11,$J11/365,$Q$21,$K11,0)*$C11)-($C11*$F11),(Q$2-$D11)*$C11))) -> 0 | R48: =IF(ISBLANK($E11),0,IF(LEFT($E11,1)="c",(CallThv(R$2,$D11,$J11/365,$Q$21,$K11,0)*$C11)-($C11*$F11),IF(LEFT($E11)="p",(putThv(R$2,$D11,$J11/365,$Q$21,$K11,0)*$C11)-($C11*$F11),(R$2-$D11)*$C11))) -> 0 | S48: =IF(ISBLANK($E11),0,IF(LEFT($E11,1)="c",(CallThv(S$2,$D11,$J11/365,$Q$21,$K11,0)*$C11)-($C11*$F11),IF(LEFT($E11)="p",(putThv(S$2,$D11,$J11/365,$Q$21,$K11,0)*$C11)-($C11*$F11),(S$2-$D11)*$C11))) -> 0 | T48: =IF(ISBLANK($E11),0,IF(LEFT($E11,1)="c",(CallThv(T$2,$D11,$J11/365,$Q$21,$K11,0)*$C11)-($C11*$F11),IF(LEFT($E11)="p",(putThv(T$2,$D11,$J11/365,$Q$21,$K11,0)*$C11)-($C11*$F11),(T$2-$D11)*$C11))) -> 0 | U48: =IF(ISBLANK($E11),0,IF(LEFT($E11,1)="c",(CallThv(U$2,$D11,$J11/365,$Q$21,$K11,0)*$C11)-($C11*$F11),IF(LEFT($E11)="p",(putThv(U$2,$D11,$J11/365,$Q$21,$K11,0)*$C11)-($C11*$F11),(U$2-$D11)*$C11))) -> 0 | V48: =IF(ISBLANK($E11),0,IF(LEFT($E11,1)="c",(CallThv(V$2,$D11,$J11/365,$Q$21,$K11,0)*$C11)-($C11*$F11),IF(LEFT($E11)="p",(putThv(V$2,$D11,$J11/365,$Q$21,$K11,0)*$C11)-($C11*$F11),(V$2-$D11)*$C11))) -> 0 | W48: =IF(ISBLANK($E11),0,IF(LEFT($E11,1)="c",(CallThv(W$2,$D11,$J11/365,$Q$21,$K11,0)*$C11)-($C11*$F11),IF(LEFT($E11)="p",(putThv(W$2,$D11,$J11/365,$Q$21,$K11,0)*$C11)-($C11*$F11),(W$2-$D11)*$C11))) -> 0 | X48: =IF(ISBLANK($E11),0,IF(LEFT($E11,1)="c",(CallThv(X$2,$D11,$J11/365,$Q$21,$K11,0)*$C11)-($C11*$F11),IF(LEFT($E11)="p",(putThv(X$2,$D11,$J11/365,$Q$21,$K11,0)*$C11)-($C11*$F11),(X$2-$D11)*$C11))) -> 0 | Y48: =IF(ISBLANK($E11),0,IF(LEFT($E11,1)="c",(CallThv(Y$2,$D11,$J11/365,$Q$21,$K11,0)*$C11)-($C11*$F11),IF(LEFT($E11)="p",(putThv(Y$2,$D11,$J11/365,$Q$21,$K11,0)*$C11)-($C11*$F11),(Y$2-$D11)*$C11))) -> 0 | Z48: =IF(ISBLANK($E11),0,IF(LEFT($E11,1)="c",(CallThv(Z$2,$D11,$J11/365,$Q$21,$K11,0)*$C11)-($C11*$F11),IF(LEFT($E11)="p",(putThv(Z$2,$D11,$J11/365,$Q$21,$K11,0)*$C11)-($C11*$F11),(Z$2-$D11)*$C11))) -> 0 | AA48: =IF(ISBLANK($E11),0,IF(LEFT($E11,1)="c",(CallThv(AA$2,$D11,$J11/365,$Q$21,$K11,0)*$C11)-($C11*$F11),IF(LEFT($E11)="p",(putThv(AA$2,$D11,$J11/365,$Q$21,$K11,0)*$C11)-($C11*$F11),(AA$2-$D11)*$C11))) -> 0 | AB48: =IF(ISBLANK($E11),0,IF(LEFT($E11,1)="c",(CallThv(AB$2,$D11,$J11/365,$Q$21,$K11,0)*$C11)-($C11*$F11),IF(LEFT($E11)="p",(putThv(AB$2,$D11,$J11/365,$Q$21,$K11,0)*$C11)-($C11*$F11),(AB$2-$D11)*$C11))) -> 0 | AC48: =IF(ISBLANK($E11),0,IF(LEFT($E11,1)="c",(CallThv(AC$2,$D11,$J11/365,$Q$21,$K11,0)*$C11)-($C11*$F11),IF(LEFT($E11)="p",(putThv(AC$2,$D11,$J11/365,$Q$21,$K11,0)*$C11)-($C11*$F11),(AC$2-$D11)*$C11))) -> 0 | AD48: =IF(ISBLANK($E11),0,IF(LEFT($E11,1)="c",(CallThv(AD$2,$D11,$J11/365,$Q$21,$K11,0)*$C11)-($C11*$F11),IF(LEFT($E11)="p",(putThv(AD$2,$D11,$J11/365,$Q$21,$K11,0)*$C11)-($C11*$F11),(AD$2-$D11)*$C11))) -> 0 | AE48: =IF(ISBLANK($E11),0,IF(LEFT($E11,1)="c",(CallThv(AE$2,$D11,$J11/365,$Q$21,$K11,0)*$C11)-($C11*$F11),IF(LEFT($E11)="p",(putThv(AE$2,$D11,$J11/365,$Q$21,$K11,0)*$C11)-($C11*$F11),(AE$2-$D11)*$C11))) -> 0 | AF48: =IF(ISBLANK($E11),0,IF(LEFT($E11,1)="c",(CallThv(AF$2,$D11,$J11/365,$Q$21,$K11,0)*$C11)-($C11*$F11),IF(LEFT($E11)="p",(putThv(AF$2,$D11,$J11/365,$Q$21,$K11,0)*$C11)-($C11*$F11),(AF$2-$D11)*$C11))) -> 0 | AG48: =IF(ISBLANK($E11),0,IF(LEFT($E11,1)="c",(CallThv(AG$2,$D11,$J11/365,$Q$21,$K11,0)*$C11)-($C11*$F11),IF(LEFT($E11)="p",(putThv(AG$2,$D11,$J11/365,$Q$21,$K11,0)*$C11)-($C11*$F11),(AG$2-$D11)*$C11))) -> 0 | AH48: =IF(ISBLANK($E11),0,IF(LEFT($E11,1)="c",(CallThv(AH$2,$D11,$J11/365,$Q$21,$K11,0)*$C11)-($C11*$F11),IF(LEFT($E11)="p",(putThv(AH$2,$D11,$J11/365,$Q$21,$K11,0)*$C11)-($C11*$F11),(AH$2-$D11)*$C11))) -> 0
P49: =IF(ISBLANK($E12),0,IF(LEFT($E12,1)="c",(CallThv(P$2,$D12,$J12/365,$Q$21,$K12,0)*$C12)-($C12*$F12),IF(LEFT($E12)="p",(putThv(P$2,$D12,$J12/365,$Q$21,$K12,0)*$C12)-($C12*$F12),(P$2-$D12)*$C12))) -> 0 | Q49: =IF(ISBLANK($E12),0,IF(LEFT($E12,1)="c",(CallThv(Q$2,$D12,$J12/365,$Q$21,$K12,0)*$C12)-($C12*$F12),IF(LEFT($E12)="p",(putThv(Q$2,$D12,$J12/365,$Q$21,$K12,0)*$C12)-($C12*$F12),(Q$2-$D12)*$C12))) -> 0 | R49: =IF(ISBLANK($E12),0,IF(LEFT($E12,1)="c",(CallThv(R$2,$D12,$J12/365,$Q$21,$K12,0)*$C12)-($C12*$F12),IF(LEFT($E12)="p",(putThv(R$2,$D12,$J12/365,$Q$21,$K12,0)*$C12)-($C12*$F12),(R$2-$D12)*$C12))) -> 0 | S49: =IF(ISBLANK($E12),0,IF(LEFT($E12,1)="c",(CallThv(S$2,$D12,$J12/365,$Q$21,$K12,0)*$C12)-($C12*$F12),IF(LEFT($E12)="p",(putThv(S$2,$D12,$J12/365,$Q$21,$K12,0)*$C12)-($C12*$F12),(S$2-$D12)*$C12))) -> 0 | T49: =IF(ISBLANK($E12),0,IF(LEFT($E12,1)="c",(CallThv(T$2,$D12,$J12/365,$Q$21,$K12,0)*$C12)-($C12*$F12),IF(LEFT($E12)="p",(putThv(T$2,$D12,$J12/365,$Q$21,$K12,0)*$C12)-($C12*$F12),(T$2-$D12)*$C12))) -> 0 | U49: =IF(ISBLANK($E12),0,IF(LEFT($E12,1)="c",(CallThv(U$2,$D12,$J12/365,$Q$21,$K12,0)*$C12)-($C12*$F12),IF(LEFT($E12)="p",(putThv(U$2,$D12,$J12/365,$Q$21,$K12,0)*$C12)-($C12*$F12),(U$2-$D12)*$C12))) -> 0 | V49: =IF(ISBLANK($E12),0,IF(LEFT($E12,1)="c",(CallThv(V$2,$D12,$J12/365,$Q$21,$K12,0)*$C12)-($C12*$F12),IF(LEFT($E12)="p",(putThv(V$2,$D12,$J12/365,$Q$21,$K12,0)*$C12)-($C12*$F12),(V$2-$D12)*$C12))) -> 0 | W49: =IF(ISBLANK($E12),0,IF(LEFT($E12,1)="c",(CallThv(W$2,$D12,$J12/365,$Q$21,$K12,0)*$C12)-($C12*$F12),IF(LEFT($E12)="p",(putThv(W$2,$D12,$J12/365,$Q$21,$K12,0)*$C12)-($C12*$F12),(W$2-$D12)*$C12))) -> 0 | X49: =IF(ISBLANK($E12),0,IF(LEFT($E12,1)="c",(CallThv(X$2,$D12,$J12/365,$Q$21,$K12,0)*$C12)-($C12*$F12),IF(LEFT($E12)="p",(putThv(X$2,$D12,$J12/365,$Q$21,$K12,0)*$C12)-($C12*$F12),(X$2-$D12)*$C12))) -> 0 | Y49: =IF(ISBLANK($E12),0,IF(LEFT($E12,1)="c",(CallThv(Y$2,$D12,$J12/365,$Q$21,$K12,0)*$C12)-($C12*$F12),IF(LEFT($E12)="p",(putThv(Y$2,$D12,$J12/365,$Q$21,$K12,0)*$C12)-($C12*$F12),(Y$2-$D12)*$C12))) -> 0 | Z49: =IF(ISBLANK($E12),0,IF(LEFT($E12,1)="c",(CallThv(Z$2,$D12,$J12/365,$Q$21,$K12,0)*$C12)-($C12*$F12),IF(LEFT($E12)="p",(putThv(Z$2,$D12,$J12/365,$Q$21,$K12,0)*$C12)-($C12*$F12),(Z$2-$D12)*$C12))) -> 0 | AA49: =IF(ISBLANK($E12),0,IF(LEFT($E12,1)="c",(CallThv(AA$2,$D12,$J12/365,$Q$21,$K12,0)*$C12)-($C12*$F12),IF(LEFT($E12)="p",(putThv(AA$2,$D12,$J12/365,$Q$21,$K12,0)*$C12)-($C12*$F12),(AA$2-$D12)*$C12))) -> 0 | AB49: =IF(ISBLANK($E12),0,IF(LEFT($E12,1)="c",(CallThv(AB$2,$D12,$J12/365,$Q$21,$K12,0)*$C12)-($C12*$F12),IF(LEFT($E12)="p",(putThv(AB$2,$D12,$J12/365,$Q$21,$K12,0)*$C12)-($C12*$F12),(AB$2-$D12)*$C12))) -> 0 | AC49: =IF(ISBLANK($E12),0,IF(LEFT($E12,1)="c",(CallThv(AC$2,$D12,$J12/365,$Q$21,$K12,0)*$C12)-($C12*$F12),IF(LEFT($E12)="p",(putThv(AC$2,$D12,$J12/365,$Q$21,$K12,0)*$C12)-($C12*$F12),(AC$2-$D12)*$C12))) -> 0 | AD49: =IF(ISBLANK($E12),0,IF(LEFT($E12,1)="c",(CallThv(AD$2,$D12,$J12/365,$Q$21,$K12,0)*$C12)-($C12*$F12),IF(LEFT($E12)="p",(putThv(AD$2,$D12,$J12/365,$Q$21,$K12,0)*$C12)-($C12*$F12),(AD$2-$D12)*$C12))) -> 0 | AE49: =IF(ISBLANK($E12),0,IF(LEFT($E12,1)="c",(CallThv(AE$2,$D12,$J12/365,$Q$21,$K12,0)*$C12)-($C12*$F12),IF(LEFT($E12)="p",(putThv(AE$2,$D12,$J12/365,$Q$21,$K12,0)*$C12)-($C12*$F12),(AE$2-$D12)*$C12))) -> 0 | AF49: =IF(ISBLANK($E12),0,IF(LEFT($E12,1)="c",(CallThv(AF$2,$D12,$J12/365,$Q$21,$K12,0)*$C12)-($C12*$F12),IF(LEFT($E12)="p",(putThv(AF$2,$D12,$J12/365,$Q$21,$K12,0)*$C12)-($C12*$F12),(AF$2-$D12)*$C12))) -> 0 | AG49: =IF(ISBLANK($E12),0,IF(LEFT($E12,1)="c",(CallThv(AG$2,$D12,$J12/365,$Q$21,$K12,0)*$C12)-($C12*$F12),IF(LEFT($E12)="p",(putThv(AG$2,$D12,$J12/365,$Q$21,$K12,0)*$C12)-($C12*$F12),(AG$2-$D12)*$C12))) -> 0 | AH49: =IF(ISBLANK($E12),0,IF(LEFT($E12,1)="c",(CallThv(AH$2,$D12,$J12/365,$Q$21,$K12,0)*$C12)-($C12*$F12),IF(LEFT($E12)="p",(putThv(AH$2,$D12,$J12/365,$Q$21,$K12,0)*$C12)-($C12*$F12),(AH$2-$D12)*$C12))) -> 0
P50: =IF(ISBLANK($E13),0,IF(LEFT($E13,1)="c",(CallThv(P$2,$D13,$J13/365,$Q$21,$K13,0)*$C13)-($C13*$F13),IF(LEFT($E13)="p",(putThv(P$2,$D13,$J13/365,$Q$21,$K13,0)*$C13)-($C13*$F13),(P$2-$D13)*$C13))) -> 0 | Q50: =IF(ISBLANK($E13),0,IF(LEFT($E13,1)="c",(CallThv(Q$2,$D13,$J13/365,$Q$21,$K13,0)*$C13)-($C13*$F13),IF(LEFT($E13)="p",(putThv(Q$2,$D13,$J13/365,$Q$21,$K13,0)*$C13)-($C13*$F13),(Q$2-$D13)*$C13))) -> 0 | R50: =IF(ISBLANK($E13),0,IF(LEFT($E13,1)="c",(CallThv(R$2,$D13,$J13/365,$Q$21,$K13,0)*$C13)-($C13*$F13),IF(LEFT($E13)="p",(putThv(R$2,$D13,$J13/365,$Q$21,$K13,0)*$C13)-($C13*$F13),(R$2-$D13)*$C13))) -> 0 | S50: =IF(ISBLANK($E13),0,IF(LEFT($E13,1)="c",(CallThv(S$2,$D13,$J13/365,$Q$21,$K13,0)*$C13)-($C13*$F13),IF(LEFT($E13)="p",(putThv(S$2,$D13,$J13/365,$Q$21,$K13,0)*$C13)-($C13*$F13),(S$2-$D13)*$C13))) -> 0 | T50: =IF(ISBLANK($E13),0,IF(LEFT($E13,1)="c",(CallThv(T$2,$D13,$J13/365,$Q$21,$K13,0)*$C13)-($C13*$F13),IF(LEFT($E13)="p",(putThv(T$2,$D13,$J13/365,$Q$21,$K13,0)*$C13)-($C13*$F13),(T$2-$D13)*$C13))) -> 0 | U50: =IF(ISBLANK($E13),0,IF(LEFT($E13,1)="c",(CallThv(U$2,$D13,$J13/365,$Q$21,$K13,0)*$C13)-($C13*$F13),IF(LEFT($E13)="p",(putThv(U$2,$D13,$J13/365,$Q$21,$K13,0)*$C13)-($C13*$F13),(U$2-$D13)*$C13))) -> 0 | V50: =IF(ISBLANK($E13),0,IF(LEFT($E13,1)="c",(CallThv(V$2,$D13,$J13/365,$Q$21,$K13,0)*$C13)-($C13*$F13),IF(LEFT($E13)="p",(putThv(V$2,$D13,$J13/365,$Q$21,$K13,0)*$C13)-($C13*$F13),(V$2-$D13)*$C13))) -> 0 | W50: =IF(ISBLANK($E13),0,IF(LEFT($E13,1)="c",(CallThv(W$2,$D13,$J13/365,$Q$21,$K13,0)*$C13)-($C13*$F13),IF(LEFT($E13)="p",(putThv(W$2,$D13,$J13/365,$Q$21,$K13,0)*$C13)-($C13*$F13),(W$2-$D13)*$C13))) -> 0 | X50: =IF(ISBLANK($E13),0,IF(LEFT($E13,1)="c",(CallThv(X$2,$D13,$J13/365,$Q$21,$K13,0)*$C13)-($C13*$F13),IF(LEFT($E13)="p",(putThv(X$2,$D13,$J13/365,$Q$21,$K13,0)*$C13)-($C13*$F13),(X$2-$D13)*$C13))) -> 0 | Y50: =IF(ISBLANK($E13),0,IF(LEFT($E13,1)="c",(CallThv(Y$2,$D13,$J13/365,$Q$21,$K13,0)*$C13)-($C13*$F13),IF(LEFT($E13)="p",(putThv(Y$2,$D13,$J13/365,$Q$21,$K13,0)*$C13)-($C13*$F13),(Y$2-$D13)*$C13))) -> 0 | Z50: =IF(ISBLANK($E13),0,IF(LEFT($E13,1)="c",(CallThv(Z$2,$D13,$J13/365,$Q$21,$K13,0)*$C13)-($C13*$F13),IF(LEFT($E13)="p",(putThv(Z$2,$D13,$J13/365,$Q$21,$K13,0)*$C13)-($C13*$F13),(Z$2-$D13)*$C13))) -> 0 | AA50: =IF(ISBLANK($E13),0,IF(LEFT($E13,1)="c",(CallThv(AA$2,$D13,$J13/365,$Q$21,$K13,0)*$C13)-($C13*$F13),IF(LEFT($E13)="p",(putThv(AA$2,$D13,$J13/365,$Q$21,$K13,0)*$C13)-($C13*$F13),(AA$2-$D13)*$C13))) -> 0 | AB50: =IF(ISBLANK($E13),0,IF(LEFT($E13,1)="c",(CallThv(AB$2,$D13,$J13/365,$Q$21,$K13,0)*$C13)-($C13*$F13),IF(LEFT($E13)="p",(putThv(AB$2,$D13,$J13/365,$Q$21,$K13,0)*$C13)-($C13*$F13),(AB$2-$D13)*$C13))) -> 0 | AC50: =IF(ISBLANK($E13),0,IF(LEFT($E13,1)="c",(CallThv(AC$2,$D13,$J13/365,$Q$21,$K13,0)*$C13)-($C13*$F13),IF(LEFT($E13)="p",(putThv(AC$2,$D13,$J13/365,$Q$21,$K13,0)*$C13)-($C13*$F13),(AC$2-$D13)*$C13))) -> 0 | AD50: =IF(ISBLANK($E13),0,IF(LEFT($E13,1)="c",(CallThv(AD$2,$D13,$J13/365,$Q$21,$K13,0)*$C13)-($C13*$F13),IF(LEFT($E13)="p",(putThv(AD$2,$D13,$J13/365,$Q$21,$K13,0)*$C13)-($C13*$F13),(AD$2-$D13)*$C13))) -> 0 | AE50: =IF(ISBLANK($E13),0,IF(LEFT($E13,1)="c",(CallThv(AE$2,$D13,$J13/365,$Q$21,$K13,0)*$C13)-($C13*$F13),IF(LEFT($E13)="p",(putThv(AE$2,$D13,$J13/365,$Q$21,$K13,0)*$C13)-($C13*$F13),(AE$2-$D13)*$C13))) -> 0 | AF50: =IF(ISBLANK($E13),0,IF(LEFT($E13,1)="c",(CallThv(AF$2,$D13,$J13/365,$Q$21,$K13,0)*$C13)-($C13*$F13),IF(LEFT($E13)="p",(putThv(AF$2,$D13,$J13/365,$Q$21,$K13,0)*$C13)-($C13*$F13),(AF$2-$D13)*$C13))) -> 0 | AG50: =IF(ISBLANK($E13),0,IF(LEFT($E13,1)="c",(CallThv(AG$2,$D13,$J13/365,$Q$21,$K13,0)*$C13)-($C13*$F13),IF(LEFT($E13)="p",(putThv(AG$2,$D13,$J13/365,$Q$21,$K13,0)*$C13)-($C13*$F13),(AG$2-$D13)*$C13))) -> 0 | AH50: =IF(ISBLANK($E13),0,IF(LEFT($E13,1)="c",(CallThv(AH$2,$D13,$J13/365,$Q$21,$K13,0)*$C13)-($C13*$F13),IF(LEFT($E13)="p",(putThv(AH$2,$D13,$J13/365,$Q$21,$K13,0)*$C13)-($C13*$F13),(AH$2-$D13)*$C13))) -> 0
P51: =IF(ISBLANK($E14),0,IF(LEFT($E14,1)="c",(CallThv(P$2,$D14,$J14/365,$Q$21,$K14,0)*$C14)-($C14*$F14),IF(LEFT($E14)="p",(putThv(P$2,$D14,$J14/365,$Q$21,$K14,0)*$C14)-($C14*$F14),(P$2-$D14)*$C14))) -> 0 | Q51: =IF(ISBLANK($E14),0,IF(LEFT($E14,1)="c",(CallThv(Q$2,$D14,$J14/365,$Q$21,$K14,0)*$C14)-($C14*$F14),IF(LEFT($E14)="p",(putThv(Q$2,$D14,$J14/365,$Q$21,$K14,0)*$C14)-($C14*$F14),(Q$2-$D14)*$C14))) -> 0 | R51: =IF(ISBLANK($E14),0,IF(LEFT($E14,1)="c",(CallThv(R$2,$D14,$J14/365,$Q$21,$K14,0)*$C14)-($C14*$F14),IF(LEFT($E14)="p",(putThv(R$2,$D14,$J14/365,$Q$21,$K14,0)*$C14)-($C14*$F14),(R$2-$D14)*$C14))) -> 0 | S51: =IF(ISBLANK($E14),0,IF(LEFT($E14,1)="c",(CallThv(S$2,$D14,$J14/365,$Q$21,$K14,0)*$C14)-($C14*$F14),IF(LEFT($E14)="p",(putThv(S$2,$D14,$J14/365,$Q$21,$K14,0)*$C14)-($C14*$F14),(S$2-$D14)*$C14))) -> 0 | T51: =IF(ISBLANK($E14),0,IF(LEFT($E14,1)="c",(CallThv(T$2,$D14,$J14/365,$Q$21,$K14,0)*$C14)-($C14*$F14),IF(LEFT($E14)="p",(putThv(T$2,$D14,$J14/365,$Q$21,$K14,0)*$C14)-($C14*$F14),(T$2-$D14)*$C14))) -> 0 | U51: =IF(ISBLANK($E14),0,IF(LEFT($E14,1)="c",(CallThv(U$2,$D14,$J14/365,$Q$21,$K14,0)*$C14)-($C14*$F14),IF(LEFT($E14)="p",(putThv(U$2,$D14,$J14/365,$Q$21,$K14,0)*$C14)-($C14*$F14),(U$2-$D14)*$C14))) -> 0 | V51: =IF(ISBLANK($E14),0,IF(LEFT($E14,1)="c",(CallThv(V$2,$D14,$J14/365,$Q$21,$K14,0)*$C14)-($C14*$F14),IF(LEFT($E14)="p",(putThv(V$2,$D14,$J14/365,$Q$21,$K14,0)*$C14)-($C14*$F14),(V$2-$D14)*$C14))) -> 0 | W51: =IF(ISBLANK($E14),0,IF(LEFT($E14,1)="c",(CallThv(W$2,$D14,$J14/365,$Q$21,$K14,0)*$C14)-($C14*$F14),IF(LEFT($E14)="p",(putThv(W$2,$D14,$J14/365,$Q$21,$K14,0)*$C14)-($C14*$F14),(W$2-$D14)*$C14))) -> 0 | X51: =IF(ISBLANK($E14),0,IF(LEFT($E14,1)="c",(CallThv(X$2,$D14,$J14/365,$Q$21,$K14,0)*$C14)-($C14*$F14),IF(LEFT($E14)="p",(putThv(X$2,$D14,$J14/365,$Q$21,$K14,0)*$C14)-($C14*$F14),(X$2-$D14)*$C14))) -> 0 | Y51: =IF(ISBLANK($E14),0,IF(LEFT($E14,1)="c",(CallThv(Y$2,$D14,$J14/365,$Q$21,$K14,0)*$C14)-($C14*$F14),IF(LEFT($E14)="p",(putThv(Y$2,$D14,$J14/365,$Q$21,$K14,0)*$C14)-($C14*$F14),(Y$2-$D14)*$C14))) -> 0 | Z51: =IF(ISBLANK($E14),0,IF(LEFT($E14,1)="c",(CallThv(Z$2,$D14,$J14/365,$Q$21,$K14,0)*$C14)-($C14*$F14),IF(LEFT($E14)="p",(putThv(Z$2,$D14,$J14/365,$Q$21,$K14,0)*$C14)-($C14*$F14),(Z$2-$D14)*$C14))) -> 0 | AA51: =IF(ISBLANK($E14),0,IF(LEFT($E14,1)="c",(CallThv(AA$2,$D14,$J14/365,$Q$21,$K14,0)*$C14)-($C14*$F14),IF(LEFT($E14)="p",(putThv(AA$2,$D14,$J14/365,$Q$21,$K14,0)*$C14)-($C14*$F14),(AA$2-$D14)*$C14))) -> 0 | AB51: =IF(ISBLANK($E14),0,IF(LEFT($E14,1)="c",(CallThv(AB$2,$D14,$J14/365,$Q$21,$K14,0)*$C14)-($C14*$F14),IF(LEFT($E14)="p",(putThv(AB$2,$D14,$J14/365,$Q$21,$K14,0)*$C14)-($C14*$F14),(AB$2-$D14)*$C14))) -> 0 | AC51: =IF(ISBLANK($E14),0,IF(LEFT($E14,1)="c",(CallThv(AC$2,$D14,$J14/365,$Q$21,$K14,0)*$C14)-($C14*$F14),IF(LEFT($E14)="p",(putThv(AC$2,$D14,$J14/365,$Q$21,$K14,0)*$C14)-($C14*$F14),(AC$2-$D14)*$C14))) -> 0 | AD51: =IF(ISBLANK($E14),0,IF(LEFT($E14,1)="c",(CallThv(AD$2,$D14,$J14/365,$Q$21,$K14,0)*$C14)-($C14*$F14),IF(LEFT($E14)="p",(putThv(AD$2,$D14,$J14/365,$Q$21,$K14,0)*$C14)-($C14*$F14),(AD$2-$D14)*$C14))) -> 0 | AE51: =IF(ISBLANK($E14),0,IF(LEFT($E14,1)="c",(CallThv(AE$2,$D14,$J14/365,$Q$21,$K14,0)*$C14)-($C14*$F14),IF(LEFT($E14)="p",(putThv(AE$2,$D14,$J14/365,$Q$21,$K14,0)*$C14)-($C14*$F14),(AE$2-$D14)*$C14))) -> 0 | AF51: =IF(ISBLANK($E14),0,IF(LEFT($E14,1)="c",(CallThv(AF$2,$D14,$J14/365,$Q$21,$K14,0)*$C14)-($C14*$F14),IF(LEFT($E14)="p",(putThv(AF$2,$D14,$J14/365,$Q$21,$K14,0)*$C14)-($C14*$F14),(AF$2-$D14)*$C14))) -> 0 | AG51: =IF(ISBLANK($E14),0,IF(LEFT($E14,1)="c",(CallThv(AG$2,$D14,$J14/365,$Q$21,$K14,0)*$C14)-($C14*$F14),IF(LEFT($E14)="p",(putThv(AG$2,$D14,$J14/365,$Q$21,$K14,0)*$C14)-($C14*$F14),(AG$2-$D14)*$C14))) -> 0 | AH51: =IF(ISBLANK($E14),0,IF(LEFT($E14,1)="c",(CallThv(AH$2,$D14,$J14/365,$Q$21,$K14,0)*$C14)-($C14*$F14),IF(LEFT($E14)="p",(putThv(AH$2,$D14,$J14/365,$Q$21,$K14,0)*$C14)-($C14*$F14),(AH$2-$D14)*$C14))) -> 0
P52: =IF(ISBLANK($E15),0,IF(LEFT($E15,1)="c",(CallThv(P$2,$D15,$J15/365,$Q$21,$K15,0)*$C15)-($C15*$F15),IF(LEFT($E15)="p",(putThv(P$2,$D15,$J15/365,$Q$21,$K15,0)*$C15)-($C15*$F15),(P$2-$D15)*$C15))) -> 0 | Q52: =IF(ISBLANK($E15),0,IF(LEFT($E15,1)="c",(CallThv(Q$2,$D15,$J15/365,$Q$21,$K15,0)*$C15)-($C15*$F15),IF(LEFT($E15)="p",(putThv(Q$2,$D15,$J15/365,$Q$21,$K15,0)*$C15)-($C15*$F15),(Q$2-$D15)*$C15))) -> 0 | R52: =IF(ISBLANK($E15),0,IF(LEFT($E15,1)="c",(CallThv(R$2,$D15,$J15/365,$Q$21,$K15,0)*$C15)-($C15*$F15),IF(LEFT($E15)="p",(putThv(R$2,$D15,$J15/365,$Q$21,$K15,0)*$C15)-($C15*$F15),(R$2-$D15)*$C15))) -> 0 | S52: =IF(ISBLANK($E15),0,IF(LEFT($E15,1)="c",(CallThv(S$2,$D15,$J15/365,$Q$21,$K15,0)*$C15)-($C15*$F15),IF(LEFT($E15)="p",(putThv(S$2,$D15,$J15/365,$Q$21,$K15,0)*$C15)-($C15*$F15),(S$2-$D15)*$C15))) -> 0 | T52: =IF(ISBLANK($E15),0,IF(LEFT($E15,1)="c",(CallThv(T$2,$D15,$J15/365,$Q$21,$K15,0)*$C15)-($C15*$F15),IF(LEFT($E15)="p",(putThv(T$2,$D15,$J15/365,$Q$21,$K15,0)*$C15)-($C15*$F15),(T$2-$D15)*$C15))) -> 0 | U52: =IF(ISBLANK($E15),0,IF(LEFT($E15,1)="c",(CallThv(U$2,$D15,$J15/365,$Q$21,$K15,0)*$C15)-($C15*$F15),IF(LEFT($E15)="p",(putThv(U$2,$D15,$J15/365,$Q$21,$K15,0)*$C15)-($C15*$F15),(U$2-$D15)*$C15))) -> 0 | V52: =IF(ISBLANK($E15),0,IF(LEFT($E15,1)="c",(CallThv(V$2,$D15,$J15/365,$Q$21,$K15,0)*$C15)-($C15*$F15),IF(LEFT($E15)="p",(putThv(V$2,$D15,$J15/365,$Q$21,$K15,0)*$C15)-($C15*$F15),(V$2-$D15)*$C15))) -> 0 | W52: =IF(ISBLANK($E15),0,IF(LEFT($E15,1)="c",(CallThv(W$2,$D15,$J15/365,$Q$21,$K15,0)*$C15)-($C15*$F15),IF(LEFT($E15)="p",(putThv(W$2,$D15,$J15/365,$Q$21,$K15,0)*$C15)-($C15*$F15),(W$2-$D15)*$C15))) -> 0 | X52: =IF(ISBLANK($E15),0,IF(LEFT($E15,1)="c",(CallThv(X$2,$D15,$J15/365,$Q$21,$K15,0)*$C15)-($C15*$F15),IF(LEFT($E15)="p",(putThv(X$2,$D15,$J15/365,$Q$21,$K15,0)*$C15)-($C15*$F15),(X$2-$D15)*$C15))) -> 0 | Y52: =IF(ISBLANK($E15),0,IF(LEFT($E15,1)="c",(CallThv(Y$2,$D15,$J15/365,$Q$21,$K15,0)*$C15)-($C15*$F15),IF(LEFT($E15)="p",(putThv(Y$2,$D15,$J15/365,$Q$21,$K15,0)*$C15)-($C15*$F15),(Y$2-$D15)*$C15))) -> 0 | Z52: =IF(ISBLANK($E15),0,IF(LEFT($E15,1)="c",(CallThv(Z$2,$D15,$J15/365,$Q$21,$K15,0)*$C15)-($C15*$F15),IF(LEFT($E15)="p",(putThv(Z$2,$D15,$J15/365,$Q$21,$K15,0)*$C15)-($C15*$F15),(Z$2-$D15)*$C15))) -> 0 | AA52: =IF(ISBLANK($E15),0,IF(LEFT($E15,1)="c",(CallThv(AA$2,$D15,$J15/365,$Q$21,$K15,0)*$C15)-($C15*$F15),IF(LEFT($E15)="p",(putThv(AA$2,$D15,$J15/365,$Q$21,$K15,0)*$C15)-($C15*$F15),(AA$2-$D15)*$C15))) -> 0 | AB52: =IF(ISBLANK($E15),0,IF(LEFT($E15,1)="c",(CallThv(AB$2,$D15,$J15/365,$Q$21,$K15,0)*$C15)-($C15*$F15),IF(LEFT($E15)="p",(putThv(AB$2,$D15,$J15/365,$Q$21,$K15,0)*$C15)-($C15*$F15),(AB$2-$D15)*$C15))) -> 0 | AC52: =IF(ISBLANK($E15),0,IF(LEFT($E15,1)="c",(CallThv(AC$2,$D15,$J15/365,$Q$21,$K15,0)*$C15)-($C15*$F15),IF(LEFT($E15)="p",(putThv(AC$2,$D15,$J15/365,$Q$21,$K15,0)*$C15)-($C15*$F15),(AC$2-$D15)*$C15))) -> 0 | AD52: =IF(ISBLANK($E15),0,IF(LEFT($E15,1)="c",(CallThv(AD$2,$D15,$J15/365,$Q$21,$K15,0)*$C15)-($C15*$F15),IF(LEFT($E15)="p",(putThv(AD$2,$D15,$J15/365,$Q$21,$K15,0)*$C15)-($C15*$F15),(AD$2-$D15)*$C15))) -> 0 | AE52: =IF(ISBLANK($E15),0,IF(LEFT($E15,1)="c",(CallThv(AE$2,$D15,$J15/365,$Q$21,$K15,0)*$C15)-($C15*$F15),IF(LEFT($E15)="p",(putThv(AE$2,$D15,$J15/365,$Q$21,$K15,0)*$C15)-($C15*$F15),(AE$2-$D15)*$C15))) -> 0 | AF52: =IF(ISBLANK($E15),0,IF(LEFT($E15,1)="c",(CallThv(AF$2,$D15,$J15/365,$Q$21,$K15,0)*$C15)-($C15*$F15),IF(LEFT($E15)="p",(putThv(AF$2,$D15,$J15/365,$Q$21,$K15,0)*$C15)-($C15*$F15),(AF$2-$D15)*$C15))) -> 0 | AG52: =IF(ISBLANK($E15),0,IF(LEFT($E15,1)="c",(CallThv(AG$2,$D15,$J15/365,$Q$21,$K15,0)*$C15)-($C15*$F15),IF(LEFT($E15)="p",(putThv(AG$2,$D15,$J15/365,$Q$21,$K15,0)*$C15)-($C15*$F15),(AG$2-$D15)*$C15))) -> 0 | AH52: =IF(ISBLANK($E15),0,IF(LEFT($E15,1)="c",(CallThv(AH$2,$D15,$J15/365,$Q$21,$K15,0)*$C15)-($C15*$F15),IF(LEFT($E15)="p",(putThv(AH$2,$D15,$J15/365,$Q$21,$K15,0)*$C15)-($C15*$F15),(AH$2-$D15)*$C15))) -> 0
P53: =IF(ISBLANK($E16),0,IF(LEFT($E16,1)="c",(CallThv(P$2,$D16,$J16/365,$Q$21,$K16,0)*$C16)-($C16*$F16),IF(LEFT($E16)="p",(putThv(P$2,$D16,$J16/365,$Q$21,$K16,0)*$C16)-($C16*$F16),(P$2-$D16)*$C16))) -> 0 | Q53: =IF(ISBLANK($E16),0,IF(LEFT($E16,1)="c",(CallThv(Q$2,$D16,$J16/365,$Q$21,$K16,0)*$C16)-($C16*$F16),IF(LEFT($E16)="p",(putThv(Q$2,$D16,$J16/365,$Q$21,$K16,0)*$C16)-($C16*$F16),(Q$2-$D16)*$C16))) -> 0 | R53: =IF(ISBLANK($E16),0,IF(LEFT($E16,1)="c",(CallThv(R$2,$D16,$J16/365,$Q$21,$K16,0)*$C16)-($C16*$F16),IF(LEFT($E16)="p",(putThv(R$2,$D16,$J16/365,$Q$21,$K16,0)*$C16)-($C16*$F16),(R$2-$D16)*$C16))) -> 0 | S53: =IF(ISBLANK($E16),0,IF(LEFT($E16,1)="c",(CallThv(S$2,$D16,$J16/365,$Q$21,$K16,0)*$C16)-($C16*$F16),IF(LEFT($E16)="p",(putThv(S$2,$D16,$J16/365,$Q$21,$K16,0)*$C16)-($C16*$F16),(S$2-$D16)*$C16))) -> 0 | T53: =IF(ISBLANK($E16),0,IF(LEFT($E16,1)="c",(CallThv(T$2,$D16,$J16/365,$Q$21,$K16,0)*$C16)-($C16*$F16),IF(LEFT($E16)="p",(putThv(T$2,$D16,$J16/365,$Q$21,$K16,0)*$C16)-($C16*$F16),(T$2-$D16)*$C16))) -> 0 | U53: =IF(ISBLANK($E16),0,IF(LEFT($E16,1)="c",(CallThv(U$2,$D16,$J16/365,$Q$21,$K16,0)*$C16)-($C16*$F16),IF(LEFT($E16)="p",(putThv(U$2,$D16,$J16/365,$Q$21,$K16,0)*$C16)-($C16*$F16),(U$2-$D16)*$C16))) -> 0 | V53: =IF(ISBLANK($E16),0,IF(LEFT($E16,1)="c",(CallThv(V$2,$D16,$J16/365,$Q$21,$K16,0)*$C16)-($C16*$F16),IF(LEFT($E16)="p",(putThv(V$2,$D16,$J16/365,$Q$21,$K16,0)*$C16)-($C16*$F16),(V$2-$D16)*$C16))) -> 0 | W53: =IF(ISBLANK($E16),0,IF(LEFT($E16,1)="c",(CallThv(W$2,$D16,$J16/365,$Q$21,$K16,0)*$C16)-($C16*$F16),IF(LEFT($E16)="p",(putThv(W$2,$D16,$J16/365,$Q$21,$K16,0)*$C16)-($C16*$F16),(W$2-$D16)*$C16))) -> 0 | X53: =IF(ISBLANK($E16),0,IF(LEFT($E16,1)="c",(CallThv(X$2,$D16,$J16/365,$Q$21,$K16,0)*$C16)-($C16*$F16),IF(LEFT($E16)="p",(putThv(X$2,$D16,$J16/365,$Q$21,$K16,0)*$C16)-($C16*$F16),(X$2-$D16)*$C16))) -> 0 | Y53: =IF(ISBLANK($E16),0,IF(LEFT($E16,1)="c",(CallThv(Y$2,$D16,$J16/365,$Q$21,$K16,0)*$C16)-($C16*$F16),IF(LEFT($E16)="p",(putThv(Y$2,$D16,$J16/365,$Q$21,$K16,0)*$C16)-($C16*$F16),(Y$2-$D16)*$C16))) -> 0 | Z53: =IF(ISBLANK($E16),0,IF(LEFT($E16,1)="c",(CallThv(Z$2,$D16,$J16/365,$Q$21,$K16,0)*$C16)-($C16*$F16),IF(LEFT($E16)="p",(putThv(Z$2,$D16,$J16/365,$Q$21,$K16,0)*$C16)-($C16*$F16),(Z$2-$D16)*$C16))) -> 0 | AA53: =IF(ISBLANK($E16),0,IF(LEFT($E16,1)="c",(CallThv(AA$2,$D16,$J16/365,$Q$21,$K16,0)*$C16)-($C16*$F16),IF(LEFT($E16)="p",(putThv(AA$2,$D16,$J16/365,$Q$21,$K16,0)*$C16)-($C16*$F16),(AA$2-$D16)*$C16))) -> 0 | AB53: =IF(ISBLANK($E16),0,IF(LEFT($E16,1)="c",(CallThv(AB$2,$D16,$J16/365,$Q$21,$K16,0)*$C16)-($C16*$F16),IF(LEFT($E16)="p",(putThv(AB$2,$D16,$J16/365,$Q$21,$K16,0)*$C16)-($C16*$F16),(AB$2-$D16)*$C16))) -> 0 | AC53: =IF(ISBLANK($E16),0,IF(LEFT($E16,1)="c",(CallThv(AC$2,$D16,$J16/365,$Q$21,$K16,0)*$C16)-($C16*$F16),IF(LEFT($E16)="p",(putThv(AC$2,$D16,$J16/365,$Q$21,$K16,0)*$C16)-($C16*$F16),(AC$2-$D16)*$C16))) -> 0 | AD53: =IF(ISBLANK($E16),0,IF(LEFT($E16,1)="c",(CallThv(AD$2,$D16,$J16/365,$Q$21,$K16,0)*$C16)-($C16*$F16),IF(LEFT($E16)="p",(putThv(AD$2,$D16,$J16/365,$Q$21,$K16,0)*$C16)-($C16*$F16),(AD$2-$D16)*$C16))) -> 0 | AE53: =IF(ISBLANK($E16),0,IF(LEFT($E16,1)="c",(CallThv(AE$2,$D16,$J16/365,$Q$21,$K16,0)*$C16)-($C16*$F16),IF(LEFT($E16)="p",(putThv(AE$2,$D16,$J16/365,$Q$21,$K16,0)*$C16)-($C16*$F16),(AE$2-$D16)*$C16))) -> 0 | AF53: =IF(ISBLANK($E16),0,IF(LEFT($E16,1)="c",(CallThv(AF$2,$D16,$J16/365,$Q$21,$K16,0)*$C16)-($C16*$F16),IF(LEFT($E16)="p",(putThv(AF$2,$D16,$J16/365,$Q$21,$K16,0)*$C16)-($C16*$F16),(AF$2-$D16)*$C16))) -> 0 | AG53: =IF(ISBLANK($E16),0,IF(LEFT($E16,1)="c",(CallThv(AG$2,$D16,$J16/365,$Q$21,$K16,0)*$C16)-($C16*$F16),IF(LEFT($E16)="p",(putThv(AG$2,$D16,$J16/365,$Q$21,$K16,0)*$C16)-($C16*$F16),(AG$2-$D16)*$C16))) -> 0 | AH53: =IF(ISBLANK($E16),0,IF(LEFT($E16,1)="c",(CallThv(AH$2,$D16,$J16/365,$Q$21,$K16,0)*$C16)-($C16*$F16),IF(LEFT($E16)="p",(putThv(AH$2,$D16,$J16/365,$Q$21,$K16,0)*$C16)-($C16*$F16),(AH$2-$D16)*$C16))) -> 0

Sheet OptPos2
P1: EXP
B2: opt | C2: qty | D2: strike | E2: c/p | F2: price | G2: date | H2: exp | I2: days | J2: mult | K2: vty | L2: underly | M2: thv | N2: profit | P2: =Q23 -> 65 | Q2: =P2+$Q$22 -> 66 | R2: 67 | S2: 68 | T2: 69 | U2: 70 | V2: 71 | W2: 72 | X2: 73 | Y2: 74 | Z2: 75 | AA2: 76 | AB2: 77 | AC2: 78 | AD2: 79 | AE2: 80 | AF2: 81 | AG2: 82 | AH2: 83
B4: o | C4: 1 | D4: 75.5 | E4: p | F4: 1.15 | G4: 2013-11-12 | H4: 2013-11-15 | I4: =H4-G4 -> 3 | J4: 3.5 | K4: 0.43 | L4: 75.8 | M4: =IF($E4="c",CallThv($L4,$D4,$J4/365,$S$21,$K4,0),IF($E4="p",putThv($L4,$D4,$J4/365,$S$21,$K4,0),0)) -> 1.125478224 | N4: =IF(B4="o",(M4-F4)*C4,0) -> -0.02452177643 | P4: =IF(ISBLANK($B4),0,IF(LEFT($E4)="c",((MAX(P$2-$D4,0)*$C4*$Q$21)-($F4*$C4*$Q$21)),IF(LEFT($E4)="p",((MAX($D4-P$2,0)*$C4*$Q$21)-($F4*$C4*$Q$21)),(P$2-$F4)*$C4))) -> 935 | Q4: 835 | R4: 735 | S4: 635 | T4: 535 | U4: 435 | V4: 335 | W4: 235 | X4: 135 | Y4: 35 | Z4: =IF(ISBLANK($B4),0,IF(LEFT($E4)="c",((MAX(Z$2-$D4,0)*$C4*$Q$21)-($F4*$C4*$Q$21)),IF(LEFT($E4)="p",((MAX($D4-Z$2,0)*$C4*$Q$21)-($F4*$C4*$Q$21)),(Z$2-$F4)*$C4))) -> -65 | AA4: -115 | AB4: -115 | AC4: -115 | AD4: -115 | AE4: -115 | AF4: -115 | AG4: -115 | AH4: -115
B5: =B4 -> o | G5: =IF($C5<>0,$G$4,"") ->  | H5: =IF($C5<>0,$H$4,"") ->  | I5: =IF($C5<>0,$I$4,"") ->  | J5: =IF($C5<>0,$J$4,"") ->  | K5: =IF($C5<>0,$K$4,"") ->  | L5: =IF($C5<>0,$L$4,"") ->  | M5: =IF($E5="c",CallThv($L5,$D5,$J5/365,$S$21,$K5,0),IF($E5="p",putThv($L5,$D5,$J5/365,$S$21,$K5,0),0)) -> 0 | N5: =IF(B5="o",(M5-F5)*C5,0) -> 0 | P5: 0 | Q5: 0 | R5: 0 | S5: 0 | T5: 0 | U5: 0 | V5: 0 | W5: 0 | X5: 0 | Y5: 0 | Z5: 0 | AA5: 0 | AB5: 0 | AC5: 0 | AD5: 0 | AE5: 0 | AF5: 0 | AG5: 0 | AH5: 0
B6: =B5 -> o | G6: =IF($C6<>0,$G$4,"") ->  | H6: =IF($C6<>0,$H$4,"") ->  | I6: =IF($C6<>0,$I$4,"") ->  | J6: =IF($C6<>0,$J$4,"") ->  | K6: =IF($C6<>0,$K$4,"") ->  | L6: =IF($C6<>0,$L$4,"") ->  | M6: =IF($E6="c",CallThv($L6,$D6,$J6/365,$S$21,$K6,0),IF($E6="p",putThv($L6,$D6,$J6/365,$S$21,$K6,0),0)) -> 0 | N6: 0 | P6: 0 | Q6: 0 | R6: 0 | S6: 0 | T6: 0 | U6: 0 | V6: 0 | W6: 0 | X6: 0 | Y6: 0 | Z6: 0 | AA6: 0 | AB6: 0 | AC6: 0 | AD6: 0 | AE6: 0 | AF6: 0 | AG6: 0 | AH6: 0
B7: o | M7: =IF($E7="c",CallThv($L7,$D7,$J7/365,$S$21,$K7,0),IF($E7="p",putThv($L7,$D7,$J7/365,$S$21,$K7,0),0)) -> 0 | N7: 0 | P7: 0 | Q7: 0 | R7: 0 | S7: 0 | T7: 0 | U7: 0 | V7: 0 | W7: 0 | X7: 0 | Y7: 0 | Z7: 0 | AA7: 0 | AB7: 0 | AC7: 0 | AD7: 0 | AE7: 0 | AF7: 0 | AG7: 0 | AH7: 0
B8: o | M8: =IF($E8="c",CallThv($L8,$D8,$J8/365,$S$21,$K8,0),IF($E8="p",putThv($L8,$D8,$J8/365,$S$21,$K8,0),0)) -> 0 | N8: 0 | P8: 0 | Q8: 0 | R8: 0 | S8: 0 | T8: 0 | U8: 0 | V8: 0 | W8: 0 | X8: 0 | Y8: 0 | Z8: 0 | AA8: 0 | AB8: 0 | AC8: 0 | AD8: 0 | AE8: 0 | AF8: 0 | AG8: 0 | AH8: 0
B9: o | M9: =IF($E9="c",CallThv($L9,$D9,$J9/365,$S$21,$K9,0),IF($E9="p",putThv($L9,$D9,$J9/365,$S$21,$K9,0),0)) -> 0 | N9: 0 | P9: 0 | Q9: 0 | R9: 0 | S9: 0 | T9: 0 | U9: 0 | V9: 0 | W9: 0 | X9: 0 | Y9: 0 | Z9: 0 | AA9: 0 | AB9: 0 | AC9: 0 | AD9: 0 | AE9: 0 | AF9: 0 | AG9: 0 | AH9: 0
B10: o | M10: =IF($E10="c",CallThv($L10,$D10,$J10/365,$S$21,$K10,0),IF($E10="p",putThv($L10,$D10,$J10/365,$S$21,$K10,0),0)) -> 0 | N10: 0 | P10: 0 | Q10: 0 | R10: 0 | S10: 0 | T10: 0 | U10: 0 | V10: 0 | W10: 0 | X10: 0 | Y10: 0 | Z10: 0 | AA10: 0 | AB10: 0 | AC10: 0 | AD10: 0 | AE10: 0 | AF10: 0 | AG10: 0 | AH10: 0
B11: o | M11: =IF($E11="c",CallThv($L11,$D11,$J11/365,$S$21,$K11,0),IF($E11="p",putThv($L11,$D11,$J11/365,$S$21,$K11,0),0)) -> 0 | N11: 0 | P11: 0 | Q11: 0 | R11: 0 | S11: 0 | T11: 0 | U11: 0 | V11: 0 | W11: 0 | X11: 0 | Y11: 0 | Z11: 0 | AA11: 0 | AB11: 0 | AC11: 0 | AD11: 0 | AE11: 0 | AF11: 0 | AG11: 0 | AH11: 0
B12: o | M12: =IF($E12="c",CallThv($L12,$D12,$J12/365,$S$21,$K12,0),IF($E12="p",putThv($L12,$D12,$J12/365,$S$21,$K12,0),0)) -> 0 | N12: 0 | P12: 0 | Q12: 0 | R12: 0 | S12: 0 | T12: 0 | U12: 0 | V12: 0 | W12: 0 | X12: 0 | Y12: 0 | Z12: 0 | AA12: 0 | AB12: 0 | AC12: 0 | AD12: 0 | AE12: 0 | AF12: 0 | AG12: 0 | AH12: 0
B13: o | M13: =IF($E13="c",CallThv($L13,$D13,$J13/365,$S$21,$K13,0),IF($E13="p",putThv($L13,$D13,$J13/365,$S$21,$K13,0),0)) -> 0 | N13: 0 | P13: 0 | Q13: 0 | R13: 0 | S13: 0 | T13: 0 | U13: 0 | V13: 0 | W13: 0 | X13: 0 | Y13: 0 | Z13: 0 | AA13: 0 | AB13: 0 | AC13: 0 | AD13: 0 | AE13: 0 | AF13: 0 | AG13: 0 | AH13: 0
B14: o | M14: =IF($E14="c",CallThv($L14,$D14,$J14/365,$S$21,$K14,0),IF($E14="p",putThv($L14,$D14,$J14/365,$S$21,$K14,0),0)) -> 0 | N14: 0 | P14: 0 | Q14: 0 | R14: 0 | S14: 0 | T14: 0 | U14: 0 | V14: 0 | W14: 0 | X14: 0 | Y14: 0 | Z14: 0 | AA14: 0 | AB14: 0 | AC14: 0 | AD14: 0 | AE14: 0 | AF14: 0 | AG14: 0 | AH14: 0
B15: o | M15: =IF($E15="c",CallThv($L15,$D15,$J15/365,$S$21,$K15,0),IF($E15="p",putThv($L15,$D15,$J15/365,$S$21,$K15,0),0)) -> 0 | N15: 0 | P15: 0 | Q15: 0 | R15: 0 | S15: 0 | T15: 0 | U15: 0 | V15: 0 | W15: 0 | X15: 0 | Y15: 0 | Z15: 0 | AA15: 0 | AB15: 0 | AC15: 0 | AD15: 0 | AE15: 0 | AF15: 0 | AG15: 0 | AH15: 0
B16: o | M16: =IF($E16="c",CallThv($L16,$D16,$J16/365,$S$21,$K16,0),IF($E16="p",putThv($L16,$D16,$J16/365,$S$21,$K16,0),0)) -> 0 | N16: 0 | P16: 0 | Q16: 0 | R16: 0 | S16: 0 | T16: 0 | U16: 0 | V16: 0 | W16: 0 | X16: 0 | Y16: 0 | Z16: 0 | AA16: 0 | AB16: 0 | AC16: 0 | AD16: 0 | AE16: 0 | AF16: 0 | AG16: 0 | AH16: 0
N18: =SUM(N4:N17) -> -0.02452177643 | P18: =SUM(P4:P17) -> 935 | Q18: 835 | R18: 735 | S18: 635 | T18: 535 | U18: 435 | V18: 335 | W18: 235 | X18: 135 | Y18: 35 | Z18: -65 | AA18: -115 | AB18: -115 | AC18: -115 | AD18: -115 | AE18: -115 | AF18: -115 | AG18: -115 | AH18: -115
P19: 0 | Q19: 0 | R19: 0 | S19: 0 | T19: 0 | U19: 0 | V19: 0 | W19: 0 | X19: 0 | Y19: 0 | Z19: 0 | AA19: 0 | AB19: 0 | AC19: 0 | AD19: 0 | AE19: 0 | AF19: 0 | AG19: 0 | AH19: 0
L21: strike | M21: exp | N21: date | P21: mult | Q21: 100 | R21: rate | S21: 0.0025
L22: =P2 -> 65 | M22: =P18 -> 935 | N22: =ROUND(P39,0) -> 935 | P22: incr | Q22: 1
L23: =R2 -> 67 | M23: =R18 -> 735 | N23: =ROUND(R39,0) -> 735 | P23: begin | Q23: 65
L24: =T2 -> 69 | M24: =T18 -> 535 | N24: =ROUND(T39,0) -> 537
L25: =V2 -> 71 | M25: =V18 -> 335 | N25: =ROUND(V39,0) -> 345
L26: =W2 -> 72 | M26: =W18 -> 235 | N26: =ROUND(W39,0) -> 255 | X26: `
L27: =X2 -> 73 | M27: =X18 -> 135 | N27: =ROUND(X39,0) -> 172
L28: =Y2 -> 74 | M28: =Y18 -> 35 | N28: =ROUND(Y39,0) -> 99
L29: =Z2 -> 75 | M29: =Z18 -> -65 | N29: =ROUND(Z39,0) -> 38
L30: =AA2 -> 76 | M30: =AA18 -> -115 | N30: =ROUND(AA39,0) -> -11
L31: =AB2 -> 77 | M31: =AB18 -> -115 | N31: =ROUND(AB39,0) -> -48
L32: =AD2 -> 79 | M32: =AD18 -> -115 | N32: =ROUND(AD39,0) -> -92
L33: =AF2 -> 81 | M33: =AF18 -> -115 | N33: =ROUND(AF39,0) -> -109
L34: =AH2 -> 83 | M34: =AH18 -> -115 | N34: =ROUND(AH39,0) -> -114
P37: DATE
P38: =P2 -> 65 | Q38: =Q2 -> 66 | R38: 67 | S38: 68 | T38: 69 | U38: 70 | V38: 71 | W38: 72 | X38: 73 | Y38: 74 | Z38: 75 | AA38: 76 | AB38: 77 | AC38: 78 | AD38: 79 | AE38: 80 | AF38: 81 | AG38: 82 | AH38: 83
P39: =SUM(P41:P54)*$Q$21 -> 934.8328077 | Q39: 834.875478 | R39: 735.020834 | S39: 635.4538916 | T39: 536.5902798 | U39: 439.2352155 | V39: 344.7339182 | W39: 255.0178635 | X39: 172.4480218 | Y39: 99.4258355 | Z39: 37.86500285 | AA39: -11.28285041 | AB39: -48.25433833 | AC39: -74.36696976 | AD39: -91.644213 | AE39: -102.3399737 | AF39: -108.5328096 | AG39: -111.8871178 | AH39: -113.5878832
P41: =IF(ISBLANK($E4),0,IF(LEFT($E4,1)="c",(CallThv(P$2,$D4,$J4/365,$S$21,$K4,0)*$C4)-($C4*$F4),IF(LEFT($E4)="p",(putThv(P$2,$D4,$J4/365,$S$21,$K4,0)*$C4)-($C4*$F4),(P$2-$D4)*$C4))) -> 9.348328077 | Q41: =IF(ISBLANK($E4),0,IF(LEFT($E4,1)="c",(CallThv(Q$2,$D4,$J4/365,$S$21,$K4,0)*$C4)-($C4*$F4),IF(LEFT($E4)="p",(putThv(Q$2,$D4,$J4/365,$S$21,$K4,0)*$C4)-($C4*$F4),(Q$2-$D4)*$C4))) -> 8.34875478 | R41: =IF(ISBLANK($E4),0,IF(LEFT($E4,1)="c",(CallThv(R$2,$D4,$J4/365,$S$21,$K4,0)*$C4)-($C4*$F4),IF(LEFT($E4)="p",(putThv(R$2,$D4,$J4/365,$S$21,$K4,0)*$C4)-($C4*$F4),(R$2-$D4)*$C4))) -> 7.35020834 | S41: =IF(ISBLANK($E4),0,IF(LEFT($E4,1)="c",(CallThv(S$2,$D4,$J4/365,$S$21,$K4,0)*$C4)-($C4*$F4),IF(LEFT($E4)="p",(putThv(S$2,$D4,$J4/365,$S$21,$K4,0)*$C4)-($C4*$F4),(S$2-$D4)*$C4))) -> 6.354538916 | T41: =IF(ISBLANK($E4),0,IF(LEFT($E4,1)="c",(CallThv(T$2,$D4,$J4/365,$S$21,$K4,0)*$C4)-($C4*$F4),IF(LEFT($E4)="p",(putThv(T$2,$D4,$J4/365,$S$21,$K4,0)*$C4)-($C4*$F4),(T$2-$D4)*$C4))) -> 5.365902798 | U41: =IF(ISBLANK($E4),0,IF(LEFT($E4,1)="c",(CallThv(U$2,$D4,$J4/365,$S$21,$K4,0)*$C4)-($C4*$F4),IF(LEFT($E4)="p",(putThv(U$2,$D4,$J4/365,$S$21,$K4,0)*$C4)-($C4*$F4),(U$2-$D4)*$C4))) -> 4.392352155 | V41: =IF(ISBLANK($E4),0,IF(LEFT($E4,1)="c",(CallThv(V$2,$D4,$J4/365,$S$21,$K4,0)*$C4)-($C4*$F4),IF(LEFT($E4)="p",(putThv(V$2,$D4,$J4/365,$S$21,$K4,0)*$C4)-($C4*$F4),(V$2-$D4)*$C4))) -> 3.447339182 | W41: =IF(ISBLANK($E4),0,IF(LEFT($E4,1)="c",(CallThv(W$2,$D4,$J4/365,$S$21,$K4,0)*$C4)-($C4*$F4),IF(LEFT($E4)="p",(putThv(W$2,$D4,$J4/365,$S$21,$K4,0)*$C4)-($C4*$F4),(W$2-$D4)*$C4))) -> 2.550178635 | X41: =IF(ISBLANK($E4),0,IF(LEFT($E4,1)="c",(CallThv(X$2,$D4,$J4/365,$S$21,$K4,0)*$C4)-($C4*$F4),IF(LEFT($E4)="p",(putThv(X$2,$D4,$J4/365,$S$21,$K4,0)*$C4)-($C4*$F4),(X$2-$D4)*$C4))) -> 1.724480218 | Y41: =IF(ISBLANK($E4),0,IF(LEFT($E4,1)="c",(CallThv(Y$2,$D4,$J4/365,$S$21,$K4,0)*$C4)-($C4*$F4),IF(LEFT($E4)="p",(putThv(Y$2,$D4,$J4/365,$S$21,$K4,0)*$C4)-($C4*$F4),(Y$2-$D4)*$C4))) -> 0.994258355 | Z41: =IF(ISBLANK($E4),0,IF(LEFT($E4,1)="c",(CallThv(Z$2,$D4,$J4/365,$S$21,$K4,0)*$C4)-($C4*$F4),IF(LEFT($E4)="p",(putThv(Z$2,$D4,$J4/365,$S$21,$K4,0)*$C4)-($C4*$F4),(Z$2-$D4)*$C4))) -> 0.3786500285 | AA41: =IF(ISBLANK($E4),0,IF(LEFT($E4,1)="c",(CallThv(AA$2,$D4,$J4/365,$S$21,$K4,0)*$C4)-($C4*$F4),IF(LEFT($E4)="p",(putThv(AA$2,$D4,$J4/365,$S$21,$K4,0)*$C4)-($C4*$F4),(AA$2-$D4)*$C4))) -> -0.1128285041 | AB41: =IF(ISBLANK($E4),0,IF(LEFT($E4,1)="c",(CallThv(AB$2,$D4,$J4/365,$S$21,$K4,0)*$C4)-($C4*$F4),IF(LEFT($E4)="p",(putThv(AB$2,$D4,$J4/365,$S$21,$K4,0)*$C4)-($C4*$F4),(AB$2-$D4)*$C4))) -> -0.4825433833 | AC41: =IF(ISBLANK($E4),0,IF(LEFT($E4,1)="c",(CallThv(AC$2,$D4,$J4/365,$S$21,$K4,0)*$C4)-($C4*$F4),IF(LEFT($E4)="p",(putThv(AC$2,$D4,$J4/365,$S$21,$K4,0)*$C4)-($C4*$F4),(AC$2-$D4)*$C4))) -> -0.7436696976 | AD41: =IF(ISBLANK($E4),0,IF(LEFT($E4,1)="c",(CallThv(AD$2,$D4,$J4/365,$S$21,$K4,0)*$C4)-($C4*$F4),IF(LEFT($E4)="p",(putThv(AD$2,$D4,$J4/365,$S$21,$K4,0)*$C4)-($C4*$F4),(AD$2-$D4)*$C4))) -> -0.91644213 | AE41: =IF(ISBLANK($E4),0,IF(LEFT($E4,1)="c",(CallThv(AE$2,$D4,$J4/365,$S$21,$K4,0)*$C4)-($C4*$F4),IF(LEFT($E4)="p",(putThv(AE$2,$D4,$J4/365,$S$21,$K4,0)*$C4)-($C4*$F4),(AE$2-$D4)*$C4))) -> -1.023399737 | AF41: =IF(ISBLANK($E4),0,IF(LEFT($E4,1)="c",(CallThv(AF$2,$D4,$J4/365,$S$21,$K4,0)*$C4)-($C4*$F4),IF(LEFT($E4)="p",(putThv(AF$2,$D4,$J4/365,$S$21,$K4,0)*$C4)-($C4*$F4),(AF$2-$D4)*$C4))) -> -1.085328096 | AG41: =IF(ISBLANK($E4),0,IF(LEFT($E4,1)="c",(CallThv(AG$2,$D4,$J4/365,$S$21,$K4,0)*$C4)-($C4*$F4),IF(LEFT($E4)="p",(putThv(AG$2,$D4,$J4/365,$S$21,$K4,0)*$C4)-($C4*$F4),(AG$2-$D4)*$C4))) -> -1.118871178 | AH41: =IF(ISBLANK($E4),0,IF(LEFT($E4,1)="c",(CallThv(AH$2,$D4,$J4/365,$S$21,$K4,0)*$C4)-($C4*$F4),IF(LEFT($E4)="p",(putThv(AH$2,$D4,$J4/365,$S$21,$K4,0)*$C4)-($C4*$F4),(AH$2-$D4)*$C4))) -> -1.135878832
P42: =IF(ISBLANK($E5),0,IF(LEFT($E5,1)="c",(CallThv(P$2,$D5,$J5/365,$S$21,$K5,0)*$C5)-($C5*$F5),IF(LEFT($E5)="p",(putThv(P$2,$D5,$J5/365,$S$21,$K5,0)*$C5)-($C5*$F5),(P$2-$D5)*$C5))) -> 0 | Q42: =IF(ISBLANK($E5),0,IF(LEFT($E5,1)="c",(CallThv(Q$2,$D5,$J5/365,$S$21,$K5,0)*$C5)-($C5*$F5),IF(LEFT($E5)="p",(putThv(Q$2,$D5,$J5/365,$S$21,$K5,0)*$C5)-($C5*$F5),(Q$2-$D5)*$C5))) -> 0 | R42: =IF(ISBLANK($E5),0,IF(LEFT($E5,1)="c",(CallThv(R$2,$D5,$J5/365,$S$21,$K5,0)*$C5)-($C5*$F5),IF(LEFT($E5)="p",(putThv(R$2,$D5,$J5/365,$S$21,$K5,0)*$C5)-($C5*$F5),(R$2-$D5)*$C5))) -> 0 | S42: =IF(ISBLANK($E5),0,IF(LEFT($E5,1)="c",(CallThv(S$2,$D5,$J5/365,$S$21,$K5,0)*$C5)-($C5*$F5),IF(LEFT($E5)="p",(putThv(S$2,$D5,$J5/365,$S$21,$K5,0)*$C5)-($C5*$F5),(S$2-$D5)*$C5))) -> 0 | T42: =IF(ISBLANK($E5),0,IF(LEFT($E5,1)="c",(CallThv(T$2,$D5,$J5/365,$S$21,$K5,0)*$C5)-($C5*$F5),IF(LEFT($E5)="p",(putThv(T$2,$D5,$J5/365,$S$21,$K5,0)*$C5)-($C5*$F5),(T$2-$D5)*$C5))) -> 0 | U42: =IF(ISBLANK($E5),0,IF(LEFT($E5,1)="c",(CallThv(U$2,$D5,$J5/365,$S$21,$K5,0)*$C5)-($C5*$F5),IF(LEFT($E5)="p",(putThv(U$2,$D5,$J5/365,$S$21,$K5,0)*$C5)-($C5*$F5),(U$2-$D5)*$C5))) -> 0 | V42: =IF(ISBLANK($E5),0,IF(LEFT($E5,1)="c",(CallThv(V$2,$D5,$J5/365,$S$21,$K5,0)*$C5)-($C5*$F5),IF(LEFT($E5)="p",(putThv(V$2,$D5,$J5/365,$S$21,$K5,0)*$C5)-($C5*$F5),(V$2-$D5)*$C5))) -> 0 | W42: =IF(ISBLANK($E5),0,IF(LEFT($E5,1)="c",(CallThv(W$2,$D5,$J5/365,$S$21,$K5,0)*$C5)-($C5*$F5),IF(LEFT($E5)="p",(putThv(W$2,$D5,$J5/365,$S$21,$K5,0)*$C5)-($C5*$F5),(W$2-$D5)*$C5))) -> 0 | X42: =IF(ISBLANK($E5),0,IF(LEFT($E5,1)="c",(CallThv(X$2,$D5,$J5/365,$S$21,$K5,0)*$C5)-($C5*$F5),IF(LEFT($E5)="p",(putThv(X$2,$D5,$J5/365,$S$21,$K5,0)*$C5)-($C5*$F5),(X$2-$D5)*$C5))) -> 0 | Y42: =IF(ISBLANK($E5),0,IF(LEFT($E5,1)="c",(CallThv(Y$2,$D5,$J5/365,$S$21,$K5,0)*$C5)-($C5*$F5),IF(LEFT($E5)="p",(putThv(Y$2,$D5,$J5/365,$S$21,$K5,0)*$C5)-($C5*$F5),(Y$2-$D5)*$C5))) -> 0 | Z42: =IF(ISBLANK($E5),0,IF(LEFT($E5,1)="c",(CallThv(Z$2,$D5,$J5/365,$S$21,$K5,0)*$C5)-($C5*$F5),IF(LEFT($E5)="p",(putThv(Z$2,$D5,$J5/365,$S$21,$K5,0)*$C5)-($C5*$F5),(Z$2-$D5)*$C5))) -> 0 | AA42: =IF(ISBLANK($E5),0,IF(LEFT($E5,1)="c",(CallThv(AA$2,$D5,$J5/365,$S$21,$K5,0)*$C5)-($C5*$F5),IF(LEFT($E5)="p",(putThv(AA$2,$D5,$J5/365,$S$21,$K5,0)*$C5)-($C5*$F5),(AA$2-$D5)*$C5))) -> 0 | AB42: =IF(ISBLANK($E5),0,IF(LEFT($E5,1)="c",(CallThv(AB$2,$D5,$J5/365,$S$21,$K5,0)*$C5)-($C5*$F5),IF(LEFT($E5)="p",(putThv(AB$2,$D5,$J5/365,$S$21,$K5,0)*$C5)-($C5*$F5),(AB$2-$D5)*$C5))) -> 0 | AC42: =IF(ISBLANK($E5),0,IF(LEFT($E5,1)="c",(CallThv(AC$2,$D5,$J5/365,$S$21,$K5,0)*$C5)-($C5*$F5),IF(LEFT($E5)="p",(putThv(AC$2,$D5,$J5/365,$S$21,$K5,0)*$C5)-($C5*$F5),(AC$2-$D5)*$C5))) -> 0 | AD42: =IF(ISBLANK($E5),0,IF(LEFT($E5,1)="c",(CallThv(AD$2,$D5,$J5/365,$S$21,$K5,0)*$C5)-($C5*$F5),IF(LEFT($E5)="p",(putThv(AD$2,$D5,$J5/365,$S$21,$K5,0)*$C5)-($C5*$F5),(AD$2-$D5)*$C5))) -> 0 | AE42: =IF(ISBLANK($E5),0,IF(LEFT($E5,1)="c",(CallThv(AE$2,$D5,$J5/365,$S$21,$K5,0)*$C5)-($C5*$F5),IF(LEFT($E5)="p",(putThv(AE$2,$D5,$J5/365,$S$21,$K5,0)*$C5)-($C5*$F5),(AE$2-$D5)*$C5))) -> 0 | AF42: =IF(ISBLANK($E5),0,IF(LEFT($E5,1)="c",(CallThv(AF$2,$D5,$J5/365,$S$21,$K5,0)*$C5)-($C5*$F5),IF(LEFT($E5)="p",(putThv(AF$2,$D5,$J5/365,$S$21,$K5,0)*$C5)-($C5*$F5),(AF$2-$D5)*$C5))) -> 0 | AG42: =IF(ISBLANK($E5),0,IF(LEFT($E5,1)="c",(CallThv(AG$2,$D5,$J5/365,$S$21,$K5,0)*$C5)-($C5*$F5),IF(LEFT($E5)="p",(putThv(AG$2,$D5,$J5/365,$S$21,$K5,0)*$C5)-($C5*$F5),(AG$2-$D5)*$C5))) -> 0 | AH42: =IF(ISBLANK($E5),0,IF(LEFT($E5,1)="c",(CallThv(AH$2,$D5,$J5/365,$S$21,$K5,0)*$C5)-($C5*$F5),IF(LEFT($E5)="p",(putThv(AH$2,$D5,$J5/365,$S$21,$K5,0)*$C5)-($C5*$F5),(AH$2-$D5)*$C5))) -> 0
P43: =IF(ISBLANK($E6),0,IF(LEFT($E6,1)="c",(CallThv(P$2,$D6,$J6/365,$S$21,$K6,0)*$C6)-($C6*$F6),IF(LEFT($E6)="p",(putThv(P$2,$D6,$J6/365,$S$21,$K6,0)*$C6)-($C6*$F6),(P$2-$D6)*$C6))) -> 0 | Q43: =IF(ISBLANK($E6),0,IF(LEFT($E6,1)="c",(CallThv(Q$2,$D6,$J6/365,$S$21,$K6,0)*$C6)-($C6*$F6),IF(LEFT($E6)="p",(putThv(Q$2,$D6,$J6/365,$S$21,$K6,0)*$C6)-($C6*$F6),(Q$2-$D6)*$C6))) -> 0 | R43: =IF(ISBLANK($E6),0,IF(LEFT($E6,1)="c",(CallThv(R$2,$D6,$J6/365,$S$21,$K6,0)*$C6)-($C6*$F6),IF(LEFT($E6)="p",(putThv(R$2,$D6,$J6/365,$S$21,$K6,0)*$C6)-($C6*$F6),(R$2-$D6)*$C6))) -> 0 | S43: =IF(ISBLANK($E6),0,IF(LEFT($E6,1)="c",(CallThv(S$2,$D6,$J6/365,$S$21,$K6,0)*$C6)-($C6*$F6),IF(LEFT($E6)="p",(putThv(S$2,$D6,$J6/365,$S$21,$K6,0)*$C6)-($C6*$F6),(S$2-$D6)*$C6))) -> 0 | T43: =IF(ISBLANK($E6),0,IF(LEFT($E6,1)="c",(CallThv(T$2,$D6,$J6/365,$S$21,$K6,0)*$C6)-($C6*$F6),IF(LEFT($E6)="p",(putThv(T$2,$D6,$J6/365,$S$21,$K6,0)*$C6)-($C6*$F6),(T$2-$D6)*$C6))) -> 0 | U43: =IF(ISBLANK($E6),0,IF(LEFT($E6,1)="c",(CallThv(U$2,$D6,$J6/365,$S$21,$K6,0)*$C6)-($C6*$F6),IF(LEFT($E6)="p",(putThv(U$2,$D6,$J6/365,$S$21,$K6,0)*$C6)-($C6*$F6),(U$2-$D6)*$C6))) -> 0 | V43: =IF(ISBLANK($E6),0,IF(LEFT($E6,1)="c",(CallThv(V$2,$D6,$J6/365,$S$21,$K6,0)*$C6)-($C6*$F6),IF(LEFT($E6)="p",(putThv(V$2,$D6,$J6/365,$S$21,$K6,0)*$C6)-($C6*$F6),(V$2-$D6)*$C6))) -> 0 | W43: =IF(ISBLANK($E6),0,IF(LEFT($E6,1)="c",(CallThv(W$2,$D6,$J6/365,$S$21,$K6,0)*$C6)-($C6*$F6),IF(LEFT($E6)="p",(putThv(W$2,$D6,$J6/365,$S$21,$K6,0)*$C6)-($C6*$F6),(W$2-$D6)*$C6))) -> 0 | X43: =IF(ISBLANK($E6),0,IF(LEFT($E6,1)="c",(CallThv(X$2,$D6,$J6/365,$S$21,$K6,0)*$C6)-($C6*$F6),IF(LEFT($E6)="p",(putThv(X$2,$D6,$J6/365,$S$21,$K6,0)*$C6)-($C6*$F6),(X$2-$D6)*$C6))) -> 0 | Y43: =IF(ISBLANK($E6),0,IF(LEFT($E6,1)="c",(CallThv(Y$2,$D6,$J6/365,$S$21,$K6,0)*$C6)-($C6*$F6),IF(LEFT($E6)="p",(putThv(Y$2,$D6,$J6/365,$S$21,$K6,0)*$C6)-($C6*$F6),(Y$2-$D6)*$C6))) -> 0 | Z43: =IF(ISBLANK($E6),0,IF(LEFT($E6,1)="c",(CallThv(Z$2,$D6,$J6/365,$S$21,$K6,0)*$C6)-($C6*$F6),IF(LEFT($E6)="p",(putThv(Z$2,$D6,$J6/365,$S$21,$K6,0)*$C6)-($C6*$F6),(Z$2-$D6)*$C6))) -> 0 | AA43: =IF(ISBLANK($E6),0,IF(LEFT($E6,1)="c",(CallThv(AA$2,$D6,$J6/365,$S$21,$K6,0)*$C6)-($C6*$F6),IF(LEFT($E6)="p",(putThv(AA$2,$D6,$J6/365,$S$21,$K6,0)*$C6)-($C6*$F6),(AA$2-$D6)*$C6))) -> 0 | AB43: =IF(ISBLANK($E6),0,IF(LEFT($E6,1)="c",(CallThv(AB$2,$D6,$J6/365,$S$21,$K6,0)*$C6)-($C6*$F6),IF(LEFT($E6)="p",(putThv(AB$2,$D6,$J6/365,$S$21,$K6,0)*$C6)-($C6*$F6),(AB$2-$D6)*$C6))) -> 0 | AC43: =IF(ISBLANK($E6),0,IF(LEFT($E6,1)="c",(CallThv(AC$2,$D6,$J6/365,$S$21,$K6,0)*$C6)-($C6*$F6),IF(LEFT($E6)="p",(putThv(AC$2,$D6,$J6/365,$S$21,$K6,0)*$C6)-($C6*$F6),(AC$2-$D6)*$C6))) -> 0 | AD43: =IF(ISBLANK($E6),0,IF(LEFT($E6,1)="c",(CallThv(AD$2,$D6,$J6/365,$S$21,$K6,0)*$C6)-($C6*$F6),IF(LEFT($E6)="p",(putThv(AD$2,$D6,$J6/365,$S$21,$K6,0)*$C6)-($C6*$F6),(AD$2-$D6)*$C6))) -> 0 | AE43: =IF(ISBLANK($E6),0,IF(LEFT($E6,1)="c",(CallThv(AE$2,$D6,$J6/365,$S$21,$K6,0)*$C6)-($C6*$F6),IF(LEFT($E6)="p",(putThv(AE$2,$D6,$J6/365,$S$21,$K6,0)*$C6)-($C6*$F6),(AE$2-$D6)*$C6))) -> 0 | AF43: =IF(ISBLANK($E6),0,IF(LEFT($E6,1)="c",(CallThv(AF$2,$D6,$J6/365,$S$21,$K6,0)*$C6)-($C6*$F6),IF(LEFT($E6)="p",(putThv(AF$2,$D6,$J6/365,$S$21,$K6,0)*$C6)-($C6*$F6),(AF$2-$D6)*$C6))) -> 0 | AG43: =IF(ISBLANK($E6),0,IF(LEFT($E6,1)="c",(CallThv(AG$2,$D6,$J6/365,$S$21,$K6,0)*$C6)-($C6*$F6),IF(LEFT($E6)="p",(putThv(AG$2,$D6,$J6/365,$S$21,$K6,0)*$C6)-($C6*$F6),(AG$2-$D6)*$C6))) -> 0 | AH43: =IF(ISBLANK($E6),0,IF(LEFT($E6,1)="c",(CallThv(AH$2,$D6,$J6/365,$S$21,$K6,0)*$C6)-($C6*$F6),IF(LEFT($E6)="p",(putThv(AH$2,$D6,$J6/365,$S$21,$K6,0)*$C6)-($C6*$F6),(AH$2-$D6)*$C6))) -> 0
P44: =IF(ISBLANK($E7),0,IF(LEFT($E7,1)="c",(CallThv(P$2,$D7,$J7/365,$S$21,$K7,0)*$C7)-($C7*$F7),IF(LEFT($E7)="p",(putThv(P$2,$D7,$J7/365,$S$21,$K7,0)*$C7)-($C7*$F7),(P$2-$D7)*$C7))) -> 0 | Q44: =IF(ISBLANK($E7),0,IF(LEFT($E7,1)="c",(CallThv(Q$2,$D7,$J7/365,$S$21,$K7,0)*$C7)-($C7*$F7),IF(LEFT($E7)="p",(putThv(Q$2,$D7,$J7/365,$S$21,$K7,0)*$C7)-($C7*$F7),(Q$2-$D7)*$C7))) -> 0 | R44: =IF(ISBLANK($E7),0,IF(LEFT($E7,1)="c",(CallThv(R$2,$D7,$J7/365,$S$21,$K7,0)*$C7)-($C7*$F7),IF(LEFT($E7)="p",(putThv(R$2,$D7,$J7/365,$S$21,$K7,0)*$C7)-($C7*$F7),(R$2-$D7)*$C7))) -> 0 | S44: =IF(ISBLANK($E7),0,IF(LEFT($E7,1)="c",(CallThv(S$2,$D7,$J7/365,$S$21,$K7,0)*$C7)-($C7*$F7),IF(LEFT($E7)="p",(putThv(S$2,$D7,$J7/365,$S$21,$K7,0)*$C7)-($C7*$F7),(S$2-$D7)*$C7))) -> 0 | T44: =IF(ISBLANK($E7),0,IF(LEFT($E7,1)="c",(CallThv(T$2,$D7,$J7/365,$S$21,$K7,0)*$C7)-($C7*$F7),IF(LEFT($E7)="p",(putThv(T$2,$D7,$J7/365,$S$21,$K7,0)*$C7)-($C7*$F7),(T$2-$D7)*$C7))) -> 0 | U44: =IF(ISBLANK($E7),0,IF(LEFT($E7,1)="c",(CallThv(U$2,$D7,$J7/365,$S$21,$K7,0)*$C7)-($C7*$F7),IF(LEFT($E7)="p",(putThv(U$2,$D7,$J7/365,$S$21,$K7,0)*$C7)-($C7*$F7),(U$2-$D7)*$C7))) -> 0 | V44: =IF(ISBLANK($E7),0,IF(LEFT($E7,1)="c",(CallThv(V$2,$D7,$J7/365,$S$21,$K7,0)*$C7)-($C7*$F7),IF(LEFT($E7)="p",(putThv(V$2,$D7,$J7/365,$S$21,$K7,0)*$C7)-($C7*$F7),(V$2-$D7)*$C7))) -> 0 | W44: =IF(ISBLANK($E7),0,IF(LEFT($E7,1)="c",(CallThv(W$2,$D7,$J7/365,$S$21,$K7,0)*$C7)-($C7*$F7),IF(LEFT($E7)="p",(putThv(W$2,$D7,$J7/365,$S$21,$K7,0)*$C7)-($C7*$F7),(W$2-$D7)*$C7))) -> 0 | X44: =IF(ISBLANK($E7),0,IF(LEFT($E7,1)="c",(CallThv(X$2,$D7,$J7/365,$S$21,$K7,0)*$C7)-($C7*$F7),IF(LEFT($E7)="p",(putThv(X$2,$D7,$J7/365,$S$21,$K7,0)*$C7)-($C7*$F7),(X$2-$D7)*$C7))) -> 0 | Y44: =IF(ISBLANK($E7),0,IF(LEFT($E7,1)="c",(CallThv(Y$2,$D7,$J7/365,$S$21,$K7,0)*$C7)-($C7*$F7),IF(LEFT($E7)="p",(putThv(Y$2,$D7,$J7/365,$S$21,$K7,0)*$C7)-($C7*$F7),(Y$2-$D7)*$C7))) -> 0 | Z44: =IF(ISBLANK($E7),0,IF(LEFT($E7,1)="c",(CallThv(Z$2,$D7,$J7/365,$S$21,$K7,0)*$C7)-($C7*$F7),IF(LEFT($E7)="p",(putThv(Z$2,$D7,$J7/365,$S$21,$K7,0)*$C7)-($C7*$F7),(Z$2-$D7)*$C7))) -> 0 | AA44: =IF(ISBLANK($E7),0,IF(LEFT($E7,1)="c",(CallThv(AA$2,$D7,$J7/365,$S$21,$K7,0)*$C7)-($C7*$F7),IF(LEFT($E7)="p",(putThv(AA$2,$D7,$J7/365,$S$21,$K7,0)*$C7)-($C7*$F7),(AA$2-$D7)*$C7))) -> 0 | AB44: =IF(ISBLANK($E7),0,IF(LEFT($E7,1)="c",(CallThv(AB$2,$D7,$J7/365,$S$21,$K7,0)*$C7)-($C7*$F7),IF(LEFT($E7)="p",(putThv(AB$2,$D7,$J7/365,$S$21,$K7,0)*$C7)-($C7*$F7),(AB$2-$D7)*$C7))) -> 0 | AC44: =IF(ISBLANK($E7),0,IF(LEFT($E7,1)="c",(CallThv(AC$2,$D7,$J7/365,$S$21,$K7,0)*$C7)-($C7*$F7),IF(LEFT($E7)="p",(putThv(AC$2,$D7,$J7/365,$S$21,$K7,0)*$C7)-($C7*$F7),(AC$2-$D7)*$C7))) -> 0 | AD44: =IF(ISBLANK($E7),0,IF(LEFT($E7,1)="c",(CallThv(AD$2,$D7,$J7/365,$S$21,$K7,0)*$C7)-($C7*$F7),IF(LEFT($E7)="p",(putThv(AD$2,$D7,$J7/365,$S$21,$K7,0)*$C7)-($C7*$F7),(AD$2-$D7)*$C7))) -> 0 | AE44: =IF(ISBLANK($E7),0,IF(LEFT($E7,1)="c",(CallThv(AE$2,$D7,$J7/365,$S$21,$K7,0)*$C7)-($C7*$F7),IF(LEFT($E7)="p",(putThv(AE$2,$D7,$J7/365,$S$21,$K7,0)*$C7)-($C7*$F7),(AE$2-$D7)*$C7))) -> 0 | AF44: =IF(ISBLANK($E7),0,IF(LEFT($E7,1)="c",(CallThv(AF$2,$D7,$J7/365,$S$21,$K7,0)*$C7)-($C7*$F7),IF(LEFT($E7)="p",(putThv(AF$2,$D7,$J7/365,$S$21,$K7,0)*$C7)-($C7*$F7),(AF$2-$D7)*$C7))) -> 0 | AG44: =IF(ISBLANK($E7),0,IF(LEFT($E7,1)="c",(CallThv(AG$2,$D7,$J7/365,$S$21,$K7,0)*$C7)-($C7*$F7),IF(LEFT($E7)="p",(putThv(AG$2,$D7,$J7/365,$S$21,$K7,0)*$C7)-($C7*$F7),(AG$2-$D7)*$C7))) -> 0 | AH44: =IF(ISBLANK($E7),0,IF(LEFT($E7,1)="c",(CallThv(AH$2,$D7,$J7/365,$S$21,$K7,0)*$C7)-($C7*$F7),IF(LEFT($E7)="p",(putThv(AH$2,$D7,$J7/365,$S$21,$K7,0)*$C7)-($C7*$F7),(AH$2-$D7)*$C7))) -> 0
P45: =IF(ISBLANK($E8),0,IF(LEFT($E8,1)="c",(CallThv(P$2,$D8,$J8/365,$S$21,$K8,0)*$C8)-($C8*$F8),IF(LEFT($E8)="p",(putThv(P$2,$D8,$J8/365,$S$21,$K8,0)*$C8)-($C8*$F8),(P$2-$D8)*$C8))) -> 0 | Q45: =IF(ISBLANK($E8),0,IF(LEFT($E8,1)="c",(CallThv(Q$2,$D8,$J8/365,$S$21,$K8,0)*$C8)-($C8*$F8),IF(LEFT($E8)="p",(putThv(Q$2,$D8,$J8/365,$S$21,$K8,0)*$C8)-($C8*$F8),(Q$2-$D8)*$C8))) -> 0 | R45: =IF(ISBLANK($E8),0,IF(LEFT($E8,1)="c",(CallThv(R$2,$D8,$J8/365,$S$21,$K8,0)*$C8)-($C8*$F8),IF(LEFT($E8)="p",(putThv(R$2,$D8,$J8/365,$S$21,$K8,0)*$C8)-($C8*$F8),(R$2-$D8)*$C8))) -> 0 | S45: =IF(ISBLANK($E8),0,IF(LEFT($E8,1)="c",(CallThv(S$2,$D8,$J8/365,$S$21,$K8,0)*$C8)-($C8*$F8),IF(LEFT($E8)="p",(putThv(S$2,$D8,$J8/365,$S$21,$K8,0)*$C8)-($C8*$F8),(S$2-$D8)*$C8))) -> 0 | T45: =IF(ISBLANK($E8),0,IF(LEFT($E8,1)="c",(CallThv(T$2,$D8,$J8/365,$S$21,$K8,0)*$C8)-($C8*$F8),IF(LEFT($E8)="p",(putThv(T$2,$D8,$J8/365,$S$21,$K8,0)*$C8)-($C8*$F8),(T$2-$D8)*$C8))) -> 0 | U45: =IF(ISBLANK($E8),0,IF(LEFT($E8,1)="c",(CallThv(U$2,$D8,$J8/365,$S$21,$K8,0)*$C8)-($C8*$F8),IF(LEFT($E8)="p",(putThv(U$2,$D8,$J8/365,$S$21,$K8,0)*$C8)-($C8*$F8),(U$2-$D8)*$C8))) -> 0 | V45: =IF(ISBLANK($E8),0,IF(LEFT($E8,1)="c",(CallThv(V$2,$D8,$J8/365,$S$21,$K8,0)*$C8)-($C8*$F8),IF(LEFT($E8)="p",(putThv(V$2,$D8,$J8/365,$S$21,$K8,0)*$C8)-($C8*$F8),(V$2-$D8)*$C8))) -> 0 | W45: =IF(ISBLANK($E8),0,IF(LEFT($E8,1)="c",(CallThv(W$2,$D8,$J8/365,$S$21,$K8,0)*$C8)-($C8*$F8),IF(LEFT($E8)="p",(putThv(W$2,$D8,$J8/365,$S$21,$K8,0)*$C8)-($C8*$F8),(W$2-$D8)*$C8))) -> 0 | X45: =IF(ISBLANK($E8),0,IF(LEFT($E8,1)="c",(CallThv(X$2,$D8,$J8/365,$S$21,$K8,0)*$C8)-($C8*$F8),IF(LEFT($E8)="p",(putThv(X$2,$D8,$J8/365,$S$21,$K8,0)*$C8)-($C8*$F8),(X$2-$D8)*$C8))) -> 0 | Y45: =IF(ISBLANK($E8),0,IF(LEFT($E8,1)="c",(CallThv(Y$2,$D8,$J8/365,$S$21,$K8,0)*$C8)-($C8*$F8),IF(LEFT($E8)="p",(putThv(Y$2,$D8,$J8/365,$S$21,$K8,0)*$C8)-($C8*$F8),(Y$2-$D8)*$C8))) -> 0 | Z45: =IF(ISBLANK($E8),0,IF(LEFT($E8,1)="c",(CallThv(Z$2,$D8,$J8/365,$S$21,$K8,0)*$C8)-($C8*$F8),IF(LEFT($E8)="p",(putThv(Z$2,$D8,$J8/365,$S$21,$K8,0)*$C8)-($C8*$F8),(Z$2-$D8)*$C8))) -> 0 | AA45: =IF(ISBLANK($E8),0,IF(LEFT($E8,1)="c",(CallThv(AA$2,$D8,$J8/365,$S$21,$K8,0)*$C8)-($C8*$F8),IF(LEFT($E8)="p",(putThv(AA$2,$D8,$J8/365,$S$21,$K8,0)*$C8)-($C8*$F8),(AA$2-$D8)*$C8))) -> 0 | AB45: =IF(ISBLANK($E8),0,IF(LEFT($E8,1)="c",(CallThv(AB$2,$D8,$J8/365,$S$21,$K8,0)*$C8)-($C8*$F8),IF(LEFT($E8)="p",(putThv(AB$2,$D8,$J8/365,$S$21,$K8,0)*$C8)-($C8*$F8),(AB$2-$D8)*$C8))) -> 0 | AC45: =IF(ISBLANK($E8),0,IF(LEFT($E8,1)="c",(CallThv(AC$2,$D8,$J8/365,$S$21,$K8,0)*$C8)-($C8*$F8),IF(LEFT($E8)="p",(putThv(AC$2,$D8,$J8/365,$S$21,$K8,0)*$C8)-($C8*$F8),(AC$2-$D8)*$C8))) -> 0 | AD45: =IF(ISBLANK($E8),0,IF(LEFT($E8,1)="c",(CallThv(AD$2,$D8,$J8/365,$S$21,$K8,0)*$C8)-($C8*$F8),IF(LEFT($E8)="p",(putThv(AD$2,$D8,$J8/365,$S$21,$K8,0)*$C8)-($C8*$F8),(AD$2-$D8)*$C8))) -> 0 | AE45: =IF(ISBLANK($E8),0,IF(LEFT($E8,1)="c",(CallThv(AE$2,$D8,$J8/365,$S$21,$K8,0)*$C8)-($C8*$F8),IF(LEFT($E8)="p",(putThv(AE$2,$D8,$J8/365,$S$21,$K8,0)*$C8)-($C8*$F8),(AE$2-$D8)*$C8))) -> 0 | AF45: =IF(ISBLANK($E8),0,IF(LEFT($E8,1)="c",(CallThv(AF$2,$D8,$J8/365,$S$21,$K8,0)*$C8)-($C8*$F8),IF(LEFT($E8)="p",(putThv(AF$2,$D8,$J8/365,$S$21,$K8,0)*$C8)-($C8*$F8),(AF$2-$D8)*$C8))) -> 0 | AG45: =IF(ISBLANK($E8),0,IF(LEFT($E8,1)="c",(CallThv(AG$2,$D8,$J8/365,$S$21,$K8,0)*$C8)-($C8*$F8),IF(LEFT($E8)="p",(putThv(AG$2,$D8,$J8/365,$S$21,$K8,0)*$C8)-($C8*$F8),(AG$2-$D8)*$C8))) -> 0 | AH45: =IF(ISBLANK($E8),0,IF(LEFT($E8,1)="c",(CallThv(AH$2,$D8,$J8/365,$S$21,$K8,0)*$C8)-($C8*$F8),IF(LEFT($E8)="p",(putThv(AH$2,$D8,$J8/365,$S$21,$K8,0)*$C8)-($C8*$F8),(AH$2-$D8)*$C8))) -> 0
P46: =IF(ISBLANK($E9),0,IF(LEFT($E9,1)="c",(CallThv(P$2,$D9,$J9/365,$S$21,$K9,0)*$C9)-($C9*$F9),IF(LEFT($E9)="p",(putThv(P$2,$D9,$J9/365,$S$21,$K9,0)*$C9)-($C9*$F9),(P$2-$D9)*$C9))) -> 0 | Q46: =IF(ISBLANK($E9),0,IF(LEFT($E9,1)="c",(CallThv(Q$2,$D9,$J9/365,$S$21,$K9,0)*$C9)-($C9*$F9),IF(LEFT($E9)="p",(putThv(Q$2,$D9,$J9/365,$S$21,$K9,0)*$C9)-($C9*$F9),(Q$2-$D9)*$C9))) -> 0 | R46: =IF(ISBLANK($E9),0,IF(LEFT($E9,1)="c",(CallThv(R$2,$D9,$J9/365,$S$21,$K9,0)*$C9)-($C9*$F9),IF(LEFT($E9)="p",(putThv(R$2,$D9,$J9/365,$S$21,$K9,0)*$C9)-($C9*$F9),(R$2-$D9)*$C9))) -> 0 | S46: =IF(ISBLANK($E9),0,IF(LEFT($E9,1)="c",(CallThv(S$2,$D9,$J9/365,$S$21,$K9,0)*$C9)-($C9*$F9),IF(LEFT($E9)="p",(putThv(S$2,$D9,$J9/365,$S$21,$K9,0)*$C9)-($C9*$F9),(S$2-$D9)*$C9))) -> 0 | T46: =IF(ISBLANK($E9),0,IF(LEFT($E9,1)="c",(CallThv(T$2,$D9,$J9/365,$S$21,$K9,0)*$C9)-($C9*$F9),IF(LEFT($E9)="p",(putThv(T$2,$D9,$J9/365,$S$21,$K9,0)*$C9)-($C9*$F9),(T$2-$D9)*$C9))) -> 0 | U46: =IF(ISBLANK($E9),0,IF(LEFT($E9,1)="c",(CallThv(U$2,$D9,$J9/365,$S$21,$K9,0)*$C9)-($C9*$F9),IF(LEFT($E9)="p",(putThv(U$2,$D9,$J9/365,$S$21,$K9,0)*$C9)-($C9*$F9),(U$2-$D9)*$C9))) -> 0 | V46: =IF(ISBLANK($E9),0,IF(LEFT($E9,1)="c",(CallThv(V$2,$D9,$J9/365,$S$21,$K9,0)*$C9)-($C9*$F9),IF(LEFT($E9)="p",(putThv(V$2,$D9,$J9/365,$S$21,$K9,0)*$C9)-($C9*$F9),(V$2-$D9)*$C9))) -> 0 | W46: =IF(ISBLANK($E9),0,IF(LEFT($E9,1)="c",(CallThv(W$2,$D9,$J9/365,$S$21,$K9,0)*$C9)-($C9*$F9),IF(LEFT($E9)="p",(putThv(W$2,$D9,$J9/365,$S$21,$K9,0)*$C9)-($C9*$F9),(W$2-$D9)*$C9))) -> 0 | X46: =IF(ISBLANK($E9),0,IF(LEFT($E9,1)="c",(CallThv(X$2,$D9,$J9/365,$S$21,$K9,0)*$C9)-($C9*$F9),IF(LEFT($E9)="p",(putThv(X$2,$D9,$J9/365,$S$21,$K9,0)*$C9)-($C9*$F9),(X$2-$D9)*$C9))) -> 0 | Y46: =IF(ISBLANK($E9),0,IF(LEFT($E9,1)="c",(CallThv(Y$2,$D9,$J9/365,$S$21,$K9,0)*$C9)-($C9*$F9),IF(LEFT($E9)="p",(putThv(Y$2,$D9,$J9/365,$S$21,$K9,0)*$C9)-($C9*$F9),(Y$2-$D9)*$C9))) -> 0 | Z46: =IF(ISBLANK($E9),0,IF(LEFT($E9,1)="c",(CallThv(Z$2,$D9,$J9/365,$S$21,$K9,0)*$C9)-($C9*$F9),IF(LEFT($E9)="p",(putThv(Z$2,$D9,$J9/365,$S$21,$K9,0)*$C9)-($C9*$F9),(Z$2-$D9)*$C9))) -> 0 | AA46: =IF(ISBLANK($E9),0,IF(LEFT($E9,1)="c",(CallThv(AA$2,$D9,$J9/365,$S$21,$K9,0)*$C9)-($C9*$F9),IF(LEFT($E9)="p",(putThv(AA$2,$D9,$J9/365,$S$21,$K9,0)*$C9)-($C9*$F9),(AA$2-$D9)*$C9))) -> 0 | AB46: =IF(ISBLANK($E9),0,IF(LEFT($E9,1)="c",(CallThv(AB$2,$D9,$J9/365,$S$21,$K9,0)*$C9)-($C9*$F9),IF(LEFT($E9)="p",(putThv(AB$2,$D9,$J9/365,$S$21,$K9,0)*$C9)-($C9*$F9),(AB$2-$D9)*$C9))) -> 0 | AC46: =IF(ISBLANK($E9),0,IF(LEFT($E9,1)="c",(CallThv(AC$2,$D9,$J9/365,$S$21,$K9,0)*$C9)-($C9*$F9),IF(LEFT($E9)="p",(putThv(AC$2,$D9,$J9/365,$S$21,$K9,0)*$C9)-($C9*$F9),(AC$2-$D9)*$C9))) -> 0 | AD46: =IF(ISBLANK($E9),0,IF(LEFT($E9,1)="c",(CallThv(AD$2,$D9,$J9/365,$S$21,$K9,0)*$C9)-($C9*$F9),IF(LEFT($E9)="p",(putThv(AD$2,$D9,$J9/365,$S$21,$K9,0)*$C9)-($C9*$F9),(AD$2-$D9)*$C9))) -> 0 | AE46: =IF(ISBLANK($E9),0,IF(LEFT($E9,1)="c",(CallThv(AE$2,$D9,$J9/365,$S$21,$K9,0)*$C9)-($C9*$F9),IF(LEFT($E9)="p",(putThv(AE$2,$D9,$J9/365,$S$21,$K9,0)*$C9)-($C9*$F9),(AE$2-$D9)*$C9))) -> 0 | AF46: =IF(ISBLANK($E9),0,IF(LEFT($E9,1)="c",(CallThv(AF$2,$D9,$J9/365,$S$21,$K9,0)*$C9)-($C9*$F9),IF(LEFT($E9)="p",(putThv(AF$2,$D9,$J9/365,$S$21,$K9,0)*$C9)-($C9*$F9),(AF$2-$D9)*$C9))) -> 0 | AG46: =IF(ISBLANK($E9),0,IF(LEFT($E9,1)="c",(CallThv(AG$2,$D9,$J9/365,$S$21,$K9,0)*$C9)-($C9*$F9),IF(LEFT($E9)="p",(putThv(AG$2,$D9,$J9/365,$S$21,$K9,0)*$C9)-($C9*$F9),(AG$2-$D9)*$C9))) -> 0 | AH46: =IF(ISBLANK($E9),0,IF(LEFT($E9,1)="c",(CallThv(AH$2,$D9,$J9/365,$S$21,$K9,0)*$C9)-($C9*$F9),IF(LEFT($E9)="p",(putThv(AH$2,$D9,$J9/365,$S$21,$K9,0)*$C9)-($C9*$F9),(AH$2-$D9)*$C9))) -> 0
P47: =IF(ISBLANK($E10),0,IF(LEFT($E10,1)="c",(CallThv(P$2,$D10,$J10/365,$S$21,$K10,0)*$C10)-($C10*$F10),IF(LEFT($E10)="p",(putThv(P$2,$D10,$J10/365,$S$21,$K10,0)*$C10)-($C10*$F10),(P$2-$D10)*$C10))) -> 0 | Q47: =IF(ISBLANK($E10),0,IF(LEFT($E10,1)="c",(CallThv(Q$2,$D10,$J10/365,$S$21,$K10,0)*$C10)-($C10*$F10),IF(LEFT($E10)="p",(putThv(Q$2,$D10,$J10/365,$S$21,$K10,0)*$C10)-($C10*$F10),(Q$2-$D10)*$C10))) -> 0 | R47: =IF(ISBLANK($E10),0,IF(LEFT($E10,1)="c",(CallThv(R$2,$D10,$J10/365,$S$21,$K10,0)*$C10)-($C10*$F10),IF(LEFT($E10)="p",(putThv(R$2,$D10,$J10/365,$S$21,$K10,0)*$C10)-($C10*$F10),(R$2-$D10)*$C10))) -> 0 | S47: =IF(ISBLANK($E10),0,IF(LEFT($E10,1)="c",(CallThv(S$2,$D10,$J10/365,$S$21,$K10,0)*$C10)-($C10*$F10),IF(LEFT($E10)="p",(putThv(S$2,$D10,$J10/365,$S$21,$K10,0)*$C10)-($C10*$F10),(S$2-$D10)*$C10))) -> 0 | T47: =IF(ISBLANK($E10),0,IF(LEFT($E10,1)="c",(CallThv(T$2,$D10,$J10/365,$S$21,$K10,0)*$C10)-($C10*$F10),IF(LEFT($E10)="p",(putThv(T$2,$D10,$J10/365,$S$21,$K10,0)*$C10)-($C10*$F10),(T$2-$D10)*$C10))) -> 0 | U47: =IF(ISBLANK($E10),0,IF(LEFT($E10,1)="c",(CallThv(U$2,$D10,$J10/365,$S$21,$K10,0)*$C10)-($C10*$F10),IF(LEFT($E10)="p",(putThv(U$2,$D10,$J10/365,$S$21,$K10,0)*$C10)-($C10*$F10),(U$2-$D10)*$C10))) -> 0 | V47: =IF(ISBLANK($E10),0,IF(LEFT($E10,1)="c",(CallThv(V$2,$D10,$J10/365,$S$21,$K10,0)*$C10)-($C10*$F10),IF(LEFT($E10)="p",(putThv(V$2,$D10,$J10/365,$S$21,$K10,0)*$C10)-($C10*$F10),(V$2-$D10)*$C10))) -> 0 | W47: =IF(ISBLANK($E10),0,IF(LEFT($E10,1)="c",(CallThv(W$2,$D10,$J10/365,$S$21,$K10,0)*$C10)-($C10*$F10),IF(LEFT($E10)="p",(putThv(W$2,$D10,$J10/365,$S$21,$K10,0)*$C10)-($C10*$F10),(W$2-$D10)*$C10))) -> 0 | X47: =IF(ISBLANK($E10),0,IF(LEFT($E10,1)="c",(CallThv(X$2,$D10,$J10/365,$S$21,$K10,0)*$C10)-($C10*$F10),IF(LEFT($E10)="p",(putThv(X$2,$D10,$J10/365,$S$21,$K10,0)*$C10)-($C10*$F10),(X$2-$D10)*$C10))) -> 0 | Y47: =IF(ISBLANK($E10),0,IF(LEFT($E10,1)="c",(CallThv(Y$2,$D10,$J10/365,$S$21,$K10,0)*$C10)-($C10*$F10),IF(LEFT($E10)="p",(putThv(Y$2,$D10,$J10/365,$S$21,$K10,0)*$C10)-($C10*$F10),(Y$2-$D10)*$C10))) -> 0 | Z47: =IF(ISBLANK($E10),0,IF(LEFT($E10,1)="c",(CallThv(Z$2,$D10,$J10/365,$S$21,$K10,0)*$C10)-($C10*$F10),IF(LEFT($E10)="p",(putThv(Z$2,$D10,$J10/365,$S$21,$K10,0)*$C10)-($C10*$F10),(Z$2-$D10)*$C10))) -> 0 | AA47: =IF(ISBLANK($E10),0,IF(LEFT($E10,1)="c",(CallThv(AA$2,$D10,$J10/365,$S$21,$K10,0)*$C10)-($C10*$F10),IF(LEFT($E10)="p",(putThv(AA$2,$D10,$J10/365,$S$21,$K10,0)*$C10)-($C10*$F10),(AA$2-$D10)*$C10))) -> 0 | AB47: =IF(ISBLANK($E10),0,IF(LEFT($E10,1)="c",(CallThv(AB$2,$D10,$J10/365,$S$21,$K10,0)*$C10)-($C10*$F10),IF(LEFT($E10)="p",(putThv(AB$2,$D10,$J10/365,$S$21,$K10,0)*$C10)-($C10*$F10),(AB$2-$D10)*$C10))) -> 0 | AC47: =IF(ISBLANK($E10),0,IF(LEFT($E10,1)="c",(CallThv(AC$2,$D10,$J10/365,$S$21,$K10,0)*$C10)-($C10*$F10),IF(LEFT($E10)="p",(putThv(AC$2,$D10,$J10/365,$S$21,$K10,0)*$C10)-($C10*$F10),(AC$2-$D10)*$C10))) -> 0 | AD47: =IF(ISBLANK($E10),0,IF(LEFT($E10,1)="c",(CallThv(AD$2,$D10,$J10/365,$S$21,$K10,0)*$C10)-($C10*$F10),IF(LEFT($E10)="p",(putThv(AD$2,$D10,$J10/365,$S$21,$K10,0)*$C10)-($C10*$F10),(AD$2-$D10)*$C10))) -> 0 | AE47: =IF(ISBLANK($E10),0,IF(LEFT($E10,1)="c",(CallThv(AE$2,$D10,$J10/365,$S$21,$K10,0)*$C10)-($C10*$F10),IF(LEFT($E10)="p",(putThv(AE$2,$D10,$J10/365,$S$21,$K10,0)*$C10)-($C10*$F10),(AE$2-$D10)*$C10))) -> 0 | AF47: =IF(ISBLANK($E10),0,IF(LEFT($E10,1)="c",(CallThv(AF$2,$D10,$J10/365,$S$21,$K10,0)*$C10)-($C10*$F10),IF(LEFT($E10)="p",(putThv(AF$2,$D10,$J10/365,$S$21,$K10,0)*$C10)-($C10*$F10),(AF$2-$D10)*$C10))) -> 0 | AG47: =IF(ISBLANK($E10),0,IF(LEFT($E10,1)="c",(CallThv(AG$2,$D10,$J10/365,$S$21,$K10,0)*$C10)-($C10*$F10),IF(LEFT($E10)="p",(putThv(AG$2,$D10,$J10/365,$S$21,$K10,0)*$C10)-($C10*$F10),(AG$2-$D10)*$C10))) -> 0 | AH47: =IF(ISBLANK($E10),0,IF(LEFT($E10,1)="c",(CallThv(AH$2,$D10,$J10/365,$S$21,$K10,0)*$C10)-($C10*$F10),IF(LEFT($E10)="p",(putThv(AH$2,$D10,$J10/365,$S$21,$K10,0)*$C10)-($C10*$F10),(AH$2-$D10)*$C10))) -> 0
P48: =IF(ISBLANK($E11),0,IF(LEFT($E11,1)="c",(CallThv(P$2,$D11,$J11/365,$S$21,$K11,0)*$C11)-($C11*$F11),IF(LEFT($E11)="p",(putThv(P$2,$D11,$J11/365,$S$21,$K11,0)*$C11)-($C11*$F11),(P$2-$D11)*$C11))) -> 0 | Q48: =IF(ISBLANK($E11),0,IF(LEFT($E11,1)="c",(CallThv(Q$2,$D11,$J11/365,$S$21,$K11,0)*$C11)-($C11*$F11),IF(LEFT($E11)="p",(putThv(Q$2,$D11,$J11/365,$S$21,$K11,0)*$C11)-($C11*$F11),(Q$2-$D11)*$C11))) -> 0 | R48: =IF(ISBLANK($E11),0,IF(LEFT($E11,1)="c",(CallThv(R$2,$D11,$J11/365,$S$21,$K11,0)*$C11)-($C11*$F11),IF(LEFT($E11)="p",(putThv(R$2,$D11,$J11/365,$S$21,$K11,0)*$C11)-($C11*$F11),(R$2-$D11)*$C11))) -> 0 | S48: =IF(ISBLANK($E11),0,IF(LEFT($E11,1)="c",(CallThv(S$2,$D11,$J11/365,$S$21,$K11,0)*$C11)-($C11*$F11),IF(LEFT($E11)="p",(putThv(S$2,$D11,$J11/365,$S$21,$K11,0)*$C11)-($C11*$F11),(S$2-$D11)*$C11))) -> 0 | T48: =IF(ISBLANK($E11),0,IF(LEFT($E11,1)="c",(CallThv(T$2,$D11,$J11/365,$S$21,$K11,0)*$C11)-($C11*$F11),IF(LEFT($E11)="p",(putThv(T$2,$D11,$J11/365,$S$21,$K11,0)*$C11)-($C11*$F11),(T$2-$D11)*$C11))) -> 0 | U48: =IF(ISBLANK($E11),0,IF(LEFT($E11,1)="c",(CallThv(U$2,$D11,$J11/365,$S$21,$K11,0)*$C11)-($C11*$F11),IF(LEFT($E11)="p",(putThv(U$2,$D11,$J11/365,$S$21,$K11,0)*$C11)-($C11*$F11),(U$2-$D11)*$C11))) -> 0 | V48: =IF(ISBLANK($E11),0,IF(LEFT($E11,1)="c",(CallThv(V$2,$D11,$J11/365,$S$21,$K11,0)*$C11)-($C11*$F11),IF(LEFT($E11)="p",(putThv(V$2,$D11,$J11/365,$S$21,$K11,0)*$C11)-($C11*$F11),(V$2-$D11)*$C11))) -> 0 | W48: =IF(ISBLANK($E11),0,IF(LEFT($E11,1)="c",(CallThv(W$2,$D11,$J11/365,$S$21,$K11,0)*$C11)-($C11*$F11),IF(LEFT($E11)="p",(putThv(W$2,$D11,$J11/365,$S$21,$K11,0)*$C11)-($C11*$F11),(W$2-$D11)*$C11))) -> 0 | X48: =IF(ISBLANK($E11),0,IF(LEFT($E11,1)="c",(CallThv(X$2,$D11,$J11/365,$S$21,$K11,0)*$C11)-($C11*$F11),IF(LEFT($E11)="p",(putThv(X$2,$D11,$J11/365,$S$21,$K11,0)*$C11)-($C11*$F11),(X$2-$D11)*$C11))) -> 0 | Y48: =IF(ISBLANK($E11),0,IF(LEFT($E11,1)="c",(CallThv(Y$2,$D11,$J11/365,$S$21,$K11,0)*$C11)-($C11*$F11),IF(LEFT($E11)="p",(putThv(Y$2,$D11,$J11/365,$S$21,$K11,0)*$C11)-($C11*$F11),(Y$2-$D11)*$C11))) -> 0 | Z48: =IF(ISBLANK($E11),0,IF(LEFT($E11,1)="c",(CallThv(Z$2,$D11,$J11/365,$S$21,$K11,0)*$C11)-($C11*$F11),IF(LEFT($E11)="p",(putThv(Z$2,$D11,$J11/365,$S$21,$K11,0)*$C11)-($C11*$F11),(Z$2-$D11)*$C11))) -> 0 | AA48: =IF(ISBLANK($E11),0,IF(LEFT($E11,1)="c",(CallThv(AA$2,$D11,$J11/365,$S$21,$K11,0)*$C11)-($C11*$F11),IF(LEFT($E11)="p",(putThv(AA$2,$D11,$J11/365,$S$21,$K11,0)*$C11)-($C11*$F11),(AA$2-$D11)*$C11))) -> 0 | AB48: =IF(ISBLANK($E11),0,IF(LEFT($E11,1)="c",(CallThv(AB$2,$D11,$J11/365,$S$21,$K11,0)*$C11)-($C11*$F11),IF(LEFT($E11)="p",(putThv(AB$2,$D11,$J11/365,$S$21,$K11,0)*$C11)-($C11*$F11),(AB$2-$D11)*$C11))) -> 0 | AC48: =IF(ISBLANK($E11),0,IF(LEFT($E11,1)="c",(CallThv(AC$2,$D11,$J11/365,$S$21,$K11,0)*$C11)-($C11*$F11),IF(LEFT($E11)="p",(putThv(AC$2,$D11,$J11/365,$S$21,$K11,0)*$C11)-($C11*$F11),(AC$2-$D11)*$C11))) -> 0 | AD48: =IF(ISBLANK($E11),0,IF(LEFT($E11,1)="c",(CallThv(AD$2,$D11,$J11/365,$S$21,$K11,0)*$C11)-($C11*$F11),IF(LEFT($E11)="p",(putThv(AD$2,$D11,$J11/365,$S$21,$K11,0)*$C11)-($C11*$F11),(AD$2-$D11)*$C11))) -> 0 | AE48: =IF(ISBLANK($E11),0,IF(LEFT($E11,1)="c",(CallThv(AE$2,$D11,$J11/365,$S$21,$K11,0)*$C11)-($C11*$F11),IF(LEFT($E11)="p",(putThv(AE$2,$D11,$J11/365,$S$21,$K11,0)*$C11)-($C11*$F11),(AE$2-$D11)*$C11))) -> 0 | AF48: =IF(ISBLANK($E11),0,IF(LEFT($E11,1)="c",(CallThv(AF$2,$D11,$J11/365,$S$21,$K11,0)*$C11)-($C11*$F11),IF(LEFT($E11)="p",(putThv(AF$2,$D11,$J11/365,$S$21,$K11,0)*$C11)-($C11*$F11),(AF$2-$D11)*$C11))) -> 0 | AG48: =IF(ISBLANK($E11),0,IF(LEFT($E11,1)="c",(CallThv(AG$2,$D11,$J11/365,$S$21,$K11,0)*$C11)-($C11*$F11),IF(LEFT($E11)="p",(putThv(AG$2,$D11,$J11/365,$S$21,$K11,0)*$C11)-($C11*$F11),(AG$2-$D11)*$C11))) -> 0 | AH48: =IF(ISBLANK($E11),0,IF(LEFT($E11,1)="c",(CallThv(AH$2,$D11,$J11/365,$S$21,$K11,0)*$C11)-($C11*$F11),IF(LEFT($E11)="p",(putThv(AH$2,$D11,$J11/365,$S$21,$K11,0)*$C11)-($C11*$F11),(AH$2-$D11)*$C11))) -> 0
P49: =IF(ISBLANK($E12),0,IF(LEFT($E12,1)="c",(CallThv(P$2,$D12,$J12/365,$S$21,$K12,0)*$C12)-($C12*$F12),IF(LEFT($E12)="p",(putThv(P$2,$D12,$J12/365,$S$21,$K12,0)*$C12)-($C12*$F12),(P$2-$D12)*$C12))) -> 0 | Q49: =IF(ISBLANK($E12),0,IF(LEFT($E12,1)="c",(CallThv(Q$2,$D12,$J12/365,$S$21,$K12,0)*$C12)-($C12*$F12),IF(LEFT($E12)="p",(putThv(Q$2,$D12,$J12/365,$S$21,$K12,0)*$C12)-($C12*$F12),(Q$2-$D12)*$C12))) -> 0 | R49: =IF(ISBLANK($E12),0,IF(LEFT($E12,1)="c",(CallThv(R$2,$D12,$J12/365,$S$21,$K12,0)*$C12)-($C12*$F12),IF(LEFT($E12)="p",(putThv(R$2,$D12,$J12/365,$S$21,$K12,0)*$C12)-($C12*$F12),(R$2-$D12)*$C12))) -> 0 | S49: =IF(ISBLANK($E12),0,IF(LEFT($E12,1)="c",(CallThv(S$2,$D12,$J12/365,$S$21,$K12,0)*$C12)-($C12*$F12),IF(LEFT($E12)="p",(putThv(S$2,$D12,$J12/365,$S$21,$K12,0)*$C12)-($C12*$F12),(S$2-$D12)*$C12))) -> 0 | T49: =IF(ISBLANK($E12),0,IF(LEFT($E12,1)="c",(CallThv(T$2,$D12,$J12/365,$S$21,$K12,0)*$C12)-($C12*$F12),IF(LEFT($E12)="p",(putThv(T$2,$D12,$J12/365,$S$21,$K12,0)*$C12)-($C12*$F12),(T$2-$D12)*$C12))) -> 0 | U49: =IF(ISBLANK($E12),0,IF(LEFT($E12,1)="c",(CallThv(U$2,$D12,$J12/365,$S$21,$K12,0)*$C12)-($C12*$F12),IF(LEFT($E12)="p",(putThv(U$2,$D12,$J12/365,$S$21,$K12,0)*$C12)-($C12*$F12),(U$2-$D12)*$C12))) -> 0 | V49: =IF(ISBLANK($E12),0,IF(LEFT($E12,1)="c",(CallThv(V$2,$D12,$J12/365,$S$21,$K12,0)*$C12)-($C12*$F12),IF(LEFT($E12)="p",(putThv(V$2,$D12,$J12/365,$S$21,$K12,0)*$C12)-($C12*$F12),(V$2-$D12)*$C12))) -> 0 | W49: =IF(ISBLANK($E12),0,IF(LEFT($E12,1)="c",(CallThv(W$2,$D12,$J12/365,$S$21,$K12,0)*$C12)-($C12*$F12),IF(LEFT($E12)="p",(putThv(W$2,$D12,$J12/365,$S$21,$K12,0)*$C12)-($C12*$F12),(W$2-$D12)*$C12))) -> 0 | X49: =IF(ISBLANK($E12),0,IF(LEFT($E12,1)="c",(CallThv(X$2,$D12,$J12/365,$S$21,$K12,0)*$C12)-($C12*$F12),IF(LEFT($E12)="p",(putThv(X$2,$D12,$J12/365,$S$21,$K12,0)*$C12)-($C12*$F12),(X$2-$D12)*$C12))) -> 0 | Y49: =IF(ISBLANK($E12),0,IF(LEFT($E12,1)="c",(CallThv(Y$2,$D12,$J12/365,$S$21,$K12,0)*$C12)-($C12*$F12),IF(LEFT($E12)="p",(putThv(Y$2,$D12,$J12/365,$S$21,$K12,0)*$C12)-($C12*$F12),(Y$2-$D12)*$C12))) -> 0 | Z49: =IF(ISBLANK($E12),0,IF(LEFT($E12,1)="c",(CallThv(Z$2,$D12,$J12/365,$S$21,$K12,0)*$C12)-($C12*$F12),IF(LEFT($E12)="p",(putThv(Z$2,$D12,$J12/365,$S$21,$K12,0)*$C12)-($C12*$F12),(Z$2-$D12)*$C12))) -> 0 | AA49: =IF(ISBLANK($E12),0,IF(LEFT($E12,1)="c",(CallThv(AA$2,$D12,$J12/365,$S$21,$K12,0)*$C12)-($C12*$F12),IF(LEFT($E12)="p",(putThv(AA$2,$D12,$J12/365,$S$21,$K12,0)*$C12)-($C12*$F12),(AA$2-$D12)*$C12))) -> 0 | AB49: =IF(ISBLANK($E12),0,IF(LEFT($E12,1)="c",(CallThv(AB$2,$D12,$J12/365,$S$21,$K12,0)*$C12)-($C12*$F12),IF(LEFT($E12)="p",(putThv(AB$2,$D12,$J12/365,$S$21,$K12,0)*$C12)-($C12*$F12),(AB$2-$D12)*$C12))) -> 0 | AC49: =IF(ISBLANK($E12),0,IF(LEFT($E12,1)="c",(CallThv(AC$2,$D12,$J12/365,$S$21,$K12,0)*$C12)-($C12*$F12),IF(LEFT($E12)="p",(putThv(AC$2,$D12,$J12/365,$S$21,$K12,0)*$C12)-($C12*$F12),(AC$2-$D12)*$C12))) -> 0 | AD49: =IF(ISBLANK($E12),0,IF(LEFT($E12,1)="c",(CallThv(AD$2,$D12,$J12/365,$S$21,$K12,0)*$C12)-($C12*$F12),IF(LEFT($E12)="p",(putThv(AD$2,$D12,$J12/365,$S$21,$K12,0)*$C12)-($C12*$F12),(AD$2-$D12)*$C12))) -> 0 | AE49: =IF(ISBLANK($E12),0,IF(LEFT($E12,1)="c",(CallThv(AE$2,$D12,$J12/365,$S$21,$K12,0)*$C12)-($C12*$F12),IF(LEFT($E12)="p",(putThv(AE$2,$D12,$J12/365,$S$21,$K12,0)*$C12)-($C12*$F12),(AE$2-$D12)*$C12))) -> 0 | AF49: =IF(ISBLANK($E12),0,IF(LEFT($E12,1)="c",(CallThv(AF$2,$D12,$J12/365,$S$21,$K12,0)*$C12)-($C12*$F12),IF(LEFT($E12)="p",(putThv(AF$2,$D12,$J12/365,$S$21,$K12,0)*$C12)-($C12*$F12),(AF$2-$D12)*$C12))) -> 0 | AG49: =IF(ISBLANK($E12),0,IF(LEFT($E12,1)="c",(CallThv(AG$2,$D12,$J12/365,$S$21,$K12,0)*$C12)-($C12*$F12),IF(LEFT($E12)="p",(putThv(AG$2,$D12,$J12/365,$S$21,$K12,0)*$C12)-($C12*$F12),(AG$2-$D12)*$C12))) -> 0 | AH49: =IF(ISBLANK($E12),0,IF(LEFT($E12,1)="c",(CallThv(AH$2,$D12,$J12/365,$S$21,$K12,0)*$C12)-($C12*$F12),IF(LEFT($E12)="p",(putThv(AH$2,$D12,$J12/365,$S$21,$K12,0)*$C12)-($C12*$F12),(AH$2-$D12)*$C12))) -> 0
P50: =IF(ISBLANK($E13),0,IF(LEFT($E13,1)="c",(CallThv(P$2,$D13,$J13/365,$S$21,$K13,0)*$C13)-($C13*$F13),IF(LEFT($E13)="p",(putThv(P$2,$D13,$J13/365,$S$21,$K13,0)*$C13)-($C13*$F13),(P$2-$D13)*$C13))) -> 0 | Q50: =IF(ISBLANK($E13),0,IF(LEFT($E13,1)="c",(CallThv(Q$2,$D13,$J13/365,$S$21,$K13,0)*$C13)-($C13*$F13),IF(LEFT($E13)="p",(putThv(Q$2,$D13,$J13/365,$S$21,$K13,0)*$C13)-($C13*$F13),(Q$2-$D13)*$C13))) -> 0 | R50: =IF(ISBLANK($E13),0,IF(LEFT($E13,1)="c",(CallThv(R$2,$D13,$J13/365,$S$21,$K13,0)*$C13)-($C13*$F13),IF(LEFT($E13)="p",(putThv(R$2,$D13,$J13/365,$S$21,$K13,0)*$C13)-($C13*$F13),(R$2-$D13)*$C13))) -> 0 | S50: =IF(ISBLANK($E13),0,IF(LEFT($E13,1)="c",(CallThv(S$2,$D13,$J13/365,$S$21,$K13,0)*$C13)-($C13*$F13),IF(LEFT($E13)="p",(putThv(S$2,$D13,$J13/365,$S$21,$K13,0)*$C13)-($C13*$F13),(S$2-$D13)*$C13))) -> 0 | T50: =IF(ISBLANK($E13),0,IF(LEFT($E13,1)="c",(CallThv(T$2,$D13,$J13/365,$S$21,$K13,0)*$C13)-($C13*$F13),IF(LEFT($E13)="p",(putThv(T$2,$D13,$J13/365,$S$21,$K13,0)*$C13)-($C13*$F13),(T$2-$D13)*$C13))) -> 0 | U50: =IF(ISBLANK($E13),0,IF(LEFT($E13,1)="c",(CallThv(U$2,$D13,$J13/365,$S$21,$K13,0)*$C13)-($C13*$F13),IF(LEFT($E13)="p",(putThv(U$2,$D13,$J13/365,$S$21,$K13,0)*$C13)-($C13*$F13),(U$2-$D13)*$C13))) -> 0 | V50: =IF(ISBLANK($E13),0,IF(LEFT($E13,1)="c",(CallThv(V$2,$D13,$J13/365,$S$21,$K13,0)*$C13)-($C13*$F13),IF(LEFT($E13)="p",(putThv(V$2,$D13,$J13/365,$S$21,$K13,0)*$C13)-($C13*$F13),(V$2-$D13)*$C13))) -> 0 | W50: =IF(ISBLANK($E13),0,IF(LEFT($E13,1)="c",(CallThv(W$2,$D13,$J13/365,$S$21,$K13,0)*$C13)-($C13*$F13),IF(LEFT($E13)="p",(putThv(W$2,$D13,$J13/365,$S$21,$K13,0)*$C13)-($C13*$F13),(W$2-$D13)*$C13))) -> 0 | X50: =IF(ISBLANK($E13),0,IF(LEFT($E13,1)="c",(CallThv(X$2,$D13,$J13/365,$S$21,$K13,0)*$C13)-($C13*$F13),IF(LEFT($E13)="p",(putThv(X$2,$D13,$J13/365,$S$21,$K13,0)*$C13)-($C13*$F13),(X$2-$D13)*$C13))) -> 0 | Y50: =IF(ISBLANK($E13),0,IF(LEFT($E13,1)="c",(CallThv(Y$2,$D13,$J13/365,$S$21,$K13,0)*$C13)-($C13*$F13),IF(LEFT($E13)="p",(putThv(Y$2,$D13,$J13/365,$S$21,$K13,0)*$C13)-($C13*$F13),(Y$2-$D13)*$C13))) -> 0 | Z50: =IF(ISBLANK($E13),0,IF(LEFT($E13,1)="c",(CallThv(Z$2,$D13,$J13/365,$S$21,$K13,0)*$C13)-($C13*$F13),IF(LEFT($E13)="p",(putThv(Z$2,$D13,$J13/365,$S$21,$K13,0)*$C13)-($C13*$F13),(Z$2-$D13)*$C13))) -> 0 | AA50: =IF(ISBLANK($E13),0,IF(LEFT($E13,1)="c",(CallThv(AA$2,$D13,$J13/365,$S$21,$K13,0)*$C13)-($C13*$F13),IF(LEFT($E13)="p",(putThv(AA$2,$D13,$J13/365,$S$21,$K13,0)*$C13)-($C13*$F13),(AA$2-$D13)*$C13))) -> 0 | AB50: =IF(ISBLANK($E13),0,IF(LEFT($E13,1)="c",(CallThv(AB$2,$D13,$J13/365,$S$21,$K13,0)*$C13)-($C13*$F13),IF(LEFT($E13)="p",(putThv(AB$2,$D13,$J13/365,$S$21,$K13,0)*$C13)-($C13*$F13),(AB$2-$D13)*$C13))) -> 0 | AC50: =IF(ISBLANK($E13),0,IF(LEFT($E13,1)="c",(CallThv(AC$2,$D13,$J13/365,$S$21,$K13,0)*$C13)-($C13*$F13),IF(LEFT($E13)="p",(putThv(AC$2,$D13,$J13/365,$S$21,$K13,0)*$C13)-($C13*$F13),(AC$2-$D13)*$C13))) -> 0 | AD50: =IF(ISBLANK($E13),0,IF(LEFT($E13,1)="c",(CallThv(AD$2,$D13,$J13/365,$S$21,$K13,0)*$C13)-($C13*$F13),IF(LEFT($E13)="p",(putThv(AD$2,$D13,$J13/365,$S$21,$K13,0)*$C13)-($C13*$F13),(AD$2-$D13)*$C13))) -> 0 | AE50: =IF(ISBLANK($E13),0,IF(LEFT($E13,1)="c",(CallThv(AE$2,$D13,$J13/365,$S$21,$K13,0)*$C13)-($C13*$F13),IF(LEFT($E13)="p",(putThv(AE$2,$D13,$J13/365,$S$21,$K13,0)*$C13)-($C13*$F13),(AE$2-$D13)*$C13))) -> 0 | AF50: =IF(ISBLANK($E13),0,IF(LEFT($E13,1)="c",(CallThv(AF$2,$D13,$J13/365,$S$21,$K13,0)*$C13)-($C13*$F13),IF(LEFT($E13)="p",(putThv(AF$2,$D13,$J13/365,$S$21,$K13,0)*$C13)-($C13*$F13),(AF$2-$D13)*$C13))) -> 0 | AG50: =IF(ISBLANK($E13),0,IF(LEFT($E13,1)="c",(CallThv(AG$2,$D13,$J13/365,$S$21,$K13,0)*$C13)-($C13*$F13),IF(LEFT($E13)="p",(putThv(AG$2,$D13,$J13/365,$S$21,$K13,0)*$C13)-($C13*$F13),(AG$2-$D13)*$C13))) -> 0 | AH50: =IF(ISBLANK($E13),0,IF(LEFT($E13,1)="c",(CallThv(AH$2,$D13,$J13/365,$S$21,$K13,0)*$C13)-($C13*$F13),IF(LEFT($E13)="p",(putThv(AH$2,$D13,$J13/365,$S$21,$K13,0)*$C13)-($C13*$F13),(AH$2-$D13)*$C13))) -> 0
P51: =IF(ISBLANK($E14),0,IF(LEFT($E14,1)="c",(CallThv(P$2,$D14,$J14/365,$S$21,$K14,0)*$C14)-($C14*$F14),IF(LEFT($E14)="p",(putThv(P$2,$D14,$J14/365,$S$21,$K14,0)*$C14)-($C14*$F14),(P$2-$D14)*$C14))) -> 0 | Q51: =IF(ISBLANK($E14),0,IF(LEFT($E14,1)="c",(CallThv(Q$2,$D14,$J14/365,$S$21,$K14,0)*$C14)-($C14*$F14),IF(LEFT($E14)="p",(putThv(Q$2,$D14,$J14/365,$S$21,$K14,0)*$C14)-($C14*$F14),(Q$2-$D14)*$C14))) -> 0 | R51: =IF(ISBLANK($E14),0,IF(LEFT($E14,1)="c",(CallThv(R$2,$D14,$J14/365,$S$21,$K14,0)*$C14)-($C14*$F14),IF(LEFT($E14)="p",(putThv(R$2,$D14,$J14/365,$S$21,$K14,0)*$C14)-($C14*$F14),(R$2-$D14)*$C14))) -> 0 | S51: =IF(ISBLANK($E14),0,IF(LEFT($E14,1)="c",(CallThv(S$2,$D14,$J14/365,$S$21,$K14,0)*$C14)-($C14*$F14),IF(LEFT($E14)="p",(putThv(S$2,$D14,$J14/365,$S$21,$K14,0)*$C14)-($C14*$F14),(S$2-$D14)*$C14))) -> 0 | T51: =IF(ISBLANK($E14),0,IF(LEFT($E14,1)="c",(CallThv(T$2,$D14,$J14/365,$S$21,$K14,0)*$C14)-($C14*$F14),IF(LEFT($E14)="p",(putThv(T$2,$D14,$J14/365,$S$21,$K14,0)*$C14)-($C14*$F14),(T$2-$D14)*$C14))) -> 0 | U51: =IF(ISBLANK($E14),0,IF(LEFT($E14,1)="c",(CallThv(U$2,$D14,$J14/365,$S$21,$K14,0)*$C14)-($C14*$F14),IF(LEFT($E14)="p",(putThv(U$2,$D14,$J14/365,$S$21,$K14,0)*$C14)-($C14*$F14),(U$2-$D14)*$C14))) -> 0 | V51: =IF(ISBLANK($E14),0,IF(LEFT($E14,1)="c",(CallThv(V$2,$D14,$J14/365,$S$21,$K14,0)*$C14)-($C14*$F14),IF(LEFT($E14)="p",(putThv(V$2,$D14,$J14/365,$S$21,$K14,0)*$C14)-($C14*$F14),(V$2-$D14)*$C14))) -> 0 | W51: =IF(ISBLANK($E14),0,IF(LEFT($E14,1)="c",(CallThv(W$2,$D14,$J14/365,$S$21,$K14,0)*$C14)-($C14*$F14),IF(LEFT($E14)="p",(putThv(W$2,$D14,$J14/365,$S$21,$K14,0)*$C14)-($C14*$F14),(W$2-$D14)*$C14))) -> 0 | X51: =IF(ISBLANK($E14),0,IF(LEFT($E14,1)="c",(CallThv(X$2,$D14,$J14/365,$S$21,$K14,0)*$C14)-($C14*$F14),IF(LEFT($E14)="p",(putThv(X$2,$D14,$J14/365,$S$21,$K14,0)*$C14)-($C14*$F14),(X$2-$D14)*$C14))) -> 0 | Y51: =IF(ISBLANK($E14),0,IF(LEFT($E14,1)="c",(CallThv(Y$2,$D14,$J14/365,$S$21,$K14,0)*$C14)-($C14*$F14),IF(LEFT($E14)="p",(putThv(Y$2,$D14,$J14/365,$S$21,$K14,0)*$C14)-($C14*$F14),(Y$2-$D14)*$C14))) -> 0 | Z51: =IF(ISBLANK($E14),0,IF(LEFT($E14,1)="c",(CallThv(Z$2,$D14,$J14/365,$S$21,$K14,0)*$C14)-($C14*$F14),IF(LEFT($E14)="p",(putThv(Z$2,$D14,$J14/365,$S$21,$K14,0)*$C14)-($C14*$F14),(Z$2-$D14)*$C14))) -> 0 | AA51: =IF(ISBLANK($E14),0,IF(LEFT($E14,1)="c",(CallThv(AA$2,$D14,$J14/365,$S$21,$K14,0)*$C14)-($C14*$F14),IF(LEFT($E14)="p",(putThv(AA$2,$D14,$J14/365,$S$21,$K14,0)*$C14)-($C14*$F14),(AA$2-$D14)*$C14))) -> 0 | AB51: =IF(ISBLANK($E14),0,IF(LEFT($E14,1)="c",(CallThv(AB$2,$D14,$J14/365,$S$21,$K14,0)*$C14)-($C14*$F14),IF(LEFT($E14)="p",(putThv(AB$2,$D14,$J14/365,$S$21,$K14,0)*$C14)-($C14*$F14),(AB$2-$D14)*$C14))) -> 0 | AC51: =IF(ISBLANK($E14),0,IF(LEFT($E14,1)="c",(CallThv(AC$2,$D14,$J14/365,$S$21,$K14,0)*$C14)-($C14*$F14),IF(LEFT($E14)="p",(putThv(AC$2,$D14,$J14/365,$S$21,$K14,0)*$C14)-($C14*$F14),(AC$2-$D14)*$C14))) -> 0 | AD51: =IF(ISBLANK($E14),0,IF(LEFT($E14,1)="c",(CallThv(AD$2,$D14,$J14/365,$S$21,$K14,0)*$C14)-($C14*$F14),IF(LEFT($E14)="p",(putThv(AD$2,$D14,$J14/365,$S$21,$K14,0)*$C14)-($C14*$F14),(AD$2-$D14)*$C14))) -> 0 | AE51: =IF(ISBLANK($E14),0,IF(LEFT($E14,1)="c",(CallThv(AE$2,$D14,$J14/365,$S$21,$K14,0)*$C14)-($C14*$F14),IF(LEFT($E14)="p",(putThv(AE$2,$D14,$J14/365,$S$21,$K14,0)*$C14)-($C14*$F14),(AE$2-$D14)*$C14))) -> 0 | AF51: =IF(ISBLANK($E14),0,IF(LEFT($E14,1)="c",(CallThv(AF$2,$D14,$J14/365,$S$21,$K14,0)*$C14)-($C14*$F14),IF(LEFT($E14)="p",(putThv(AF$2,$D14,$J14/365,$S$21,$K14,0)*$C14)-($C14*$F14),(AF$2-$D14)*$C14))) -> 0 | AG51: =IF(ISBLANK($E14),0,IF(LEFT($E14,1)="c",(CallThv(AG$2,$D14,$J14/365,$S$21,$K14,0)*$C14)-($C14*$F14),IF(LEFT($E14)="p",(putThv(AG$2,$D14,$J14/365,$S$21,$K14,0)*$C14)-($C14*$F14),(AG$2-$D14)*$C14))) -> 0 | AH51: =IF(ISBLANK($E14),0,IF(LEFT($E14,1)="c",(CallThv(AH$2,$D14,$J14/365,$S$21,$K14,0)*$C14)-($C14*$F14),IF(LEFT($E14)="p",(putThv(AH$2,$D14,$J14/365,$S$21,$K14,0)*$C14)-($C14*$F14),(AH$2-$D14)*$C14))) -> 0
P52: =IF(ISBLANK($E15),0,IF(LEFT($E15,1)="c",(CallThv(P$2,$D15,$J15/365,$S$21,$K15,0)*$C15)-($C15*$F15),IF(LEFT($E15)="p",(putThv(P$2,$D15,$J15/365,$S$21,$K15,0)*$C15)-($C15*$F15),(P$2-$D15)*$C15))) -> 0 | Q52: =IF(ISBLANK($E15),0,IF(LEFT($E15,1)="c",(CallThv(Q$2,$D15,$J15/365,$S$21,$K15,0)*$C15)-($C15*$F15),IF(LEFT($E15)="p",(putThv(Q$2,$D15,$J15/365,$S$21,$K15,0)*$C15)-($C15*$F15),(Q$2-$D15)*$C15))) -> 0 | R52: =IF(ISBLANK($E15),0,IF(LEFT($E15,1)="c",(CallThv(R$2,$D15,$J15/365,$S$21,$K15,0)*$C15)-($C15*$F15),IF(LEFT($E15)="p",(putThv(R$2,$D15,$J15/365,$S$21,$K15,0)*$C15)-($C15*$F15),(R$2-$D15)*$C15))) -> 0 | S52: =IF(ISBLANK($E15),0,IF(LEFT($E15,1)="c",(CallThv(S$2,$D15,$J15/365,$S$21,$K15,0)*$C15)-($C15*$F15),IF(LEFT($E15)="p",(putThv(S$2,$D15,$J15/365,$S$21,$K15,0)*$C15)-($C15*$F15),(S$2-$D15)*$C15))) -> 0 | T52: =IF(ISBLANK($E15),0,IF(LEFT($E15,1)="c",(CallThv(T$2,$D15,$J15/365,$S$21,$K15,0)*$C15)-($C15*$F15),IF(LEFT($E15)="p",(putThv(T$2,$D15,$J15/365,$S$21,$K15,0)*$C15)-($C15*$F15),(T$2-$D15)*$C15))) -> 0 | U52: =IF(ISBLANK($E15),0,IF(LEFT($E15,1)="c",(CallThv(U$2,$D15,$J15/365,$S$21,$K15,0)*$C15)-($C15*$F15),IF(LEFT($E15)="p",(putThv(U$2,$D15,$J15/365,$S$21,$K15,0)*$C15)-($C15*$F15),(U$2-$D15)*$C15))) -> 0 | V52: =IF(ISBLANK($E15),0,IF(LEFT($E15,1)="c",(CallThv(V$2,$D15,$J15/365,$S$21,$K15,0)*$C15)-($C15*$F15),IF(LEFT($E15)="p",(putThv(V$2,$D15,$J15/365,$S$21,$K15,0)*$C15)-($C15*$F15),(V$2-$D15)*$C15))) -> 0 | W52: =IF(ISBLANK($E15),0,IF(LEFT($E15,1)="c",(CallThv(W$2,$D15,$J15/365,$S$21,$K15,0)*$C15)-($C15*$F15),IF(LEFT($E15)="p",(putThv(W$2,$D15,$J15/365,$S$21,$K15,0)*$C15)-($C15*$F15),(W$2-$D15)*$C15))) -> 0 | X52: =IF(ISBLANK($E15),0,IF(LEFT($E15,1)="c",(CallThv(X$2,$D15,$J15/365,$S$21,$K15,0)*$C15)-($C15*$F15),IF(LEFT($E15)="p",(putThv(X$2,$D15,$J15/365,$S$21,$K15,0)*$C15)-($C15*$F15),(X$2-$D15)*$C15))) -> 0 | Y52: =IF(ISBLANK($E15),0,IF(LEFT($E15,1)="c",(CallThv(Y$2,$D15,$J15/365,$S$21,$K15,0)*$C15)-($C15*$F15),IF(LEFT($E15)="p",(putThv(Y$2,$D15,$J15/365,$S$21,$K15,0)*$C15)-($C15*$F15),(Y$2-$D15)*$C15))) -> 0 | Z52: =IF(ISBLANK($E15),0,IF(LEFT($E15,1)="c",(CallThv(Z$2,$D15,$J15/365,$S$21,$K15,0)*$C15)-($C15*$F15),IF(LEFT($E15)="p",(putThv(Z$2,$D15,$J15/365,$S$21,$K15,0)*$C15)-($C15*$F15),(Z$2-$D15)*$C15))) -> 0 | AA52: =IF(ISBLANK($E15),0,IF(LEFT($E15,1)="c",(CallThv(AA$2,$D15,$J15/365,$S$21,$K15,0)*$C15)-($C15*$F15),IF(LEFT($E15)="p",(putThv(AA$2,$D15,$J15/365,$S$21,$K15,0)*$C15)-($C15*$F15),(AA$2-$D15)*$C15))) -> 0 | AB52: =IF(ISBLANK($E15),0,IF(LEFT($E15,1)="c",(CallThv(AB$2,$D15,$J15/365,$S$21,$K15,0)*$C15)-($C15*$F15),IF(LEFT($E15)="p",(putThv(AB$2,$D15,$J15/365,$S$21,$K15,0)*$C15)-($C15*$F15),(AB$2-$D15)*$C15))) -> 0 | AC52: =IF(ISBLANK($E15),0,IF(LEFT($E15,1)="c",(CallThv(AC$2,$D15,$J15/365,$S$21,$K15,0)*$C15)-($C15*$F15),IF(LEFT($E15)="p",(putThv(AC$2,$D15,$J15/365,$S$21,$K15,0)*$C15)-($C15*$F15),(AC$2-$D15)*$C15))) -> 0 | AD52: =IF(ISBLANK($E15),0,IF(LEFT($E15,1)="c",(CallThv(AD$2,$D15,$J15/365,$S$21,$K15,0)*$C15)-($C15*$F15),IF(LEFT($E15)="p",(putThv(AD$2,$D15,$J15/365,$S$21,$K15,0)*$C15)-($C15*$F15),(AD$2-$D15)*$C15))) -> 0 | AE52: =IF(ISBLANK($E15),0,IF(LEFT($E15,1)="c",(CallThv(AE$2,$D15,$J15/365,$S$21,$K15,0)*$C15)-($C15*$F15),IF(LEFT($E15)="p",(putThv(AE$2,$D15,$J15/365,$S$21,$K15,0)*$C15)-($C15*$F15),(AE$2-$D15)*$C15))) -> 0 | AF52: =IF(ISBLANK($E15),0,IF(LEFT($E15,1)="c",(CallThv(AF$2,$D15,$J15/365,$S$21,$K15,0)*$C15)-($C15*$F15),IF(LEFT($E15)="p",(putThv(AF$2,$D15,$J15/365,$S$21,$K15,0)*$C15)-($C15*$F15),(AF$2-$D15)*$C15))) -> 0 | AG52: =IF(ISBLANK($E15),0,IF(LEFT($E15,1)="c",(CallThv(AG$2,$D15,$J15/365,$S$21,$K15,0)*$C15)-($C15*$F15),IF(LEFT($E15)="p",(putThv(AG$2,$D15,$J15/365,$S$21,$K15,0)*$C15)-($C15*$F15),(AG$2-$D15)*$C15))) -> 0 | AH52: =IF(ISBLANK($E15),0,IF(LEFT($E15,1)="c",(CallThv(AH$2,$D15,$J15/365,$S$21,$K15,0)*$C15)-($C15*$F15),IF(LEFT($E15)="p",(putThv(AH$2,$D15,$J15/365,$S$21,$K15,0)*$C15)-($C15*$F15),(AH$2-$D15)*$C15))) -> 0
P53: =IF(ISBLANK($E16),0,IF(LEFT($E16,1)="c",(CallThv(P$2,$D16,$J16/365,$S$21,$K16,0)*$C16)-($C16*$F16),IF(LEFT($E16)="p",(putThv(P$2,$D16,$J16/365,$S$21,$K16,0)*$C16)-($C16*$F16),(P$2-$D16)*$C16))) -> 0 | Q53: =IF(ISBLANK($E16),0,IF(LEFT($E16,1)="c",(CallThv(Q$2,$D16,$J16/365,$S$21,$K16,0)*$C16)-($C16*$F16),IF(LEFT($E16)="p",(putThv(Q$2,$D16,$J16/365,$S$21,$K16,0)*$C16)-($C16*$F16),(Q$2-$D16)*$C16))) -> 0 | R53: =IF(ISBLANK($E16),0,IF(LEFT($E16,1)="c",(CallThv(R$2,$D16,$J16/365,$S$21,$K16,0)*$C16)-($C16*$F16),IF(LEFT($E16)="p",(putThv(R$2,$D16,$J16/365,$S$21,$K16,0)*$C16)-($C16*$F16),(R$2-$D16)*$C16))) -> 0 | S53: =IF(ISBLANK($E16),0,IF(LEFT($E16,1)="c",(CallThv(S$2,$D16,$J16/365,$S$21,$K16,0)*$C16)-($C16*$F16),IF(LEFT($E16)="p",(putThv(S$2,$D16,$J16/365,$S$21,$K16,0)*$C16)-($C16*$F16),(S$2-$D16)*$C16))) -> 0 | T53: =IF(ISBLANK($E16),0,IF(LEFT($E16,1)="c",(CallThv(T$2,$D16,$J16/365,$S$21,$K16,0)*$C16)-($C16*$F16),IF(LEFT($E16)="p",(putThv(T$2,$D16,$J16/365,$S$21,$K16,0)*$C16)-($C16*$F16),(T$2-$D16)*$C16))) -> 0 | U53: =IF(ISBLANK($E16),0,IF(LEFT($E16,1)="c",(CallThv(U$2,$D16,$J16/365,$S$21,$K16,0)*$C16)-($C16*$F16),IF(LEFT($E16)="p",(putThv(U$2,$D16,$J16/365,$S$21,$K16,0)*$C16)-($C16*$F16),(U$2-$D16)*$C16))) -> 0 | V53: =IF(ISBLANK($E16),0,IF(LEFT($E16,1)="c",(CallThv(V$2,$D16,$J16/365,$S$21,$K16,0)*$C16)-($C16*$F16),IF(LEFT($E16)="p",(putThv(V$2,$D16,$J16/365,$S$21,$K16,0)*$C16)-($C16*$F16),(V$2-$D16)*$C16))) -> 0 | W53: =IF(ISBLANK($E16),0,IF(LEFT($E16,1)="c",(CallThv(W$2,$D16,$J16/365,$S$21,$K16,0)*$C16)-($C16*$F16),IF(LEFT($E16)="p",(putThv(W$2,$D16,$J16/365,$S$21,$K16,0)*$C16)-($C16*$F16),(W$2-$D16)*$C16))) -> 0 | X53: =IF(ISBLANK($E16),0,IF(LEFT($E16,1)="c",(CallThv(X$2,$D16,$J16/365,$S$21,$K16,0)*$C16)-($C16*$F16),IF(LEFT($E16)="p",(putThv(X$2,$D16,$J16/365,$S$21,$K16,0)*$C16)-($C16*$F16),(X$2-$D16)*$C16))) -> 0 | Y53: =IF(ISBLANK($E16),0,IF(LEFT($E16,1)="c",(CallThv(Y$2,$D16,$J16/365,$S$21,$K16,0)*$C16)-($C16*$F16),IF(LEFT($E16)="p",(putThv(Y$2,$D16,$J16/365,$S$21,$K16,0)*$C16)-($C16*$F16),(Y$2-$D16)*$C16))) -> 0 | Z53: =IF(ISBLANK($E16),0,IF(LEFT($E16,1)="c",(CallThv(Z$2,$D16,$J16/365,$S$21,$K16,0)*$C16)-($C16*$F16),IF(LEFT($E16)="p",(putThv(Z$2,$D16,$J16/365,$S$21,$K16,0)*$C16)-($C16*$F16),(Z$2-$D16)*$C16))) -> 0 | AA53: =IF(ISBLANK($E16),0,IF(LEFT($E16,1)="c",(CallThv(AA$2,$D16,$J16/365,$S$21,$K16,0)*$C16)-($C16*$F16),IF(LEFT($E16)="p",(putThv(AA$2,$D16,$J16/365,$S$21,$K16,0)*$C16)-($C16*$F16),(AA$2-$D16)*$C16))) -> 0 | AB53: =IF(ISBLANK($E16),0,IF(LEFT($E16,1)="c",(CallThv(AB$2,$D16,$J16/365,$S$21,$K16,0)*$C16)-($C16*$F16),IF(LEFT($E16)="p",(putThv(AB$2,$D16,$J16/365,$S$21,$K16,0)*$C16)-($C16*$F16),(AB$2-$D16)*$C16))) -> 0 | AC53: =IF(ISBLANK($E16),0,IF(LEFT($E16,1)="c",(CallThv(AC$2,$D16,$J16/365,$S$21,$K16,0)*$C16)-($C16*$F16),IF(LEFT($E16)="p",(putThv(AC$2,$D16,$J16/365,$S$21,$K16,0)*$C16)-($C16*$F16),(AC$2-$D16)*$C16))) -> 0 | AD53: =IF(ISBLANK($E16),0,IF(LEFT($E16,1)="c",(CallThv(AD$2,$D16,$J16/365,$S$21,$K16,0)*$C16)-($C16*$F16),IF(LEFT($E16)="p",(putThv(AD$2,$D16,$J16/365,$S$21,$K16,0)*$C16)-($C16*$F16),(AD$2-$D16)*$C16))) -> 0 | AE53: =IF(ISBLANK($E16),0,IF(LEFT($E16,1)="c",(CallThv(AE$2,$D16,$J16/365,$S$21,$K16,0)*$C16)-($C16*$F16),IF(LEFT($E16)="p",(putThv(AE$2,$D16,$J16/365,$S$21,$K16,0)*$C16)-($C16*$F16),(AE$2-$D16)*$C16))) -> 0 | AF53: =IF(ISBLANK($E16),0,IF(LEFT($E16,1)="c",(CallThv(AF$2,$D16,$J16/365,$S$21,$K16,0)*$C16)-($C16*$F16),IF(LEFT($E16)="p",(putThv(AF$2,$D16,$J16/365,$S$21,$K16,0)*$C16)-($C16*$F16),(AF$2-$D16)*$C16))) -> 0 | AG53: =IF(ISBLANK($E16),0,IF(LEFT($E16,1)="c",(CallThv(AG$2,$D16,$J16/365,$S$21,$K16,0)*$C16)-($C16*$F16),IF(LEFT($E16)="p",(putThv(AG$2,$D16,$J16/365,$S$21,$K16,0)*$C16)-($C16*$F16),(AG$2-$D16)*$C16))) -> 0 | AH53: =IF(ISBLANK($E16),0,IF(LEFT($E16,1)="c",(CallThv(AH$2,$D16,$J16/365,$S$21,$K16,0)*$C16)-($C16*$F16),IF(LEFT($E16)="p",(putThv(AH$2,$D16,$J16/365,$S$21,$K16,0)*$C16)-($C16*$F16),(AH$2-$D16)*$C16))) -> 0
